Workbook

Sheet Intro
A2: NAVIGANT CONSULTING, INC. | F2: Government
A3: 1801 K Street NW, Suite 500 | F3: Regulatory Impact
A4: Washington DC 20006 | F4: Model (GRIM)
F5: February 2012
A7: AHAM - Microwave Oven Standby Power - Rulemaking
A11: Because software is inherently complex and may not
A12: be completely free of errors, you are advised to verify
A13: your work. In no event will Navigant Consulting be liable
A14: for direct, indirect, special, incidental, or
A15: consequential damages arising out of the use of
A16: or inability to use the software or documentation,
A17: even if advised of the possibility of such damages.

Sheet Glossary of Terms
A1: Glossary of Terms
B4: Base Case | C4: The "no standard" case. The industry valuation is conducted assuming that an energy conservation standard is not implemented.
B5: Capital Conversion Costs | C5: One-time investments in plant, property, and equipment resulting from an energy conservation standard's implementation.
B6: Capital Expenditures | C6: Outlay of money to acquire or improve capital assets such as plant, property, and equipment.
B7: Conversion Costs | C7: Conversion costs include Product Conversion Costs and Capital Conversion Costs.
B8: Cost of Goods Sold (COGS) | C8: The cost of buying raw materials and producing finished goods. COGS includes materials, labor, overhead, and depreciation.
B9: Depreciation | C9: Amortization of fixed assets (such as PPE) to allocate the cost over their depreciable life. Depreciation does not reduce free cash flow, but it does reduce taxable income.
B10: Discount Rate | C10: Weighted average cost of capital
B11: Earnings Before Interest and Taxes (EBIT) | C11: Revenue less COGS and SG&A expenses (including R&D, product conversion expenses, and annual compliance costs). EBIT equals earnings before taxes (EBT) in the "income statement" portion of the GRIM.
B12: Free Cash Flow | C12: Cash not required for operations or for reinvestment.
B13: Governmental Regulatory Impact Model (GRIM) | C13: The industry cash flow model used by DOE to assess impacts on manufacturers due to proposed energy conservation standards.
B14: (Income) Tax Rate | C14: The effective tax rate assessed on a company's earnings before taxes (EBT).
B15: Industry Net Present Value (INPV) | C15: The discounted sum of industry free cash flows plus a discounted terminal value.
B16: Labor Costs | C16: The portion of COGS that includes direct labor, commissions, dismissal pay, bonuses, vacation, sick leave, social security contributions, fringe, and assembly labor up-time.
B17: Manufacturer Impact Analysis (MIA) | C17: The analysis of potential impacts on manufacturers resulting from various trial standard levels (TSLs). The MIA influences the energy conservation standards that are proposed in the NOPR. The MIA will be published in the TSD that accompanies the NOPR.
B18: Manufacturer Markup | C18: The markup that converts Full Production Cost to a Manufacturer Selling Price. The manufacturer markup includes SG&A, R&D, interest, and profit.
B19: Manufacturer Selling Price | C19: The result of applying the Manufacturer Markup to the Full Production Cost.
B20: Manufacturing Production Cost | C20: Includes direct labor, direct material, factory overhead, and depreciation. This includes the same cost categories that comprise Cost of Goods Sold in the discounted cash flow analysis.
B21: Material Costs | C21: The portion of COGS that includes all materials and scrap.
B22: Net Operating Profit After Taxes (NOPAT) | C22: EBIT less taxes.
B23: Notice of Proposed Rulemaking (NOPR) | C23: Federal Register notice detailing analyses conducted by the DOE to establish proposed energy conservation standards. The GRIM and associated Manufacturer Impact Analysis (MIA) will be incorporated in the NOPR and the NOPR TSD.
B24: Overhead (factory overhead) | C24: The portion of COGS that includes indirect labor, indirect material, maintenance, depreciation, property taxes, and insurance related to assets.
B25: Product Conversion Expenses | C25: Non-capital conversion costs incurred prior to the energy conservation standard's effective date. Product conversion expenses include engineering design costs, marketing, and preparation for testing.
B26: Product Mix | C26: The mix of product efficiencies sold by a company or industry.
B27: Property, Plant, & Equipment, net (PPE, net) | C27: PPE are fixed assets, or long-lived assets, including building, machinery, and equipment. PPE, net is PPE less accumulated depreciation.
B28: Return on Invested Capital (ROIC) | C28: ROIC is equal to NOPAT / (PPE, net working capital). When ROIC is greater than WACC, a company or industry is creating value.
B29: Return on Sales | C29: Return on Sales is equal to EBIT / revenue.
B30: Revenue | C30: Net sales.
B31: Selling, General, and Administrative Expenses (SG&A) | C31: A major component of the manufacturer selling price, accounted for in the GRIM as part of the Non-Production Cost markup. See Product Costs.
B32: Shipment Model | C32: A sub-model used in the National Impact Analysis that provides base case and standard case shipment projections.
B33: Standard Case | C33: The case where energy conservation standards are implemented. Compare to base case.
B34: Technical Support Document (TSD) | C34: TSD's are published by the DOE as companion documents to Federal Register notices. The TSD's include technical detail that supports the notices. The NOPR TSD includes the discussion of the Manufacturer Impact Analysis (MIA)
B35: Trial Standard Level (TSL) | C35: A proposed energy conservation standard evaluated by the DOE during the NOPR phase analyses.
B36: Weighted Average Cost of Capital (WACC) | C36: The weighted average cost of debt and equity capital, based on industry capital structure. The cost of debt includes the impact of the tax shield provided by debt-financing.
B37: (Net) Working Capital (NWC) | C37: Current assets less current liabilities. The change in working capital is the difference in required working capital between a given year and the previous year.

Sheet Welcome
B2: Welcome to the Government Regulatory Impact Model (GRIM) for the Microwave Oven Standby Power Rulemaking
B4: User Instructions
B5: 1. The yellow-tabbed sheets pertain to overview information. The orange-tabbed sheets refer to input information. The purple and light blue-tabbed sheets represent calculations. The blue-tabbed and green-tabbed sheets contain numerical and graphical output.
B6: 2. Use the "Scenario (INPUT)" sheet to choose the desired scenario. Check boxes in Cells I7-I8 are used to select the product classes for analysis. Cell I11 is used to choose the trial standard level (TSL) for the selected product class(es). Cells I14 and I16 are used to select the shipment scenario. Cell H19 is used to select the markup scenario for the analysis (Preservation of Gross Margin as a Percentage or Preservation of Gross Margin in Absolute Dollars).
B7: 3. After selecting the desired scenarios in the "Scenario (INPUT)" sheet, click on the blue box also located in "Scenario (INPUT)" sheet to populate the INPV tables located in the blue-tabbed sheet entitled "Summary Report."
B8: 4. Other blue-tabbed sheets provide graphical information summarizing the scenario. On the blue-tabbed sheet "Data for Graphs", click on the blue arrow to populate the graph tables given the chosen scenarios. Use the drop-down menue to select the product class for graphical display of results. Note, on some computers, the workbook may need to be closed and re-opened before the graphical inforamtion will completely update.
B9: 5. The white-tabbed sheet "Employment" provides the calculations for the impacts on production and non-production employment for the analysis industries. After selecting the desired scenario in the "Scenario (INPUT)" sheet, click on the blue arrows in the "Employment" sheet to populate the tables and graphs.

Sheet Calculation Flow (INPV)

Sheet Assumptions (INPUT)
A1: Assumptions and Inputs
A3: User Input | M3: Capital Conversion Costs
M4: (2010$ millions)
A5: Financial Parameters | F5: Scenario Description
A6: Base Year | C6: 2011 | N6: Trial Standard Level | O6: PC 1 | P6: PC 2 | S6: Reference
A7: Announcement Year | C7: 2011 | G7: PC 1 | I7: Yes | S7: High
A8: Standard Year | C8: 2014 | G8: PC 2 | I8: Yes | N8: Baseline | O8: 0 | P8: 0 | S8: Low
A9: Terminal Year | C9: 2043 | N9: TSL 1 | O9: 3.915767045 | P9: 0.03955320248
N10: TSL 2 | O10: 4.30734375 | P10: 0.04350852273 | S10: Yes
E11: TrialStandard Level Selected | I11: TSL 4 | N11: TSL 3 | O11: 4.698920455 | P11: 0.04746384298 | S11: No
A12: Tax Rate | C12: 0.3394030954 | D12: % of EBT | N12: TSL 4 | O12: 7.831534091 | P12: 0.07910640496
A13: Discount Rate for NPV (real) | C13: 0.07158229715
F14: Economic Growth Scenario | I14: Reference | O14: =VLOOKUP(TSL_X,N8:P12,2) -> 7.831534091 | P14: =VLOOKUP(TSL_X,N8:P12,3) -> 0.07910640496 | S14: Preservation of Gross Margin Percentage
S15: Preservation of Gross Margin (Absolute Dollars)
A16: Working Capital | C16: 0.02942007077 | D16: % of Revenue | F16: Shipment Elasticity Scenario | I16: RP Elasticity 0.34 | N16: Total Industry Capital Conversion Costs | O16: =SUM(IF(MW_Include_Y_N="Yes",O14,0),IF(CO_Include_Y_N="Yes",P14,0)) -> 7.910640496
A17: Net Property, Plant & Equipment | C17: 0.1987769754 | D17: % of Revenue | S17: None
A18: Standard SG&A | C18: 0.1248 | D18: % of Revenue | S18: RP Elasticity 0.34
A19: Research and Development | C19: 0.02208 | D19: % of Revenue | F19: Markup Scenario | H19: Preservation of Gross Margin Percentage
A20: Depreciation | C20: 0.03372716235 | D20: % of Revenue
A21: Capital Expenditures | C21: 0.03536493454 | D21: % of Revenue | H21: Learning Curve? | I21: Yes | M21: Product Conversion Costs
M22: (2010$ millions)
A24: Terminal growth rate | C24: 0.01 | N24: Trial Standard Level | O24: PC 1 | P24: PC 2
N26: Baseline | O26: 0 | P26: 0
N27: TSL 1 | O27: 39.15767045 | P27: 0.3955320248
N28: TSL 2 | O28: 70.48380682 | P28: 0.7119576446
N29: TSL 3 | O29: 89.08370028 | P29: 0.8701704545
A30: Trial Standard Levels | N30: TSL 4 | O30: 172.29375 | P30: 1.740340909
B32: Trial Standard Levels | H32: EF for Selected TSL | O32: =VLOOKUP(TSL_X,N26:P30,2) -> 172.29375 | P32: =VLOOKUP(TSL_X,N26:P30,3) -> 1.740340909
A33: Product Class | B33: Baseline | C33: TSL 1 | D33: TSL 2 | E33: TSL 3 | F33: TSL 4
N34: Total Industry Product Conversion Costs | O34: =SUM(IF(MW_Include_Y_N="Yes",O32,0),IF(CO_Include_Y_N="Yes",P32,0)) -> 174.0340909
A35: PC 1 Efficiency Levels (Watts/H) | B35: 4 | C35: 2 | D35: 1.5 | E35: 1 | F35: 0.02 | H35: =HLOOKUP(TSL_X,$B$33:$F$36,3) -> 0.02
A36: PC 2 Efficiency Levels (Watts/H) | B36: 4.5 | C36: 3.7 | D36: 2.7 | E36: 2.2 | F36: 0.04 | H36: =HLOOKUP(TSL_X,$B$33:$F$36,4) -> 0.04
M38: Stranded Assets
M39: (2010$ millions)
N41: Trial Standard Level | O41: PC 1 | P41: PC 2
A42: Manufacturer Production Cost Breakdown | H42: Product Hold Factor
H43: For product and capital conversion factors calculation | N43: Baseline | O43: 0 | P43: 0
B44: Labor % of Total | C44: Materials % of Total | D44: Overhead % of Total | E44: Depreciation % of Total | N44: TSL 1 | O44: 0 | P44: 0
A45: Product Class | N45: TSL 2 | O45: 0 | P45: 0
A46: PC 1 | B46: 0.08830756036 | C46: 0.8415748269 | D46: 0.02727761276 | E46: 0.04284 | H46: Prod Hold Factor | J46: 0.98 | N46: TSL 3 | O46: 0 | P46: 0
A47: PC 2 | B47: 0.08830756036 | C47: 0.8415748269 | D47: 0.02727761276 | E47: 0.04284 | N47: TSL 4 | O47: 0 | P47: 0
O49: =VLOOKUP(TSL_X,N43:P47,2) -> 0 | P49: =VLOOKUP(TSL_X,N43:P47,3) -> 0
A51: Shipment Weighted Market Share by Product Class | N51: Total Industry Stranded Assets | O51: =SUM(IF(MW_Include_Y_N="Yes",O49,0),IF(CO_Include_Y_N="Yes",P49,0)) -> 0
A54: Product Class | B54: Baseline | C54: TSL 1 | D54: TSL 2 | E54: TSL 3 | F54: TSL 4 | G54: Total
A55: PC 1 | B55: 0.462 | C55: 0.346 | D55: 0.192 | E55: 0 | F55: 0 | G55: =SUM(B55:F55) -> 1
A56: PC 2 | B56: 1 | C56: 0 | D56: 0 | E56: 0 | F56: 0 | G56: =SUM(B56:F56) -> 1
M57: Full Cost of Production
M58: (2010$)
N60: Trial Standard Level | O60: PC 1 Incremental Cost | P60: PC 1 Full Cost of Production
A61: Multipliers for Price Projections
N62: Baseline | O62: - | P62: 120.3497068
A63: Year | B63: Selected Multiplier | D63: Constant Price | E63: Learning | N63: TSL 1 | O63: 0.2675577157 | P63: =P62+O63 -> 120.6172645
A64: 2007 | B64: =IF(Learning_Scenario="Yes",E64,IF(Learning_Scenario="No",D64,"Error")) -> 1 | D64: 1 | E64: 1 | N64: TSL 2 | O64: 0.597545565 | P64: =P62+O64 -> 120.9472524
A65: =A64+1 -> 2008 | B65: =IF(Learning_Scenario="Yes",E65,IF(Learning_Scenario="No",D65,"Error")) -> 1 | D65: 1 | E65: 1 | N65: TSL 3 | O65: 1.311032807 | P65: =P62+O65 -> 121.6607396
A66: =A65+1 -> 2009 | B66: =IF(Learning_Scenario="Yes",E66,IF(Learning_Scenario="No",D66,"Error")) -> 1 | D66: 1 | E66: 1 | N66: TSL 4 | O66: 4.575236938 | P66: =P62+O66 -> 124.9249437
A67: 2010 | B67: 1 | D67: 1 | E67: 1
A68: 2011 | B68: 0.9814398913 | D68: 1 | E68: 0.9814398913 | N68: Trial Standard Level | O68: PC 2 Incremental Cost | P68: PC 2 Full Cost of Production
A69: 2012 | B69: 0.9633734374 | D69: 1 | E69: 0.9633734374
A70: 2013 | B70: 0.9460855292 | D70: 1 | E70: 0.9460855292 | N70: Baseline | O70: - | P70: 259.9033893
A71: 2014 | B71: 0.9296715452 | D71: 1 | E71: 0.9296715452 | N71: TSL 1 | O71: 0 | P71: =P70+O71 -> 259.9033893
A72: 2015 | B72: 0.9141633217 | D72: 1 | E72: 0.9141633217 | N72: TSL 2 | O72: 2.290735434 | P72: =P70+O72 -> 262.1941247
A73: 2016 | B73: 0.8996670717 | D73: 1 | E73: 0.8996670717 | N73: TSL 3 | O73: 9.43623228 | P73: =P70+O73 -> 269.3396216
A74: 2017 | B74: 0.8861428312 | D74: 1 | E74: 0.8861428312 | N74: TSL 4 | O74: 5.183335923 | P74: =P70+O74 -> 265.0867252
A75: 2018 | B75: 0.8732487336 | D75: 1 | E75: 0.8732487336
A76: 2019 | B76: 0.8606211562 | D76: 1 | E76: 0.8606211562
A77: 2020 | B77: 0.8480548072 | D77: 1 | E77: 0.8480548072
A78: 2021 | B78: 0.8356082651 | D78: 1 | E78: 0.8356082651 | M78: Manufacturer Markups
A79: 2022 | B79: 0.8233973308 | D79: 1 | E79: 0.8233973308
A80: 2023 | B80: 0.8116018801 | D80: 1 | E80: 0.8116018801 | M80: Preservation of Gross Margin Percentage
A81: 2024 | B81: 0.8003217531 | D81: 1 | E81: 0.8003217531
A82: 2025 | B82: 0.7895684797 | D82: 1 | E82: 0.7895684797 | M82: Markup | N82: 1.26
A83: 2026 | B83: 0.7793501569 | D83: 1 | E83: 0.7793501569
A84: 2027 | B84: 0.7696158815 | D84: 1 | E84: 0.7696158815 | M84: Preservation of Gross Margin (Absolute Dollars)
A85: 2028 | B85: 0.7602534159 | D85: 1 | E85: 0.7602534159 | W85: PC 1 Markups - Market Impact Scenario (RP Elasticity .34 Selected) | AO85: Multipliers for Markups Calculations
A86: 2029 | B86: 0.7511224789 | D86: 1 | E86: 0.7511224789 | R86: PC 1 Markups - No Market Impact | W86: Reference Economic Scenario | AB86: High Economic Scenario | AG86: Low Economic Scenario
A87: 2030 | B87: 0.7421157057 | D87: 1 | E87: 0.7421157057 | Q87: Trial Standard Level | R87: Baseline | S87: TSL 1 | T87: TSL 2 | U87: TSL 3 | V87: TSL 4 | W87: Baseline | X87: TSL 1 | Y87: TSL 2 | Z87: TSL 3 | AA87: TSL 4 | AB87: Baseline | AC87: TSL 1 | AD87: TSL 2 | AE87: TSL 3 | AF87: TSL 4 | AG87: Baseline | AH87: TSL 1 | AI87: TSL 2 | AJ87: TSL 3 | AK87: TSL 4 | AO87: 1st Multipler | AP87: 2nd Multipler | AQ87: 3rd Multipler | AR87: 4th Multipler
A88: 2031 | B88: 0.7332541051 | D88: 1 | E88: 0.7332541051 | N88: TSL | O88: Markup For Analysis | AN88: TSL 1 | AO88: 0.9997287839 | AP88: 0.9997797772 | AQ88: 0.9997794414 | AR88: 0.9997800613
A89: 2032 | B89: 0.724573734 | D89: 1 | E89: 0.724573734 | Q89: Baseline | R89: =Manufacturer_Markup -> 1.26 | S89: =Manufacturer_Markup -> 1.26 | T89: 1.26 | U89: 1.26 | V89: 1.26 | W89: =Manufacturer_Markup -> 1.26 | X89: 1.26 | Y89: 1.26 | Z89: 1.26 | AA89: 1.26 | AB89: =Manufacturer_Markup -> 1.26 | AC89: 1.26 | AD89: 1.26 | AE89: 1.26 | AF89: 1.26 | AG89: =Manufacturer_Markup -> 1.26 | AH89: 1.26 | AI89: 1.26 | AJ89: 1.26 | AK89: 1.26 | AN89: TSL 2 | AO89: 0.9993100546 | AP89: 0.9994501566 | AQ89: 0.9994494933 | AR89: 0.9994506582
A90: 2033 | B90: 0.7160984309 | D90: 1 | E90: 0.7160984309 | N90: Baseline | O90: =IF(ShipmentElasticity_Scenario="None", VLOOKUP(TSL_X,$Q$89:$AK$93,2), IF(AND(ShipmentElasticity_Scenario="RP Elasticity 0.34", Economic_Scenario="Reference"), VLOOKUP(TSL_X,$Q$89:$AK$93,7), IF(AND(ShipmentElasticity_Scenario="RP Elasticity 0.34", Economic_Scenario="High"), VLOOKUP(TSL_X,$Q$89:$AK$93,12), VLOOKUP(TSL_X,$Q$89:$AK$93,17)))) -> 0 | Q90: TSL 1 | S90: =Manufacturer_Markup*AO88 -> 1.259658268 | T90: 1.26 | U90: 1.26 | V90: 1.26 | X90: =Manufacturer_Markup*AP88 -> 1.259722519 | Y90: 1.26 | Z90: 1.26 | AA90: 1.26 | AC90: =Manufacturer_Markup*AQ88 -> 1.259722096 | AD90: 1.26 | AE90: 1.26 | AF90: 1.26 | AH90: =Manufacturer_Markup*AR88 -> 1.259722877 | AI90: 1.26 | AJ90: 1.26 | AK90: 1.26 | AN90: TSL 3 | AO90: 0.9980600572 | AP90: 0.9984669705 | AQ90: 0.9984653326 | AR90: 0.9984681163
A91: 2034 | B91: 0.7078672931 | D91: 1 | E91: 0.7078672931 | N91: TSL 1 | O91: =IF(ShipmentElasticity_Scenario="None", VLOOKUP(TSL_X,$Q$89:$AK$93,3), IF(AND(ShipmentElasticity_Scenario="RP Elasticity 0.34", Economic_Scenario="Reference"), VLOOKUP(TSL_X,$Q$89:$AK$93,8), IF(AND(ShipmentElasticity_Scenario="RP Elasticity 0.34", Economic_Scenario="High"), VLOOKUP(TSL_X,$Q$89:$AK$93,13), VLOOKUP(TSL_X,$Q$89:$AK$93,18)))) -> 0 | Q91: TSL 2 | T91: =Manufacturer_Markup*AO89 -> 1.259130669 | U91: 1.26 | V91: 1.26 | Y91: =Manufacturer_Markup*AP89 -> 1.259307197 | Z91: 1.26 | AA91: 1.26 | AD91: =Manufacturer_Markup*AQ89 -> 1.259306362 | AE91: 1.26 | AF91: 1.26 | AI91: =Manufacturer_Markup*AR89 -> 1.259307829 | AJ91: 1.26 | AK91: 1.26 | AN91: TSL 4 | AO91: 0.9925234075 | AP91: 0.9941288751 | AQ91: 0.9941230136 | AR91: 0.994132737
A92: 2035 | B92: 0.6999120073 | D92: 1 | E92: 0.6999120073 | N92: TSL 2 | O92: =IF(ShipmentElasticity_Scenario="None", VLOOKUP(TSL_X,$Q$89:$AK$93,4), IF(AND(ShipmentElasticity_Scenario="RP Elasticity 0.34", Economic_Scenario="Reference"), VLOOKUP(TSL_X,$Q$89:$AK$93,9), IF(AND(ShipmentElasticity_Scenario="RP Elasticity 0.34", Economic_Scenario="High"), VLOOKUP(TSL_X,$Q$89:$AK$93,14), VLOOKUP(TSL_X,$Q$89:$AK$93,19)))) -> 0 | Q92: TSL 3 | U92: =Manufacturer_Markup*AO90 -> 1.257555672 | V92: =Manufacturer_Markup -> 1.26 | Z92: =Manufacturer_Markup*AP90 -> 1.258068383 | AA92: =Manufacturer_Markup -> 1.26 | AE92: =Manufacturer_Markup*AQ90 -> 1.258066319 | AF92: =Manufacturer_Markup -> 1.26 | AJ92: =Manufacturer_Markup*AR90 -> 1.258069827 | AK92: =Manufacturer_Markup -> 1.26
A93: 2036 | B93: 0.6922213754 | D93: 1 | E93: 0.6922213754 | N93: TSL 3 | O93: =IF(ShipmentElasticity_Scenario="None", VLOOKUP(TSL_X,$Q$89:$AK$93,5), IF(AND(ShipmentElasticity_Scenario="RP Elasticity 0.34", Economic_Scenario="Reference"), VLOOKUP(TSL_X,$Q$89:$AK$93,10), IF(AND(ShipmentElasticity_Scenario="RP Elasticity 0.34", Economic_Scenario="High"), VLOOKUP(TSL_X,$Q$89:$AK$93,15), VLOOKUP(TSL_X,$Q$89:$AK$93,20)))) -> 0 | Q93: TSL 4 | V93: =Manufacturer_Markup*AO91 -> 1.250579493 | AA93: =Manufacturer_Markup*AP91 -> 1.252602383 | AF93: =Manufacturer_Markup*AQ91 -> 1.252594997 | AK93: =Manufacturer_Markup*AR91 -> 1.252607249
A94: 2037 | B94: 0.6847694871 | D94: 1 | E94: 0.6847694871 | N94: TSL 4 | O94: =IF(ShipmentElasticity_Scenario="None", VLOOKUP(TSL_X,$Q$89:$AK$93,6), IF(AND(ShipmentElasticity_Scenario="RP Elasticity 0.34", Economic_Scenario="Reference"), VLOOKUP(TSL_X,$Q$89:$AK$93,11), IF(AND(ShipmentElasticity_Scenario="RP Elasticity 0.34", Economic_Scenario="High"), VLOOKUP(TSL_X,$Q$89:$AK$93,16), VLOOKUP(TSL_X,$Q$89:$AK$93,21)))) -> 1.252602383
A95: 2038 | B95: 0.6775147711 | D95: 1 | E95: 0.6775147711
A96: 2039 | B96: 0.6704166098 | D96: 1 | E96: 0.6704166098 | W96: PC 2 Markups - Market Impact Scenario (RP Elasticity .34 Selected) | AO96: Multipliers for Markups Calculations
A97: 2040 | B97: 0.6634489334 | D97: 1 | E97: 0.6634489334 | R97: PC 2 Markups - No Market Impact | W97: Reference Economic Scenario | AB97: High Economic Scenario | AG97: Low Economic Scenario
A98: 2041 | B98: 0.6566067232 | D98: 1 | E98: 0.6566067232 | Q98: Trial Standard Level | R98: Baseline | S98: TSL 1 | T98: TSL 2 | U98: TSL 3 | V98: TSL 4 | W98: Baseline | X98: TSL 1 | Y98: TSL 2 | Z98: TSL 3 | AA98: TSL 4 | AB98: Baseline | AC98: TSL 1 | AD98: TSL 2 | AE98: TSL 3 | AF98: TSL 4 | AG98: Baseline | AH98: TSL 1 | AI98: TSL 2 | AJ98: TSL 3 | AK98: TSL 4 | AO98: 1st Multipler | AP98: 2nd Multipler | AQ98: 3rd Multipler | AR98: 4th Multipler
A99: 2042 | B99: 0.649901617 | D99: 1 | E99: 0.649901617 | N99: TSL | O99: Markup For Analysis | AN99: TSL 1 | AO99: 1 | AP99: 0.9999975814 | AQ99: 0.9999975366 | AR99: 1.000000174
A100: 2043 | B100: 0.6433516918 | D100: 1 | E100: 0.6433516918 | Q100: Baseline | R100: =Manufacturer_Markup -> 1.26 | S100: =Manufacturer_Markup -> 1.26 | T100: 1.26 | U100: 1.26 | V100: 1.26 | W100: =Manufacturer_Markup -> 1.26 | X100: 1.26 | Y100: 1.26 | Z100: 1.26 | AA100: 1.26 | AB100: =Manufacturer_Markup -> 1.26 | AC100: 1.26 | AD100: 1.26 | AE100: 1.26 | AF100: 1.26 | AG100: =Manufacturer_Markup -> 1.26 | AH100: 1.26 | AI100: 1.26 | AJ100: 1.26 | AK100: 1.26 | AN100: TSL 2 | AO100: 0.9981317764 | AP100: 0.9985295117 | AQ100: 0.9985280469 | AR100: 0.9985328359
N101: Baseline | O101: =IF(ShipmentElasticity_Scenario="None", VLOOKUP(TSL_X,$Q$100:$AK$104,2), IF(AND(ShipmentElasticity_Scenario="RP Elasticity 0.34", Economic_Scenario="Reference"), VLOOKUP(TSL_X,$Q$100:$AK$104,7), IF(AND(ShipmentElasticity_Scenario="RP Elasticity 0.34", Economic_Scenario="High"), VLOOKUP(TSL_X,$Q$100:$AK$104,12), VLOOKUP(TSL_X,$Q$100:$AK$104,17)))) -> 0 | Q101: TSL 1 | S101: =Manufacturer_Markup*AO99 -> 1.26 | T101: 1.26 | U101: 1.26 | V101: 1.26 | X101: =Manufacturer_Markup*AP99 -> 1.259996953 | Y101: 1.26 | Z101: 1.26 | AA101: 1.26 | AC101: =Manufacturer_Markup*AQ99 -> 1.259996896 | AD101: 1.26 | AE101: 1.26 | AF101: 1.26 | AH101: =Manufacturer_Markup*AR99 -> 1.260000219 | AI101: 1.26 | AJ101: 1.26 | AK101: 1.26 | AN101: TSL 3 | AO101: 0.9925083883 | AP101: 0.9941278471 | AQ101: 0.9941221845 | AR101: 0.9941337756
N102: TSL 1 | O102: =IF(ShipmentElasticity_Scenario="None", VLOOKUP(TSL_X,$Q$100:$AK$104,3), IF(AND(ShipmentElasticity_Scenario="RP Elasticity 0.34", Economic_Scenario="Reference"), VLOOKUP(TSL_X,$Q$100:$AK$104,8), IF(AND(ShipmentElasticity_Scenario="RP Elasticity 0.34", Economic_Scenario="High"), VLOOKUP(TSL_X,$Q$100:$AK$104,13), VLOOKUP(TSL_X,$Q$100:$AK$104,18)))) -> 0 | Q102: TSL 2 | T102: =Manufacturer_Markup*AO100 -> 1.257646038 | U102: 1.26 | V102: 1.26 | Y102: =Manufacturer_Markup*AP100 -> 1.258147185 | Z102: 1.26 | AA102: 1.26 | AD102: =Manufacturer_Markup*AQ100 -> 1.258145339 | AE102: 1.26 | AF102: 1.26 | AI102: =Manufacturer_Markup*AR100 -> 1.258151373 | AJ102: 1.26 | AK102: 1.26 | AN102: TSL 4 | AO102: 0.9958188258 | AP102: 0.9967099263 | AQ102: 0.9967066111 | AR102: 0.9967144711
N103: TSL 2 | O103: =IF(ShipmentElasticity_Scenario="None", VLOOKUP(TSL_X,$Q$100:$AK$104,4), IF(AND(ShipmentElasticity_Scenario="RP Elasticity 0.34", Economic_Scenario="Reference"), VLOOKUP(TSL_X,$Q$100:$AK$104,9), IF(AND(ShipmentElasticity_Scenario="RP Elasticity 0.34", Economic_Scenario="High"), VLOOKUP(TSL_X,$Q$100:$AK$104,14), VLOOKUP(TSL_X,$Q$100:$AK$104,19)))) -> 0 | Q103: TSL 3 | U103: =Manufacturer_Markup*AO101 -> 1.250560569 | V103: =Manufacturer_Markup -> 1.26 | Z103: =Manufacturer_Markup*AP101 -> 1.252601087 | AA103: =Manufacturer_Markup -> 1.26 | AE103: =Manufacturer_Markup*AQ101 -> 1.252593952 | AF103: =Manufacturer_Markup -> 1.26 | AJ103: =Manufacturer_Markup*AR101 -> 1.252608557 | AK103: =Manufacturer_Markup -> 1.26
N104: TSL 3 | O104: =IF(ShipmentElasticity_Scenario="None", VLOOKUP(TSL_X,$Q$100:$AK$104,5), IF(AND(ShipmentElasticity_Scenario="RP Elasticity 0.34", Economic_Scenario="Reference"), VLOOKUP(TSL_X,$Q$100:$AK$104,10), IF(AND(ShipmentElasticity_Scenario="RP Elasticity 0.34", Economic_Scenario="High"), VLOOKUP(TSL_X,$Q$100:$AK$104,15), VLOOKUP(TSL_X,$Q$100:$AK$104,20)))) -> 0 | Q104: TSL 4 | V104: =Manufacturer_Markup*AO102 -> 1.254731721 | AA104: =Manufacturer_Markup*AP102 -> 1.255854507 | AF104: =Manufacturer_Markup*AQ102 -> 1.25585033 | AK104: =Manufacturer_Markup*AR102 -> 1.255860234
N105: TSL 4 | O105: =IF(ShipmentElasticity_Scenario="None", VLOOKUP(TSL_X,$Q$100:$AK$104,6), IF(AND(ShipmentElasticity_Scenario="RP Elasticity 0.34", Economic_Scenario="Reference"), VLOOKUP(TSL_X,$Q$100:$AK$104,11), IF(AND(ShipmentElasticity_Scenario="RP Elasticity 0.34", Economic_Scenario="High"), VLOOKUP(TSL_X,$Q$100:$AK$104,16), VLOOKUP(TSL_X,$Q$100:$AK$104,21)))) -> 1.255854507
M109: Selected Shipment Projection
R111: PC 1 Shipments - RP Elasticity-0.34
O112: PC 1 Shipments No Market Impact Scenario | R112: TSL 1 | U112: TSL 2 | X112: TSL 3 | AA112: TSL 4
N113: Year | O113: Reference | P113: High | Q113: Low | R113: Reference | S113: High | T113: Low | U113: Reference | V113: High | W113: Low | X113: Reference | Y113: High | Z113: Low | AA113: Reference | AB113: High | AC113: Low
N115: 2007 | O115: 11732490 | P115: 11732490 | Q115: 11732490 | R115: 11732490 | S115: 11732490 | T115: 11732490 | U115: 11732490 | V115: 11732490 | W115: 11732490 | X115: 11732490 | Y115: 11732490 | Z115: 11732490 | AA115: 11732490 | AB115: 11732490 | AC115: 11732490
N116: =N115+1 -> 2008 | O116: 11226600 | P116: 11226600 | Q116: 11226600 | R116: 11226600 | S116: 11226600 | T116: 11226600 | U116: 11226600 | V116: 11226600 | W116: 11226600 | X116: 11226600 | Y116: 11226600 | Z116: 11226600 | AA116: 11226600 | AB116: 11226600 | AC116: 11226600
N117: =N116+1 -> 2009 | O117: 9529740 | P117: 9529740 | Q117: 9529740 | R117: 9529740 | S117: 9529740 | T117: 9529740 | U117: 9529740 | V117: 9529740 | W117: 9529740 | X117: 9529740 | Y117: 9529740 | Z117: 9529740 | AA117: 9529740 | AB117: 9529740 | AC117: 9529740
N118: 2010 | O118: 13887850.34 | P118: 13887849.83 | Q118: 13887849.83 | R118: 13887850.34 | S118: 13887849.83 | T118: 13887849.83 | U118: 13887850.34 | V118: 13887849.83 | W118: 13887849.83 | X118: 13887850.34 | Y118: 13887849.83 | Z118: 13887849.83 | AA118: 13887850.34 | AB118: 13887849.83 | AC118: 13887849.83
N119: 2011 | O119: 14521792.11 | P119: 14991090.7 | Q119: 14093295.51 | R119: 14521792.11 | S119: 14991090.7 | T119: 14093295.51 | U119: 14521792.11 | V119: 14991090.7 | W119: 14093295.51 | X119: 14521792.11 | Y119: 14991090.7 | Z119: 14093295.51 | AA119: 14521792.11 | AB119: 14991090.7 | AC119: 14093295.51
N120: 2012 | O120: 14909185.26 | P120: 15216875.69 | Q120: 14589298.41 | R120: 14909185.26 | S120: 15216875.69 | T120: 14589298.41 | U120: 14909185.26 | V120: 15216875.69 | W120: 14589298.41 | X120: 14909185.26 | Y120: 15216875.69 | Z120: 14589298.41 | AA120: 14909185.26 | AB120: 15216875.69 | AC120: 14589298.41
N121: 2013 | O121: 15053552.9 | P121: 15371412.11 | Q121: 14760289.66 | R121: 15053552.9 | S121: 15371412.11 | T121: 14760289.66 | U121: 15053552.9 | V121: 15371412.11 | W121: 14760289.66 | X121: 15053552.9 | Y121: 15371412.11 | Z121: 14760289.66 | AA121: 15053552.9 | AB121: 15371412.11 | AC121: 14760289.66
N122: 2014 | O122: 15003955.96 | P122: 15326576.13 | Q122: 14705991.77 | R122: 15000206.53 | S122: 15322762.12 | T122: 14702301.25 | U122: 14991193.7 | V122: 15313574.03 | W122: 14693452 | X122: 14966735.4 | Y122: 15288633.6 | Z122: 14669444.86 | AA122: 14854079.5 | AB122: 15173742.43 | AC122: 14558883
N123: 2015 | O123: 14762611.85 | P123: 15156687.15 | Q123: 14425817.32 | R123: 14759766.44 | S123: 15153785.03 | T123: 14423021.34 | U123: 14752914.59 | V123: 15146778.14 | W123: 14416307.4 | X123: 14734316.64 | Y123: 15127753.33 | Z123: 14398089.93 | AA123: 14648644.93 | AB123: 15040101.9 | AC123: 14314184.63
N124: 2016 | O124: 14228026.94 | P124: 14609708.21 | Q124: 13826708.04 | R124: 14225819.69 | S124: 14607453.18 | T124: 13824546.48 | U124: 14220489.75 | V124: 14601991.62 | W124: 13819344.24 | X124: 14206017.89 | Y124: 14587157.01 | Z124: 13805224.77 | AA124: 14139342.35 | AB124: 14518798.41 | AC124: 13740185.37
N125: 2017 | O125: 13634665.8 | P125: 14005974.72 | Q125: 13256888.62 | R125: 13632827.22 | S125: 14004093.19 | T125: 13255090.03 | U125: 13628376.46 | V125: 13999525.07 | W125: 13250754.64 | X125: 13616288.12 | Y125: 13987113.6 | Z125: 13238985.69 | AA125: 13560586.23 | AB125: 13929913.16 | AC125: 13184768.96
N126: 2018 | O126: 13430166.27 | P126: 13863422.93 | Q126: 13033671.21 | R126: 13428625.31 | S126: 13861841.68 | T126: 13032166.68 | U126: 13424888.65 | V126: 13857994.02 | W126: 13028534.88 | X126: 13414737.79 | Y126: 13847537.32 | Z126: 13018674.27 | AA126: 13367960.32 | AB126: 13799340.8 | AC126: 12973246.24
N127: 2019 | O127: 13751645.79 | P127: 14226779.95 | Q127: 13266201.33 | R127: 13750107.08 | S127: 14225198.41 | T127: 13264703.93 | U127: 13746371.37 | V127: 14221341.97 | W127: 13261086.69 | X127: 13736221.88 | Y127: 14210859.04 | Z127: 13251264.98 | AA127: 13689451.93 | AB127: 14162540.41 | AC127: 13206018.63
N128: 2020 | O128: 14463141.67 | P128: 15040358.33 | Q128: 13928066.68 | R128: 14461501.01 | S128: 15038667.33 | T128: 13926472.97 | U128: 14457510.86 | V128: 15034535.97 | W128: 13922616.91 | X128: 14446668.36 | Y128: 15023303.68 | Z128: 13912145.25 | AA128: 14396710.91 | AB128: 14971536.52 | AC128: 13863911.04
N129: 2021 | O129: 15186637.38 | P129: 15846234.3 | Q129: 14572661.45 | R129: 15184774.81 | S129: 15844312.41 | T129: 14570853.25 | U129: 15180241.46 | V129: 15839613.26 | W129: 14566475.33 | X129: 15167922.85 | Y129: 15826837.13 | Z129: 14554586.58 | AA129: 15111182.24 | AB129: 15767973.11 | AC129: 14499843.19
N130: 2022 | O130: 15726732.46 | P130: 16467512.28 | Q130: 15043268.36 | R130: 15724505.25 | S130: 16465214.58 | T130: 15041104.9 | U130: 15719087.59 | V130: 16459602.14 | W130: 15035868.06 | X130: 15704368.54 | Y130: 16444346.29 | Z130: 15021648.69 | AA130: 15636603.13 | AB130: 16374091.63 | AC130: 14956203.4
N131: 2023 | O131: 15913686.69 | P131: 16692415.54 | Q131: 15175504.55 | R131: 15910974.35 | S131: 16689621.95 | T131: 15172865.99 | U131: 15904382.91 | V131: 16682806.55 | W131: 15166483.6 | X131: 15886478.46 | Y131: 16664285.08 | Z131: 15149156.7 | AA131: 15804082.74 | AB131: 16579029.23 | AC131: 15069441.77
N132: 2024 | O132: 15849503.07 | P132: 16647568.99 | Q132: 15071095.37 | R132: 15846247.26 | S132: 16644221 | T132: 15067927.8 | U132: 15838338.2 | V132: 16636052.81 | W132: 15060265.01 | X132: 15816857.01 | Y132: 16613856.28 | Z132: 15039463.16 | AA132: 15718029.82 | AB132: 16511710.75 | AC132: 14943786.2
N133: 2025 | O133: 15663642.23 | P133: 16511338.78 | Q133: 14844538.13 | R133: 15660099.01 | S133: 16507695.37 | T133: 14841096.16 | U133: 15651488.27 | V133: 16498797.23 | W133: 14832762.07 | X133: 15628100.8 | Y133: 16474614.82 | Z133: 14810136.1 | AA133: 15520513.87 | AB133: 16363337.22 | AC133: 14706076.35
N134: 2026 | O134: 15376441.74 | P134: 16291125.48 | Q134: 14521148.05 | R134: 15372972.8 | S134: 16287551.92 | T134: 14517784.68 | U134: 15364526.91 | V134: 16278802.42 | W134: 14509630.34 | X134: 15341582.19 | Y134: 16255016.88 | Z134: 14487488.94 | AA134: 15236021.29 | AB134: 16145550.25 | AC134: 14385650.89
N135: 2027 | O135: 15138686.19 | P135: 16078186.26 | Q135: 14233091.14 | R135: 15135468.78 | S135: 16074863.17 | T135: 14229980.33 | U135: 15127613.65 | V135: 16066698.65 | W135: 14222424.41 | X135: 15106266.56 | Y135: 16044494.11 | Z135: 14201903.2 | AA135: 15008036.35 | AB135: 15942279.09 | AC135: 14107503.47
N136: 2028 | O136: 15078847.54 | P136: 16056006.98 | Q136: 14144894.85 | R136: 15075810.8 | S136: 16052862.96 | T136: 14141967.18 | U136: 15068376.17 | V136: 16045109.86 | W136: 14134840.79 | X136: 15048165.23 | Y136: 16024015.04 | Z136: 14115481.17 | AA136: 14955148.54 | AB136: 15926888.22 | AC136: 14026414.26
N137: 2029 | O137: 15298926.2 | P137: 16346227.97 | Q137: 14302903.79 | R137: 15295904.22 | S137: 16343091.47 | T137: 14299995.46 | U137: 15288486.19 | V137: 16335333.46 | W137: 14292903.78 | X137: 15268314.54 | Y137: 16314218.27 | Z137: 14273634.93 | AA137: 15175474.16 | AB137: 16216990.56 | AC137: 14184986.11
N138: 2030 | O138: 15729443.31 | P138: 16843556.94 | Q138: 14651696.5 | R138: 15726276.2 | S138: 16840265.8 | T138: 14648650.85 | U138: 15718488.92 | V138: 16832108.56 | W138: 14641218.04 | X138: 15697309.99 | Y138: 16809902.44 | Z138: 14621021.26 | AA138: 15599844.12 | AB138: 16707659.81 | AC138: 14528118.25
N139: 2031 | O139: 16121185.68 | P139: 17286774.9 | Q139: 14972228.41 | R139: 16117757.27 | S139: 17283210.3 | T139: 14968932.01 | U139: 16109319.37 | V139: 17274367.99 | W139: 14960882.44 | X139: 16086369.85 | Y139: 17250296.15 | Z139: 14939009.67 | AA139: 15980778.91 | AB139: 17139487.91 | AC139: 14838422.25
N140: 2032 | O140: 16407533.24 | P140: 17617575.39 | Q140: 15206436.51 | R140: 16403777.09 | S140: 17613668.66 | T140: 15202824.63 | U140: 16394529.43 | V140: 17603980.4 | W140: 15194000.89 | X140: 16369378.27 | Y140: 17577608.27 | Z140: 15170024.95 | AA140: 16253689.73 | AB140: 17456248.57 | AC140: 15059796.37
N141: 2033 | O141: 16592690.7 | P141: 17840735.57 | Q141: 15318254.95 | R141: 16588597.84 | S141: 17836479.32 | T141: 15314320.3 | U141: 16578521.73 | V141: 17825928.06 | W141: 15304706.16 | X141: 16551119.27 | Y141: 17797209.74 | Z141: 15278583.63 | AA141: 16425109.57 | AB141: 17665090.86 | AC141: 15158517.77
N142: 2034 | O142: 16618140.67 | P142: 17906660.64 | Q142: 15281781.94 | R142: 16613767.95 | S142: 17902113.83 | T142: 15277580.74 | U142: 16602998.07 | V142: 17890835.63 | W142: 15267310.48 | X142: 16573708.78 | Y142: 17860138.08 | Z142: 15239405.06 | AA142: 16439047.32 | AB142: 17718938.17 | AC142: 15111168.54
N143: 2035 | O143: 16513408.55 | P143: 17849396.61 | Q143: 15122055.52 | R143: 16508876.62 | S143: 17844681.59 | T143: 15117706.86 | U143: 16497703.11 | V143: 17832969.19 | W143: 15107066.93 | X143: 16467313.39 | Y143: 17801085.39 | Z143: 15078155 | AA143: 16327602.95 | AB143: 17654436.26 | AC143: 14945304.77
N144: 2036 | O144: 16386743.35 | P144: 17766755.28 | Q144: 14949376.99 | R144: 16382182.21 | S144: 17762003.37 | T144: 14945007.73 | U144: 16370916.74 | V144: 17750171.81 | W144: 14934302.93 | X144: 16340270.99 | Y144: 17717955.38 | Z144: 14905210.54 | AA144: 16199378.68 | AB144: 17569766.32 | AC144: 14771529.99
N145: 2037 | O145: 16321710.59 | P145: 17749558.25 | Q145: 14837768.25 | R145: 16317197.62 | S145: 17744847.43 | T145: 14833454.36 | U145: 16306024.13 | V145: 17733082.48 | W145: 14822866.52 | X145: 16275620.21 | Y145: 17701036.34 | Z145: 14794086.22 | AA145: 16135825.26 | AB145: 17553610.16 | AC145: 14661831.13
N146: 2038 | O146: 16366802.42 | P146: 17844563.79 | Q146: 14831050.07 | R146: 16362327.09 | S146: 17839882.88 | T146: 14826781.13 | U146: 16351217.33 | V146: 17828154.7 | W146: 14816283.7 | X146: 16320977.79 | Y146: 17796197.09 | Z146: 14787743.12 | AA146: 16181924.74 | AB146: 17649158.54 | AC146: 14656582.5
N147: 2039 | O147: 16534675.27 | P147: 18065254.64 | Q147: 14940633.15 | R147: 16530156.24 | S147: 18060520.49 | T147: 14936329.36 | U147: 16518911.28 | V147: 18048625.37 | W147: 14925728.57 | X147: 16488296.03 | Y147: 18016203.07 | Z147: 14896902.05 | AA147: 16347511.54 | AB147: 17867018.49 | AC147: 14764429.64
N148: 2040 | O148: 16787794.84 | P148: 18372476.41 | Q148: 15129907.94 | R148: 16783128.79 | S148: 18367583.66 | T148: 15125468.17 | U148: 16771497.36 | V148: 18355264.98 | W148: 15114519.04 | X148: 16739824.66 | Y148: 18321681.66 | Z148: 15084742.26 | AA148: 16594188.28 | AB148: 18167163.47 | AC148: 14947918.09
N149: 2041 | O149: 17056428.81 | P149: 18692722.96 | Q149: 15332639.64 | R149: 17051534.94 | S149: 18687589.48 | T149: 15327985.04 | U149: 17039321.29 | V149: 18674648.17 | W149: 15316496.74 | X149: 17006060.37 | Y149: 18639364 | Z149: 15285252.35 | AA149: 16853144.57 | AB149: 18477043.25 | AC149: 15141710.47
N150: 2042 | O150: 17274216.21 | P150: 18957768.73 | Q150: 15486049.73 | R150: 17269058.92 | S150: 18952358.61 | T150: 15481145.9 | U150: 17256177.53 | V150: 18938708.3 | W150: 15469035.34 | X150: 17221096.81 | Y150: 18901489.39 | Z150: 15436098.13 | AA150: 17059844.57 | AB150: 18730298.67 | AC150: 15284810.32
N151: 2043 | O151: 17405791.2 | P151: 19133583.02 | Q151: 15556075.03 | R151: 17400383.35 | S151: 19127909.62 | T151: 15550935.2 | U151: 17386866.04 | V151: 19113582.84 | W151: 15538234.41 | X151: 17350052.11 | Y151: 19074517.59 | Z151: 15503691.36 | AA151: 17180862.02 | AB151: 18894863.51 | AC151: 15345057.33
R154: PC 2 Shipments - RP Elasticity-0.34
O155: PC 2 Shipments - No Market Impact Scenario | R155: TSL 1 | U155: TSL 2 | X155: TSL 3 | AA155: TSL 4
N156: Year | O156: Reference | P156: High | Q156: Low | R156: Reference | S156: High | T156: Low | U156: Reference | V156: High | W156: Low | X156: Reference | Y156: High | Z156: Low | AA156: Reference | AB156: High | AC156: Low
N158: 2007 | O158: 118510 | P158: 118510 | Q158: 118510 | R158: 118510 | S158: 118510 | T158: 118510 | U158: 118510 | V158: 118510 | W158: 118510 | X158: 118510 | Y158: 118510 | Z158: 118510 | AA158: 118510 | AB158: 118510 | AC158: 118510
N159: =N158+1 -> 2008 | O159: 113400 | P159: 113400 | Q159: 113400 | R159: 113400 | S159: 113400 | T159: 113400 | U159: 113400 | V159: 113400 | W159: 113400 | X159: 113400 | Y159: 113400 | Z159: 113400 | AA159: 113400 | AB159: 113400 | AC159: 113400
N160: =N159+1 -> 2009 | O160: 96260 | P160: 96260 | Q160: 96260 | R160: 96260 | S160: 96260 | T160: 96260 | U160: 96260 | V160: 96260 | W160: 96260 | X160: 96260 | Y160: 96260 | Z160: 96260 | AA160: 96260 | AB160: 96260 | AC160: 96260
N161: 2010 | O161: 140281.3166 | P161: 140281.3114 | Q161: 140281.3114 | R161: 140281.3166 | S161: 140281.3114 | T161: 140281.3114 | U161: 140281.3166 | V161: 140281.3114 | W161: 140281.3114 | X161: 140281.3166 | Y161: 140281.3114 | Z161: 140281.3114 | AA161: 140281.3166 | AB161: 140281.3114 | AC161: 140281.3114
N162: 2011 | O162: 146684.7687 | P162: 151425.1586 | Q162: 142356.5203 | R162: 146684.7687 | S162: 151425.1586 | T162: 142356.5203 | U162: 146684.7687 | V162: 151425.1586 | W162: 142356.5203 | X162: 146684.7687 | Y162: 151425.1586 | Z162: 142356.5203 | AA162: 146684.7687 | AB162: 151425.1586 | AC162: 142356.5203
N163: 2012 | O163: 150597.8309 | P163: 153705.8151 | Q163: 147366.6506 | R163: 150597.8309 | S163: 153705.8151 | T163: 147366.6506 | U163: 150597.8309 | V163: 153705.8151 | W163: 147366.6506 | X163: 150597.8309 | Y163: 153705.8151 | Z163: 147366.6506 | AA163: 150597.8309 | AB163: 153705.8151 | AC163: 147366.6506
N164: 2013 | O164: 152056.0899 | P164: 155266.789 | Q164: 149093.835 | R164: 152056.0899 | S164: 155266.789 | T164: 149093.835 | U164: 152056.0899 | V164: 155266.789 | W164: 149093.835 | X164: 152056.0899 | Y164: 155266.789 | Z164: 149093.835 | AA164: 152056.0899 | AB164: 155266.789 | AC164: 149093.835
N165: 2014 | O165: 151555.1107 | P165: 154813.9003 | Q165: 148547.4701 | R165: 151557.2956 | S165: 154816.17 | T165: 148547.3488 | U165: 151187.8181 | V165: 154439.377 | W165: 148184.8432 | X165: 150028.1642 | Y165: 153256.6267 | Z165: 147046.8407 | AA165: 150725.0873 | AB165: 153967.557 | AC165: 147730.6124
N166: 2015 | O166: 149117.2914 | P166: 153097.85 | Q166: 145716.9393 | R166: 149118.978 | S166: 153099.6138 | T166: 145716.8207 | U166: 148838.0099 | V166: 152812.1674 | W166: 145441.7496 | X166: 147956.0724 | Y166: 151909.7697 | Z166: 144578.0783 | AA166: 148486.1716 | AB166: 152452.2835 | AC166: 145097.0789
N167: 2016 | O167: 143717.4438 | P167: 147572.8102 | Q167: 139664.992 | R167: 143718.7871 | S167: 147574.2209 | T167: 139664.8797 | U167: 143500.1301 | V167: 147350.0571 | W167: 139451.6872 | X167: 142813.6822 | Y167: 146646.2111 | Z167: 138782.1593 | AA167: 143226.3735 | AB167: 147069.4649 | AC167: 139184.5687
N168: 2017 | O168: 137723.897 | P168: 141474.4921 | Q168: 133909.0422 | R168: 137725.042 | S168: 141475.6955 | T168: 133908.9325 | U168: 137542.3801 | V168: 141288.1297 | W168: 133731.2361 | X168: 136968.8618 | Y168: 140699.1243 | Z168: 133173.0895 | AA168: 137313.7294 | AB168: 141053.3888 | AC168: 133508.5971
N169: 2018 | O169: 135658.2452 | P169: 140034.575 | Q169: 131654.1572 | R169: 135659.2199 | S169: 140035.6066 | T169: 131654.0527 | U169: 135505.8239 | V169: 139877.5676 | W169: 131505.1736 | X169: 135024.1658 | Y169: 139381.2406 | Z169: 131037.4816 | AA169: 135313.8337 | AB169: 139679.8138 | AC169: 131318.6466
N170: 2019 | O170: 138905.513 | P170: 143704.848 | Q170: 134002.9483 | R170: 138906.497 | S170: 143705.8988 | T170: 134002.8334 | U170: 138753.113 | V170: 143547.4491 | W170: 133854.5468 | X170: 138271.513 | Y170: 143049.83 | Z170: 133388.7138 | AA170: 138561.1651 | AB170: 143349.2216 | AC170: 133668.7689
N171: 2020 | O171: 146092.3401 | P171: 151922.8114 | Q171: 140688.5305 | R171: 146093.4058 | S171: 151923.9541 | T171: 140688.3986 | U171: 145929.534 | V171: 151754.1614 | W171: 140530.295 | X171: 145415.0818 | Y171: 151220.9929 | Z171: 140033.6738 | AA171: 145724.5137 | AB171: 151541.8 | AC171: 140332.2557
N172: 2021 | O172: 153400.3776 | P172: 160062.9727 | Q172: 147199.7289 | R172: 153401.5961 | S172: 160064.2805 | T172: 147199.5756 | U172: 153215.4019 | V172: 159871.1373 | W172: 147020.0684 | X172: 152631.0833 | Y172: 159264.86 | Z172: 146456.4161 | AA172: 152982.5182 | AB172: 159629.637 | AC172: 146795.276
N173: 2022 | O173: 158855.8834 | P173: 166338.5079 | Q173: 151953.5534 | R173: 158857.3335 | S173: 166340.0588 | T173: 151953.3747 | U173: 158634.8518 | V173: 166109.427 | W173: 151738.665 | X173: 157937.0132 | Y173: 165385.8548 | Z173: 151064.8287 | AA173: 158356.6441 | AB173: 165821.1078 | AC173: 151469.8631
N174: 2023 | O174: 160744.31 | P174: 168610.258 | Q174: 153289.5586 | R174: 160746.0616 | S174: 168612.1246 | T174: 153289.3516 | U174: 160475.4316 | V174: 168332.1268 | W174: 153027.705 | X174: 159626.9598 | Y174: 167454.0895 | Z174: 152206.9654 | AA174: 160137.0692 | AB174: 167982.1428 | AC174: 152700.2131
N175: 2024 | O175: 160095.9906 | P175: 168157.2626 | Q175: 152235.2502 | R175: 160098.0863 | S175: 168159.5006 | T175: 152235.0054 | U175: 159773.3892 | V175: 167823.9356 | W175: 151920.8714 | X175: 158755.7278 | Y175: 166771.9539 | Z175: 150935.7853 | AA175: 159367.4824 | AB175: 167404.5639 | AC175: 151527.7544
N176: 2025 | O176: 158218.6084 | P176: 166781.1998 | Q176: 149946.9812 | R176: 158220.8976 | S176: 166783.6573 | T176: 149946.7052 | U176: 157867.3762 | V176: 166418.051 | W176: 149605.0181 | X176: 156759.4979 | Y176: 165271.9811 | Z176: 148533.5915 | AA176: 157425.4809 | AB176: 165961.201 | AC176: 149177.4665
N177: 2026 | O177: 155317.5933 | P177: 164556.823 | Q177: 146680.3906 | R177: 155319.8715 | S177: 164559.2852 | T177: 146680.0971 | U177: 154973.0175 | V177: 164199.6445 | W177: 146345.7342 | X177: 153885.9358 | Y177: 163072.1331 | Z177: 145297.1376 | AA177: 154539.5137 | AB177: 163750.3278 | AC177: 145927.3578
N178: 2027 | O178: 152916.0221 | P178: 162405.9218 | Q178: 143770.5978 | R178: 152918.1861 | S178: 162408.278 | T178: 143770.2941 | U178: 152595.4508 | V178: 162072.4992 | W178: 143460.409 | X178: 151583.7691 | Y178: 161019.5601 | Z178: 142488.3431 | AA178: 152192.1581 | AB178: 161653.0835 | AC178: 143072.6618
N179: 2028 | O179: 152311.5913 | P179: 162181.8887 | Q179: 142879.6446 | R179: 152313.6824 | S179: 162184.1853 | T179: 142879.327 | U179: 152008.0911 | V179: 161865.1431 | W179: 142586.9893 | X179: 151050.0165 | Y179: 160864.4982 | Z179: 141669.7717 | AA179: 151626.2957 | AB179: 161466.7338 | AC179: 142221.2156
N180: 2029 | O180: 154534.6081 | P180: 165113.4138 | Q180: 144475.7111 | R180: 154536.7353 | S180: 165115.7604 | T180: 144475.3711 | U180: 154231.7043 | V180: 164796.3704 | W180: 144184.4053 | X180: 153275.3632 | Y180: 163794.5878 | Z180: 143271.4406 | AA180: 153850.7017 | AB180: 164397.633 | AC180: 143820.3858
N181: 2030 | O181: 158883.2657 | P181: 170136.9388 | Q181: 147998.9764 | R181: 158885.5261 | S181: 170139.441 | T181: 147998.6059 | U181: 158565.2363 | V181: 169803.5167 | W181: 147693.6254 | X181: 157561.1938 | Y181: 168749.9936 | Z181: 146736.8217 | AA181: 158165.2697 | AB181: 169384.2465 | AC181: 147312.126
N182: 2031 | O182: 162840.2594 | P182: 174613.8879 | Q182: 151236.8524 | R182: 162842.7259 | S182: 174616.6157 | T182: 151236.4445 | U182: 162495.6367 | V182: 174252.4462 | W182: 150906.1453 | X182: 161407.8606 | Y182: 173110.6324 | Z182: 149870.1803 | AA182: 162062.3053 | AB182: 173798.0227 | AC182: 150493.0546
N183: 2032 | O183: 165732.659 | P183: 177955.307 | Q183: 153602.813 | R183: 165735.3694 | S183: 177958.2907 | T183: 153602.3641 | U183: 165354.966 | V183: 177559.3137 | W183: 153240.2895 | X183: 164163.1544 | Y183: 176308.786 | Z183: 152105.0135 | AA183: 164880.1396 | AB183: 177061.535 | AC183: 152787.5539
N184: 2033 | O184: 167602.9364 | P184: 180209.4502 | Q184: 154732.5156 | R184: 167605.8891 | S184: 180212.6926 | T184: 154732.0266 | U184: 167191.425 | V184: 179778.2149 | W184: 154337.5211 | X184: 165893.2893 | Y184: 178416.8383 | Z184: 153100.9211 | AA184: 166674.1661 | AB184: 179236.218 | AC184: 153844.3229
N185: 2034 | O185: 167860.0067 | P185: 180875.36 | Q185: 154364.294 | R185: 167863.1731 | S185: 180878.84 | T185: 154363.7657 | U185: 167420.1537 | V185: 180414.3985 | W185: 153942.3236 | X185: 166032.8699 | Y185: 178959.4233 | Z185: 152621.5517 | AA185: 166867.3443 | AB185: 179835.1187 | AC185: 153415.5285
N186: 2035 | O186: 166802.1066 | P186: 180296.9355 | Q186: 152751.0183 | R186: 166805.4157 | S186: 180300.5846 | T186: 152750.4554 | U186: 166345.7275 | V186: 179818.1632 | W186: 152313.8075 | X186: 164906.382 | Y186: 178306.9683 | Z186: 150945.4786 | AA186: 165772.2049 | AB186: 179216.5642 | AC186: 151768.064
N187: 2036 | O187: 165522.6601 | P187: 179462.1745 | Q187: 151006.8391 | R187: 165526.0378 | S187: 179465.9173 | T187: 151294.6427 | U187: 165062.4426 | V187: 178978.4174 | W187: 150566.8737 | X187: 163610.8383 | Y187: 177451.2405 | Z187: 149189.9322 | AA187: 164484.1387 | AB187: 178370.6042 | AC187: 150017.7658
N188: 2037 | O188: 164865.7636 | P188: 179288.4672 | Q188: 149879.4839 | R188: 164869.1694 | S188: 179292.2619 | T188: 150167.2593 | U188: 164409.1891 | V188: 178807.2826 | W188: 149444.2072 | X188: 162968.7787 | Y188: 177287.8207 | Z188: 148081.87 | AA188: 163835.5005 | AB188: 178202.747 | AC188: 148901.0292
N189: 2038 | O189: 165321.2365 | P189: 180248.1191 | Q189: 149811.6389 | R189: 165324.6836 | S189: 180251.9793 | T189: 150099.3874 | U189: 164867.1423 | V189: 179768.2794 | W189: 149379.9545 | X189: 163434.2541 | Y189: 178252.6571 | Z189: 148028.8077 | AA189: 164296.6156 | AB189: 179165.4866 | AC189: 148841.3468
N190: 2039 | O190: 167016.922 | P190: 182477.3196 | Q190: 150918.6056 | R190: 167020.4659 | S190: 182481.3031 | T190: 151206.4368 | U190: 166557.1937 | V190: 181990.5136 | W190: 150482.5636 | X190: 165106.3536 | Y190: 180452.6338 | Z190: 149117.8299 | AA190: 165979.651 | AB190: 181379.0393 | AC190: 149938.6183
N191: 2040 | O191: 169573.6853 | P191: 185580.5698 | Q191: 152830.6027 | R191: 169577.3937 | S191: 185584.7464 | T191: 153119.2176 | U191: 169098.0799 | V191: 185076.3352 | W191: 152380.1575 | X191: 167597.155 | Y191: 183483.3724 | Z191: 150970.5366 | AA191: 168500.6734 | AB191: 184443.0567 | AC191: 151818.3535
N192: 2041 | O192: 172287.1597 | P192: 188815.3834 | Q192: 154878.5777 | R192: 172291.0836 | S192: 188819.8052 | T192: 155170.37 | U192: 171787.7015 | V192: 188285.6084 | W192: 154405.9057 | X192: 170211.6976 | Y192: 186612.1417 | Z192: 152927.0382 | AA192: 171160.43 | AB192: 187620.3542 | AC192: 153816.4943
N193: 2042 | O193: 174487.0324 | P193: 191492.6134 | Q193: 156428.3757 | R193: 174491.1925 | S193: 191497.3015 | T193: 156729.2304 | U193: 173960.2405 | V193: 190933.7826 | W193: 155930.0711 | X193: 172298.2777 | Y193: 189168.8249 | Z193: 154371.3712 | AA193: 173298.7425 | AB193: 190232.1484 | AC193: 155308.812
N194: 2043 | O194: 175816.0727 | P194: 193268.5153 | Q194: 157135.8948 | R194: 175820.4594 | S194: 193273.461 | T194: 157457.2124 | U194: 175263.2475 | V194: 192681.9565 | W194: 156613.2724 | X194: 173519.4329 | Y194: 190829.6956 | Z194: 154978.856 | AA194: 174569.1579 | AB194: 191945.6121 | AC194: 155961.8083

Sheet Distribution (CALC)
A1: Product Shipment Distributions
D4: PC 1 | O4: PC 2
A7: EF | B7: =MW_EL_Baseline -> 4 | D7: =MW_EL_Baseline -> 4 | E7: Base Case Distribution | L7: EF | M7: =CO_EL_Baseline -> 4.5 | O7: =CO_EL_Baseline -> 4.5 | P7: Base Case Distribution
D8: Percent of Total Shipments | O8: Percent of Total Shipments
C9: Year | D9: =MW_EL_Baseline -> 4 | E9: =MW_EL_EL1 -> 2 | F9: =MW_EL_EL2 -> 1.5 | G9: =MW_EL_EL3 -> 1 | H9: =MW_EL_EL4 -> 0.02 | I9: SUM | N9: Year | O9: =CO_EL_Baseline -> 4.5 | P9: =CO_EL_EL1 -> 3.7 | Q9: =CO_EL_EL2 -> 2.7 | R9: =CO_EL_EL3 -> 2.2 | S9: =CO_EL_EL4 -> 0.04 | T9: SUM
C10: 2007 | D10: =Standby_ProductMix_Baseline -> 0.462 | E10: =Standby_ProductMix_EL1 -> 0.346 | F10: =Standby_ProductMix_EL2 -> 0.192 | G10: =Standby_ProductMix_EL3 -> 0 | H10: =Standby_ProductMix_EL4 -> 0 | I10: =SUM(D10:H10) -> 1 | N10: 2007 | O10: =CO_Productmix_Baseline -> 1 | P10: =CO_ProductMix_EL1 -> 0 | Q10: =CO_ProductMix_EL2 -> 0 | R10: =CO_ProductMix_EL3 -> 0 | S10: =CO_ProductMix_EL4 -> 0 | T10: =SUM(O10:S10) -> 1
C11: =C10+1 -> 2008 | D11: =D10 -> 0.462 | E11: =E10 -> 0.346 | F11: =F10 -> 0.192 | G11: =G10 -> 0 | H11: =H10 -> 0 | I11: 1 | N11: =N10+1 -> 2008 | O11: =O10 -> 1 | P11: =P10 -> 0 | Q11: =Q10 -> 0 | R11: =R10 -> 0 | S11: =S10 -> 0 | T11: 1
C12: =C11+1 -> 2009 | D12: =D11 -> 0.462 | E12: 0.346 | F12: =F11 -> 0.192 | G12: =G11 -> 0 | H12: 0 | I12: 1 | N12: =N11+1 -> 2009 | O12: 1 | P12: 0 | Q12: 0 | R12: 0 | S12: 0 | T12: 1
C13: 2010 | D13: 0.462 | E13: 0.346 | F13: 0.192 | G13: 0 | H13: 0 | I13: 1 | N13: 2010 | O13: 1 | P13: 0 | Q13: 0 | R13: 0 | S13: 0 | T13: 1
C14: 2011 | D14: 0.462 | E14: 0.346 | F14: 0.192 | G14: 0 | H14: 0 | I14: 1 | N14: 2011 | O14: 1 | P14: 0 | Q14: 0 | R14: 0 | S14: 0 | T14: 1
C15: 2012 | D15: 0.462 | E15: 0.346 | F15: 0.192 | G15: 0 | H15: 0 | I15: 1 | N15: 2012 | O15: 1 | P15: 0 | Q15: 0 | R15: 0 | S15: 0 | T15: 1
C16: 2013 | D16: 0.462 | E16: 0.346 | F16: 0.192 | G16: 0 | H16: 0 | I16: 1 | N16: 2013 | O16: 1 | P16: 0 | Q16: 0 | R16: 0 | S16: 0 | T16: 1
C17: 2014 | D17: 0.462 | E17: 0.346 | F17: 0.192 | G17: 0 | H17: 0 | I17: 1 | N17: 2014 | O17: 1 | P17: 0 | Q17: 0 | R17: 0 | S17: 0 | T17: 1
C18: 2015 | D18: 0.462 | E18: 0.346 | F18: 0.192 | G18: 0 | H18: 0 | I18: 1 | N18: 2015 | O18: 1 | P18: 0 | Q18: 0 | R18: 0 | S18: 0 | T18: 1
C19: 2016 | D19: 0.462 | E19: 0.346 | F19: 0.192 | G19: 0 | H19: 0 | I19: 1 | N19: 2016 | O19: 1 | P19: 0 | Q19: 0 | R19: 0 | S19: 0 | T19: 1
C20: 2017 | D20: 0.462 | E20: 0.346 | F20: 0.192 | G20: 0 | H20: 0 | I20: 1 | N20: 2017 | O20: 1 | P20: 0 | Q20: 0 | R20: 0 | S20: 0 | T20: 1
C21: 2018 | D21: 0.462 | E21: 0.346 | F21: 0.192 | G21: 0 | H21: 0 | I21: 1 | N21: 2018 | O21: 1 | P21: 0 | Q21: 0 | R21: 0 | S21: 0 | T21: 1
C22: 2019 | D22: 0.462 | E22: 0.346 | F22: 0.192 | G22: 0 | H22: 0 | I22: 1 | N22: 2019 | O22: 1 | P22: 0 | Q22: 0 | R22: 0 | S22: 0 | T22: 1
C23: 2020 | D23: 0.462 | E23: 0.346 | F23: 0.192 | G23: 0 | H23: 0 | I23: 1 | N23: 2020 | O23: 1 | P23: 0 | Q23: 0 | R23: 0 | S23: 0 | T23: 1
C24: 2021 | D24: 0.462 | E24: 0.346 | F24: 0.192 | G24: 0 | H24: 0 | I24: 1 | N24: 2021 | O24: 1 | P24: 0 | Q24: 0 | R24: 0 | S24: 0 | T24: 1
C25: 2022 | D25: 0.462 | E25: 0.346 | F25: =F24 -> 0.192 | G25: 0 | H25: 0 | I25: 1 | N25: 2022 | O25: 1 | P25: 0 | Q25: 0 | R25: 0 | S25: 0 | T25: 1
C26: 2023 | D26: 0.462 | E26: 0.346 | F26: 0.192 | G26: 0 | H26: 0 | I26: 1 | N26: 2023 | O26: 1 | P26: 0 | Q26: 0 | R26: 0 | S26: 0 | T26: 1
C27: 2024 | D27: 0.462 | E27: 0.346 | F27: 0.192 | G27: 0 | H27: 0 | I27: 1 | N27: 2024 | O27: 1 | P27: 0 | Q27: 0 | R27: 0 | S27: 0 | T27: 1
C28: 2025 | D28: =D27 -> 0.462 | E28: 0.346 | F28: 0.192 | G28: 0 | H28: 0 | I28: 1 | N28: 2025 | O28: 1 | P28: 0 | Q28: 0 | R28: 0 | S28: 0 | T28: 1
C29: 2026 | D29: 0.462 | E29: 0.346 | F29: 0.192 | G29: 0 | H29: 0 | I29: 1 | N29: 2026 | O29: 1 | P29: 0 | Q29: 0 | R29: 0 | S29: 0 | T29: 1
C30: 2027 | D30: 0.462 | E30: 0.346 | F30: 0.192 | G30: 0 | H30: 0 | I30: 1 | N30: 2027 | O30: 1 | P30: 0 | Q30: 0 | R30: 0 | S30: 0 | T30: 1
C31: 2028 | D31: 0.462 | E31: 0.346 | F31: 0.192 | G31: 0 | H31: 0 | I31: 1 | N31: 2028 | O31: 1 | P31: 0 | Q31: 0 | R31: 0 | S31: 0 | T31: 1
C32: 2029 | D32: 0.462 | E32: 0.346 | F32: 0.192 | G32: 0 | H32: 0 | I32: 1 | N32: 2029 | O32: 1 | P32: 0 | Q32: 0 | R32: 0 | S32: 0 | T32: 1
C33: 2030 | D33: 0.462 | E33: 0.346 | F33: 0.192 | G33: 0 | H33: 0 | I33: 1 | N33: 2030 | O33: 1 | P33: 0 | Q33: 0 | R33: 0 | S33: 0 | T33: 1
C34: 2031 | D34: 0.462 | E34: 0.346 | F34: 0.192 | G34: 0 | H34: 0 | I34: 1 | N34: 2031 | O34: 1 | P34: 0 | Q34: 0 | R34: 0 | S34: 0 | T34: 1
C35: 2032 | D35: 0.462 | E35: 0.346 | F35: 0.192 | G35: 0 | H35: 0 | I35: 1 | N35: 2032 | O35: 1 | P35: 0 | Q35: 0 | R35: 0 | S35: 0 | T35: 1
C36: 2033 | D36: 0.462 | E36: 0.346 | F36: 0.192 | G36: 0 | H36: 0 | I36: 1 | N36: 2033 | O36: 1 | P36: 0 | Q36: 0 | R36: 0 | S36: 0 | T36: 1
C37: 2034 | D37: 0.462 | E37: 0.346 | F37: 0.192 | G37: 0 | H37: 0 | I37: 1 | N37: 2034 | O37: 1 | P37: 0 | Q37: 0 | R37: 0 | S37: 0 | T37: 1
C38: 2035 | D38: 0.462 | E38: 0.346 | F38: 0.192 | G38: 0 | H38: 0 | I38: 1 | N38: 2035 | O38: 1 | P38: 0 | Q38: 0 | R38: 0 | S38: 0 | T38: 1
C39: 2036 | D39: 0.462 | E39: 0.346 | F39: 0.192 | G39: 0 | H39: 0 | I39: 1 | N39: 2036 | O39: 1 | P39: 0 | Q39: 0 | R39: 0 | S39: 0 | T39: 1
C40: 2037 | D40: 0.462 | E40: 0.346 | F40: 0.192 | G40: 0 | H40: 0 | I40: 1 | N40: 2037 | O40: 1 | P40: 0 | Q40: 0 | R40: 0 | S40: 0 | T40: 1
C41: 2038 | D41: 0.462 | E41: 0.346 | F41: 0.192 | G41: 0 | H41: 0 | I41: 1 | N41: 2038 | O41: 1 | P41: 0 | Q41: 0 | R41: 0 | S41: 0 | T41: 1
C42: 2039 | D42: 0.462 | E42: 0.346 | F42: 0.192 | G42: 0 | H42: 0 | I42: 1 | N42: 2039 | O42: 1 | P42: 0 | Q42: 0 | R42: 0 | S42: 0 | T42: 1
C43: 2040 | D43: 0.462 | E43: 0.346 | F43: 0.192 | G43: 0 | H43: 0 | I43: 1 | N43: 2040 | O43: 1 | P43: 0 | Q43: 0 | R43: 0 | S43: 0 | T43: 1
C44: 2041 | D44: =D43 -> 0.462 | E44: 0.346 | F44: 0.192 | G44: 0 | H44: 0 | I44: 1 | N44: 2041 | O44: 1 | P44: 0 | Q44: 0 | R44: 0 | S44: 0 | T44: 1
C45: 2042 | D45: 0.462 | E45: 0.346 | F45: 0.192 | G45: 0 | H45: 0 | I45: 1 | N45: 2042 | O45: 1 | P45: 0 | Q45: 0 | R45: 0 | S45: 0 | T45: 1
C46: 2043 | D46: 0.462 | E46: 0.346 | F46: 0.192 | G46: 0 | H46: 0 | I46: 1 | N46: 2043 | O46: 1 | P46: 0 | Q46: 0 | R46: 0 | S46: 0 | T46: 1
A48: EF | B48: =MW_EL_EL1 -> 2 | D48: =MW_EL_EL1 -> 2 | E48: Standards Case Distribution | L48: EF | M48: =CO_EL_EL1 -> 3.7 | O48: =CO_EL_EL1 -> 3.7 | P48: Standards Case Distribution
D49: Percent of Total Shipments | O49: Percent of Total Shipments
C50: Year | D50: =MW_EL_Baseline -> 4 | E50: =MW_EL_EL1 -> 2 | F50: =MW_EL_EL2 -> 1.5 | G50: =MW_EL_EL3 -> 1 | H50: =MW_EL_EL4 -> 0.02 | I50: SUM | N50: Year | O50: =CO_EL_Baseline -> 4.5 | P50: =CO_EL_EL1 -> 3.7 | Q50: =CO_EL_EL2 -> 2.7 | R50: =CO_EL_EL3 -> 2.2 | S50: =CO_EL_EL4 -> 0.04 | T50: SUM
C51: 2007 | D51: =D10 -> 0.462 | E51: 0.346 | F51: 0.192 | G51: 0 | H51: 0 | I51: =SUM(D51:H51) -> 1 | N51: 2007 | O51: =O10 -> 1 | P51: 0 | Q51: 0 | R51: 0 | S51: 0 | T51: =SUM(O51:S51) -> 1
C52: =C51+1 -> 2008 | D52: =D11 -> 0.462 | E52: 0.346 | F52: 0.192 | G52: 0 | H52: 0 | I52: 1 | N52: =N51+1 -> 2008 | O52: 1 | P52: 0 | Q52: 0 | R52: 0 | S52: 0 | T52: 1
C53: =C52+1 -> 2009 | D53: 0.462 | E53: 0.346 | F53: 0.192 | G53: 0 | H53: 0 | I53: 1 | N53: =N52+1 -> 2009 | O53: 1 | P53: 0 | Q53: 0 | R53: 0 | S53: 0 | T53: 1
C54: 2010 | D54: 0.462 | E54: 0.346 | F54: 0.192 | G54: 0 | H54: 0 | I54: 1 | N54: 2010 | O54: 1 | P54: 0 | Q54: 0 | R54: 0 | S54: 0 | T54: 1
C55: 2011 | D55: 0.462 | E55: 0.346 | F55: 0.192 | G55: 0 | H55: 0 | I55: 1 | N55: 2011 | O55: 1 | P55: 0 | Q55: 0 | R55: 0 | S55: 0 | T55: 1
C56: 2012 | D56: 0.462 | E56: 0.346 | F56: =F15 -> 0.192 | G56: 0 | H56: =H15 -> 0 | I56: 1 | N56: 2012 | O56: =O15 -> 1 | P56: 0 | Q56: 0 | R56: 0 | S56: =S15 -> 0 | T56: 1
C57: 2013 | D57: 0.462 | E57: 0.346 | F57: =F16 -> 0.192 | G57: 0 | H57: =H16 -> 0 | I57: =SUM(D57:H57) -> 1 | N57: 2013 | O57: 1 | P57: 0 | Q57: 0 | R57: 0 | S57: =S16 -> 0 | T57: =SUM(O57:S57) -> 1
C58: 2014 | D58: 0 | E58: =D57+E57 -> 0.808 | F58: =F57 -> 0.192 | G58: =G57 -> 0 | H58: =H57 -> 0 | I58: =SUM(D58:H58) -> 1 | N58: 2014 | O58: 0 | P58: =O57+P57 -> 1 | Q58: =Q57 -> 0 | R58: =R57 -> 0 | S58: =S57 -> 0 | T58: =SUM(O58:S58) -> 1
C59: 2015 | D59: 0 | E59: =E58 -> 0.808 | F59: =F58 -> 0.192 | G59: 0 | H59: 0 | I59: 1 | N59: 2015 | O59: 0 | P59: =P58 -> 1 | Q59: 0 | R59: 0 | S59: 0 | T59: 1
C60: 2016 | D60: 0 | E60: 0.808 | F60: 0.192 | G60: 0 | H60: 0 | I60: 1 | N60: 2016 | O60: 0 | P60: 1 | Q60: 0 | R60: 0 | S60: 0 | T60: 1
C61: 2017 | D61: 0 | E61: 0.808 | F61: 0.192 | G61: 0 | H61: 0 | I61: 1 | N61: 2017 | O61: 0 | P61: 1 | Q61: 0 | R61: 0 | S61: 0 | T61: 1
C62: 2018 | D62: 0 | E62: 0.808 | F62: 0.192 | G62: 0 | H62: 0 | I62: 1 | N62: 2018 | O62: 0 | P62: 1 | Q62: 0 | R62: 0 | S62: 0 | T62: 1
C63: 2019 | D63: 0 | E63: 0.808 | F63: 0.192 | G63: 0 | H63: 0 | I63: 1 | N63: 2019 | O63: 0 | P63: 1 | Q63: 0 | R63: 0 | S63: 0 | T63: 1
C64: 2020 | D64: 0 | E64: 0.808 | F64: 0.192 | G64: 0 | H64: 0 | I64: 1 | N64: 2020 | O64: 0 | P64: 1 | Q64: 0 | R64: 0 | S64: 0 | T64: 1
C65: 2021 | D65: 0 | E65: 0.808 | F65: 0.192 | G65: 0 | H65: 0 | I65: 1 | N65: 2021 | O65: 0 | P65: 1 | Q65: 0 | R65: 0 | S65: 0 | T65: 1
C66: 2022 | D66: 0 | E66: 0.808 | F66: 0.192 | G66: 0 | H66: 0 | I66: 1 | N66: 2022 | O66: 0 | P66: 1 | Q66: 0 | R66: 0 | S66: 0 | T66: 1
C67: 2023 | D67: 0 | E67: 0.808 | F67: 0.192 | G67: 0 | H67: 0 | I67: 1 | N67: 2023 | O67: 0 | P67: 1 | Q67: 0 | R67: 0 | S67: 0 | T67: 1
C68: 2024 | D68: 0 | E68: 0.808 | F68: 0.192 | G68: 0 | H68: 0 | I68: 1 | N68: 2024 | O68: 0 | P68: 1 | Q68: 0 | R68: 0 | S68: 0 | T68: 1
C69: 2025 | D69: 0 | E69: 0.808 | F69: 0.192 | G69: 0 | H69: 0 | I69: 1 | N69: 2025 | O69: 0 | P69: 1 | Q69: 0 | R69: 0 | S69: 0 | T69: 1
C70: 2026 | D70: 0 | E70: 0.808 | F70: 0.192 | G70: 0 | H70: 0 | I70: 1 | N70: 2026 | O70: 0 | P70: 1 | Q70: 0 | R70: 0 | S70: 0 | T70: 1
C71: 2027 | D71: 0 | E71: 0.808 | F71: 0.192 | G71: 0 | H71: 0 | I71: 1 | N71: 2027 | O71: 0 | P71: 1 | Q71: 0 | R71: 0 | S71: 0 | T71: 1
C72: 2028 | D72: 0 | E72: 0.808 | F72: 0.192 | G72: 0 | H72: 0 | I72: 1 | N72: 2028 | O72: 0 | P72: 1 | Q72: 0 | R72: 0 | S72: 0 | T72: 1
C73: 2029 | D73: 0 | E73: 0.808 | F73: 0.192 | G73: 0 | H73: 0 | I73: 1 | N73: 2029 | O73: 0 | P73: 1 | Q73: 0 | R73: 0 | S73: 0 | T73: 1
C74: 2030 | D74: 0 | E74: 0.808 | F74: 0.192 | G74: 0 | H74: 0 | I74: 1 | N74: 2030 | O74: 0 | P74: 1 | Q74: 0 | R74: 0 | S74: 0 | T74: 1
C75: 2031 | D75: 0 | E75: 0.808 | F75: =F74 -> 0.192 | G75: 0 | H75: 0 | I75: 1 | N75: 2031 | O75: 0 | P75: =P74 -> 1 | Q75: 0 | R75: 0 | S75: 0 | T75: 1
C76: 2032 | D76: 0 | E76: 0.808 | F76: 0.192 | G76: 0 | H76: 0 | I76: 1 | N76: 2032 | O76: 0 | P76: 1 | Q76: 0 | R76: 0 | S76: 0 | T76: 1
C77: 2033 | D77: 0 | E77: =E76 -> 0.808 | F77: 0.192 | G77: 0 | H77: 0 | I77: 1 | N77: 2033 | O77: 0 | P77: =P76 -> 1 | Q77: =Q76 -> 0 | R77: =R76 -> 0 | S77: =S76 -> 0 | T77: 1
C78: 2034 | D78: 0 | E78: 0.808 | F78: 0.192 | G78: 0 | H78: 0 | I78: 1 | N78: 2034 | O78: 0 | P78: 1 | Q78: 0 | R78: 0 | S78: 0 | T78: 1
C79: 2035 | D79: 0 | E79: 0.808 | F79: 0.192 | G79: 0 | H79: 0 | I79: 1 | N79: 2035 | O79: 0 | P79: 1 | Q79: 0 | R79: 0 | S79: 0 | T79: 1
C80: 2036 | D80: 0 | E80: 0.808 | F80: 0.192 | G80: 0 | H80: 0 | I80: 1 | N80: 2036 | O80: 0 | P80: 1 | Q80: 0 | R80: 0 | S80: 0 | T80: 1
C81: 2037 | D81: 0 | E81: 0.808 | F81: 0.192 | G81: 0 | H81: 0 | I81: 1 | N81: 2037 | O81: 0 | P81: 1 | Q81: 0 | R81: 0 | S81: 0 | T81: 1
C82: 2038 | D82: 0 | E82: 0.808 | F82: 0.192 | G82: 0 | H82: 0 | I82: 1 | N82: 2038 | O82: 0 | P82: 1 | Q82: 0 | R82: 0 | S82: 0 | T82: 1
C83: 2039 | D83: 0 | E83: 0.808 | F83: 0.192 | G83: 0 | H83: 0 | I83: 1 | N83: 2039 | O83: 0 | P83: 1 | Q83: 0 | R83: 0 | S83: 0 | T83: 1
C84: 2040 | D84: 0 | E84: 0.808 | F84: 0.192 | G84: 0 | H84: 0 | I84: 1 | N84: 2040 | O84: 0 | P84: 1 | Q84: 0 | R84: 0 | S84: 0 | T84: 1
C85: 2041 | D85: 0 | E85: 0.808 | F85: 0.192 | G85: 0 | H85: 0 | I85: 1 | N85: 2041 | O85: 0 | P85: 1 | Q85: 0 | R85: 0 | S85: 0 | T85: 1
C86: 2042 | D86: 0 | E86: 0.808 | F86: 0.192 | G86: 0 | H86: 0 | I86: 1 | N86: 2042 | O86: 0 | P86: 1 | Q86: 0 | R86: 0 | S86: 0 | T86: 1
C87: 2043 | D87: 0 | E87: 0.808 | F87: 0.192 | G87: 0 | H87: 0 | I87: 1 | N87: 2043 | O87: 0 | P87: 1 | Q87: 0 | R87: 0 | S87: 0 | T87: 1
A89: EF | B89: =MW_EL_EL2 -> 1.5 | D89: =MW_EL_EL2 -> 1.5 | E89: Standards Case Distribution | L89: EF | M89: =CO_EL_EL2 -> 2.7 | O89: =CO_EL_EL2 -> 2.7 | P89: Standards Case Distribution
D90: Percent of Total Shipments | O90: Percent of Total Shipments
C91: Year | D91: =MW_EL_Baseline -> 4 | E91: =MW_EL_EL1 -> 2 | F91: =MW_EL_EL2 -> 1.5 | G91: =MW_EL_EL3 -> 1 | H91: =MW_EL_EL4 -> 0.02 | I91: SUM | N91: Year | O91: =CO_EL_Baseline -> 4.5 | P91: =CO_EL_EL1 -> 3.7 | Q91: =CO_EL_EL2 -> 2.7 | R91: =CO_EL_EL3 -> 2.2 | S91: =CO_EL_EL4 -> 0.04 | T91: SUM
C92: 2007 | D92: =D10 -> 0.462 | E92: 0.346 | F92: 0.192 | G92: 0 | H92: 0 | I92: =SUM(D92:H92) -> 1 | N92: 2007 | O92: =O10 -> 1 | P92: 0 | Q92: 0 | R92: 0 | S92: 0 | T92: =SUM(O92:S92) -> 1
C93: =C92+1 -> 2008 | D93: 0.462 | E93: 0.346 | F93: 0.192 | G93: 0 | H93: 0 | I93: 1 | N93: =N92+1 -> 2008 | O93: 1 | P93: 0 | Q93: 0 | R93: 0 | S93: 0 | T93: 1
C94: =C93+1 -> 2009 | D94: 0.462 | E94: 0.346 | F94: 0.192 | G94: 0 | H94: 0 | I94: 1 | N94: =N93+1 -> 2009 | O94: 1 | P94: 0 | Q94: 0 | R94: 0 | S94: 0 | T94: 1
C95: 2010 | D95: 0.462 | E95: 0.346 | F95: 0.192 | G95: 0 | H95: 0 | I95: 1 | N95: 2010 | O95: 1 | P95: 0 | Q95: 0 | R95: 0 | S95: 0 | T95: 1
C96: 2011 | D96: 0.462 | E96: 0.346 | F96: 0.192 | G96: 0 | H96: 0 | I96: 1 | N96: 2011 | O96: 1 | P96: 0 | Q96: 0 | R96: 0 | S96: 0 | T96: 1
C97: 2012 | D97: 0.462 | E97: 0.346 | F97: 0.192 | G97: 0 | H97: 0 | I97: 1 | N97: 2012 | O97: 1 | P97: 0 | Q97: 0 | R97: 0 | S97: 0 | T97: 1
C98: 2013 | D98: 0.462 | E98: 0.346 | F98: 0.192 | G98: 0 | H98: 0 | I98: =SUM(D98:H98) -> 1 | N98: 2013 | O98: 1 | P98: 0 | Q98: 0 | R98: 0 | S98: 0 | T98: =SUM(O98:S98) -> 1
C99: 2014 | D99: 0 | E99: 0 | F99: =D98+E98+F98 -> 1 | G99: =G98 -> 0 | H99: =H98 -> 0 | I99: =SUM(D99:H99) -> 1 | N99: 2014 | O99: 0 | P99: 0 | Q99: =O98+P98+Q98 -> 1 | R99: =R98 -> 0 | S99: =S98 -> 0 | T99: =SUM(O99:S99) -> 1
C100: 2015 | D100: 0 | E100: 0 | F100: =F99 -> 1 | G100: 0 | H100: 0 | I100: 1 | N100: 2015 | O100: 0 | P100: 0 | Q100: =Q99 -> 1 | R100: =R99 -> 0 | S100: =S99 -> 0 | T100: 1
C101: 2016 | D101: 0 | E101: 0 | F101: 1 | G101: 0 | H101: 0 | I101: 1 | N101: 2016 | O101: 0 | P101: 0 | Q101: 1 | R101: 0 | S101: 0 | T101: 1
C102: 2017 | D102: 0 | E102: 0 | F102: 1 | G102: 0 | H102: 0 | I102: 1 | N102: 2017 | O102: 0 | P102: 0 | Q102: 1 | R102: 0 | S102: 0 | T102: 1
C103: 2018 | D103: 0 | E103: 0 | F103: 1 | G103: 0 | H103: 0 | I103: 1 | N103: 2018 | O103: 0 | P103: 0 | Q103: 1 | R103: 0 | S103: 0 | T103: 1
C104: 2019 | D104: 0 | E104: 0 | F104: 1 | G104: 0 | H104: 0 | I104: 1 | N104: 2019 | O104: 0 | P104: 0 | Q104: 1 | R104: 0 | S104: 0 | T104: 1
C105: 2020 | D105: 0 | E105: 0 | F105: 1 | G105: 0 | H105: 0 | I105: 1 | N105: 2020 | O105: 0 | P105: 0 | Q105: 1 | R105: 0 | S105: 0 | T105: 1
C106: 2021 | D106: 0 | E106: 0 | F106: 1 | G106: 0 | H106: 0 | I106: 1 | N106: 2021 | O106: 0 | P106: 0 | Q106: 1 | R106: 0 | S106: 0 | T106: 1
C107: 2022 | D107: 0 | E107: 0 | F107: 1 | G107: 0 | H107: 0 | I107: 1 | N107: 2022 | O107: 0 | P107: 0 | Q107: 1 | R107: 0 | S107: 0 | T107: 1
C108: 2023 | D108: 0 | E108: 0 | F108: 1 | G108: 0 | H108: 0 | I108: 1 | N108: 2023 | O108: 0 | P108: 0 | Q108: 1 | R108: 0 | S108: 0 | T108: 1
C109: 2024 | D109: 0 | E109: 0 | F109: 1 | G109: 0 | H109: 0 | I109: 1 | N109: 2024 | O109: 0 | P109: 0 | Q109: 1 | R109: 0 | S109: 0 | T109: 1
C110: 2025 | D110: 0 | E110: 0 | F110: 1 | G110: 0 | H110: 0 | I110: 1 | N110: 2025 | O110: 0 | P110: 0 | Q110: 1 | R110: 0 | S110: 0 | T110: 1
C111: 2026 | D111: 0 | E111: 0 | F111: 1 | G111: 0 | H111: 0 | I111: 1 | N111: 2026 | O111: 0 | P111: 0 | Q111: 1 | R111: 0 | S111: 0 | T111: 1
C112: 2027 | D112: 0 | E112: 0 | F112: 1 | G112: 0 | H112: 0 | I112: 1 | N112: 2027 | O112: 0 | P112: 0 | Q112: 1 | R112: 0 | S112: 0 | T112: 1
C113: 2028 | D113: 0 | E113: 0 | F113: 1 | G113: 0 | H113: 0 | I113: 1 | N113: 2028 | O113: 0 | P113: 0 | Q113: 1 | R113: 0 | S113: 0 | T113: 1
C114: 2029 | D114: 0 | E114: 0 | F114: 1 | G114: 0 | H114: 0 | I114: 1 | N114: 2029 | O114: 0 | P114: 0 | Q114: 1 | R114: 0 | S114: 0 | T114: 1
C115: 2030 | D115: 0 | E115: 0 | F115: 1 | G115: 0 | H115: 0 | I115: 1 | N115: 2030 | O115: 0 | P115: 0 | Q115: 1 | R115: 0 | S115: 0 | T115: 1
C116: 2031 | D116: 0 | E116: 0 | F116: =F115 -> 1 | G116: 0 | H116: 0 | I116: 1 | N116: 2031 | O116: 0 | P116: 0 | Q116: 1 | R116: 0 | S116: 0 | T116: 1
C117: 2032 | D117: 0 | E117: 0 | F117: 1 | G117: 0 | H117: 0 | I117: 1 | N117: 2032 | O117: 0 | P117: 0 | Q117: 1 | R117: 0 | S117: 0 | T117: 1
C118: 2033 | D118: 0 | E118: 0 | F118: 1 | G118: 0 | H118: 0 | I118: 1 | N118: 2033 | O118: 0 | P118: 0 | Q118: 1 | R118: 0 | S118: 0 | T118: 1
C119: 2034 | D119: 0 | E119: 0 | F119: 1 | G119: 0 | H119: 0 | I119: 1 | N119: 2034 | O119: 0 | P119: 0 | Q119: 1 | R119: 0 | S119: 0 | T119: 1
C120: 2035 | D120: 0 | E120: 0 | F120: 1 | G120: 0 | H120: 0 | I120: 1 | N120: 2035 | O120: 0 | P120: 0 | Q120: 1 | R120: 0 | S120: 0 | T120: 1
C121: 2036 | D121: 0 | E121: 0 | F121: 1 | G121: 0 | H121: 0 | I121: 1 | N121: 2036 | O121: 0 | P121: 0 | Q121: 1 | R121: 0 | S121: 0 | T121: 1
C122: 2037 | D122: 0 | E122: 0 | F122: 1 | G122: 0 | H122: 0 | I122: 1 | N122: 2037 | O122: 0 | P122: 0 | Q122: 1 | R122: 0 | S122: 0 | T122: 1
C123: 2038 | D123: 0 | E123: 0 | F123: 1 | G123: 0 | H123: 0 | I123: 1 | N123: 2038 | O123: 0 | P123: 0 | Q123: 1 | R123: 0 | S123: 0 | T123: 1
C124: 2039 | D124: 0 | E124: 0 | F124: 1 | G124: 0 | H124: 0 | I124: 1 | N124: 2039 | O124: 0 | P124: 0 | Q124: 1 | R124: 0 | S124: 0 | T124: 1
C125: 2040 | D125: 0 | E125: 0 | F125: 1 | G125: 0 | H125: 0 | I125: 1 | N125: 2040 | O125: 0 | P125: 0 | Q125: 1 | R125: 0 | S125: 0 | T125: 1
C126: 2041 | D126: 0 | E126: 0 | F126: 1 | G126: 0 | H126: 0 | I126: 1 | N126: 2041 | O126: 0 | P126: 0 | Q126: 1 | R126: 0 | S126: 0 | T126: 1
C127: 2042 | D127: 0 | E127: 0 | F127: 1 | G127: 0 | H127: 0 | I127: 1 | N127: 2042 | O127: 0 | P127: 0 | Q127: 1 | R127: 0 | S127: 0 | T127: 1
C128: 2043 | D128: 0 | E128: 0 | F128: 1 | G128: 0 | H128: 0 | I128: 1 | N128: 2043 | O128: 0 | P128: 0 | Q128: 1 | R128: 0 | S128: 0 | T128: 1
A130: EF | B130: =MW_EL_EL3 -> 1 | D130: =MW_EL_EL3 -> 1 | E130: Standards Case Distribution | L130: EF | M130: =CO_EL_EL3 -> 2.2 | O130: =CO_EL_EL3 -> 2.2 | P130: Standards Case Distribution
D131: Percent of Total Shipments | O131: Percent of Total Shipments
C132: Year | D132: =MW_EL_Baseline -> 4 | E132: =MW_EL_EL1 -> 2 | F132: =MW_EL_EL2 -> 1.5 | G132: =MW_EL_EL3 -> 1 | H132: =MW_EL_EL4 -> 0.02 | I132: SUM | N132: Year | O132: =CO_EL_Baseline -> 4.5 | P132: =CO_EL_EL1 -> 3.7 | Q132: =CO_EL_EL2 -> 2.7 | R132: =CO_EL_EL3 -> 2.2 | S132: =CO_EL_EL4 -> 0.04 | T132: SUM
C133: 2007 | D133: =D10 -> 0.462 | E133: 0.346 | F133: 0.192 | G133: 0 | H133: 0 | I133: =SUM(D133:H133) -> 1 | N133: 2007 | O133: =O10 -> 1 | P133: 0 | Q133: 0 | R133: 0 | S133: 0 | T133: =SUM(O133:S133) -> 1
C134: =C133+1 -> 2008 | D134: 0.462 | E134: 0.346 | F134: 0.192 | G134: 0 | H134: 0 | I134: 1 | N134: =N133+1 -> 2008 | O134: 1 | P134: 0 | Q134: 0 | R134: 0 | S134: 0 | T134: 1
C135: =C134+1 -> 2009 | D135: 0.462 | E135: 0.346 | F135: 0.192 | G135: 0 | H135: 0 | I135: 1 | N135: =N134+1 -> 2009 | O135: 1 | P135: 0 | Q135: 0 | R135: 0 | S135: 0 | T135: 1
C136: 2010 | D136: 0.462 | E136: 0.346 | F136: 0.192 | G136: 0 | H136: 0 | I136: 1 | N136: 2010 | O136: 1 | P136: 0 | Q136: 0 | R136: 0 | S136: 0 | T136: 1
C137: 2011 | D137: 0.462 | E137: 0.346 | F137: 0.192 | G137: 0 | H137: 0 | I137: 1 | N137: 2011 | O137: 1 | P137: 0 | Q137: 0 | R137: 0 | S137: 0 | T137: 1
C138: 2012 | D138: 0.462 | E138: 0.346 | F138: 0.192 | G138: 0 | H138: 0 | I138: 1 | N138: 2012 | O138: 1 | P138: 0 | Q138: 0 | R138: 0 | S138: 0 | T138: 1
C139: 2013 | D139: 0.462 | E139: 0.346 | F139: 0.192 | G139: 0 | H139: 0 | I139: =SUM(D139:H139) -> 1 | N139: 2013 | O139: 1 | P139: 0 | Q139: 0 | R139: 0 | S139: 0 | T139: =SUM(O139:S139) -> 1
C140: 2014 | D140: 0 | E140: 0 | F140: 0 | G140: =D139+E139+F139+G139 -> 1 | H140: =H139 -> 0 | I140: =SUM(D140:H140) -> 1 | N140: 2014 | O140: 0 | P140: 0 | Q140: 0 | R140: =O139+P139+Q139+R139 -> 1 | S140: =S139 -> 0 | T140: =SUM(O140:S140) -> 1
C141: 2015 | D141: 0 | E141: 0 | F141: 0 | G141: =G140 -> 1 | H141: 0 | I141: 1 | N141: 2015 | O141: 0 | P141: 0 | Q141: 0 | R141: =R140 -> 1 | S141: =S140 -> 0 | T141: 1
C142: 2016 | D142: 0 | E142: 0 | F142: 0 | G142: 1 | H142: 0 | I142: 1 | N142: 2016 | O142: 0 | P142: 0 | Q142: 0 | R142: 1 | S142: 0 | T142: 1
C143: 2017 | D143: 0 | E143: 0 | F143: 0 | G143: 1 | H143: 0 | I143: 1 | N143: 2017 | O143: 0 | P143: 0 | Q143: 0 | R143: 1 | S143: 0 | T143: 1
C144: 2018 | D144: 0 | E144: 0 | F144: 0 | G144: 1 | H144: 0 | I144: 1 | N144: 2018 | O144: 0 | P144: 0 | Q144: 0 | R144: 1 | S144: 0 | T144: 1
C145: 2019 | D145: 0 | E145: 0 | F145: 0 | G145: 1 | H145: 0 | I145: 1 | N145: 2019 | O145: 0 | P145: 0 | Q145: 0 | R145: 1 | S145: 0 | T145: 1
C146: 2020 | D146: 0 | E146: 0 | F146: 0 | G146: 1 | H146: 0 | I146: 1 | N146: 2020 | O146: 0 | P146: 0 | Q146: 0 | R146: 1 | S146: 0 | T146: 1
C147: 2021 | D147: 0 | E147: 0 | F147: 0 | G147: 1 | H147: 0 | I147: 1 | N147: 2021 | O147: 0 | P147: 0 | Q147: 0 | R147: 1 | S147: 0 | T147: 1
C148: 2022 | D148: 0 | E148: 0 | F148: 0 | G148: 1 | H148: 0 | I148: 1 | N148: 2022 | O148: 0 | P148: 0 | Q148: 0 | R148: 1 | S148: 0 | T148: 1
C149: 2023 | D149: 0 | E149: 0 | F149: 0 | G149: 1 | H149: 0 | I149: 1 | N149: 2023 | O149: 0 | P149: 0 | Q149: 0 | R149: 1 | S149: 0 | T149: 1
C150: 2024 | D150: 0 | E150: 0 | F150: 0 | G150: 1 | H150: 0 | I150: 1 | N150: 2024 | O150: 0 | P150: 0 | Q150: 0 | R150: 1 | S150: 0 | T150: 1
C151: 2025 | D151: 0 | E151: 0 | F151: 0 | G151: 1 | H151: 0 | I151: 1 | N151: 2025 | O151: 0 | P151: 0 | Q151: 0 | R151: 1 | S151: 0 | T151: 1
C152: 2026 | D152: 0 | E152: 0 | F152: 0 | G152: 1 | H152: 0 | I152: 1 | N152: 2026 | O152: 0 | P152: 0 | Q152: 0 | R152: 1 | S152: 0 | T152: 1
C153: 2027 | D153: 0 | E153: 0 | F153: 0 | G153: 1 | H153: 0 | I153: 1 | N153: 2027 | O153: 0 | P153: 0 | Q153: 0 | R153: 1 | S153: 0 | T153: 1
C154: 2028 | D154: 0 | E154: 0 | F154: 0 | G154: 1 | H154: 0 | I154: 1 | N154: 2028 | O154: 0 | P154: 0 | Q154: 0 | R154: 1 | S154: 0 | T154: 1
C155: 2029 | D155: 0 | E155: 0 | F155: 0 | G155: 1 | H155: 0 | I155: 1 | N155: 2029 | O155: 0 | P155: 0 | Q155: 0 | R155: 1 | S155: 0 | T155: 1
C156: 2030 | D156: 0 | E156: 0 | F156: 0 | G156: 1 | H156: 0 | I156: 1 | N156: 2030 | O156: 0 | P156: 0 | Q156: 0 | R156: 1 | S156: 0 | T156: 1
C157: 2031 | D157: 0 | E157: 0 | F157: 0 | G157: =G156 -> 1 | H157: 0 | I157: 1 | N157: 2031 | O157: 0 | P157: 0 | Q157: 0 | R157: 1 | S157: 0 | T157: 1
C158: 2032 | D158: 0 | E158: 0 | F158: 0 | G158: 1 | H158: 0 | I158: 1 | N158: 2032 | O158: 0 | P158: 0 | Q158: 0 | R158: 1 | S158: 0 | T158: 1
C159: 2033 | D159: 0 | E159: 0 | F159: 0 | G159: 1 | H159: 0 | I159: 1 | N159: 2033 | O159: 0 | P159: 0 | Q159: 0 | R159: 1 | S159: 0 | T159: 1
C160: 2034 | D160: 0 | E160: 0 | F160: 0 | G160: 1 | H160: 0 | I160: 1 | N160: 2034 | O160: 0 | P160: 0 | Q160: 0 | R160: 1 | S160: 0 | T160: 1
C161: 2035 | D161: 0 | E161: 0 | F161: 0 | G161: 1 | H161: 0 | I161: 1 | N161: 2035 | O161: 0 | P161: 0 | Q161: 0 | R161: 1 | S161: 0 | T161: 1
C162: 2036 | D162: 0 | E162: 0 | F162: 0 | G162: 1 | H162: 0 | I162: 1 | N162: 2036 | O162: 0 | P162: 0 | Q162: 0 | R162: 1 | S162: 0 | T162: 1
C163: 2037 | D163: 0 | E163: 0 | F163: 0 | G163: 1 | H163: 0 | I163: 1 | N163: 2037 | O163: 0 | P163: 0 | Q163: 0 | R163: 1 | S163: 0 | T163: 1
C164: 2038 | D164: 0 | E164: 0 | F164: 0 | G164: 1 | H164: 0 | I164: 1 | N164: 2038 | O164: 0 | P164: 0 | Q164: 0 | R164: 1 | S164: 0 | T164: 1
C165: 2039 | D165: 0 | E165: 0 | F165: 0 | G165: 1 | H165: 0 | I165: 1 | N165: 2039 | O165: 0 | P165: 0 | Q165: 0 | R165: 1 | S165: 0 | T165: 1
C166: 2040 | D166: 0 | E166: 0 | F166: 0 | G166: 1 | H166: 0 | I166: 1 | N166: 2040 | O166: 0 | P166: 0 | Q166: 0 | R166: 1 | S166: 0 | T166: 1
C167: 2041 | D167: 0 | E167: 0 | F167: 0 | G167: 1 | H167: 0 | I167: 1 | N167: 2041 | O167: 0 | P167: 0 | Q167: 0 | R167: 1 | S167: 0 | T167: 1
C168: 2042 | D168: 0 | E168: 0 | F168: 0 | G168: 1 | H168: 0 | I168: 1 | N168: 2042 | O168: 0 | P168: 0 | Q168: 0 | R168: 1 | S168: 0 | T168: 1
C169: 2043 | D169: 0 | E169: 0 | F169: 0 | G169: 1 | H169: 0 | I169: 1 | N169: 2043 | O169: 0 | P169: 0 | Q169: 0 | R169: 1 | S169: 0 | T169: 1
A171: EF | B171: =MW_EL_EL4 -> 0.02 | D171: =MW_EL_EL4 -> 0.02 | E171: Standards Case Distribution | L171: EF | M171: =CO_EL_EL4 -> 0.04 | O171: =CO_EL_EL4 -> 0.04 | P171: Standards Case Distribution
D172: Percent of Total Shipments | O172: Percent of Total Shipments
C173: Year | D173: =MW_EL_Baseline -> 4 | E173: =MW_EL_EL1 -> 2 | F173: =MW_EL_EL2 -> 1.5 | G173: =MW_EL_EL3 -> 1 | H173: =MW_EL_EL4 -> 0.02 | I173: SUM | N173: Year | O173: =CO_EL_Baseline -> 4.5 | P173: =CO_EL_EL1 -> 3.7 | Q173: =CO_EL_EL2 -> 2.7 | R173: =CO_EL_EL3 -> 2.2 | S173: =CO_EL_EL4 -> 0.04 | T173: SUM
C174: 2007 | D174: =D10 -> 0.462 | E174: 0.346 | F174: 0.192 | G174: 0 | H174: 0 | I174: =SUM(D174:H174) -> 1 | N174: 2007 | O174: =O10 -> 1 | P174: 0 | Q174: 0 | R174: 0 | S174: 0 | T174: =SUM(O174:S174) -> 1
C175: =C174+1 -> 2008 | D175: 0.462 | E175: 0.346 | F175: 0.192 | G175: 0 | H175: 0 | I175: 1 | N175: =N174+1 -> 2008 | O175: 1 | P175: 0 | Q175: 0 | R175: 0 | S175: 0 | T175: 1
C176: =C175+1 -> 2009 | D176: 0.462 | E176: 0.346 | F176: 0.192 | G176: 0 | H176: 0 | I176: 1 | N176: =N175+1 -> 2009 | O176: 1 | P176: 0 | Q176: 0 | R176: 0 | S176: 0 | T176: 1
C177: 2010 | D177: 0.462 | E177: 0.346 | F177: 0.192 | G177: 0 | H177: 0 | I177: 1 | N177: 2010 | O177: 1 | P177: 0 | Q177: 0 | R177: 0 | S177: 0 | T177: 1
C178: 2011 | D178: 0.462 | E178: 0.346 | F178: 0.192 | G178: 0 | H178: 0 | I178: 1 | N178: 2011 | O178: 1 | P178: 0 | Q178: 0 | R178: 0 | S178: 0 | T178: 1
C179: 2012 | D179: 0.462 | E179: 0.346 | F179: 0.192 | G179: 0 | H179: 0 | I179: 1 | N179: 2012 | O179: 1 | P179: 0 | Q179: 0 | R179: 0 | S179: 0 | T179: 1
C180: 2013 | D180: 0.462 | E180: 0.346 | F180: 0.192 | G180: 0 | H180: 0 | I180: =SUM(D180:H180) -> 1 | N180: 2013 | O180: 1 | P180: 0 | Q180: 0 | R180: 0 | S180: 0 | T180: =SUM(O180:S180) -> 1
C181: 2014 | D181: 0 | E181: 0 | F181: 0 | G181: 0 | H181: 1 | I181: 1 | N181: 2014 | O181: 0 | P181: 0 | Q181: 0 | R181: 0 | S181: 1 | T181: 1
C182: 2015 | D182: 0 | E182: 0 | F182: 0 | G182: 0 | H182: =H181 -> 1 | I182: 1 | N182: 2015 | O182: 0 | P182: 0 | Q182: 0 | R182: 0 | S182: =S181 -> 1 | T182: 1
C183: 2016 | D183: 0 | E183: 0 | F183: 0 | G183: 0 | H183: 1 | I183: 1 | N183: 2016 | O183: 0 | P183: 0 | Q183: 0 | R183: 0 | S183: 1 | T183: 1
C184: 2017 | D184: 0 | E184: 0 | F184: 0 | G184: 0 | H184: 1 | I184: 1 | N184: 2017 | O184: 0 | P184: 0 | Q184: 0 | R184: 0 | S184: 1 | T184: 1
C185: 2018 | D185: 0 | E185: 0 | F185: 0 | G185: 0 | H185: 1 | I185: 1 | N185: 2018 | O185: 0 | P185: 0 | Q185: 0 | R185: 0 | S185: 1 | T185: 1
C186: 2019 | D186: 0 | E186: 0 | F186: 0 | G186: 0 | H186: 1 | I186: 1 | N186: 2019 | O186: 0 | P186: 0 | Q186: 0 | R186: 0 | S186: 1 | T186: 1
C187: 2020 | D187: 0 | E187: 0 | F187: 0 | G187: 0 | H187: 1 | I187: 1 | N187: 2020 | O187: 0 | P187: 0 | Q187: 0 | R187: 0 | S187: 1 | T187: 1
C188: 2021 | D188: 0 | E188: 0 | F188: 0 | G188: 0 | H188: 1 | I188: 1 | N188: 2021 | O188: 0 | P188: 0 | Q188: 0 | R188: 0 | S188: 1 | T188: 1
C189: 2022 | D189: 0 | E189: 0 | F189: 0 | G189: 0 | H189: 1 | I189: 1 | N189: 2022 | O189: 0 | P189: 0 | Q189: 0 | R189: 0 | S189: 1 | T189: 1
C190: 2023 | D190: 0 | E190: 0 | F190: 0 | G190: 0 | H190: 1 | I190: 1 | N190: 2023 | O190: 0 | P190: 0 | Q190: 0 | R190: 0 | S190: 1 | T190: 1
C191: 2024 | D191: 0 | E191: 0 | F191: 0 | G191: 0 | H191: 1 | I191: 1 | N191: 2024 | O191: 0 | P191: 0 | Q191: 0 | R191: 0 | S191: 1 | T191: 1
C192: 2025 | D192: 0 | E192: 0 | F192: 0 | G192: 0 | H192: 1 | I192: 1 | N192: 2025 | O192: 0 | P192: 0 | Q192: 0 | R192: 0 | S192: 1 | T192: 1
C193: 2026 | D193: 0 | E193: 0 | F193: 0 | G193: 0 | H193: 1 | I193: 1 | N193: 2026 | O193: 0 | P193: 0 | Q193: 0 | R193: 0 | S193: 1 | T193: 1
C194: 2027 | D194: 0 | E194: 0 | F194: 0 | G194: 0 | H194: 1 | I194: 1 | N194: 2027 | O194: 0 | P194: 0 | Q194: 0 | R194: 0 | S194: 1 | T194: 1
C195: 2028 | D195: 0 | E195: 0 | F195: 0 | G195: 0 | H195: 1 | I195: 1 | N195: 2028 | O195: 0 | P195: 0 | Q195: 0 | R195: 0 | S195: 1 | T195: 1
C196: 2029 | D196: 0 | E196: 0 | F196: 0 | G196: 0 | H196: 1 | I196: 1 | N196: 2029 | O196: 0 | P196: 0 | Q196: 0 | R196: 0 | S196: 1 | T196: 1
C197: 2030 | D197: 0 | E197: 0 | F197: 0 | G197: 0 | H197: 1 | I197: 1 | N197: 2030 | O197: 0 | P197: 0 | Q197: 0 | R197: 0 | S197: 1 | T197: 1
C198: 2031 | D198: 0 | E198: 0 | F198: 0 | G198: 0 | H198: 1 | I198: 1 | N198: 2031 | O198: 0 | P198: 0 | Q198: 0 | R198: 0 | S198: 1 | T198: 1
C199: 2032 | D199: 0 | E199: 0 | F199: 0 | G199: 0 | H199: 1 | I199: 1 | N199: 2032 | O199: 0 | P199: 0 | Q199: 0 | R199: 0 | S199: 1 | T199: 1
C200: 2033 | D200: 0 | E200: 0 | F200: 0 | G200: 0 | H200: 1 | I200: 1 | N200: 2033 | O200: 0 | P200: 0 | Q200: 0 | R200: 0 | S200: 1 | T200: 1
C201: 2034 | D201: 0 | E201: 0 | F201: 0 | G201: 0 | H201: 1 | I201: 1 | N201: 2034 | O201: 0 | P201: 0 | Q201: 0 | R201: 0 | S201: 1 | T201: 1
C202: 2035 | D202: 0 | E202: 0 | F202: 0 | G202: 0 | H202: 1 | I202: 1 | N202: 2035 | O202: 0 | P202: 0 | Q202: 0 | R202: 0 | S202: 1 | T202: 1
C203: 2036 | D203: 0 | E203: 0 | F203: 0 | G203: 0 | H203: 1 | I203: 1 | N203: 2036 | O203: 0 | P203: 0 | Q203: 0 | R203: 0 | S203: 1 | T203: 1
C204: 2037 | D204: 0 | E204: 0 | F204: 0 | G204: 0 | H204: 1 | I204: 1 | N204: 2037 | O204: 0 | P204: 0 | Q204: 0 | R204: 0 | S204: 1 | T204: 1
C205: 2038 | D205: 0 | E205: 0 | F205: 0 | G205: 0 | H205: 1 | I205: 1 | N205: 2038 | O205: 0 | P205: 0 | Q205: 0 | R205: 0 | S205: 1 | T205: 1
C206: 2039 | D206: 0 | E206: 0 | F206: 0 | G206: 0 | H206: 1 | I206: 1 | N206: 2039 | O206: 0 | P206: 0 | Q206: 0 | R206: 0 | S206: 1 | T206: 1
C207: 2040 | D207: 0 | E207: 0 | F207: 0 | G207: 0 | H207: 1 | I207: 1 | N207: 2040 | O207: 0 | P207: 0 | Q207: 0 | R207: 0 | S207: 1 | T207: 1
C208: 2041 | D208: 0 | E208: 0 | F208: 0 | G208: 0 | H208: 1 | I208: 1 | N208: 2041 | O208: 0 | P208: 0 | Q208: 0 | R208: 0 | S208: 1 | T208: 1
... 2 more rows

Sheet Microwave Shipments (CALC)
A1: Microwave Shipments
A2: SCENARIO CHOSEN: | C2: =Economic_Scenario -> Reference
A4: PC 1
C6: =MW_EL_Baseline -> 4 | I6: =MW_EL_EL1 -> 2 | O6: =MW_EL_EL2 -> 1.5 | U6: =MW_EL_EL3 -> 1 | AA6: =MW_EL_EL4 -> 0.02
C7: Annual Shipments by EL (units) | I7: Annual Shipments by EL (units) | O7: Annual Shipments by EL (units) | U7: Annual Shipments by EL (units) | AA7: Annual Shipments by EL (units)
B8: Year | C8: =MW_EL_Baseline -> 4 | D8: =MW_EL_EL1 -> 2 | E8: =MW_EL_EL2 -> 1.5 | F8: =MW_EL_EL3 -> 1 | G8: =MW_EL_EL4 -> 0.02 | H8: Total | I8: =MW_EL_Baseline -> 4 | J8: =MW_EL_EL1 -> 2 | K8: =MW_EL_EL2 -> 1.5 | L8: =MW_EL_EL3 -> 1 | M8: =MW_EL_EL4 -> 0.02 | N8: Total | O8: =MW_EL_Baseline -> 4 | P8: =MW_EL_EL1 -> 2 | Q8: =MW_EL_EL2 -> 1.5 | R8: =MW_EL_EL3 -> 1 | S8: =MW_EL_EL4 -> 0.02 | T8: Total | U8: =MW_EL_Baseline -> 4 | V8: =MW_EL_EL1 -> 2 | W8: =MW_EL_EL2 -> 1.5 | X8: =MW_EL_EL3 -> 1 | Y8: =MW_EL_EL4 -> 0.02 | Z8: Total | AA8: =MW_EL_Baseline -> 4 | AB8: =MW_EL_EL1 -> 2 | AC8: =MW_EL_EL2 -> 1.5 | AD8: =MW_EL_EL3 -> 1 | AE8: =MW_EL_EL4 -> 0.02 | AF8: Total
B9: 2007 | C9: =OFFSET('Distribution (CALC)'!D10,MATCH('Microwave Shipments (CALC)'!$C$6,'Distribution (CALC)'!$B$7:$B$213,0)-1,0)*$H9 -> 5420410.38 | D9: =OFFSET('Distribution (CALC)'!E10,MATCH('Microwave Shipments (CALC)'!$C$6,'Distribution (CALC)'!$B$7:$B$213,0)-1,0)*$H9 -> 4059441.54 | E9: =OFFSET('Distribution (CALC)'!F10,MATCH('Microwave Shipments (CALC)'!$C$6,'Distribution (CALC)'!$B$7:$B$213,0)-1,0)*$H9 -> 2252638.08 | F9: =OFFSET('Distribution (CALC)'!G10,MATCH('Microwave Shipments (CALC)'!$C$6,'Distribution (CALC)'!$B$7:$B$213,0)-1,0)*$H9 -> 0 | G9: =OFFSET('Distribution (CALC)'!H10,MATCH('Microwave Shipments (CALC)'!$C$6,'Distribution (CALC)'!$B$7:$B$213,0)-1,0)*$H9 -> 0 | H9: =IF(Economic_Scenario="reference",VLOOKUP($B9,MW_Shipments_ReferenceCase,2),IF(Economic_Scenario="high",VLOOKUP($B9,MW_Shipments_ReferenceCase,3),VLOOKUP($B9,MW_Shipments_ReferenceCase,4))) -> 11732490 | I9: =OFFSET('Distribution (CALC)'!D10,MATCH('Microwave Shipments (CALC)'!$I$6,'Distribution (CALC)'!$B$7:$B$213,0)-1,0)*$N9 -> 5420410.38 | J9: =OFFSET('Distribution (CALC)'!E10,MATCH('Microwave Shipments (CALC)'!$I$6,'Distribution (CALC)'!$B$7:$B$213,0)-1,0)*$N9 -> 4059441.54 | K9: =OFFSET('Distribution (CALC)'!F10,MATCH('Microwave Shipments (CALC)'!$I$6,'Distribution (CALC)'!$B$7:$B$213,0)-1,0)*$N9 -> 2252638.08 | L9: =OFFSET('Distribution (CALC)'!G10,MATCH('Microwave Shipments (CALC)'!$I$6,'Distribution (CALC)'!$B$7:$B$213,0)-1,0)*$N9 -> 0 | M9: =OFFSET('Distribution (CALC)'!H10,MATCH('Microwave Shipments (CALC)'!$I$6,'Distribution (CALC)'!$B$7:$B$213,0)-1,0)*$N9 -> 0 | N9: =IF(ShipmentElasticity_Scenario="none",H9,IF(Economic_Scenario="reference",VLOOKUP($B9,MW_Shipments_ReferenceCase,5),IF(Economic_Scenario="high",VLOOKUP($B9,MW_Shipments_ReferenceCase,6),VLOOKUP($B9,MW_Shipments_ReferenceCase,7)))) -> 11732490 | O9: =OFFSET('Distribution (CALC)'!D10,MATCH('Microwave Shipments (CALC)'!$O$6,'Distribution (CALC)'!$B$7:$B$213,0)-1,0)*$T9 -> 5420410.38 | P9: =OFFSET('Distribution (CALC)'!E10,MATCH('Microwave Shipments (CALC)'!$O$6,'Distribution (CALC)'!$B$7:$B$213,0)-1,0)*$T9 -> 4059441.54 | Q9: =OFFSET('Distribution (CALC)'!F10,MATCH('Microwave Shipments (CALC)'!$O$6,'Distribution (CALC)'!$B$7:$B$213,0)-1,0)*$T9 -> 2252638.08 | R9: =OFFSET('Distribution (CALC)'!G10,MATCH('Microwave Shipments (CALC)'!$O$6,'Distribution (CALC)'!$B$7:$B$213,0)-1,0)*$T9 -> 0 | S9: =OFFSET('Distribution (CALC)'!H10,MATCH('Microwave Shipments (CALC)'!$O$6,'Distribution (CALC)'!$B$7:$B$213,0)-1,0)*$T9 -> 0 | T9: =IF(ShipmentElasticity_Scenario="none",H9,IF(Economic_Scenario="reference",VLOOKUP($B9,MW_Shipments_ReferenceCase,8),IF(Economic_Scenario="high",VLOOKUP($B9,MW_Shipments_ReferenceCase,9),VLOOKUP($B9,MW_Shipments_ReferenceCase,10)))) -> 11732490 | U9: =OFFSET('Distribution (CALC)'!D10,MATCH('Microwave Shipments (CALC)'!$U$6,'Distribution (CALC)'!$B$7:$B$213,0)-1,0)*$Z9 -> 5420410.38 | V9: =OFFSET('Distribution (CALC)'!E10,MATCH('Microwave Shipments (CALC)'!$U$6,'Distribution (CALC)'!$B$7:$B$213,0)-1,0)*$Z9 -> 4059441.54 | W9: =OFFSET('Distribution (CALC)'!F10,MATCH('Microwave Shipments (CALC)'!$U$6,'Distribution (CALC)'!$B$7:$B$213,0)-1,0)*$Z9 -> 2252638.08 | X9: =OFFSET('Distribution (CALC)'!G10,MATCH('Microwave Shipments (CALC)'!$U$6,'Distribution (CALC)'!$B$7:$B$213,0)-1,0)*$Z9 -> 0 | Y9: =OFFSET('Distribution (CALC)'!H10,MATCH('Microwave Shipments (CALC)'!$U$6,'Distribution (CALC)'!$B$7:$B$213,0)-1,0)*$Z9 -> 0 | Z9: =IF(ShipmentElasticity_Scenario="none",H9,IF(Economic_Scenario="reference",VLOOKUP($B9,MW_Shipments_ReferenceCase,11),IF(Economic_Scenario="high",VLOOKUP($B9,MW_Shipments_ReferenceCase,12),VLOOKUP($B9,MW_Shipments_ReferenceCase,13)))) -> 11732490 | AA9: =OFFSET('Distribution (CALC)'!D10,MATCH('Microwave Shipments (CALC)'!$AA$6,'Distribution (CALC)'!$B$7:$B$213,0)-1,0)*$AF9 -> 5420410.38 | AB9: =OFFSET('Distribution (CALC)'!E10,MATCH('Microwave Shipments (CALC)'!$AA$6,'Distribution (CALC)'!$B$7:$B$213,0)-1,0)*$AF9 -> 4059441.54 | AC9: =OFFSET('Distribution (CALC)'!F10,MATCH('Microwave Shipments (CALC)'!$AA$6,'Distribution (CALC)'!$B$7:$B$213,0)-1,0)*$AF9 -> 2252638.08 | AD9: =OFFSET('Distribution (CALC)'!G10,MATCH('Microwave Shipments (CALC)'!$AA$6,'Distribution (CALC)'!$B$7:$B$213,0)-1,0)*$AF9 -> 0 | AE9: =OFFSET('Distribution (CALC)'!H10,MATCH('Microwave Shipments (CALC)'!$AA$6,'Distribution (CALC)'!$B$7:$B$213,0)-1,0)*$AF9 -> 0 | AF9: =IF(ShipmentElasticity_Scenario="none",H9,IF(Economic_Scenario="reference",VLOOKUP($B9,MW_Shipments_ReferenceCase,14),IF(Economic_Scenario="high",VLOOKUP($B9,MW_Shipments_ReferenceCase,15),VLOOKUP($B9,MW_Shipments_ReferenceCase,16)))) -> 11732490
B10: =B9+1 -> 2008 | C10: =OFFSET('Distribution (CALC)'!D11,MATCH('Microwave Shipments (CALC)'!$C$6,'Distribution (CALC)'!$B$7:$B$213,0)-1,0)*$H10 -> 5186689.2 | D10: =OFFSET('Distribution (CALC)'!E11,MATCH('Microwave Shipments (CALC)'!$C$6,'Distribution (CALC)'!$B$7:$B$213,0)-1,0)*$H10 -> 3884403.6 | E10: =OFFSET('Distribution (CALC)'!F11,MATCH('Microwave Shipments (CALC)'!$C$6,'Distribution (CALC)'!$B$7:$B$213,0)-1,0)*$H10 -> 2155507.2 | F10: =OFFSET('Distribution (CALC)'!G11,MATCH('Microwave Shipments (CALC)'!$C$6,'Distribution (CALC)'!$B$7:$B$213,0)-1,0)*$H10 -> 0 | G10: =OFFSET('Distribution (CALC)'!H11,MATCH('Microwave Shipments (CALC)'!$C$6,'Distribution (CALC)'!$B$7:$B$213,0)-1,0)*$H10 -> 0 | H10: 11226600 | I10: =OFFSET('Distribution (CALC)'!D11,MATCH('Microwave Shipments (CALC)'!$I$6,'Distribution (CALC)'!$B$7:$B$213,0)-1,0)*$N10 -> 5186689.2 | J10: =OFFSET('Distribution (CALC)'!E11,MATCH('Microwave Shipments (CALC)'!$I$6,'Distribution (CALC)'!$B$7:$B$213,0)-1,0)*$N10 -> 3884403.6 | K10: =OFFSET('Distribution (CALC)'!F11,MATCH('Microwave Shipments (CALC)'!$I$6,'Distribution (CALC)'!$B$7:$B$213,0)-1,0)*$N10 -> 2155507.2 | L10: =OFFSET('Distribution (CALC)'!G11,MATCH('Microwave Shipments (CALC)'!$I$6,'Distribution (CALC)'!$B$7:$B$213,0)-1,0)*$N10 -> 0 | M10: =OFFSET('Distribution (CALC)'!H11,MATCH('Microwave Shipments (CALC)'!$I$6,'Distribution (CALC)'!$B$7:$B$213,0)-1,0)*$N10 -> 0 | N10: 11226600 | O10: =OFFSET('Distribution (CALC)'!D11,MATCH('Microwave Shipments (CALC)'!$O$6,'Distribution (CALC)'!$B$7:$B$213,0)-1,0)*$T10 -> 5186689.2 | P10: =OFFSET('Distribution (CALC)'!E11,MATCH('Microwave Shipments (CALC)'!$O$6,'Distribution (CALC)'!$B$7:$B$213,0)-1,0)*$T10 -> 3884403.6 | Q10: =OFFSET('Distribution (CALC)'!F11,MATCH('Microwave Shipments (CALC)'!$O$6,'Distribution (CALC)'!$B$7:$B$213,0)-1,0)*$T10 -> 2155507.2 | R10: =OFFSET('Distribution (CALC)'!G11,MATCH('Microwave Shipments (CALC)'!$O$6,'Distribution (CALC)'!$B$7:$B$213,0)-1,0)*$T10 -> 0 | S10: =OFFSET('Distribution (CALC)'!H11,MATCH('Microwave Shipments (CALC)'!$O$6,'Distribution (CALC)'!$B$7:$B$213,0)-1,0)*$T10 -> 0 | T10: 11226600 | U10: =OFFSET('Distribution (CALC)'!D11,MATCH('Microwave Shipments (CALC)'!$U$6,'Distribution (CALC)'!$B$7:$B$213,0)-1,0)*$Z10 -> 5186689.2 | V10: =OFFSET('Distribution (CALC)'!E11,MATCH('Microwave Shipments (CALC)'!$U$6,'Distribution (CALC)'!$B$7:$B$213,0)-1,0)*$Z10 -> 3884403.6 | W10: =OFFSET('Distribution (CALC)'!F11,MATCH('Microwave Shipments (CALC)'!$U$6,'Distribution (CALC)'!$B$7:$B$213,0)-1,0)*$Z10 -> 2155507.2 | X10: =OFFSET('Distribution (CALC)'!G11,MATCH('Microwave Shipments (CALC)'!$U$6,'Distribution (CALC)'!$B$7:$B$213,0)-1,0)*$Z10 -> 0 | Y10: =OFFSET('Distribution (CALC)'!H11,MATCH('Microwave Shipments (CALC)'!$U$6,'Distribution (CALC)'!$B$7:$B$213,0)-1,0)*$Z10 -> 0 | Z10: 11226600 | AA10: =OFFSET('Distribution (CALC)'!D11,MATCH('Microwave Shipments (CALC)'!$AA$6,'Distribution (CALC)'!$B$7:$B$213,0)-1,0)*$AF10 -> 5186689.2 | AB10: =OFFSET('Distribution (CALC)'!E11,MATCH('Microwave Shipments (CALC)'!$AA$6,'Distribution (CALC)'!$B$7:$B$213,0)-1,0)*$AF10 -> 3884403.6 | AC10: =OFFSET('Distribution (CALC)'!F11,MATCH('Microwave Shipments (CALC)'!$AA$6,'Distribution (CALC)'!$B$7:$B$213,0)-1,0)*$AF10 -> 2155507.2 | AD10: =OFFSET('Distribution (CALC)'!G11,MATCH('Microwave Shipments (CALC)'!$AA$6,'Distribution (CALC)'!$B$7:$B$213,0)-1,0)*$AF10 -> 0 | AE10: =OFFSET('Distribution (CALC)'!H11,MATCH('Microwave Shipments (CALC)'!$AA$6,'Distribution (CALC)'!$B$7:$B$213,0)-1,0)*$AF10 -> 0 | AF10: 11226600
B11: =B10+1 -> 2009 | C11: =OFFSET('Distribution (CALC)'!D12,MATCH('Microwave Shipments (CALC)'!$C$6,'Distribution (CALC)'!$B$7:$B$213,0)-1,0)*$H11 -> 4402739.88 | D11: =OFFSET('Distribution (CALC)'!E12,MATCH('Microwave Shipments (CALC)'!$C$6,'Distribution (CALC)'!$B$7:$B$213,0)-1,0)*$H11 -> 3297290.04 | E11: =OFFSET('Distribution (CALC)'!F12,MATCH('Microwave Shipments (CALC)'!$C$6,'Distribution (CALC)'!$B$7:$B$213,0)-1,0)*$H11 -> 1829710.08 | F11: =OFFSET('Distribution (CALC)'!G12,MATCH('Microwave Shipments (CALC)'!$C$6,'Distribution (CALC)'!$B$7:$B$213,0)-1,0)*$H11 -> 0 | G11: =OFFSET('Distribution (CALC)'!H12,MATCH('Microwave Shipments (CALC)'!$C$6,'Distribution (CALC)'!$B$7:$B$213,0)-1,0)*$H11 -> 0 | H11: 9529740 | I11: =OFFSET('Distribution (CALC)'!D12,MATCH('Microwave Shipments (CALC)'!$I$6,'Distribution (CALC)'!$B$7:$B$213,0)-1,0)*$N11 -> 4402739.88 | J11: =OFFSET('Distribution (CALC)'!E12,MATCH('Microwave Shipments (CALC)'!$I$6,'Distribution (CALC)'!$B$7:$B$213,0)-1,0)*$N11 -> 3297290.04 | K11: =OFFSET('Distribution (CALC)'!F12,MATCH('Microwave Shipments (CALC)'!$I$6,'Distribution (CALC)'!$B$7:$B$213,0)-1,0)*$N11 -> 1829710.08 | L11: =OFFSET('Distribution (CALC)'!G12,MATCH('Microwave Shipments (CALC)'!$I$6,'Distribution (CALC)'!$B$7:$B$213,0)-1,0)*$N11 -> 0 | M11: =OFFSET('Distribution (CALC)'!H12,MATCH('Microwave Shipments (CALC)'!$I$6,'Distribution (CALC)'!$B$7:$B$213,0)-1,0)*$N11 -> 0 | N11: 9529740 | O11: =OFFSET('Distribution (CALC)'!D12,MATCH('Microwave Shipments (CALC)'!$O$6,'Distribution (CALC)'!$B$7:$B$213,0)-1,0)*$T11 -> 4402739.88 | P11: =OFFSET('Distribution (CALC)'!E12,MATCH('Microwave Shipments (CALC)'!$O$6,'Distribution (CALC)'!$B$7:$B$213,0)-1,0)*$T11 -> 3297290.04 | Q11: =OFFSET('Distribution (CALC)'!F12,MATCH('Microwave Shipments (CALC)'!$O$6,'Distribution (CALC)'!$B$7:$B$213,0)-1,0)*$T11 -> 1829710.08 | R11: =OFFSET('Distribution (CALC)'!G12,MATCH('Microwave Shipments (CALC)'!$O$6,'Distribution (CALC)'!$B$7:$B$213,0)-1,0)*$T11 -> 0 | S11: =OFFSET('Distribution (CALC)'!H12,MATCH('Microwave Shipments (CALC)'!$O$6,'Distribution (CALC)'!$B$7:$B$213,0)-1,0)*$T11 -> 0 | T11: 9529740 | U11: =OFFSET('Distribution (CALC)'!D12,MATCH('Microwave Shipments (CALC)'!$U$6,'Distribution (CALC)'!$B$7:$B$213,0)-1,0)*$Z11 -> 4402739.88 | V11: =OFFSET('Distribution (CALC)'!E12,MATCH('Microwave Shipments (CALC)'!$U$6,'Distribution (CALC)'!$B$7:$B$213,0)-1,0)*$Z11 -> 3297290.04 | W11: =OFFSET('Distribution (CALC)'!F12,MATCH('Microwave Shipments (CALC)'!$U$6,'Distribution (CALC)'!$B$7:$B$213,0)-1,0)*$Z11 -> 1829710.08 | X11: =OFFSET('Distribution (CALC)'!G12,MATCH('Microwave Shipments (CALC)'!$U$6,'Distribution (CALC)'!$B$7:$B$213,0)-1,0)*$Z11 -> 0 | Y11: =OFFSET('Distribution (CALC)'!H12,MATCH('Microwave Shipments (CALC)'!$U$6,'Distribution (CALC)'!$B$7:$B$213,0)-1,0)*$Z11 -> 0 | Z11: 9529740 | AA11: =OFFSET('Distribution (CALC)'!D12,MATCH('Microwave Shipments (CALC)'!$AA$6,'Distribution (CALC)'!$B$7:$B$213,0)-1,0)*$AF11 -> 4402739.88 | AB11: =OFFSET('Distribution (CALC)'!E12,MATCH('Microwave Shipments (CALC)'!$AA$6,'Distribution (CALC)'!$B$7:$B$213,0)-1,0)*$AF11 -> 3297290.04 | AC11: =OFFSET('Distribution (CALC)'!F12,MATCH('Microwave Shipments (CALC)'!$AA$6,'Distribution (CALC)'!$B$7:$B$213,0)-1,0)*$AF11 -> 1829710.08 | AD11: =OFFSET('Distribution (CALC)'!G12,MATCH('Microwave Shipments (CALC)'!$AA$6,'Distribution (CALC)'!$B$7:$B$213,0)-1,0)*$AF11 -> 0 | AE11: =OFFSET('Distribution (CALC)'!H12,MATCH('Microwave Shipments (CALC)'!$AA$6,'Distribution (CALC)'!$B$7:$B$213,0)-1,0)*$AF11 -> 0 | AF11: 9529740
B12: 2010 | C12: =OFFSET('Distribution (CALC)'!D13,MATCH('Microwave Shipments (CALC)'!$C$6,'Distribution (CALC)'!$B$7:$B$213,0)-1,0)*$H12 -> 6416186.857 | D12: =OFFSET('Distribution (CALC)'!E13,MATCH('Microwave Shipments (CALC)'!$C$6,'Distribution (CALC)'!$B$7:$B$213,0)-1,0)*$H12 -> 4805196.218 | E12: =OFFSET('Distribution (CALC)'!F13,MATCH('Microwave Shipments (CALC)'!$C$6,'Distribution (CALC)'!$B$7:$B$213,0)-1,0)*$H12 -> 2666467.265 | F12: =OFFSET('Distribution (CALC)'!G13,MATCH('Microwave Shipments (CALC)'!$C$6,'Distribution (CALC)'!$B$7:$B$213,0)-1,0)*$H12 -> 0 | G12: =OFFSET('Distribution (CALC)'!H13,MATCH('Microwave Shipments (CALC)'!$C$6,'Distribution (CALC)'!$B$7:$B$213,0)-1,0)*$H12 -> 0 | H12: 13887850.34 | I12: =OFFSET('Distribution (CALC)'!D13,MATCH('Microwave Shipments (CALC)'!$I$6,'Distribution (CALC)'!$B$7:$B$213,0)-1,0)*$N12 -> 6416186.857 | J12: =OFFSET('Distribution (CALC)'!E13,MATCH('Microwave Shipments (CALC)'!$I$6,'Distribution (CALC)'!$B$7:$B$213,0)-1,0)*$N12 -> 4805196.218 | K12: =OFFSET('Distribution (CALC)'!F13,MATCH('Microwave Shipments (CALC)'!$I$6,'Distribution (CALC)'!$B$7:$B$213,0)-1,0)*$N12 -> 2666467.265 | L12: =OFFSET('Distribution (CALC)'!G13,MATCH('Microwave Shipments (CALC)'!$I$6,'Distribution (CALC)'!$B$7:$B$213,0)-1,0)*$N12 -> 0 | M12: =OFFSET('Distribution (CALC)'!H13,MATCH('Microwave Shipments (CALC)'!$I$6,'Distribution (CALC)'!$B$7:$B$213,0)-1,0)*$N12 -> 0 | N12: 13887850.34 | O12: =OFFSET('Distribution (CALC)'!D13,MATCH('Microwave Shipments (CALC)'!$O$6,'Distribution (CALC)'!$B$7:$B$213,0)-1,0)*$T12 -> 6416186.857 | P12: =OFFSET('Distribution (CALC)'!E13,MATCH('Microwave Shipments (CALC)'!$O$6,'Distribution (CALC)'!$B$7:$B$213,0)-1,0)*$T12 -> 4805196.218 | Q12: =OFFSET('Distribution (CALC)'!F13,MATCH('Microwave Shipments (CALC)'!$O$6,'Distribution (CALC)'!$B$7:$B$213,0)-1,0)*$T12 -> 2666467.265 | R12: =OFFSET('Distribution (CALC)'!G13,MATCH('Microwave Shipments (CALC)'!$O$6,'Distribution (CALC)'!$B$7:$B$213,0)-1,0)*$T12 -> 0 | S12: =OFFSET('Distribution (CALC)'!H13,MATCH('Microwave Shipments (CALC)'!$O$6,'Distribution (CALC)'!$B$7:$B$213,0)-1,0)*$T12 -> 0 | T12: 13887850.34 | U12: =OFFSET('Distribution (CALC)'!D13,MATCH('Microwave Shipments (CALC)'!$U$6,'Distribution (CALC)'!$B$7:$B$213,0)-1,0)*$Z12 -> 6416186.857 | V12: =OFFSET('Distribution (CALC)'!E13,MATCH('Microwave Shipments (CALC)'!$U$6,'Distribution (CALC)'!$B$7:$B$213,0)-1,0)*$Z12 -> 4805196.218 | W12: =OFFSET('Distribution (CALC)'!F13,MATCH('Microwave Shipments (CALC)'!$U$6,'Distribution (CALC)'!$B$7:$B$213,0)-1,0)*$Z12 -> 2666467.265 | X12: =OFFSET('Distribution (CALC)'!G13,MATCH('Microwave Shipments (CALC)'!$U$6,'Distribution (CALC)'!$B$7:$B$213,0)-1,0)*$Z12 -> 0 | Y12: =OFFSET('Distribution (CALC)'!H13,MATCH('Microwave Shipments (CALC)'!$U$6,'Distribution (CALC)'!$B$7:$B$213,0)-1,0)*$Z12 -> 0 | Z12: 13887850.34 | AA12: =OFFSET('Distribution (CALC)'!D13,MATCH('Microwave Shipments (CALC)'!$AA$6,'Distribution (CALC)'!$B$7:$B$213,0)-1,0)*$AF12 -> 6416186.857 | AB12: =OFFSET('Distribution (CALC)'!E13,MATCH('Microwave Shipments (CALC)'!$AA$6,'Distribution (CALC)'!$B$7:$B$213,0)-1,0)*$AF12 -> 4805196.218 | AC12: =OFFSET('Distribution (CALC)'!F13,MATCH('Microwave Shipments (CALC)'!$AA$6,'Distribution (CALC)'!$B$7:$B$213,0)-1,0)*$AF12 -> 2666467.265 | AD12: =OFFSET('Distribution (CALC)'!G13,MATCH('Microwave Shipments (CALC)'!$AA$6,'Distribution (CALC)'!$B$7:$B$213,0)-1,0)*$AF12 -> 0 | AE12: =OFFSET('Distribution (CALC)'!H13,MATCH('Microwave Shipments (CALC)'!$AA$6,'Distribution (CALC)'!$B$7:$B$213,0)-1,0)*$AF12 -> 0 | AF12: 13887850.34
B13: 2011 | C13: =OFFSET('Distribution (CALC)'!D14,MATCH('Microwave Shipments (CALC)'!$C$6,'Distribution (CALC)'!$B$7:$B$213,0)-1,0)*$H13 -> 6709067.953 | D13: =OFFSET('Distribution (CALC)'!E14,MATCH('Microwave Shipments (CALC)'!$C$6,'Distribution (CALC)'!$B$7:$B$213,0)-1,0)*$H13 -> 5024540.069 | E13: =OFFSET('Distribution (CALC)'!F14,MATCH('Microwave Shipments (CALC)'!$C$6,'Distribution (CALC)'!$B$7:$B$213,0)-1,0)*$H13 -> 2788184.084 | F13: =OFFSET('Distribution (CALC)'!G14,MATCH('Microwave Shipments (CALC)'!$C$6,'Distribution (CALC)'!$B$7:$B$213,0)-1,0)*$H13 -> 0 | G13: =OFFSET('Distribution (CALC)'!H14,MATCH('Microwave Shipments (CALC)'!$C$6,'Distribution (CALC)'!$B$7:$B$213,0)-1,0)*$H13 -> 0 | H13: 14521792.11 | I13: =OFFSET('Distribution (CALC)'!D14,MATCH('Microwave Shipments (CALC)'!$I$6,'Distribution (CALC)'!$B$7:$B$213,0)-1,0)*$N13 -> 6709067.953 | J13: =OFFSET('Distribution (CALC)'!E14,MATCH('Microwave Shipments (CALC)'!$I$6,'Distribution (CALC)'!$B$7:$B$213,0)-1,0)*$N13 -> 5024540.069 | K13: =OFFSET('Distribution (CALC)'!F14,MATCH('Microwave Shipments (CALC)'!$I$6,'Distribution (CALC)'!$B$7:$B$213,0)-1,0)*$N13 -> 2788184.084 | L13: =OFFSET('Distribution (CALC)'!G14,MATCH('Microwave Shipments (CALC)'!$I$6,'Distribution (CALC)'!$B$7:$B$213,0)-1,0)*$N13 -> 0 | M13: =OFFSET('Distribution (CALC)'!H14,MATCH('Microwave Shipments (CALC)'!$I$6,'Distribution (CALC)'!$B$7:$B$213,0)-1,0)*$N13 -> 0 | N13: 14521792.11 | O13: =OFFSET('Distribution (CALC)'!D14,MATCH('Microwave Shipments (CALC)'!$O$6,'Distribution (CALC)'!$B$7:$B$213,0)-1,0)*$T13 -> 6709067.953 | P13: =OFFSET('Distribution (CALC)'!E14,MATCH('Microwave Shipments (CALC)'!$O$6,'Distribution (CALC)'!$B$7:$B$213,0)-1,0)*$T13 -> 5024540.069 | Q13: =OFFSET('Distribution (CALC)'!F14,MATCH('Microwave Shipments (CALC)'!$O$6,'Distribution (CALC)'!$B$7:$B$213,0)-1,0)*$T13 -> 2788184.084 | R13: =OFFSET('Distribution (CALC)'!G14,MATCH('Microwave Shipments (CALC)'!$O$6,'Distribution (CALC)'!$B$7:$B$213,0)-1,0)*$T13 -> 0 | S13: =OFFSET('Distribution (CALC)'!H14,MATCH('Microwave Shipments (CALC)'!$O$6,'Distribution (CALC)'!$B$7:$B$213,0)-1,0)*$T13 -> 0 | T13: 14521792.11 | U13: =OFFSET('Distribution (CALC)'!D14,MATCH('Microwave Shipments (CALC)'!$U$6,'Distribution (CALC)'!$B$7:$B$213,0)-1,0)*$Z13 -> 6709067.953 | V13: =OFFSET('Distribution (CALC)'!E14,MATCH('Microwave Shipments (CALC)'!$U$6,'Distribution (CALC)'!$B$7:$B$213,0)-1,0)*$Z13 -> 5024540.069 | W13: =OFFSET('Distribution (CALC)'!F14,MATCH('Microwave Shipments (CALC)'!$U$6,'Distribution (CALC)'!$B$7:$B$213,0)-1,0)*$Z13 -> 2788184.084 | X13: =OFFSET('Distribution (CALC)'!G14,MATCH('Microwave Shipments (CALC)'!$U$6,'Distribution (CALC)'!$B$7:$B$213,0)-1,0)*$Z13 -> 0 | Y13: =OFFSET('Distribution (CALC)'!H14,MATCH('Microwave Shipments (CALC)'!$U$6,'Distribution (CALC)'!$B$7:$B$213,0)-1,0)*$Z13 -> 0 | Z13: 14521792.11 | AA13: =OFFSET('Distribution (CALC)'!D14,MATCH('Microwave Shipments (CALC)'!$AA$6,'Distribution (CALC)'!$B$7:$B$213,0)-1,0)*$AF13 -> 6709067.953 | AB13: =OFFSET('Distribution (CALC)'!E14,MATCH('Microwave Shipments (CALC)'!$AA$6,'Distribution (CALC)'!$B$7:$B$213,0)-1,0)*$AF13 -> 5024540.069 | AC13: =OFFSET('Distribution (CALC)'!F14,MATCH('Microwave Shipments (CALC)'!$AA$6,'Distribution (CALC)'!$B$7:$B$213,0)-1,0)*$AF13 -> 2788184.084 | AD13: =OFFSET('Distribution (CALC)'!G14,MATCH('Microwave Shipments (CALC)'!$AA$6,'Distribution (CALC)'!$B$7:$B$213,0)-1,0)*$AF13 -> 0 | AE13: =OFFSET('Distribution (CALC)'!H14,MATCH('Microwave Shipments (CALC)'!$AA$6,'Distribution (CALC)'!$B$7:$B$213,0)-1,0)*$AF13 -> 0 | AF13: 14521792.11
B14: 2012 | C14: =OFFSET('Distribution (CALC)'!D15,MATCH('Microwave Shipments (CALC)'!$C$6,'Distribution (CALC)'!$B$7:$B$213,0)-1,0)*$H14 -> 6888043.588 | D14: =OFFSET('Distribution (CALC)'!E15,MATCH('Microwave Shipments (CALC)'!$C$6,'Distribution (CALC)'!$B$7:$B$213,0)-1,0)*$H14 -> 5158578.098 | E14: =OFFSET('Distribution (CALC)'!F15,MATCH('Microwave Shipments (CALC)'!$C$6,'Distribution (CALC)'!$B$7:$B$213,0)-1,0)*$H14 -> 2862563.569 | F14: =OFFSET('Distribution (CALC)'!G15,MATCH('Microwave Shipments (CALC)'!$C$6,'Distribution (CALC)'!$B$7:$B$213,0)-1,0)*$H14 -> 0 | G14: =OFFSET('Distribution (CALC)'!H15,MATCH('Microwave Shipments (CALC)'!$C$6,'Distribution (CALC)'!$B$7:$B$213,0)-1,0)*$H14 -> 0 | H14: 14909185.26 | I14: =OFFSET('Distribution (CALC)'!D15,MATCH('Microwave Shipments (CALC)'!$I$6,'Distribution (CALC)'!$B$7:$B$213,0)-1,0)*$N14 -> 6888043.588 | J14: =OFFSET('Distribution (CALC)'!E15,MATCH('Microwave Shipments (CALC)'!$I$6,'Distribution (CALC)'!$B$7:$B$213,0)-1,0)*$N14 -> 5158578.098 | K14: =OFFSET('Distribution (CALC)'!F15,MATCH('Microwave Shipments (CALC)'!$I$6,'Distribution (CALC)'!$B$7:$B$213,0)-1,0)*$N14 -> 2862563.569 | L14: =OFFSET('Distribution (CALC)'!G15,MATCH('Microwave Shipments (CALC)'!$I$6,'Distribution (CALC)'!$B$7:$B$213,0)-1,0)*$N14 -> 0 | M14: =OFFSET('Distribution (CALC)'!H15,MATCH('Microwave Shipments (CALC)'!$I$6,'Distribution (CALC)'!$B$7:$B$213,0)-1,0)*$N14 -> 0 | N14: 14909185.26 | O14: =OFFSET('Distribution (CALC)'!D15,MATCH('Microwave Shipments (CALC)'!$O$6,'Distribution (CALC)'!$B$7:$B$213,0)-1,0)*$T14 -> 6888043.588 | P14: =OFFSET('Distribution (CALC)'!E15,MATCH('Microwave Shipments (CALC)'!$O$6,'Distribution (CALC)'!$B$7:$B$213,0)-1,0)*$T14 -> 5158578.098 | Q14: =OFFSET('Distribution (CALC)'!F15,MATCH('Microwave Shipments (CALC)'!$O$6,'Distribution (CALC)'!$B$7:$B$213,0)-1,0)*$T14 -> 2862563.569 | R14: =OFFSET('Distribution (CALC)'!G15,MATCH('Microwave Shipments (CALC)'!$O$6,'Distribution (CALC)'!$B$7:$B$213,0)-1,0)*$T14 -> 0 | S14: =OFFSET('Distribution (CALC)'!H15,MATCH('Microwave Shipments (CALC)'!$O$6,'Distribution (CALC)'!$B$7:$B$213,0)-1,0)*$T14 -> 0 | T14: 14909185.26 | U14: =OFFSET('Distribution (CALC)'!D15,MATCH('Microwave Shipments (CALC)'!$U$6,'Distribution (CALC)'!$B$7:$B$213,0)-1,0)*$Z14 -> 6888043.588 | V14: =OFFSET('Distribution (CALC)'!E15,MATCH('Microwave Shipments (CALC)'!$U$6,'Distribution (CALC)'!$B$7:$B$213,0)-1,0)*$Z14 -> 5158578.098 | W14: =OFFSET('Distribution (CALC)'!F15,MATCH('Microwave Shipments (CALC)'!$U$6,'Distribution (CALC)'!$B$7:$B$213,0)-1,0)*$Z14 -> 2862563.569 | X14: =OFFSET('Distribution (CALC)'!G15,MATCH('Microwave Shipments (CALC)'!$U$6,'Distribution (CALC)'!$B$7:$B$213,0)-1,0)*$Z14 -> 0 | Y14: =OFFSET('Distribution (CALC)'!H15,MATCH('Microwave Shipments (CALC)'!$U$6,'Distribution (CALC)'!$B$7:$B$213,0)-1,0)*$Z14 -> 0 | Z14: 14909185.26 | AA14: =OFFSET('Distribution (CALC)'!D15,MATCH('Microwave Shipments (CALC)'!$AA$6,'Distribution (CALC)'!$B$7:$B$213,0)-1,0)*$AF14 -> 6888043.588 | AB14: =OFFSET('Distribution (CALC)'!E15,MATCH('Microwave Shipments (CALC)'!$AA$6,'Distribution (CALC)'!$B$7:$B$213,0)-1,0)*$AF14 -> 5158578.098 | AC14: =OFFSET('Distribution (CALC)'!F15,MATCH('Microwave Shipments (CALC)'!$AA$6,'Distribution (CALC)'!$B$7:$B$213,0)-1,0)*$AF14 -> 2862563.569 | AD14: =OFFSET('Distribution (CALC)'!G15,MATCH('Microwave Shipments (CALC)'!$AA$6,'Distribution (CALC)'!$B$7:$B$213,0)-1,0)*$AF14 -> 0 | AE14: =OFFSET('Distribution (CALC)'!H15,MATCH('Microwave Shipments (CALC)'!$AA$6,'Distribution (CALC)'!$B$7:$B$213,0)-1,0)*$AF14 -> 0 | AF14: 14909185.26
B15: 2013 | C15: =OFFSET('Distribution (CALC)'!D16,MATCH('Microwave Shipments (CALC)'!$C$6,'Distribution (CALC)'!$B$7:$B$213,0)-1,0)*$H15 -> 6954741.44 | D15: =OFFSET('Distribution (CALC)'!E16,MATCH('Microwave Shipments (CALC)'!$C$6,'Distribution (CALC)'!$B$7:$B$213,0)-1,0)*$H15 -> 5208529.304 | E15: =OFFSET('Distribution (CALC)'!F16,MATCH('Microwave Shipments (CALC)'!$C$6,'Distribution (CALC)'!$B$7:$B$213,0)-1,0)*$H15 -> 2890282.157 | F15: =OFFSET('Distribution (CALC)'!G16,MATCH('Microwave Shipments (CALC)'!$C$6,'Distribution (CALC)'!$B$7:$B$213,0)-1,0)*$H15 -> 0 | G15: =OFFSET('Distribution (CALC)'!H16,MATCH('Microwave Shipments (CALC)'!$C$6,'Distribution (CALC)'!$B$7:$B$213,0)-1,0)*$H15 -> 0 | H15: 15053552.9 | I15: =OFFSET('Distribution (CALC)'!D16,MATCH('Microwave Shipments (CALC)'!$I$6,'Distribution (CALC)'!$B$7:$B$213,0)-1,0)*$N15 -> 6954741.44 | J15: =OFFSET('Distribution (CALC)'!E16,MATCH('Microwave Shipments (CALC)'!$I$6,'Distribution (CALC)'!$B$7:$B$213,0)-1,0)*$N15 -> 5208529.304 | K15: =OFFSET('Distribution (CALC)'!F16,MATCH('Microwave Shipments (CALC)'!$I$6,'Distribution (CALC)'!$B$7:$B$213,0)-1,0)*$N15 -> 2890282.157 | L15: =OFFSET('Distribution (CALC)'!G16,MATCH('Microwave Shipments (CALC)'!$I$6,'Distribution (CALC)'!$B$7:$B$213,0)-1,0)*$N15 -> 0 | M15: =OFFSET('Distribution (CALC)'!H16,MATCH('Microwave Shipments (CALC)'!$I$6,'Distribution (CALC)'!$B$7:$B$213,0)-1,0)*$N15 -> 0 | N15: 15053552.9 | O15: =OFFSET('Distribution (CALC)'!D16,MATCH('Microwave Shipments (CALC)'!$O$6,'Distribution (CALC)'!$B$7:$B$213,0)-1,0)*$T15 -> 6954741.44 | P15: =OFFSET('Distribution (CALC)'!E16,MATCH('Microwave Shipments (CALC)'!$O$6,'Distribution (CALC)'!$B$7:$B$213,0)-1,0)*$T15 -> 5208529.304 | Q15: =OFFSET('Distribution (CALC)'!F16,MATCH('Microwave Shipments (CALC)'!$O$6,'Distribution (CALC)'!$B$7:$B$213,0)-1,0)*$T15 -> 2890282.157 | R15: =OFFSET('Distribution (CALC)'!G16,MATCH('Microwave Shipments (CALC)'!$O$6,'Distribution (CALC)'!$B$7:$B$213,0)-1,0)*$T15 -> 0 | S15: =OFFSET('Distribution (CALC)'!H16,MATCH('Microwave Shipments (CALC)'!$O$6,'Distribution (CALC)'!$B$7:$B$213,0)-1,0)*$T15 -> 0 | T15: 15053552.9 | U15: =OFFSET('Distribution (CALC)'!D16,MATCH('Microwave Shipments (CALC)'!$U$6,'Distribution (CALC)'!$B$7:$B$213,0)-1,0)*$Z15 -> 6954741.44 | V15: =OFFSET('Distribution (CALC)'!E16,MATCH('Microwave Shipments (CALC)'!$U$6,'Distribution (CALC)'!$B$7:$B$213,0)-1,0)*$Z15 -> 5208529.304 | W15: =OFFSET('Distribution (CALC)'!F16,MATCH('Microwave Shipments (CALC)'!$U$6,'Distribution (CALC)'!$B$7:$B$213,0)-1,0)*$Z15 -> 2890282.157 | X15: =OFFSET('Distribution (CALC)'!G16,MATCH('Microwave Shipments (CALC)'!$U$6,'Distribution (CALC)'!$B$7:$B$213,0)-1,0)*$Z15 -> 0 | Y15: =OFFSET('Distribution (CALC)'!H16,MATCH('Microwave Shipments (CALC)'!$U$6,'Distribution (CALC)'!$B$7:$B$213,0)-1,0)*$Z15 -> 0 | Z15: 15053552.9 | AA15: =OFFSET('Distribution (CALC)'!D16,MATCH('Microwave Shipments (CALC)'!$AA$6,'Distribution (CALC)'!$B$7:$B$213,0)-1,0)*$AF15 -> 6954741.44 | AB15: =OFFSET('Distribution (CALC)'!E16,MATCH('Microwave Shipments (CALC)'!$AA$6,'Distribution (CALC)'!$B$7:$B$213,0)-1,0)*$AF15 -> 5208529.304 | AC15: =OFFSET('Distribution (CALC)'!F16,MATCH('Microwave Shipments (CALC)'!$AA$6,'Distribution (CALC)'!$B$7:$B$213,0)-1,0)*$AF15 -> 2890282.157 | AD15: =OFFSET('Distribution (CALC)'!G16,MATCH('Microwave Shipments (CALC)'!$AA$6,'Distribution (CALC)'!$B$7:$B$213,0)-1,0)*$AF15 -> 0 | AE15: =OFFSET('Distribution (CALC)'!H16,MATCH('Microwave Shipments (CALC)'!$AA$6,'Distribution (CALC)'!$B$7:$B$213,0)-1,0)*$AF15 -> 0 | AF15: 15053552.9
B16: 2014 | C16: =OFFSET('Distribution (CALC)'!D17,MATCH('Microwave Shipments (CALC)'!$C$6,'Distribution (CALC)'!$B$7:$B$213,0)-1,0)*$H16 -> 6931827.655 | D16: =OFFSET('Distribution (CALC)'!E17,MATCH('Microwave Shipments (CALC)'!$C$6,'Distribution (CALC)'!$B$7:$B$213,0)-1,0)*$H16 -> 5191368.763 | E16: =OFFSET('Distribution (CALC)'!F17,MATCH('Microwave Shipments (CALC)'!$C$6,'Distribution (CALC)'!$B$7:$B$213,0)-1,0)*$H16 -> 2880759.545 | F16: =OFFSET('Distribution (CALC)'!G17,MATCH('Microwave Shipments (CALC)'!$C$6,'Distribution (CALC)'!$B$7:$B$213,0)-1,0)*$H16 -> 0 | G16: =OFFSET('Distribution (CALC)'!H17,MATCH('Microwave Shipments (CALC)'!$C$6,'Distribution (CALC)'!$B$7:$B$213,0)-1,0)*$H16 -> 0 | H16: 15003955.96 | I16: =OFFSET('Distribution (CALC)'!D17,MATCH('Microwave Shipments (CALC)'!$I$6,'Distribution (CALC)'!$B$7:$B$213,0)-1,0)*$N16 -> 0 | J16: =OFFSET('Distribution (CALC)'!E17,MATCH('Microwave Shipments (CALC)'!$I$6,'Distribution (CALC)'!$B$7:$B$213,0)-1,0)*$N16 -> 12120166.88 | K16: =OFFSET('Distribution (CALC)'!F17,MATCH('Microwave Shipments (CALC)'!$I$6,'Distribution (CALC)'!$B$7:$B$213,0)-1,0)*$N16 -> 2880039.654 | L16: =OFFSET('Distribution (CALC)'!G17,MATCH('Microwave Shipments (CALC)'!$I$6,'Distribution (CALC)'!$B$7:$B$213,0)-1,0)*$N16 -> 0 | M16: =OFFSET('Distribution (CALC)'!H17,MATCH('Microwave Shipments (CALC)'!$I$6,'Distribution (CALC)'!$B$7:$B$213,0)-1,0)*$N16 -> 0 | N16: 15000206.53 | O16: =OFFSET('Distribution (CALC)'!D17,MATCH('Microwave Shipments (CALC)'!$O$6,'Distribution (CALC)'!$B$7:$B$213,0)-1,0)*$T16 -> 0 | P16: =OFFSET('Distribution (CALC)'!E17,MATCH('Microwave Shipments (CALC)'!$O$6,'Distribution (CALC)'!$B$7:$B$213,0)-1,0)*$T16 -> 0 | Q16: =OFFSET('Distribution (CALC)'!F17,MATCH('Microwave Shipments (CALC)'!$O$6,'Distribution (CALC)'!$B$7:$B$213,0)-1,0)*$T16 -> 14991193.7 | R16: =OFFSET('Distribution (CALC)'!G17,MATCH('Microwave Shipments (CALC)'!$O$6,'Distribution (CALC)'!$B$7:$B$213,0)-1,0)*$T16 -> 0 | S16: =OFFSET('Distribution (CALC)'!H17,MATCH('Microwave Shipments (CALC)'!$O$6,'Distribution (CALC)'!$B$7:$B$213,0)-1,0)*$T16 -> 0 | T16: 14991193.7 | U16: =OFFSET('Distribution (CALC)'!D17,MATCH('Microwave Shipments (CALC)'!$U$6,'Distribution (CALC)'!$B$7:$B$213,0)-1,0)*$Z16 -> 0 | V16: =OFFSET('Distribution (CALC)'!E17,MATCH('Microwave Shipments (CALC)'!$U$6,'Distribution (CALC)'!$B$7:$B$213,0)-1,0)*$Z16 -> 0 | W16: =OFFSET('Distribution (CALC)'!F17,MATCH('Microwave Shipments (CALC)'!$U$6,'Distribution (CALC)'!$B$7:$B$213,0)-1,0)*$Z16 -> 0 | X16: =OFFSET('Distribution (CALC)'!G17,MATCH('Microwave Shipments (CALC)'!$U$6,'Distribution (CALC)'!$B$7:$B$213,0)-1,0)*$Z16 -> 14966735.4 | Y16: =OFFSET('Distribution (CALC)'!H17,MATCH('Microwave Shipments (CALC)'!$U$6,'Distribution (CALC)'!$B$7:$B$213,0)-1,0)*$Z16 -> 0 | Z16: 14966735.4 | AA16: =OFFSET('Distribution (CALC)'!D17,MATCH('Microwave Shipments (CALC)'!$AA$6,'Distribution (CALC)'!$B$7:$B$213,0)-1,0)*$AF16 -> 0 | AB16: =OFFSET('Distribution (CALC)'!E17,MATCH('Microwave Shipments (CALC)'!$AA$6,'Distribution (CALC)'!$B$7:$B$213,0)-1,0)*$AF16 -> 0 | AC16: =OFFSET('Distribution (CALC)'!F17,MATCH('Microwave Shipments (CALC)'!$AA$6,'Distribution (CALC)'!$B$7:$B$213,0)-1,0)*$AF16 -> 0 | AD16: =OFFSET('Distribution (CALC)'!G17,MATCH('Microwave Shipments (CALC)'!$AA$6,'Distribution (CALC)'!$B$7:$B$213,0)-1,0)*$AF16 -> 0 | AE16: =OFFSET('Distribution (CALC)'!H17,MATCH('Microwave Shipments (CALC)'!$AA$6,'Distribution (CALC)'!$B$7:$B$213,0)-1,0)*$AF16 -> 14854079.5 | AF16: 14854079.5
B17: 2015 | C17: =OFFSET('Distribution (CALC)'!D18,MATCH('Microwave Shipments (CALC)'!$C$6,'Distribution (CALC)'!$B$7:$B$213,0)-1,0)*$H17 -> 6820326.673 | D17: =OFFSET('Distribution (CALC)'!E18,MATCH('Microwave Shipments (CALC)'!$C$6,'Distribution (CALC)'!$B$7:$B$213,0)-1,0)*$H17 -> 5107863.699 | E17: =OFFSET('Distribution (CALC)'!F18,MATCH('Microwave Shipments (CALC)'!$C$6,'Distribution (CALC)'!$B$7:$B$213,0)-1,0)*$H17 -> 2834421.474 | F17: =OFFSET('Distribution (CALC)'!G18,MATCH('Microwave Shipments (CALC)'!$C$6,'Distribution (CALC)'!$B$7:$B$213,0)-1,0)*$H17 -> 0 | G17: =OFFSET('Distribution (CALC)'!H18,MATCH('Microwave Shipments (CALC)'!$C$6,'Distribution (CALC)'!$B$7:$B$213,0)-1,0)*$H17 -> 0 | H17: 14762611.85 | I17: =OFFSET('Distribution (CALC)'!D18,MATCH('Microwave Shipments (CALC)'!$I$6,'Distribution (CALC)'!$B$7:$B$213,0)-1,0)*$N17 -> 0 | J17: =OFFSET('Distribution (CALC)'!E18,MATCH('Microwave Shipments (CALC)'!$I$6,'Distribution (CALC)'!$B$7:$B$213,0)-1,0)*$N17 -> 11925891.28 | K17: =OFFSET('Distribution (CALC)'!F18,MATCH('Microwave Shipments (CALC)'!$I$6,'Distribution (CALC)'!$B$7:$B$213,0)-1,0)*$N17 -> 2833875.156 | L17: =OFFSET('Distribution (CALC)'!G18,MATCH('Microwave Shipments (CALC)'!$I$6,'Distribution (CALC)'!$B$7:$B$213,0)-1,0)*$N17 -> 0 | M17: =OFFSET('Distribution (CALC)'!H18,MATCH('Microwave Shipments (CALC)'!$I$6,'Distribution (CALC)'!$B$7:$B$213,0)-1,0)*$N17 -> 0 | N17: 14759766.44 | O17: =OFFSET('Distribution (CALC)'!D18,MATCH('Microwave Shipments (CALC)'!$O$6,'Distribution (CALC)'!$B$7:$B$213,0)-1,0)*$T17 -> 0 | P17: =OFFSET('Distribution (CALC)'!E18,MATCH('Microwave Shipments (CALC)'!$O$6,'Distribution (CALC)'!$B$7:$B$213,0)-1,0)*$T17 -> 0 | Q17: =OFFSET('Distribution (CALC)'!F18,MATCH('Microwave Shipments (CALC)'!$O$6,'Distribution (CALC)'!$B$7:$B$213,0)-1,0)*$T17 -> 14752914.59 | R17: =OFFSET('Distribution (CALC)'!G18,MATCH('Microwave Shipments (CALC)'!$O$6,'Distribution (CALC)'!$B$7:$B$213,0)-1,0)*$T17 -> 0 | S17: =OFFSET('Distribution (CALC)'!H18,MATCH('Microwave Shipments (CALC)'!$O$6,'Distribution (CALC)'!$B$7:$B$213,0)-1,0)*$T17 -> 0 | T17: 14752914.59 | U17: =OFFSET('Distribution (CALC)'!D18,MATCH('Microwave Shipments (CALC)'!$U$6,'Distribution (CALC)'!$B$7:$B$213,0)-1,0)*$Z17 -> 0 | V17: =OFFSET('Distribution (CALC)'!E18,MATCH('Microwave Shipments (CALC)'!$U$6,'Distribution (CALC)'!$B$7:$B$213,0)-1,0)*$Z17 -> 0 | W17: =OFFSET('Distribution (CALC)'!F18,MATCH('Microwave Shipments (CALC)'!$U$6,'Distribution (CALC)'!$B$7:$B$213,0)-1,0)*$Z17 -> 0 | X17: =OFFSET('Distribution (CALC)'!G18,MATCH('Microwave Shipments (CALC)'!$U$6,'Distribution (CALC)'!$B$7:$B$213,0)-1,0)*$Z17 -> 14734316.64 | Y17: =OFFSET('Distribution (CALC)'!H18,MATCH('Microwave Shipments (CALC)'!$U$6,'Distribution (CALC)'!$B$7:$B$213,0)-1,0)*$Z17 -> 0 | Z17: 14734316.64 | AA17: =OFFSET('Distribution (CALC)'!D18,MATCH('Microwave Shipments (CALC)'!$AA$6,'Distribution (CALC)'!$B$7:$B$213,0)-1,0)*$AF17 -> 0 | AB17: =OFFSET('Distribution (CALC)'!E18,MATCH('Microwave Shipments (CALC)'!$AA$6,'Distribution (CALC)'!$B$7:$B$213,0)-1,0)*$AF17 -> 0 | AC17: =OFFSET('Distribution (CALC)'!F18,MATCH('Microwave Shipments (CALC)'!$AA$6,'Distribution (CALC)'!$B$7:$B$213,0)-1,0)*$AF17 -> 0 | AD17: =OFFSET('Distribution (CALC)'!G18,MATCH('Microwave Shipments (CALC)'!$AA$6,'Distribution (CALC)'!$B$7:$B$213,0)-1,0)*$AF17 -> 0 | AE17: =OFFSET('Distribution (CALC)'!H18,MATCH('Microwave Shipments (CALC)'!$AA$6,'Distribution (CALC)'!$B$7:$B$213,0)-1,0)*$AF17 -> 14648644.93 | AF17: 14648644.93
B18: 2016 | C18: =OFFSET('Distribution (CALC)'!D19,MATCH('Microwave Shipments (CALC)'!$C$6,'Distribution (CALC)'!$B$7:$B$213,0)-1,0)*$H18 -> 6573348.446 | D18: =OFFSET('Distribution (CALC)'!E19,MATCH('Microwave Shipments (CALC)'!$C$6,'Distribution (CALC)'!$B$7:$B$213,0)-1,0)*$H18 -> 4922897.321 | E18: =OFFSET('Distribution (CALC)'!F19,MATCH('Microwave Shipments (CALC)'!$C$6,'Distribution (CALC)'!$B$7:$B$213,0)-1,0)*$H18 -> 2731781.172 | F18: =OFFSET('Distribution (CALC)'!G19,MATCH('Microwave Shipments (CALC)'!$C$6,'Distribution (CALC)'!$B$7:$B$213,0)-1,0)*$H18 -> 0 | G18: =OFFSET('Distribution (CALC)'!H19,MATCH('Microwave Shipments (CALC)'!$C$6,'Distribution (CALC)'!$B$7:$B$213,0)-1,0)*$H18 -> 0 | H18: 14228026.94 | I18: =OFFSET('Distribution (CALC)'!D19,MATCH('Microwave Shipments (CALC)'!$I$6,'Distribution (CALC)'!$B$7:$B$213,0)-1,0)*$N18 -> 0 | J18: =OFFSET('Distribution (CALC)'!E19,MATCH('Microwave Shipments (CALC)'!$I$6,'Distribution (CALC)'!$B$7:$B$213,0)-1,0)*$N18 -> 11494462.31 | K18: =OFFSET('Distribution (CALC)'!F19,MATCH('Microwave Shipments (CALC)'!$I$6,'Distribution (CALC)'!$B$7:$B$213,0)-1,0)*$N18 -> 2731357.38 | L18: =OFFSET('Distribution (CALC)'!G19,MATCH('Microwave Shipments (CALC)'!$I$6,'Distribution (CALC)'!$B$7:$B$213,0)-1,0)*$N18 -> 0 | M18: =OFFSET('Distribution (CALC)'!H19,MATCH('Microwave Shipments (CALC)'!$I$6,'Distribution (CALC)'!$B$7:$B$213,0)-1,0)*$N18 -> 0 | N18: 14225819.69 | O18: =OFFSET('Distribution (CALC)'!D19,MATCH('Microwave Shipments (CALC)'!$O$6,'Distribution (CALC)'!$B$7:$B$213,0)-1,0)*$T18 -> 0 | P18: =OFFSET('Distribution (CALC)'!E19,MATCH('Microwave Shipments (CALC)'!$O$6,'Distribution (CALC)'!$B$7:$B$213,0)-1,0)*$T18 -> 0 | Q18: =OFFSET('Distribution (CALC)'!F19,MATCH('Microwave Shipments (CALC)'!$O$6,'Distribution (CALC)'!$B$7:$B$213,0)-1,0)*$T18 -> 14220489.75 | R18: =OFFSET('Distribution (CALC)'!G19,MATCH('Microwave Shipments (CALC)'!$O$6,'Distribution (CALC)'!$B$7:$B$213,0)-1,0)*$T18 -> 0 | S18: =OFFSET('Distribution (CALC)'!H19,MATCH('Microwave Shipments (CALC)'!$O$6,'Distribution (CALC)'!$B$7:$B$213,0)-1,0)*$T18 -> 0 | T18: 14220489.75 | U18: =OFFSET('Distribution (CALC)'!D19,MATCH('Microwave Shipments (CALC)'!$U$6,'Distribution (CALC)'!$B$7:$B$213,0)-1,0)*$Z18 -> 0 | V18: =OFFSET('Distribution (CALC)'!E19,MATCH('Microwave Shipments (CALC)'!$U$6,'Distribution (CALC)'!$B$7:$B$213,0)-1,0)*$Z18 -> 0 | W18: =OFFSET('Distribution (CALC)'!F19,MATCH('Microwave Shipments (CALC)'!$U$6,'Distribution (CALC)'!$B$7:$B$213,0)-1,0)*$Z18 -> 0 | X18: =OFFSET('Distribution (CALC)'!G19,MATCH('Microwave Shipments (CALC)'!$U$6,'Distribution (CALC)'!$B$7:$B$213,0)-1,0)*$Z18 -> 14206017.89 | Y18: =OFFSET('Distribution (CALC)'!H19,MATCH('Microwave Shipments (CALC)'!$U$6,'Distribution (CALC)'!$B$7:$B$213,0)-1,0)*$Z18 -> 0 | Z18: 14206017.89 | AA18: =OFFSET('Distribution (CALC)'!D19,MATCH('Microwave Shipments (CALC)'!$AA$6,'Distribution (CALC)'!$B$7:$B$213,0)-1,0)*$AF18 -> 0 | AB18: =OFFSET('Distribution (CALC)'!E19,MATCH('Microwave Shipments (CALC)'!$AA$6,'Distribution (CALC)'!$B$7:$B$213,0)-1,0)*$AF18 -> 0 | AC18: =OFFSET('Distribution (CALC)'!F19,MATCH('Microwave Shipments (CALC)'!$AA$6,'Distribution (CALC)'!$B$7:$B$213,0)-1,0)*$AF18 -> 0 | AD18: =OFFSET('Distribution (CALC)'!G19,MATCH('Microwave Shipments (CALC)'!$AA$6,'Distribution (CALC)'!$B$7:$B$213,0)-1,0)*$AF18 -> 0 | AE18: =OFFSET('Distribution (CALC)'!H19,MATCH('Microwave Shipments (CALC)'!$AA$6,'Distribution (CALC)'!$B$7:$B$213,0)-1,0)*$AF18 -> 14139342.35 | AF18: 14139342.35
B19: 2017 | C19: =OFFSET('Distribution (CALC)'!D20,MATCH('Microwave Shipments (CALC)'!$C$6,'Distribution (CALC)'!$B$7:$B$213,0)-1,0)*$H19 -> 6299215.602 | D19: =OFFSET('Distribution (CALC)'!E20,MATCH('Microwave Shipments (CALC)'!$C$6,'Distribution (CALC)'!$B$7:$B$213,0)-1,0)*$H19 -> 4717594.368 | E19: =OFFSET('Distribution (CALC)'!F20,MATCH('Microwave Shipments (CALC)'!$C$6,'Distribution (CALC)'!$B$7:$B$213,0)-1,0)*$H19 -> 2617855.834 | F19: =OFFSET('Distribution (CALC)'!G20,MATCH('Microwave Shipments (CALC)'!$C$6,'Distribution (CALC)'!$B$7:$B$213,0)-1,0)*$H19 -> 0 | G19: =OFFSET('Distribution (CALC)'!H20,MATCH('Microwave Shipments (CALC)'!$C$6,'Distribution (CALC)'!$B$7:$B$213,0)-1,0)*$H19 -> 0 | H19: 13634665.8 | I19: =OFFSET('Distribution (CALC)'!D20,MATCH('Microwave Shipments (CALC)'!$I$6,'Distribution (CALC)'!$B$7:$B$213,0)-1,0)*$N19 -> 0 | J19: =OFFSET('Distribution (CALC)'!E20,MATCH('Microwave Shipments (CALC)'!$I$6,'Distribution (CALC)'!$B$7:$B$213,0)-1,0)*$N19 -> 11015324.4 | K19: =OFFSET('Distribution (CALC)'!F20,MATCH('Microwave Shipments (CALC)'!$I$6,'Distribution (CALC)'!$B$7:$B$213,0)-1,0)*$N19 -> 2617502.827 | L19: =OFFSET('Distribution (CALC)'!G20,MATCH('Microwave Shipments (CALC)'!$I$6,'Distribution (CALC)'!$B$7:$B$213,0)-1,0)*$N19 -> 0 | M19: =OFFSET('Distribution (CALC)'!H20,MATCH('Microwave Shipments (CALC)'!$I$6,'Distribution (CALC)'!$B$7:$B$213,0)-1,0)*$N19 -> 0 | N19: =IF(ShipmentElasticity_Scenario="none",H19,IF(Economic_Scenario="reference",VLOOKUP($B19,MW_Shipments_ReferenceCase,5),IF(Economic_Scenario="high",VLOOKUP($B19,MW_Shipments_ReferenceCase,6),VLOOKUP($B19,MW_Shipments_ReferenceCase,7)))) -> 13632827.22 | O19: =OFFSET('Distribution (CALC)'!D20,MATCH('Microwave Shipments (CALC)'!$O$6,'Distribution (CALC)'!$B$7:$B$213,0)-1,0)*$T19 -> 0 | P19: =OFFSET('Distribution (CALC)'!E20,MATCH('Microwave Shipments (CALC)'!$O$6,'Distribution (CALC)'!$B$7:$B$213,0)-1,0)*$T19 -> 0 | Q19: =OFFSET('Distribution (CALC)'!F20,MATCH('Microwave Shipments (CALC)'!$O$6,'Distribution (CALC)'!$B$7:$B$213,0)-1,0)*$T19 -> 13628376.46 | R19: =OFFSET('Distribution (CALC)'!G20,MATCH('Microwave Shipments (CALC)'!$O$6,'Distribution (CALC)'!$B$7:$B$213,0)-1,0)*$T19 -> 0 | S19: =OFFSET('Distribution (CALC)'!H20,MATCH('Microwave Shipments (CALC)'!$O$6,'Distribution (CALC)'!$B$7:$B$213,0)-1,0)*$T19 -> 0 | T19: 13628376.46 | U19: =OFFSET('Distribution (CALC)'!D20,MATCH('Microwave Shipments (CALC)'!$U$6,'Distribution (CALC)'!$B$7:$B$213,0)-1,0)*$Z19 -> 0 | V19: =OFFSET('Distribution (CALC)'!E20,MATCH('Microwave Shipments (CALC)'!$U$6,'Distribution (CALC)'!$B$7:$B$213,0)-1,0)*$Z19 -> 0 | W19: =OFFSET('Distribution (CALC)'!F20,MATCH('Microwave Shipments (CALC)'!$U$6,'Distribution (CALC)'!$B$7:$B$213,0)-1,0)*$Z19 -> 0 | X19: =OFFSET('Distribution (CALC)'!G20,MATCH('Microwave Shipments (CALC)'!$U$6,'Distribution (CALC)'!$B$7:$B$213,0)-1,0)*$Z19 -> 13616288.12 | Y19: =OFFSET('Distribution (CALC)'!H20,MATCH('Microwave Shipments (CALC)'!$U$6,'Distribution (CALC)'!$B$7:$B$213,0)-1,0)*$Z19 -> 0 | Z19: 13616288.12 | AA19: =OFFSET('Distribution (CALC)'!D20,MATCH('Microwave Shipments (CALC)'!$AA$6,'Distribution (CALC)'!$B$7:$B$213,0)-1,0)*$AF19 -> 0 | AB19: =OFFSET('Distribution (CALC)'!E20,MATCH('Microwave Shipments (CALC)'!$AA$6,'Distribution (CALC)'!$B$7:$B$213,0)-1,0)*$AF19 -> 0 | AC19: =OFFSET('Distribution (CALC)'!F20,MATCH('Microwave Shipments (CALC)'!$AA$6,'Distribution (CALC)'!$B$7:$B$213,0)-1,0)*$AF19 -> 0 | AD19: =OFFSET('Distribution (CALC)'!G20,MATCH('Microwave Shipments (CALC)'!$AA$6,'Distribution (CALC)'!$B$7:$B$213,0)-1,0)*$AF19 -> 0 | AE19: =OFFSET('Distribution (CALC)'!H20,MATCH('Microwave Shipments (CALC)'!$AA$6,'Distribution (CALC)'!$B$7:$B$213,0)-1,0)*$AF19 -> 13560586.23 | AF19: 13560586.23
B20: 2018 | C20: =OFFSET('Distribution (CALC)'!D21,MATCH('Microwave Shipments (CALC)'!$C$6,'Distribution (CALC)'!$B$7:$B$213,0)-1,0)*$H20 -> 6204736.817 | D20: =OFFSET('Distribution (CALC)'!E21,MATCH('Microwave Shipments (CALC)'!$C$6,'Distribution (CALC)'!$B$7:$B$213,0)-1,0)*$H20 -> 4646837.53 | E20: =OFFSET('Distribution (CALC)'!F21,MATCH('Microwave Shipments (CALC)'!$C$6,'Distribution (CALC)'!$B$7:$B$213,0)-1,0)*$H20 -> 2578591.924 | F20: =OFFSET('Distribution (CALC)'!G21,MATCH('Microwave Shipments (CALC)'!$C$6,'Distribution (CALC)'!$B$7:$B$213,0)-1,0)*$H20 -> 0 | G20: =OFFSET('Distribution (CALC)'!H21,MATCH('Microwave Shipments (CALC)'!$C$6,'Distribution (CALC)'!$B$7:$B$213,0)-1,0)*$H20 -> 0 | H20: 13430166.27 | I20: =OFFSET('Distribution (CALC)'!D21,MATCH('Microwave Shipments (CALC)'!$I$6,'Distribution (CALC)'!$B$7:$B$213,0)-1,0)*$N20 -> 0 | J20: =OFFSET('Distribution (CALC)'!E21,MATCH('Microwave Shipments (CALC)'!$I$6,'Distribution (CALC)'!$B$7:$B$213,0)-1,0)*$N20 -> 10850329.25 | K20: =OFFSET('Distribution (CALC)'!F21,MATCH('Microwave Shipments (CALC)'!$I$6,'Distribution (CALC)'!$B$7:$B$213,0)-1,0)*$N20 -> 2578296.06 | L20: =OFFSET('Distribution (CALC)'!G21,MATCH('Microwave Shipments (CALC)'!$I$6,'Distribution (CALC)'!$B$7:$B$213,0)-1,0)*$N20 -> 0 | M20: =OFFSET('Distribution (CALC)'!H21,MATCH('Microwave Shipments (CALC)'!$I$6,'Distribution (CALC)'!$B$7:$B$213,0)-1,0)*$N20 -> 0 | N20: 13428625.31 | O20: =OFFSET('Distribution (CALC)'!D21,MATCH('Microwave Shipments (CALC)'!$O$6,'Distribution (CALC)'!$B$7:$B$213,0)-1,0)*$T20 -> 0 | P20: =OFFSET('Distribution (CALC)'!E21,MATCH('Microwave Shipments (CALC)'!$O$6,'Distribution (CALC)'!$B$7:$B$213,0)-1,0)*$T20 -> 0 | Q20: =OFFSET('Distribution (CALC)'!F21,MATCH('Microwave Shipments (CALC)'!$O$6,'Distribution (CALC)'!$B$7:$B$213,0)-1,0)*$T20 -> 13424888.65 | R20: =OFFSET('Distribution (CALC)'!G21,MATCH('Microwave Shipments (CALC)'!$O$6,'Distribution (CALC)'!$B$7:$B$213,0)-1,0)*$T20 -> 0 | S20: =OFFSET('Distribution (CALC)'!H21,MATCH('Microwave Shipments (CALC)'!$O$6,'Distribution (CALC)'!$B$7:$B$213,0)-1,0)*$T20 -> 0 | T20: 13424888.65 | U20: =OFFSET('Distribution (CALC)'!D21,MATCH('Microwave Shipments (CALC)'!$U$6,'Distribution (CALC)'!$B$7:$B$213,0)-1,0)*$Z20 -> 0 | V20: =OFFSET('Distribution (CALC)'!E21,MATCH('Microwave Shipments (CALC)'!$U$6,'Distribution (CALC)'!$B$7:$B$213,0)-1,0)*$Z20 -> 0 | W20: =OFFSET('Distribution (CALC)'!F21,MATCH('Microwave Shipments (CALC)'!$U$6,'Distribution (CALC)'!$B$7:$B$213,0)-1,0)*$Z20 -> 0 | X20: =OFFSET('Distribution (CALC)'!G21,MATCH('Microwave Shipments (CALC)'!$U$6,'Distribution (CALC)'!$B$7:$B$213,0)-1,0)*$Z20 -> 13414737.79 | Y20: =OFFSET('Distribution (CALC)'!H21,MATCH('Microwave Shipments (CALC)'!$U$6,'Distribution (CALC)'!$B$7:$B$213,0)-1,0)*$Z20 -> 0 | Z20: 13414737.79 | AA20: =OFFSET('Distribution (CALC)'!D21,MATCH('Microwave Shipments (CALC)'!$AA$6,'Distribution (CALC)'!$B$7:$B$213,0)-1,0)*$AF20 -> 0 | AB20: =OFFSET('Distribution (CALC)'!E21,MATCH('Microwave Shipments (CALC)'!$AA$6,'Distribution (CALC)'!$B$7:$B$213,0)-1,0)*$AF20 -> 0 | AC20: =OFFSET('Distribution (CALC)'!F21,MATCH('Microwave Shipments (CALC)'!$AA$6,'Distribution (CALC)'!$B$7:$B$213,0)-1,0)*$AF20 -> 0 | AD20: =OFFSET('Distribution (CALC)'!G21,MATCH('Microwave Shipments (CALC)'!$AA$6,'Distribution (CALC)'!$B$7:$B$213,0)-1,0)*$AF20 -> 0 | AE20: =OFFSET('Distribution (CALC)'!H21,MATCH('Microwave Shipments (CALC)'!$AA$6,'Distribution (CALC)'!$B$7:$B$213,0)-1,0)*$AF20 -> 13367960.32 | AF20: 13367960.32
B21: 2019 | C21: =OFFSET('Distribution (CALC)'!D22,MATCH('Microwave Shipments (CALC)'!$C$6,'Distribution (CALC)'!$B$7:$B$213,0)-1,0)*$H21 -> 6353260.355 | D21: =OFFSET('Distribution (CALC)'!E22,MATCH('Microwave Shipments (CALC)'!$C$6,'Distribution (CALC)'!$B$7:$B$213,0)-1,0)*$H21 -> 4758069.443 | E21: =OFFSET('Distribution (CALC)'!F22,MATCH('Microwave Shipments (CALC)'!$C$6,'Distribution (CALC)'!$B$7:$B$213,0)-1,0)*$H21 -> 2640315.992 | F21: =OFFSET('Distribution (CALC)'!G22,MATCH('Microwave Shipments (CALC)'!$C$6,'Distribution (CALC)'!$B$7:$B$213,0)-1,0)*$H21 -> 0 | G21: =OFFSET('Distribution (CALC)'!H22,MATCH('Microwave Shipments (CALC)'!$C$6,'Distribution (CALC)'!$B$7:$B$213,0)-1,0)*$H21 -> 0 | H21: 13751645.79 | I21: =OFFSET('Distribution (CALC)'!D22,MATCH('Microwave Shipments (CALC)'!$I$6,'Distribution (CALC)'!$B$7:$B$213,0)-1,0)*$N21 -> 0 | J21: =OFFSET('Distribution (CALC)'!E22,MATCH('Microwave Shipments (CALC)'!$I$6,'Distribution (CALC)'!$B$7:$B$213,0)-1,0)*$N21 -> 11110086.52 | K21: =OFFSET('Distribution (CALC)'!F22,MATCH('Microwave Shipments (CALC)'!$I$6,'Distribution (CALC)'!$B$7:$B$213,0)-1,0)*$N21 -> 2640020.559 | L21: =OFFSET('Distribution (CALC)'!G22,MATCH('Microwave Shipments (CALC)'!$I$6,'Distribution (CALC)'!$B$7:$B$213,0)-1,0)*$N21 -> 0 | M21: =OFFSET('Distribution (CALC)'!H22,MATCH('Microwave Shipments (CALC)'!$I$6,'Distribution (CALC)'!$B$7:$B$213,0)-1,0)*$N21 -> 0 | N21: 13750107.08 | O21: =OFFSET('Distribution (CALC)'!D22,MATCH('Microwave Shipments (CALC)'!$O$6,'Distribution (CALC)'!$B$7:$B$213,0)-1,0)*$T21 -> 0 | P21: =OFFSET('Distribution (CALC)'!E22,MATCH('Microwave Shipments (CALC)'!$O$6,'Distribution (CALC)'!$B$7:$B$213,0)-1,0)*$T21 -> 0 | Q21: =OFFSET('Distribution (CALC)'!F22,MATCH('Microwave Shipments (CALC)'!$O$6,'Distribution (CALC)'!$B$7:$B$213,0)-1,0)*$T21 -> 13746371.37 | R21: =OFFSET('Distribution (CALC)'!G22,MATCH('Microwave Shipments (CALC)'!$O$6,'Distribution (CALC)'!$B$7:$B$213,0)-1,0)*$T21 -> 0 | S21: =OFFSET('Distribution (CALC)'!H22,MATCH('Microwave Shipments (CALC)'!$O$6,'Distribution (CALC)'!$B$7:$B$213,0)-1,0)*$T21 -> 0 | T21: 13746371.37 | U21: =OFFSET('Distribution (CALC)'!D22,MATCH('Microwave Shipments (CALC)'!$U$6,'Distribution (CALC)'!$B$7:$B$213,0)-1,0)*$Z21 -> 0 | V21: =OFFSET('Distribution (CALC)'!E22,MATCH('Microwave Shipments (CALC)'!$U$6,'Distribution (CALC)'!$B$7:$B$213,0)-1,0)*$Z21 -> 0 | W21: =OFFSET('Distribution (CALC)'!F22,MATCH('Microwave Shipments (CALC)'!$U$6,'Distribution (CALC)'!$B$7:$B$213,0)-1,0)*$Z21 -> 0 | X21: =OFFSET('Distribution (CALC)'!G22,MATCH('Microwave Shipments (CALC)'!$U$6,'Distribution (CALC)'!$B$7:$B$213,0)-1,0)*$Z21 -> 13736221.88 | Y21: =OFFSET('Distribution (CALC)'!H22,MATCH('Microwave Shipments (CALC)'!$U$6,'Distribution (CALC)'!$B$7:$B$213,0)-1,0)*$Z21 -> 0 | Z21: 13736221.88 | AA21: =OFFSET('Distribution (CALC)'!D22,MATCH('Microwave Shipments (CALC)'!$AA$6,'Distribution (CALC)'!$B$7:$B$213,0)-1,0)*$AF21 -> 0 | AB21: =OFFSET('Distribution (CALC)'!E22,MATCH('Microwave Shipments (CALC)'!$AA$6,'Distribution (CALC)'!$B$7:$B$213,0)-1,0)*$AF21 -> 0 | AC21: =OFFSET('Distribution (CALC)'!F22,MATCH('Microwave Shipments (CALC)'!$AA$6,'Distribution (CALC)'!$B$7:$B$213,0)-1,0)*$AF21 -> 0 | AD21: =OFFSET('Distribution (CALC)'!G22,MATCH('Microwave Shipments (CALC)'!$AA$6,'Distribution (CALC)'!$B$7:$B$213,0)-1,0)*$AF21 -> 0 | AE21: =OFFSET('Distribution (CALC)'!H22,MATCH('Microwave Shipments (CALC)'!$AA$6,'Distribution (CALC)'!$B$7:$B$213,0)-1,0)*$AF21 -> 13689451.93 | AF21: 13689451.93
B22: 2020 | C22: =OFFSET('Distribution (CALC)'!D23,MATCH('Microwave Shipments (CALC)'!$C$6,'Distribution (CALC)'!$B$7:$B$213,0)-1,0)*$H22 -> 6681971.45 | D22: =OFFSET('Distribution (CALC)'!E23,MATCH('Microwave Shipments (CALC)'!$C$6,'Distribution (CALC)'!$B$7:$B$213,0)-1,0)*$H22 -> 5004247.017 | E22: =OFFSET('Distribution (CALC)'!F23,MATCH('Microwave Shipments (CALC)'!$C$6,'Distribution (CALC)'!$B$7:$B$213,0)-1,0)*$H22 -> 2776923.2 | F22: =OFFSET('Distribution (CALC)'!G23,MATCH('Microwave Shipments (CALC)'!$C$6,'Distribution (CALC)'!$B$7:$B$213,0)-1,0)*$H22 -> 0 | G22: =OFFSET('Distribution (CALC)'!H23,MATCH('Microwave Shipments (CALC)'!$C$6,'Distribution (CALC)'!$B$7:$B$213,0)-1,0)*$H22 -> 0 | H22: 14463141.67 | I22: =OFFSET('Distribution (CALC)'!D23,MATCH('Microwave Shipments (CALC)'!$I$6,'Distribution (CALC)'!$B$7:$B$213,0)-1,0)*$N22 -> 0 | J22: =OFFSET('Distribution (CALC)'!E23,MATCH('Microwave Shipments (CALC)'!$I$6,'Distribution (CALC)'!$B$7:$B$213,0)-1,0)*$N22 -> 11684892.82 | K22: =OFFSET('Distribution (CALC)'!F23,MATCH('Microwave Shipments (CALC)'!$I$6,'Distribution (CALC)'!$B$7:$B$213,0)-1,0)*$N22 -> 2776608.194 | L22: =OFFSET('Distribution (CALC)'!G23,MATCH('Microwave Shipments (CALC)'!$I$6,'Distribution (CALC)'!$B$7:$B$213,0)-1,0)*$N22 -> 0 | M22: =OFFSET('Distribution (CALC)'!H23,MATCH('Microwave Shipments (CALC)'!$I$6,'Distribution (CALC)'!$B$7:$B$213,0)-1,0)*$N22 -> 0 | N22: 14461501.01 | O22: =OFFSET('Distribution (CALC)'!D23,MATCH('Microwave Shipments (CALC)'!$O$6,'Distribution (CALC)'!$B$7:$B$213,0)-1,0)*$T22 -> 0 | P22: =OFFSET('Distribution (CALC)'!E23,MATCH('Microwave Shipments (CALC)'!$O$6,'Distribution (CALC)'!$B$7:$B$213,0)-1,0)*$T22 -> 0 | Q22: =OFFSET('Distribution (CALC)'!F23,MATCH('Microwave Shipments (CALC)'!$O$6,'Distribution (CALC)'!$B$7:$B$213,0)-1,0)*$T22 -> 14457510.86 | R22: =OFFSET('Distribution (CALC)'!G23,MATCH('Microwave Shipments (CALC)'!$O$6,'Distribution (CALC)'!$B$7:$B$213,0)-1,0)*$T22 -> 0 | S22: =OFFSET('Distribution (CALC)'!H23,MATCH('Microwave Shipments (CALC)'!$O$6,'Distribution (CALC)'!$B$7:$B$213,0)-1,0)*$T22 -> 0 | T22: 14457510.86 | U22: =OFFSET('Distribution (CALC)'!D23,MATCH('Microwave Shipments (CALC)'!$U$6,'Distribution (CALC)'!$B$7:$B$213,0)-1,0)*$Z22 -> 0 | V22: =OFFSET('Distribution (CALC)'!E23,MATCH('Microwave Shipments (CALC)'!$U$6,'Distribution (CALC)'!$B$7:$B$213,0)-1,0)*$Z22 -> 0 | W22: =OFFSET('Distribution (CALC)'!F23,MATCH('Microwave Shipments (CALC)'!$U$6,'Distribution (CALC)'!$B$7:$B$213,0)-1,0)*$Z22 -> 0 | X22: =OFFSET('Distribution (CALC)'!G23,MATCH('Microwave Shipments (CALC)'!$U$6,'Distribution (CALC)'!$B$7:$B$213,0)-1,0)*$Z22 -> 14446668.36 | Y22: =OFFSET('Distribution (CALC)'!H23,MATCH('Microwave Shipments (CALC)'!$U$6,'Distribution (CALC)'!$B$7:$B$213,0)-1,0)*$Z22 -> 0 | Z22: 14446668.36 | AA22: =OFFSET('Distribution (CALC)'!D23,MATCH('Microwave Shipments (CALC)'!$AA$6,'Distribution (CALC)'!$B$7:$B$213,0)-1,0)*$AF22 -> 0 | AB22: =OFFSET('Distribution (CALC)'!E23,MATCH('Microwave Shipments (CALC)'!$AA$6,'Distribution (CALC)'!$B$7:$B$213,0)-1,0)*$AF22 -> 0 | AC22: =OFFSET('Distribution (CALC)'!F23,MATCH('Microwave Shipments (CALC)'!$AA$6,'Distribution (CALC)'!$B$7:$B$213,0)-1,0)*$AF22 -> 0 | AD22: =OFFSET('Distribution (CALC)'!G23,MATCH('Microwave Shipments (CALC)'!$AA$6,'Distribution (CALC)'!$B$7:$B$213,0)-1,0)*$AF22 -> 0 | AE22: =OFFSET('Distribution (CALC)'!H23,MATCH('Microwave Shipments (CALC)'!$AA$6,'Distribution (CALC)'!$B$7:$B$213,0)-1,0)*$AF22 -> 14396710.91 | AF22: 14396710.91
B23: 2021 | C23: =OFFSET('Distribution (CALC)'!D24,MATCH('Microwave Shipments (CALC)'!$C$6,'Distribution (CALC)'!$B$7:$B$213,0)-1,0)*$H23 -> 7016226.47 | D23: =OFFSET('Distribution (CALC)'!E24,MATCH('Microwave Shipments (CALC)'!$C$6,'Distribution (CALC)'!$B$7:$B$213,0)-1,0)*$H23 -> 5254576.534 | E23: =OFFSET('Distribution (CALC)'!F24,MATCH('Microwave Shipments (CALC)'!$C$6,'Distribution (CALC)'!$B$7:$B$213,0)-1,0)*$H23 -> 2915834.377 | F23: =OFFSET('Distribution (CALC)'!G24,MATCH('Microwave Shipments (CALC)'!$C$6,'Distribution (CALC)'!$B$7:$B$213,0)-1,0)*$H23 -> 0 | G23: =OFFSET('Distribution (CALC)'!H24,MATCH('Microwave Shipments (CALC)'!$C$6,'Distribution (CALC)'!$B$7:$B$213,0)-1,0)*$H23 -> 0 | H23: 15186637.38 | I23: =OFFSET('Distribution (CALC)'!D24,MATCH('Microwave Shipments (CALC)'!$I$6,'Distribution (CALC)'!$B$7:$B$213,0)-1,0)*$N23 -> 0 | J23: =OFFSET('Distribution (CALC)'!E24,MATCH('Microwave Shipments (CALC)'!$I$6,'Distribution (CALC)'!$B$7:$B$213,0)-1,0)*$N23 -> 12269298.05 | K23: =OFFSET('Distribution (CALC)'!F24,MATCH('Microwave Shipments (CALC)'!$I$6,'Distribution (CALC)'!$B$7:$B$213,0)-1,0)*$N23 -> 2915476.764 | L23: =OFFSET('Distribution (CALC)'!G24,MATCH('Microwave Shipments (CALC)'!$I$6,'Distribution (CALC)'!$B$7:$B$213,0)-1,0)*$N23 -> 0 | M23: =OFFSET('Distribution (CALC)'!H24,MATCH('Microwave Shipments (CALC)'!$I$6,'Distribution (CALC)'!$B$7:$B$213,0)-1,0)*$N23 -> 0 | N23: 15184774.81 | O23: =OFFSET('Distribution (CALC)'!D24,MATCH('Microwave Shipments (CALC)'!$O$6,'Distribution (CALC)'!$B$7:$B$213,0)-1,0)*$T23 -> 0 | P23: =OFFSET('Distribution (CALC)'!E24,MATCH('Microwave Shipments (CALC)'!$O$6,'Distribution (CALC)'!$B$7:$B$213,0)-1,0)*$T23 -> 0 | Q23: =OFFSET('Distribution (CALC)'!F24,MATCH('Microwave Shipments (CALC)'!$O$6,'Distribution (CALC)'!$B$7:$B$213,0)-1,0)*$T23 -> 15180241.46 | R23: =OFFSET('Distribution (CALC)'!G24,MATCH('Microwave Shipments (CALC)'!$O$6,'Distribution (CALC)'!$B$7:$B$213,0)-1,0)*$T23 -> 0 | S23: =OFFSET('Distribution (CALC)'!H24,MATCH('Microwave Shipments (CALC)'!$O$6,'Distribution (CALC)'!$B$7:$B$213,0)-1,0)*$T23 -> 0 | T23: 15180241.46 | U23: =OFFSET('Distribution (CALC)'!D24,MATCH('Microwave Shipments (CALC)'!$U$6,'Distribution (CALC)'!$B$7:$B$213,0)-1,0)*$Z23 -> 0 | V23: =OFFSET('Distribution (CALC)'!E24,MATCH('Microwave Shipments (CALC)'!$U$6,'Distribution (CALC)'!$B$7:$B$213,0)-1,0)*$Z23 -> 0 | W23: =OFFSET('Distribution (CALC)'!F24,MATCH('Microwave Shipments (CALC)'!$U$6,'Distribution (CALC)'!$B$7:$B$213,0)-1,0)*$Z23 -> 0 | X23: =OFFSET('Distribution (CALC)'!G24,MATCH('Microwave Shipments (CALC)'!$U$6,'Distribution (CALC)'!$B$7:$B$213,0)-1,0)*$Z23 -> 15167922.85 | Y23: =OFFSET('Distribution (CALC)'!H24,MATCH('Microwave Shipments (CALC)'!$U$6,'Distribution (CALC)'!$B$7:$B$213,0)-1,0)*$Z23 -> 0 | Z23: 15167922.85 | AA23: =OFFSET('Distribution (CALC)'!D24,MATCH('Microwave Shipments (CALC)'!$AA$6,'Distribution (CALC)'!$B$7:$B$213,0)-1,0)*$AF23 -> 0 | AB23: =OFFSET('Distribution (CALC)'!E24,MATCH('Microwave Shipments (CALC)'!$AA$6,'Distribution (CALC)'!$B$7:$B$213,0)-1,0)*$AF23 -> 0 | AC23: =OFFSET('Distribution (CALC)'!F24,MATCH('Microwave Shipments (CALC)'!$AA$6,'Distribution (CALC)'!$B$7:$B$213,0)-1,0)*$AF23 -> 0 | AD23: =OFFSET('Distribution (CALC)'!G24,MATCH('Microwave Shipments (CALC)'!$AA$6,'Distribution (CALC)'!$B$7:$B$213,0)-1,0)*$AF23 -> 0 | AE23: =OFFSET('Distribution (CALC)'!H24,MATCH('Microwave Shipments (CALC)'!$AA$6,'Distribution (CALC)'!$B$7:$B$213,0)-1,0)*$AF23 -> 15111182.24 | AF23: 15111182.24
B24: 2022 | C24: =OFFSET('Distribution (CALC)'!D25,MATCH('Microwave Shipments (CALC)'!$C$6,'Distribution (CALC)'!$B$7:$B$213,0)-1,0)*$H24 -> 7265750.395 | D24: =OFFSET('Distribution (CALC)'!E25,MATCH('Microwave Shipments (CALC)'!$C$6,'Distribution (CALC)'!$B$7:$B$213,0)-1,0)*$H24 -> 5441449.43 | E24: =OFFSET('Distribution (CALC)'!F25,MATCH('Microwave Shipments (CALC)'!$C$6,'Distribution (CALC)'!$B$7:$B$213,0)-1,0)*$H24 -> 3019532.632 | F24: =OFFSET('Distribution (CALC)'!G25,MATCH('Microwave Shipments (CALC)'!$C$6,'Distribution (CALC)'!$B$7:$B$213,0)-1,0)*$H24 -> 0 | G24: =OFFSET('Distribution (CALC)'!H25,MATCH('Microwave Shipments (CALC)'!$C$6,'Distribution (CALC)'!$B$7:$B$213,0)-1,0)*$H24 -> 0 | H24: 15726732.46 | I24: =OFFSET('Distribution (CALC)'!D25,MATCH('Microwave Shipments (CALC)'!$I$6,'Distribution (CALC)'!$B$7:$B$213,0)-1,0)*$N24 -> 0 | J24: =OFFSET('Distribution (CALC)'!E25,MATCH('Microwave Shipments (CALC)'!$I$6,'Distribution (CALC)'!$B$7:$B$213,0)-1,0)*$N24 -> 12705400.25 | K24: =OFFSET('Distribution (CALC)'!F25,MATCH('Microwave Shipments (CALC)'!$I$6,'Distribution (CALC)'!$B$7:$B$213,0)-1,0)*$N24 -> 3019105.009 | L24: =OFFSET('Distribution (CALC)'!G25,MATCH('Microwave Shipments (CALC)'!$I$6,'Distribution (CALC)'!$B$7:$B$213,0)-1,0)*$N24 -> 0 | M24: =OFFSET('Distribution (CALC)'!H25,MATCH('Microwave Shipments (CALC)'!$I$6,'Distribution (CALC)'!$B$7:$B$213,0)-1,0)*$N24 -> 0 | N24: 15724505.25 | O24: =OFFSET('Distribution (CALC)'!D25,MATCH('Microwave Shipments (CALC)'!$O$6,'Distribution (CALC)'!$B$7:$B$213,0)-1,0)*$T24 -> 0 | P24: =OFFSET('Distribution (CALC)'!E25,MATCH('Microwave Shipments (CALC)'!$O$6,'Distribution (CALC)'!$B$7:$B$213,0)-1,0)*$T24 -> 0 | Q24: =OFFSET('Distribution (CALC)'!F25,MATCH('Microwave Shipments (CALC)'!$O$6,'Distribution (CALC)'!$B$7:$B$213,0)-1,0)*$T24 -> 15719087.59 | R24: =OFFSET('Distribution (CALC)'!G25,MATCH('Microwave Shipments (CALC)'!$O$6,'Distribution (CALC)'!$B$7:$B$213,0)-1,0)*$T24 -> 0 | S24: =OFFSET('Distribution (CALC)'!H25,MATCH('Microwave Shipments (CALC)'!$O$6,'Distribution (CALC)'!$B$7:$B$213,0)-1,0)*$T24 -> 0 | T24: 15719087.59 | U24: =OFFSET('Distribution (CALC)'!D25,MATCH('Microwave Shipments (CALC)'!$U$6,'Distribution (CALC)'!$B$7:$B$213,0)-1,0)*$Z24 -> 0 | V24: =OFFSET('Distribution (CALC)'!E25,MATCH('Microwave Shipments (CALC)'!$U$6,'Distribution (CALC)'!$B$7:$B$213,0)-1,0)*$Z24 -> 0 | W24: =OFFSET('Distribution (CALC)'!F25,MATCH('Microwave Shipments (CALC)'!$U$6,'Distribution (CALC)'!$B$7:$B$213,0)-1,0)*$Z24 -> 0 | X24: =OFFSET('Distribution (CALC)'!G25,MATCH('Microwave Shipments (CALC)'!$U$6,'Distribution (CALC)'!$B$7:$B$213,0)-1,0)*$Z24 -> 15704368.54 | Y24: =OFFSET('Distribution (CALC)'!H25,MATCH('Microwave Shipments (CALC)'!$U$6,'Distribution (CALC)'!$B$7:$B$213,0)-1,0)*$Z24 -> 0 | Z24: 15704368.54 | AA24: =OFFSET('Distribution (CALC)'!D25,MATCH('Microwave Shipments (CALC)'!$AA$6,'Distribution (CALC)'!$B$7:$B$213,0)-1,0)*$AF24 -> 0 | AB24: =OFFSET('Distribution (CALC)'!E25,MATCH('Microwave Shipments (CALC)'!$AA$6,'Distribution (CALC)'!$B$7:$B$213,0)-1,0)*$AF24 -> 0 | AC24: =OFFSET('Distribution (CALC)'!F25,MATCH('Microwave Shipments (CALC)'!$AA$6,'Distribution (CALC)'!$B$7:$B$213,0)-1,0)*$AF24 -> 0 | AD24: =OFFSET('Distribution (CALC)'!G25,MATCH('Microwave Shipments (CALC)'!$AA$6,'Distribution (CALC)'!$B$7:$B$213,0)-1,0)*$AF24 -> 0 | AE24: =OFFSET('Distribution (CALC)'!H25,MATCH('Microwave Shipments (CALC)'!$AA$6,'Distribution (CALC)'!$B$7:$B$213,0)-1,0)*$AF24 -> 15636603.13 | AF24: 15636603.13
B25: 2023 | C25: =OFFSET('Distribution (CALC)'!D26,MATCH('Microwave Shipments (CALC)'!$C$6,'Distribution (CALC)'!$B$7:$B$213,0)-1,0)*$H25 -> 7352123.253 | D25: =OFFSET('Distribution (CALC)'!E26,MATCH('Microwave Shipments (CALC)'!$C$6,'Distribution (CALC)'!$B$7:$B$213,0)-1,0)*$H25 -> 5506135.596 | E25: =OFFSET('Distribution (CALC)'!F26,MATCH('Microwave Shipments (CALC)'!$C$6,'Distribution (CALC)'!$B$7:$B$213,0)-1,0)*$H25 -> 3055427.845 | F25: =OFFSET('Distribution (CALC)'!G26,MATCH('Microwave Shipments (CALC)'!$C$6,'Distribution (CALC)'!$B$7:$B$213,0)-1,0)*$H25 -> 0 | G25: =OFFSET('Distribution (CALC)'!H26,MATCH('Microwave Shipments (CALC)'!$C$6,'Distribution (CALC)'!$B$7:$B$213,0)-1,0)*$H25 -> 0 | H25: 15913686.69 | I25: =OFFSET('Distribution (CALC)'!D26,MATCH('Microwave Shipments (CALC)'!$I$6,'Distribution (CALC)'!$B$7:$B$213,0)-1,0)*$N25 -> 0 | J25: =OFFSET('Distribution (CALC)'!E26,MATCH('Microwave Shipments (CALC)'!$I$6,'Distribution (CALC)'!$B$7:$B$213,0)-1,0)*$N25 -> 12856067.28 | K25: =OFFSET('Distribution (CALC)'!F26,MATCH('Microwave Shipments (CALC)'!$I$6,'Distribution (CALC)'!$B$7:$B$213,0)-1,0)*$N25 -> 3054907.075 | L25: =OFFSET('Distribution (CALC)'!G26,MATCH('Microwave Shipments (CALC)'!$I$6,'Distribution (CALC)'!$B$7:$B$213,0)-1,0)*$N25 -> 0 | M25: =OFFSET('Distribution (CALC)'!H26,MATCH('Microwave Shipments (CALC)'!$I$6,'Distribution (CALC)'!$B$7:$B$213,0)-1,0)*$N25 -> 0 | N25: 15910974.35 | O25: =OFFSET('Distribution (CALC)'!D26,MATCH('Microwave Shipments (CALC)'!$O$6,'Distribution (CALC)'!$B$7:$B$213,0)-1,0)*$T25 -> 0 | P25: =OFFSET('Distribution (CALC)'!E26,MATCH('Microwave Shipments (CALC)'!$O$6,'Distribution (CALC)'!$B$7:$B$213,0)-1,0)*$T25 -> 0 | Q25: =OFFSET('Distribution (CALC)'!F26,MATCH('Microwave Shipments (CALC)'!$O$6,'Distribution (CALC)'!$B$7:$B$213,0)-1,0)*$T25 -> 15904382.91 | R25: =OFFSET('Distribution (CALC)'!G26,MATCH('Microwave Shipments (CALC)'!$O$6,'Distribution (CALC)'!$B$7:$B$213,0)-1,0)*$T25 -> 0 | S25: =OFFSET('Distribution (CALC)'!H26,MATCH('Microwave Shipments (CALC)'!$O$6,'Distribution (CALC)'!$B$7:$B$213,0)-1,0)*$T25 -> 0 | T25: 15904382.91 | U25: =OFFSET('Distribution (CALC)'!D26,MATCH('Microwave Shipments (CALC)'!$U$6,'Distribution (CALC)'!$B$7:$B$213,0)-1,0)*$Z25 -> 0 | V25: =OFFSET('Distribution (CALC)'!E26,MATCH('Microwave Shipments (CALC)'!$U$6,'Distribution (CALC)'!$B$7:$B$213,0)-1,0)*$Z25 -> 0 | W25: =OFFSET('Distribution (CALC)'!F26,MATCH('Microwave Shipments (CALC)'!$U$6,'Distribution (CALC)'!$B$7:$B$213,0)-1,0)*$Z25 -> 0 | X25: =OFFSET('Distribution (CALC)'!G26,MATCH('Microwave Shipments (CALC)'!$U$6,'Distribution (CALC)'!$B$7:$B$213,0)-1,0)*$Z25 -> 15886478.46 | Y25: =OFFSET('Distribution (CALC)'!H26,MATCH('Microwave Shipments (CALC)'!$U$6,'Distribution (CALC)'!$B$7:$B$213,0)-1,0)*$Z25 -> 0 | Z25: 15886478.46 | AA25: =OFFSET('Distribution (CALC)'!D26,MATCH('Microwave Shipments (CALC)'!$AA$6,'Distribution (CALC)'!$B$7:$B$213,0)-1,0)*$AF25 -> 0 | AB25: =OFFSET('Distribution (CALC)'!E26,MATCH('Microwave Shipments (CALC)'!$AA$6,'Distribution (CALC)'!$B$7:$B$213,0)-1,0)*$AF25 -> 0 | AC25: =OFFSET('Distribution (CALC)'!F26,MATCH('Microwave Shipments (CALC)'!$AA$6,'Distribution (CALC)'!$B$7:$B$213,0)-1,0)*$AF25 -> 0 | AD25: =OFFSET('Distribution (CALC)'!G26,MATCH('Microwave Shipments (CALC)'!$AA$6,'Distribution (CALC)'!$B$7:$B$213,0)-1,0)*$AF25 -> 0 | AE25: =OFFSET('Distribution (CALC)'!H26,MATCH('Microwave Shipments (CALC)'!$AA$6,'Distribution (CALC)'!$B$7:$B$213,0)-1,0)*$AF25 -> 15804082.74 | AF25: 15804082.74
B26: 2024 | C26: =OFFSET('Distribution (CALC)'!D27,MATCH('Microwave Shipments (CALC)'!$C$6,'Distribution (CALC)'!$B$7:$B$213,0)-1,0)*$H26 -> 7322470.419 | D26: =OFFSET('Distribution (CALC)'!E27,MATCH('Microwave Shipments (CALC)'!$C$6,'Distribution (CALC)'!$B$7:$B$213,0)-1,0)*$H26 -> 5483928.063 | E26: =OFFSET('Distribution (CALC)'!F27,MATCH('Microwave Shipments (CALC)'!$C$6,'Distribution (CALC)'!$B$7:$B$213,0)-1,0)*$H26 -> 3043104.59 | F26: =OFFSET('Distribution (CALC)'!G27,MATCH('Microwave Shipments (CALC)'!$C$6,'Distribution (CALC)'!$B$7:$B$213,0)-1,0)*$H26 -> 0 | G26: =OFFSET('Distribution (CALC)'!H27,MATCH('Microwave Shipments (CALC)'!$C$6,'Distribution (CALC)'!$B$7:$B$213,0)-1,0)*$H26 -> 0 | H26: 15849503.07 | I26: =OFFSET('Distribution (CALC)'!D27,MATCH('Microwave Shipments (CALC)'!$I$6,'Distribution (CALC)'!$B$7:$B$213,0)-1,0)*$N26 -> 0 | J26: =OFFSET('Distribution (CALC)'!E27,MATCH('Microwave Shipments (CALC)'!$I$6,'Distribution (CALC)'!$B$7:$B$213,0)-1,0)*$N26 -> 12803767.78 | K26: =OFFSET('Distribution (CALC)'!F27,MATCH('Microwave Shipments (CALC)'!$I$6,'Distribution (CALC)'!$B$7:$B$213,0)-1,0)*$N26 -> 3042479.473 | L26: =OFFSET('Distribution (CALC)'!G27,MATCH('Microwave Shipments (CALC)'!$I$6,'Distribution (CALC)'!$B$7:$B$213,0)-1,0)*$N26 -> 0 | M26: =OFFSET('Distribution (CALC)'!H27,MATCH('Microwave Shipments (CALC)'!$I$6,'Distribution (CALC)'!$B$7:$B$213,0)-1,0)*$N26 -> 0 | N26: 15846247.26 | O26: =OFFSET('Distribution (CALC)'!D27,MATCH('Microwave Shipments (CALC)'!$O$6,'Distribution (CALC)'!$B$7:$B$213,0)-1,0)*$T26 -> 0 | P26: =OFFSET('Distribution (CALC)'!E27,MATCH('Microwave Shipments (CALC)'!$O$6,'Distribution (CALC)'!$B$7:$B$213,0)-1,0)*$T26 -> 0 | Q26: =OFFSET('Distribution (CALC)'!F27,MATCH('Microwave Shipments (CALC)'!$O$6,'Distribution (CALC)'!$B$7:$B$213,0)-1,0)*$T26 -> 15838338.2 | R26: =OFFSET('Distribution (CALC)'!G27,MATCH('Microwave Shipments (CALC)'!$O$6,'Distribution (CALC)'!$B$7:$B$213,0)-1,0)*$T26 -> 0 | S26: =OFFSET('Distribution (CALC)'!H27,MATCH('Microwave Shipments (CALC)'!$O$6,'Distribution (CALC)'!$B$7:$B$213,0)-1,0)*$T26 -> 0 | T26: 15838338.2 | U26: =OFFSET('Distribution (CALC)'!D27,MATCH('Microwave Shipments (CALC)'!$U$6,'Distribution (CALC)'!$B$7:$B$213,0)-1,0)*$Z26 -> 0 | V26: =OFFSET('Distribution (CALC)'!E27,MATCH('Microwave Shipments (CALC)'!$U$6,'Distribution (CALC)'!$B$7:$B$213,0)-1,0)*$Z26 -> 0 | W26: =OFFSET('Distribution (CALC)'!F27,MATCH('Microwave Shipments (CALC)'!$U$6,'Distribution (CALC)'!$B$7:$B$213,0)-1,0)*$Z26 -> 0 | X26: =OFFSET('Distribution (CALC)'!G27,MATCH('Microwave Shipments (CALC)'!$U$6,'Distribution (CALC)'!$B$7:$B$213,0)-1,0)*$Z26 -> 15816857.01 | Y26: =OFFSET('Distribution (CALC)'!H27,MATCH('Microwave Shipments (CALC)'!$U$6,'Distribution (CALC)'!$B$7:$B$213,0)-1,0)*$Z26 -> 0 | Z26: 15816857.01 | AA26: =OFFSET('Distribution (CALC)'!D27,MATCH('Microwave Shipments (CALC)'!$AA$6,'Distribution (CALC)'!$B$7:$B$213,0)-1,0)*$AF26 -> 0 | AB26: =OFFSET('Distribution (CALC)'!E27,MATCH('Microwave Shipments (CALC)'!$AA$6,'Distribution (CALC)'!$B$7:$B$213,0)-1,0)*$AF26 -> 0 | AC26: =OFFSET('Distribution (CALC)'!F27,MATCH('Microwave Shipments (CALC)'!$AA$6,'Distribution (CALC)'!$B$7:$B$213,0)-1,0)*$AF26 -> 0 | AD26: =OFFSET('Distribution (CALC)'!G27,MATCH('Microwave Shipments (CALC)'!$AA$6,'Distribution (CALC)'!$B$7:$B$213,0)-1,0)*$AF26 -> 0 | AE26: =OFFSET('Distribution (CALC)'!H27,MATCH('Microwave Shipments (CALC)'!$AA$6,'Distribution (CALC)'!$B$7:$B$213,0)-1,0)*$AF26 -> 15718029.82 | AF26: 15718029.82
B27: 2025 | C27: =OFFSET('Distribution (CALC)'!D28,MATCH('Microwave Shipments (CALC)'!$C$6,'Distribution (CALC)'!$B$7:$B$213,0)-1,0)*$H27 -> 7236602.71 | D27: =OFFSET('Distribution (CALC)'!E28,MATCH('Microwave Shipments (CALC)'!$C$6,'Distribution (CALC)'!$B$7:$B$213,0)-1,0)*$H27 -> 5419620.212 | E27: =OFFSET('Distribution (CALC)'!F28,MATCH('Microwave Shipments (CALC)'!$C$6,'Distribution (CALC)'!$B$7:$B$213,0)-1,0)*$H27 -> 3007419.308 | F27: =OFFSET('Distribution (CALC)'!G28,MATCH('Microwave Shipments (CALC)'!$C$6,'Distribution (CALC)'!$B$7:$B$213,0)-1,0)*$H27 -> 0 | G27: =OFFSET('Distribution (CALC)'!H28,MATCH('Microwave Shipments (CALC)'!$C$6,'Distribution (CALC)'!$B$7:$B$213,0)-1,0)*$H27 -> 0 | H27: 15663642.23 | I27: =OFFSET('Distribution (CALC)'!D28,MATCH('Microwave Shipments (CALC)'!$I$6,'Distribution (CALC)'!$B$7:$B$213,0)-1,0)*$N27 -> 0 | J27: =OFFSET('Distribution (CALC)'!E28,MATCH('Microwave Shipments (CALC)'!$I$6,'Distribution (CALC)'!$B$7:$B$213,0)-1,0)*$N27 -> 12653360 | K27: =OFFSET('Distribution (CALC)'!F28,MATCH('Microwave Shipments (CALC)'!$I$6,'Distribution (CALC)'!$B$7:$B$213,0)-1,0)*$N27 -> 3006739.011 | L27: =OFFSET('Distribution (CALC)'!G28,MATCH('Microwave Shipments (CALC)'!$I$6,'Distribution (CALC)'!$B$7:$B$213,0)-1,0)*$N27 -> 0 | M27: =OFFSET('Distribution (CALC)'!H28,MATCH('Microwave Shipments (CALC)'!$I$6,'Distribution (CALC)'!$B$7:$B$213,0)-1,0)*$N27 -> 0 | N27: 15660099.01 | O27: =OFFSET('Distribution (CALC)'!D28,MATCH('Microwave Shipments (CALC)'!$O$6,'Distribution (CALC)'!$B$7:$B$213,0)-1,0)*$T27 -> 0 | P27: =OFFSET('Distribution (CALC)'!E28,MATCH('Microwave Shipments (CALC)'!$O$6,'Distribution (CALC)'!$B$7:$B$213,0)-1,0)*$T27 -> 0 | Q27: =OFFSET('Distribution (CALC)'!F28,MATCH('Microwave Shipments (CALC)'!$O$6,'Distribution (CALC)'!$B$7:$B$213,0)-1,0)*$T27 -> 15651488.27 | R27: =OFFSET('Distribution (CALC)'!G28,MATCH('Microwave Shipments (CALC)'!$O$6,'Distribution (CALC)'!$B$7:$B$213,0)-1,0)*$T27 -> 0 | S27: =OFFSET('Distribution (CALC)'!H28,MATCH('Microwave Shipments (CALC)'!$O$6,'Distribution (CALC)'!$B$7:$B$213,0)-1,0)*$T27 -> 0 | T27: 15651488.27 | U27: =OFFSET('Distribution (CALC)'!D28,MATCH('Microwave Shipments (CALC)'!$U$6,'Distribution (CALC)'!$B$7:$B$213,0)-1,0)*$Z27 -> 0 | V27: =OFFSET('Distribution (CALC)'!E28,MATCH('Microwave Shipments (CALC)'!$U$6,'Distribution (CALC)'!$B$7:$B$213,0)-1,0)*$Z27 -> 0 | W27: =OFFSET('Distribution (CALC)'!F28,MATCH('Microwave Shipments (CALC)'!$U$6,'Distribution (CALC)'!$B$7:$B$213,0)-1,0)*$Z27 -> 0 | X27: =OFFSET('Distribution (CALC)'!G28,MATCH('Microwave Shipments (CALC)'!$U$6,'Distribution (CALC)'!$B$7:$B$213,0)-1,0)*$Z27 -> 15628100.8 | Y27: =OFFSET('Distribution (CALC)'!H28,MATCH('Microwave Shipments (CALC)'!$U$6,'Distribution (CALC)'!$B$7:$B$213,0)-1,0)*$Z27 -> 0 | Z27: 15628100.8 | AA27: =OFFSET('Distribution (CALC)'!D28,MATCH('Microwave Shipments (CALC)'!$AA$6,'Distribution (CALC)'!$B$7:$B$213,0)-1,0)*$AF27 -> 0 | AB27: =OFFSET('Distribution (CALC)'!E28,MATCH('Microwave Shipments (CALC)'!$AA$6,'Distribution (CALC)'!$B$7:$B$213,0)-1,0)*$AF27 -> 0 | AC27: =OFFSET('Distribution (CALC)'!F28,MATCH('Microwave Shipments (CALC)'!$AA$6,'Distribution (CALC)'!$B$7:$B$213,0)-1,0)*$AF27 -> 0 | AD27: =OFFSET('Distribution (CALC)'!G28,MATCH('Microwave Shipments (CALC)'!$AA$6,'Distribution (CALC)'!$B$7:$B$213,0)-1,0)*$AF27 -> 0 | AE27: =OFFSET('Distribution (CALC)'!H28,MATCH('Microwave Shipments (CALC)'!$AA$6,'Distribution (CALC)'!$B$7:$B$213,0)-1,0)*$AF27 -> 15520513.87 | AF27: 15520513.87
B28: 2026 | C28: =OFFSET('Distribution (CALC)'!D29,MATCH('Microwave Shipments (CALC)'!$C$6,'Distribution (CALC)'!$B$7:$B$213,0)-1,0)*$H28 -> 7103916.084 | D28: =OFFSET('Distribution (CALC)'!E29,MATCH('Microwave Shipments (CALC)'!$C$6,'Distribution (CALC)'!$B$7:$B$213,0)-1,0)*$H28 -> 5320248.842 | E28: =OFFSET('Distribution (CALC)'!F29,MATCH('Microwave Shipments (CALC)'!$C$6,'Distribution (CALC)'!$B$7:$B$213,0)-1,0)*$H28 -> 2952276.814 | F28: =OFFSET('Distribution (CALC)'!G29,MATCH('Microwave Shipments (CALC)'!$C$6,'Distribution (CALC)'!$B$7:$B$213,0)-1,0)*$H28 -> 0 | G28: =OFFSET('Distribution (CALC)'!H29,MATCH('Microwave Shipments (CALC)'!$C$6,'Distribution (CALC)'!$B$7:$B$213,0)-1,0)*$H28 -> 0 | H28: 15376441.74 | I28: =OFFSET('Distribution (CALC)'!D29,MATCH('Microwave Shipments (CALC)'!$I$6,'Distribution (CALC)'!$B$7:$B$213,0)-1,0)*$N28 -> 0 | J28: =OFFSET('Distribution (CALC)'!E29,MATCH('Microwave Shipments (CALC)'!$I$6,'Distribution (CALC)'!$B$7:$B$213,0)-1,0)*$N28 -> 12421362.02 | K28: =OFFSET('Distribution (CALC)'!F29,MATCH('Microwave Shipments (CALC)'!$I$6,'Distribution (CALC)'!$B$7:$B$213,0)-1,0)*$N28 -> 2951610.777 | L28: =OFFSET('Distribution (CALC)'!G29,MATCH('Microwave Shipments (CALC)'!$I$6,'Distribution (CALC)'!$B$7:$B$213,0)-1,0)*$N28 -> 0 | M28: =OFFSET('Distribution (CALC)'!H29,MATCH('Microwave Shipments (CALC)'!$I$6,'Distribution (CALC)'!$B$7:$B$213,0)-1,0)*$N28 -> 0 | N28: 15372972.8 | O28: =OFFSET('Distribution (CALC)'!D29,MATCH('Microwave Shipments (CALC)'!$O$6,'Distribution (CALC)'!$B$7:$B$213,0)-1,0)*$T28 -> 0 | P28: =OFFSET('Distribution (CALC)'!E29,MATCH('Microwave Shipments (CALC)'!$O$6,'Distribution (CALC)'!$B$7:$B$213,0)-1,0)*$T28 -> 0 | Q28: =OFFSET('Distribution (CALC)'!F29,MATCH('Microwave Shipments (CALC)'!$O$6,'Distribution (CALC)'!$B$7:$B$213,0)-1,0)*$T28 -> 15364526.91 | R28: =OFFSET('Distribution (CALC)'!G29,MATCH('Microwave Shipments (CALC)'!$O$6,'Distribution (CALC)'!$B$7:$B$213,0)-1,0)*$T28 -> 0 | S28: =OFFSET('Distribution (CALC)'!H29,MATCH('Microwave Shipments (CALC)'!$O$6,'Distribution (CALC)'!$B$7:$B$213,0)-1,0)*$T28 -> 0 | T28: 15364526.91 | U28: =OFFSET('Distribution (CALC)'!D29,MATCH('Microwave Shipments (CALC)'!$U$6,'Distribution (CALC)'!$B$7:$B$213,0)-1,0)*$Z28 -> 0 | V28: =OFFSET('Distribution (CALC)'!E29,MATCH('Microwave Shipments (CALC)'!$U$6,'Distribution (CALC)'!$B$7:$B$213,0)-1,0)*$Z28 -> 0 | W28: =OFFSET('Distribution (CALC)'!F29,MATCH('Microwave Shipments (CALC)'!$U$6,'Distribution (CALC)'!$B$7:$B$213,0)-1,0)*$Z28 -> 0 | X28: =OFFSET('Distribution (CALC)'!G29,MATCH('Microwave Shipments (CALC)'!$U$6,'Distribution (CALC)'!$B$7:$B$213,0)-1,0)*$Z28 -> 15341582.19 | Y28: =OFFSET('Distribution (CALC)'!H29,MATCH('Microwave Shipments (CALC)'!$U$6,'Distribution (CALC)'!$B$7:$B$213,0)-1,0)*$Z28 -> 0 | Z28: 15341582.19 | AA28: =OFFSET('Distribution (CALC)'!D29,MATCH('Microwave Shipments (CALC)'!$AA$6,'Distribution (CALC)'!$B$7:$B$213,0)-1,0)*$AF28 -> 0 | AB28: =OFFSET('Distribution (CALC)'!E29,MATCH('Microwave Shipments (CALC)'!$AA$6,'Distribution (CALC)'!$B$7:$B$213,0)-1,0)*$AF28 -> 0 | AC28: =OFFSET('Distribution (CALC)'!F29,MATCH('Microwave Shipments (CALC)'!$AA$6,'Distribution (CALC)'!$B$7:$B$213,0)-1,0)*$AF28 -> 0 | AD28: =OFFSET('Distribution (CALC)'!G29,MATCH('Microwave Shipments (CALC)'!$AA$6,'Distribution (CALC)'!$B$7:$B$213,0)-1,0)*$AF28 -> 0 | AE28: =OFFSET('Distribution (CALC)'!H29,MATCH('Microwave Shipments (CALC)'!$AA$6,'Distribution (CALC)'!$B$7:$B$213,0)-1,0)*$AF28 -> 15236021.29 | AF28: 15236021.29
B29: 2027 | C29: =OFFSET('Distribution (CALC)'!D30,MATCH('Microwave Shipments (CALC)'!$C$6,'Distribution (CALC)'!$B$7:$B$213,0)-1,0)*$H29 -> 6994073.018 | D29: =OFFSET('Distribution (CALC)'!E30,MATCH('Microwave Shipments (CALC)'!$C$6,'Distribution (CALC)'!$B$7:$B$213,0)-1,0)*$H29 -> 5237985.421 | E29: =OFFSET('Distribution (CALC)'!F30,MATCH('Microwave Shipments (CALC)'!$C$6,'Distribution (CALC)'!$B$7:$B$213,0)-1,0)*$H29 -> 2906627.748 | F29: =OFFSET('Distribution (CALC)'!G30,MATCH('Microwave Shipments (CALC)'!$C$6,'Distribution (CALC)'!$B$7:$B$213,0)-1,0)*$H29 -> 0 | G29: =OFFSET('Distribution (CALC)'!H30,MATCH('Microwave Shipments (CALC)'!$C$6,'Distribution (CALC)'!$B$7:$B$213,0)-1,0)*$H29 -> 0 | H29: 15138686.19 | I29: =OFFSET('Distribution (CALC)'!D30,MATCH('Microwave Shipments (CALC)'!$I$6,'Distribution (CALC)'!$B$7:$B$213,0)-1,0)*$N29 -> 0 | J29: =OFFSET('Distribution (CALC)'!E30,MATCH('Microwave Shipments (CALC)'!$I$6,'Distribution (CALC)'!$B$7:$B$213,0)-1,0)*$N29 -> 12229458.78 | K29: =OFFSET('Distribution (CALC)'!F30,MATCH('Microwave Shipments (CALC)'!$I$6,'Distribution (CALC)'!$B$7:$B$213,0)-1,0)*$N29 -> 2906010.006 | L29: =OFFSET('Distribution (CALC)'!G30,MATCH('Microwave Shipments (CALC)'!$I$6,'Distribution (CALC)'!$B$7:$B$213,0)-1,0)*$N29 -> 0 | M29: =OFFSET('Distribution (CALC)'!H30,MATCH('Microwave Shipments (CALC)'!$I$6,'Distribution (CALC)'!$B$7:$B$213,0)-1,0)*$N29 -> 0 | N29: 15135468.78 | O29: =OFFSET('Distribution (CALC)'!D30,MATCH('Microwave Shipments (CALC)'!$O$6,'Distribution (CALC)'!$B$7:$B$213,0)-1,0)*$T29 -> 0 | P29: =OFFSET('Distribution (CALC)'!E30,MATCH('Microwave Shipments (CALC)'!$O$6,'Distribution (CALC)'!$B$7:$B$213,0)-1,0)*$T29 -> 0 | Q29: =OFFSET('Distribution (CALC)'!F30,MATCH('Microwave Shipments (CALC)'!$O$6,'Distribution (CALC)'!$B$7:$B$213,0)-1,0)*$T29 -> 15127613.65 | R29: =OFFSET('Distribution (CALC)'!G30,MATCH('Microwave Shipments (CALC)'!$O$6,'Distribution (CALC)'!$B$7:$B$213,0)-1,0)*$T29 -> 0 | S29: =OFFSET('Distribution (CALC)'!H30,MATCH('Microwave Shipments (CALC)'!$O$6,'Distribution (CALC)'!$B$7:$B$213,0)-1,0)*$T29 -> 0 | T29: 15127613.65 | U29: =OFFSET('Distribution (CALC)'!D30,MATCH('Microwave Shipments (CALC)'!$U$6,'Distribution (CALC)'!$B$7:$B$213,0)-1,0)*$Z29 -> 0 | V29: =OFFSET('Distribution (CALC)'!E30,MATCH('Microwave Shipments (CALC)'!$U$6,'Distribution (CALC)'!$B$7:$B$213,0)-1,0)*$Z29 -> 0 | W29: =OFFSET('Distribution (CALC)'!F30,MATCH('Microwave Shipments (CALC)'!$U$6,'Distribution (CALC)'!$B$7:$B$213,0)-1,0)*$Z29 -> 0 | X29: =OFFSET('Distribution (CALC)'!G30,MATCH('Microwave Shipments (CALC)'!$U$6,'Distribution (CALC)'!$B$7:$B$213,0)-1,0)*$Z29 -> 15106266.56 | Y29: =OFFSET('Distribution (CALC)'!H30,MATCH('Microwave Shipments (CALC)'!$U$6,'Distribution (CALC)'!$B$7:$B$213,0)-1,0)*$Z29 -> 0 | Z29: 15106266.56 | AA29: =OFFSET('Distribution (CALC)'!D30,MATCH('Microwave Shipments (CALC)'!$AA$6,'Distribution (CALC)'!$B$7:$B$213,0)-1,0)*$AF29 -> 0 | AB29: =OFFSET('Distribution (CALC)'!E30,MATCH('Microwave Shipments (CALC)'!$AA$6,'Distribution (CALC)'!$B$7:$B$213,0)-1,0)*$AF29 -> 0 | AC29: =OFFSET('Distribution (CALC)'!F30,MATCH('Microwave Shipments (CALC)'!$AA$6,'Distribution (CALC)'!$B$7:$B$213,0)-1,0)*$AF29 -> 0 | AD29: =OFFSET('Distribution (CALC)'!G30,MATCH('Microwave Shipments (CALC)'!$AA$6,'Distribution (CALC)'!$B$7:$B$213,0)-1,0)*$AF29 -> 0 | AE29: =OFFSET('Distribution (CALC)'!H30,MATCH('Microwave Shipments (CALC)'!$AA$6,'Distribution (CALC)'!$B$7:$B$213,0)-1,0)*$AF29 -> 15008036.35 | AF29: 15008036.35
B30: 2028 | C30: =OFFSET('Distribution (CALC)'!D31,MATCH('Microwave Shipments (CALC)'!$C$6,'Distribution (CALC)'!$B$7:$B$213,0)-1,0)*$H30 -> 6966427.562 | D30: =OFFSET('Distribution (CALC)'!E31,MATCH('Microwave Shipments (CALC)'!$C$6,'Distribution (CALC)'!$B$7:$B$213,0)-1,0)*$H30 -> 5217281.248 | E30: =OFFSET('Distribution (CALC)'!F31,MATCH('Microwave Shipments (CALC)'!$C$6,'Distribution (CALC)'!$B$7:$B$213,0)-1,0)*$H30 -> 2895138.727 | F30: =OFFSET('Distribution (CALC)'!G31,MATCH('Microwave Shipments (CALC)'!$C$6,'Distribution (CALC)'!$B$7:$B$213,0)-1,0)*$H30 -> 0 | G30: =OFFSET('Distribution (CALC)'!H31,MATCH('Microwave Shipments (CALC)'!$C$6,'Distribution (CALC)'!$B$7:$B$213,0)-1,0)*$H30 -> 0 | H30: 15078847.54 | I30: =OFFSET('Distribution (CALC)'!D31,MATCH('Microwave Shipments (CALC)'!$I$6,'Distribution (CALC)'!$B$7:$B$213,0)-1,0)*$N30 -> 0 | J30: =OFFSET('Distribution (CALC)'!E31,MATCH('Microwave Shipments (CALC)'!$I$6,'Distribution (CALC)'!$B$7:$B$213,0)-1,0)*$N30 -> 12181255.13 | K30: =OFFSET('Distribution (CALC)'!F31,MATCH('Microwave Shipments (CALC)'!$I$6,'Distribution (CALC)'!$B$7:$B$213,0)-1,0)*$N30 -> 2894555.674 | L30: =OFFSET('Distribution (CALC)'!G31,MATCH('Microwave Shipments (CALC)'!$I$6,'Distribution (CALC)'!$B$7:$B$213,0)-1,0)*$N30 -> 0 | M30: =OFFSET('Distribution (CALC)'!H31,MATCH('Microwave Shipments (CALC)'!$I$6,'Distribution (CALC)'!$B$7:$B$213,0)-1,0)*$N30 -> 0 | N30: 15075810.8 | O30: =OFFSET('Distribution (CALC)'!D31,MATCH('Microwave Shipments (CALC)'!$O$6,'Distribution (CALC)'!$B$7:$B$213,0)-1,0)*$T30 -> 0 | P30: =OFFSET('Distribution (CALC)'!E31,MATCH('Microwave Shipments (CALC)'!$O$6,'Distribution (CALC)'!$B$7:$B$213,0)-1,0)*$T30 -> 0 | Q30: =OFFSET('Distribution (CALC)'!F31,MATCH('Microwave Shipments (CALC)'!$O$6,'Distribution (CALC)'!$B$7:$B$213,0)-1,0)*$T30 -> 15068376.17 | R30: =OFFSET('Distribution (CALC)'!G31,MATCH('Microwave Shipments (CALC)'!$O$6,'Distribution (CALC)'!$B$7:$B$213,0)-1,0)*$T30 -> 0 | S30: =OFFSET('Distribution (CALC)'!H31,MATCH('Microwave Shipments (CALC)'!$O$6,'Distribution (CALC)'!$B$7:$B$213,0)-1,0)*$T30 -> 0 | T30: 15068376.17 | U30: =OFFSET('Distribution (CALC)'!D31,MATCH('Microwave Shipments (CALC)'!$U$6,'Distribution (CALC)'!$B$7:$B$213,0)-1,0)*$Z30 -> 0 | V30: =OFFSET('Distribution (CALC)'!E31,MATCH('Microwave Shipments (CALC)'!$U$6,'Distribution (CALC)'!$B$7:$B$213,0)-1,0)*$Z30 -> 0 | W30: =OFFSET('Distribution (CALC)'!F31,MATCH('Microwave Shipments (CALC)'!$U$6,'Distribution (CALC)'!$B$7:$B$213,0)-1,0)*$Z30 -> 0 | X30: =OFFSET('Distribution (CALC)'!G31,MATCH('Microwave Shipments (CALC)'!$U$6,'Distribution (CALC)'!$B$7:$B$213,0)-1,0)*$Z30 -> 15048165.23 | Y30: =OFFSET('Distribution (CALC)'!H31,MATCH('Microwave Shipments (CALC)'!$U$6,'Distribution (CALC)'!$B$7:$B$213,0)-1,0)*$Z30 -> 0 | Z30: 15048165.23 | AA30: =OFFSET('Distribution (CALC)'!D31,MATCH('Microwave Shipments (CALC)'!$AA$6,'Distribution (CALC)'!$B$7:$B$213,0)-1,0)*$AF30 -> 0 | AB30: =OFFSET('Distribution (CALC)'!E31,MATCH('Microwave Shipments (CALC)'!$AA$6,'Distribution (CALC)'!$B$7:$B$213,0)-1,0)*$AF30 -> 0 | AC30: =OFFSET('Distribution (CALC)'!F31,MATCH('Microwave Shipments (CALC)'!$AA$6,'Distribution (CALC)'!$B$7:$B$213,0)-1,0)*$AF30 -> 0 | AD30: =OFFSET('Distribution (CALC)'!G31,MATCH('Microwave Shipments (CALC)'!$AA$6,'Distribution (CALC)'!$B$7:$B$213,0)-1,0)*$AF30 -> 0 | AE30: =OFFSET('Distribution (CALC)'!H31,MATCH('Microwave Shipments (CALC)'!$AA$6,'Distribution (CALC)'!$B$7:$B$213,0)-1,0)*$AF30 -> 14955148.54 | AF30: 14955148.54
B31: 2029 | C31: =OFFSET('Distribution (CALC)'!D32,MATCH('Microwave Shipments (CALC)'!$C$6,'Distribution (CALC)'!$B$7:$B$213,0)-1,0)*$H31 -> 7068103.905 | D31: =OFFSET('Distribution (CALC)'!E32,MATCH('Microwave Shipments (CALC)'!$C$6,'Distribution (CALC)'!$B$7:$B$213,0)-1,0)*$H31 -> 5293428.465 | E31: =OFFSET('Distribution (CALC)'!F32,MATCH('Microwave Shipments (CALC)'!$C$6,'Distribution (CALC)'!$B$7:$B$213,0)-1,0)*$H31 -> 2937393.831 | F31: =OFFSET('Distribution (CALC)'!G32,MATCH('Microwave Shipments (CALC)'!$C$6,'Distribution (CALC)'!$B$7:$B$213,0)-1,0)*$H31 -> 0 | G31: =OFFSET('Distribution (CALC)'!H32,MATCH('Microwave Shipments (CALC)'!$C$6,'Distribution (CALC)'!$B$7:$B$213,0)-1,0)*$H31 -> 0 | H31: 15298926.2 | I31: =OFFSET('Distribution (CALC)'!D32,MATCH('Microwave Shipments (CALC)'!$I$6,'Distribution (CALC)'!$B$7:$B$213,0)-1,0)*$N31 -> 0 | J31: =OFFSET('Distribution (CALC)'!E32,MATCH('Microwave Shipments (CALC)'!$I$6,'Distribution (CALC)'!$B$7:$B$213,0)-1,0)*$N31 -> 12359090.61 | K31: =OFFSET('Distribution (CALC)'!F32,MATCH('Microwave Shipments (CALC)'!$I$6,'Distribution (CALC)'!$B$7:$B$213,0)-1,0)*$N31 -> 2936813.611 | L31: =OFFSET('Distribution (CALC)'!G32,MATCH('Microwave Shipments (CALC)'!$I$6,'Distribution (CALC)'!$B$7:$B$213,0)-1,0)*$N31 -> 0 | M31: =OFFSET('Distribution (CALC)'!H32,MATCH('Microwave Shipments (CALC)'!$I$6,'Distribution (CALC)'!$B$7:$B$213,0)-1,0)*$N31 -> 0 | N31: 15295904.22 | O31: =OFFSET('Distribution (CALC)'!D32,MATCH('Microwave Shipments (CALC)'!$O$6,'Distribution (CALC)'!$B$7:$B$213,0)-1,0)*$T31 -> 0 | P31: =OFFSET('Distribution (CALC)'!E32,MATCH('Microwave Shipments (CALC)'!$O$6,'Distribution (CALC)'!$B$7:$B$213,0)-1,0)*$T31 -> 0 | Q31: =OFFSET('Distribution (CALC)'!F32,MATCH('Microwave Shipments (CALC)'!$O$6,'Distribution (CALC)'!$B$7:$B$213,0)-1,0)*$T31 -> 15288486.19 | R31: =OFFSET('Distribution (CALC)'!G32,MATCH('Microwave Shipments (CALC)'!$O$6,'Distribution (CALC)'!$B$7:$B$213,0)-1,0)*$T31 -> 0 | S31: =OFFSET('Distribution (CALC)'!H32,MATCH('Microwave Shipments (CALC)'!$O$6,'Distribution (CALC)'!$B$7:$B$213,0)-1,0)*$T31 -> 0 | T31: 15288486.19 | U31: =OFFSET('Distribution (CALC)'!D32,MATCH('Microwave Shipments (CALC)'!$U$6,'Distribution (CALC)'!$B$7:$B$213,0)-1,0)*$Z31 -> 0 | V31: =OFFSET('Distribution (CALC)'!E32,MATCH('Microwave Shipments (CALC)'!$U$6,'Distribution (CALC)'!$B$7:$B$213,0)-1,0)*$Z31 -> 0 | W31: =OFFSET('Distribution (CALC)'!F32,MATCH('Microwave Shipments (CALC)'!$U$6,'Distribution (CALC)'!$B$7:$B$213,0)-1,0)*$Z31 -> 0 | X31: =OFFSET('Distribution (CALC)'!G32,MATCH('Microwave Shipments (CALC)'!$U$6,'Distribution (CALC)'!$B$7:$B$213,0)-1,0)*$Z31 -> 15268314.54 | Y31: =OFFSET('Distribution (CALC)'!H32,MATCH('Microwave Shipments (CALC)'!$U$6,'Distribution (CALC)'!$B$7:$B$213,0)-1,0)*$Z31 -> 0 | Z31: 15268314.54 | AA31: =OFFSET('Distribution (CALC)'!D32,MATCH('Microwave Shipments (CALC)'!$AA$6,'Distribution (CALC)'!$B$7:$B$213,0)-1,0)*$AF31 -> 0 | AB31: =OFFSET('Distribution (CALC)'!E32,MATCH('Microwave Shipments (CALC)'!$AA$6,'Distribution (CALC)'!$B$7:$B$213,0)-1,0)*$AF31 -> 0 | AC31: =OFFSET('Distribution (CALC)'!F32,MATCH('Microwave Shipments (CALC)'!$AA$6,'Distribution (CALC)'!$B$7:$B$213,0)-1,0)*$AF31 -> 0 | AD31: =OFFSET('Distribution (CALC)'!G32,MATCH('Microwave Shipments (CALC)'!$AA$6,'Distribution (CALC)'!$B$7:$B$213,0)-1,0)*$AF31 -> 0 | AE31: =OFFSET('Distribution (CALC)'!H32,MATCH('Microwave Shipments (CALC)'!$AA$6,'Distribution (CALC)'!$B$7:$B$213,0)-1,0)*$AF31 -> 15175474.16 | AF31: 15175474.16
B32: 2030 | C32: =OFFSET('Distribution (CALC)'!D33,MATCH('Microwave Shipments (CALC)'!$C$6,'Distribution (CALC)'!$B$7:$B$213,0)-1,0)*$H32 -> 7267002.809 | D32: =OFFSET('Distribution (CALC)'!E33,MATCH('Microwave Shipments (CALC)'!$C$6,'Distribution (CALC)'!$B$7:$B$213,0)-1,0)*$H32 -> 5442387.385 | E32: =OFFSET('Distribution (CALC)'!F33,MATCH('Microwave Shipments (CALC)'!$C$6,'Distribution (CALC)'!$B$7:$B$213,0)-1,0)*$H32 -> 3020053.115 | F32: =OFFSET('Distribution (CALC)'!G33,MATCH('Microwave Shipments (CALC)'!$C$6,'Distribution (CALC)'!$B$7:$B$213,0)-1,0)*$H32 -> 0 | G32: =OFFSET('Distribution (CALC)'!H33,MATCH('Microwave Shipments (CALC)'!$C$6,'Distribution (CALC)'!$B$7:$B$213,0)-1,0)*$H32 -> 0 | H32: 15729443.31 | I32: =OFFSET('Distribution (CALC)'!D33,MATCH('Microwave Shipments (CALC)'!$I$6,'Distribution (CALC)'!$B$7:$B$213,0)-1,0)*$N32 -> 0 | J32: =OFFSET('Distribution (CALC)'!E33,MATCH('Microwave Shipments (CALC)'!$I$6,'Distribution (CALC)'!$B$7:$B$213,0)-1,0)*$N32 -> 12706831.17 | K32: =OFFSET('Distribution (CALC)'!F33,MATCH('Microwave Shipments (CALC)'!$I$6,'Distribution (CALC)'!$B$7:$B$213,0)-1,0)*$N32 -> 3019445.031 | L32: =OFFSET('Distribution (CALC)'!G33,MATCH('Microwave Shipments (CALC)'!$I$6,'Distribution (CALC)'!$B$7:$B$213,0)-1,0)*$N32 -> 0 | M32: =OFFSET('Distribution (CALC)'!H33,MATCH('Microwave Shipments (CALC)'!$I$6,'Distribution (CALC)'!$B$7:$B$213,0)-1,0)*$N32 -> 0 | N32: 15726276.2 | O32: =OFFSET('Distribution (CALC)'!D33,MATCH('Microwave Shipments (CALC)'!$O$6,'Distribution (CALC)'!$B$7:$B$213,0)-1,0)*$T32 -> 0 | P32: =OFFSET('Distribution (CALC)'!E33,MATCH('Microwave Shipments (CALC)'!$O$6,'Distribution (CALC)'!$B$7:$B$213,0)-1,0)*$T32 -> 0 | Q32: =OFFSET('Distribution (CALC)'!F33,MATCH('Microwave Shipments (CALC)'!$O$6,'Distribution (CALC)'!$B$7:$B$213,0)-1,0)*$T32 -> 15718488.92 | R32: =OFFSET('Distribution (CALC)'!G33,MATCH('Microwave Shipments (CALC)'!$O$6,'Distribution (CALC)'!$B$7:$B$213,0)-1,0)*$T32 -> 0 | S32: =OFFSET('Distribution (CALC)'!H33,MATCH('Microwave Shipments (CALC)'!$O$6,'Distribution (CALC)'!$B$7:$B$213,0)-1,0)*$T32 -> 0 | T32: =IF(ShipmentElasticity_Scenario="none",H32,IF(Economic_Scenario="reference",VLOOKUP($B32,MW_Shipments_ReferenceCase,8),IF(Economic_Scenario="high",VLOOKUP($B32,MW_Shipments_ReferenceCase,9),VLOOKUP($B32,MW_Shipments_ReferenceCase,10)))) -> 15718488.92 | U32: =OFFSET('Distribution (CALC)'!D33,MATCH('Microwave Shipments (CALC)'!$U$6,'Distribution (CALC)'!$B$7:$B$213,0)-1,0)*$Z32 -> 0 | V32: =OFFSET('Distribution (CALC)'!E33,MATCH('Microwave Shipments (CALC)'!$U$6,'Distribution (CALC)'!$B$7:$B$213,0)-1,0)*$Z32 -> 0 | W32: =OFFSET('Distribution (CALC)'!F33,MATCH('Microwave Shipments (CALC)'!$U$6,'Distribution (CALC)'!$B$7:$B$213,0)-1,0)*$Z32 -> 0 | X32: =OFFSET('Distribution (CALC)'!G33,MATCH('Microwave Shipments (CALC)'!$U$6,'Distribution (CALC)'!$B$7:$B$213,0)-1,0)*$Z32 -> 15697309.99 | Y32: =OFFSET('Distribution (CALC)'!H33,MATCH('Microwave Shipments (CALC)'!$U$6,'Distribution (CALC)'!$B$7:$B$213,0)-1,0)*$Z32 -> 0 | Z32: 15697309.99 | AA32: =OFFSET('Distribution (CALC)'!D33,MATCH('Microwave Shipments (CALC)'!$AA$6,'Distribution (CALC)'!$B$7:$B$213,0)-1,0)*$AF32 -> 0 | AB32: =OFFSET('Distribution (CALC)'!E33,MATCH('Microwave Shipments (CALC)'!$AA$6,'Distribution (CALC)'!$B$7:$B$213,0)-1,0)*$AF32 -> 0 | AC32: =OFFSET('Distribution (CALC)'!F33,MATCH('Microwave Shipments (CALC)'!$AA$6,'Distribution (CALC)'!$B$7:$B$213,0)-1,0)*$AF32 -> 0 | AD32: =OFFSET('Distribution (CALC)'!G33,MATCH('Microwave Shipments (CALC)'!$AA$6,'Distribution (CALC)'!$B$7:$B$213,0)-1,0)*$AF32 -> 0 | AE32: =OFFSET('Distribution (CALC)'!H33,MATCH('Microwave Shipments (CALC)'!$AA$6,'Distribution (CALC)'!$B$7:$B$213,0)-1,0)*$AF32 -> 15599844.12 | AF32: 15599844.12
B33: 2031 | C33: =OFFSET('Distribution (CALC)'!D34,MATCH('Microwave Shipments (CALC)'!$C$6,'Distribution (CALC)'!$B$7:$B$213,0)-1,0)*$H33 -> 7447987.783 | D33: =OFFSET('Distribution (CALC)'!E34,MATCH('Microwave Shipments (CALC)'!$C$6,'Distribution (CALC)'!$B$7:$B$213,0)-1,0)*$H33 -> 5577930.244 | E33: =OFFSET('Distribution (CALC)'!F34,MATCH('Microwave Shipments (CALC)'!$C$6,'Distribution (CALC)'!$B$7:$B$213,0)-1,0)*$H33 -> 3095267.65 | F33: =OFFSET('Distribution (CALC)'!G34,MATCH('Microwave Shipments (CALC)'!$C$6,'Distribution (CALC)'!$B$7:$B$213,0)-1,0)*$H33 -> 0 | G33: =OFFSET('Distribution (CALC)'!H34,MATCH('Microwave Shipments (CALC)'!$C$6,'Distribution (CALC)'!$B$7:$B$213,0)-1,0)*$H33 -> 0 | H33: 16121185.68 | I33: =OFFSET('Distribution (CALC)'!D34,MATCH('Microwave Shipments (CALC)'!$I$6,'Distribution (CALC)'!$B$7:$B$213,0)-1,0)*$N33 -> 0 | J33: =OFFSET('Distribution (CALC)'!E34,MATCH('Microwave Shipments (CALC)'!$I$6,'Distribution (CALC)'!$B$7:$B$213,0)-1,0)*$N33 -> 13023147.88 | K33: =OFFSET('Distribution (CALC)'!F34,MATCH('Microwave Shipments (CALC)'!$I$6,'Distribution (CALC)'!$B$7:$B$213,0)-1,0)*$N33 -> 3094609.396 | L33: =OFFSET('Distribution (CALC)'!G34,MATCH('Microwave Shipments (CALC)'!$I$6,'Distribution (CALC)'!$B$7:$B$213,0)-1,0)*$N33 -> 0 | M33: =OFFSET('Distribution (CALC)'!H34,MATCH('Microwave Shipments (CALC)'!$I$6,'Distribution (CALC)'!$B$7:$B$213,0)-1,0)*$N33 -> 0 | N33: 16117757.27 | O33: =OFFSET('Distribution (CALC)'!D34,MATCH('Microwave Shipments (CALC)'!$O$6,'Distribution (CALC)'!$B$7:$B$213,0)-1,0)*$T33 -> 0 | P33: =OFFSET('Distribution (CALC)'!E34,MATCH('Microwave Shipments (CALC)'!$O$6,'Distribution (CALC)'!$B$7:$B$213,0)-1,0)*$T33 -> 0 | Q33: =OFFSET('Distribution (CALC)'!F34,MATCH('Microwave Shipments (CALC)'!$O$6,'Distribution (CALC)'!$B$7:$B$213,0)-1,0)*$T33 -> 16109319.37 | R33: =OFFSET('Distribution (CALC)'!G34,MATCH('Microwave Shipments (CALC)'!$O$6,'Distribution (CALC)'!$B$7:$B$213,0)-1,0)*$T33 -> 0 | S33: =OFFSET('Distribution (CALC)'!H34,MATCH('Microwave Shipments (CALC)'!$O$6,'Distribution (CALC)'!$B$7:$B$213,0)-1,0)*$T33 -> 0 | T33: 16109319.37 | U33: =OFFSET('Distribution (CALC)'!D34,MATCH('Microwave Shipments (CALC)'!$U$6,'Distribution (CALC)'!$B$7:$B$213,0)-1,0)*$Z33 -> 0 | V33: =OFFSET('Distribution (CALC)'!E34,MATCH('Microwave Shipments (CALC)'!$U$6,'Distribution (CALC)'!$B$7:$B$213,0)-1,0)*$Z33 -> 0 | W33: =OFFSET('Distribution (CALC)'!F34,MATCH('Microwave Shipments (CALC)'!$U$6,'Distribution (CALC)'!$B$7:$B$213,0)-1,0)*$Z33 -> 0 | X33: =OFFSET('Distribution (CALC)'!G34,MATCH('Microwave Shipments (CALC)'!$U$6,'Distribution (CALC)'!$B$7:$B$213,0)-1,0)*$Z33 -> 16086369.85 | Y33: =OFFSET('Distribution (CALC)'!H34,MATCH('Microwave Shipments (CALC)'!$U$6,'Distribution (CALC)'!$B$7:$B$213,0)-1,0)*$Z33 -> 0 | Z33: 16086369.85 | AA33: =OFFSET('Distribution (CALC)'!D34,MATCH('Microwave Shipments (CALC)'!$AA$6,'Distribution (CALC)'!$B$7:$B$213,0)-1,0)*$AF33 -> 0 | AB33: =OFFSET('Distribution (CALC)'!E34,MATCH('Microwave Shipments (CALC)'!$AA$6,'Distribution (CALC)'!$B$7:$B$213,0)-1,0)*$AF33 -> 0 | AC33: =OFFSET('Distribution (CALC)'!F34,MATCH('Microwave Shipments (CALC)'!$AA$6,'Distribution (CALC)'!$B$7:$B$213,0)-1,0)*$AF33 -> 0 | AD33: =OFFSET('Distribution (CALC)'!G34,MATCH('Microwave Shipments (CALC)'!$AA$6,'Distribution (CALC)'!$B$7:$B$213,0)-1,0)*$AF33 -> 0 | AE33: =OFFSET('Distribution (CALC)'!H34,MATCH('Microwave Shipments (CALC)'!$AA$6,'Distribution (CALC)'!$B$7:$B$213,0)-1,0)*$AF33 -> 15980778.91 | AF33: 15980778.91
B34: 2032 | C34: =OFFSET('Distribution (CALC)'!D35,MATCH('Microwave Shipments (CALC)'!$C$6,'Distribution (CALC)'!$B$7:$B$213,0)-1,0)*$H34 -> 7580280.358 | D34: =OFFSET('Distribution (CALC)'!E35,MATCH('Microwave Shipments (CALC)'!$C$6,'Distribution (CALC)'!$B$7:$B$213,0)-1,0)*$H34 -> 5677006.502 | E34: =OFFSET('Distribution (CALC)'!F35,MATCH('Microwave Shipments (CALC)'!$C$6,'Distribution (CALC)'!$B$7:$B$213,0)-1,0)*$H34 -> 3150246.383 | F34: =OFFSET('Distribution (CALC)'!G35,MATCH('Microwave Shipments (CALC)'!$C$6,'Distribution (CALC)'!$B$7:$B$213,0)-1,0)*$H34 -> 0 | G34: =OFFSET('Distribution (CALC)'!H35,MATCH('Microwave Shipments (CALC)'!$C$6,'Distribution (CALC)'!$B$7:$B$213,0)-1,0)*$H34 -> 0 | H34: 16407533.24 | I34: =OFFSET('Distribution (CALC)'!D35,MATCH('Microwave Shipments (CALC)'!$I$6,'Distribution (CALC)'!$B$7:$B$213,0)-1,0)*$N34 -> 0 | J34: =OFFSET('Distribution (CALC)'!E35,MATCH('Microwave Shipments (CALC)'!$I$6,'Distribution (CALC)'!$B$7:$B$213,0)-1,0)*$N34 -> 13254251.89 | K34: =OFFSET('Distribution (CALC)'!F35,MATCH('Microwave Shipments (CALC)'!$I$6,'Distribution (CALC)'!$B$7:$B$213,0)-1,0)*$N34 -> 3149525.201 | L34: =OFFSET('Distribution (CALC)'!G35,MATCH('Microwave Shipments (CALC)'!$I$6,'Distribution (CALC)'!$B$7:$B$213,0)-1,0)*$N34 -> 0 | M34: =OFFSET('Distribution (CALC)'!H35,MATCH('Microwave Shipments (CALC)'!$I$6,'Distribution (CALC)'!$B$7:$B$213,0)-1,0)*$N34 -> 0 | N34: 16403777.09 | O34: =OFFSET('Distribution (CALC)'!D35,MATCH('Microwave Shipments (CALC)'!$O$6,'Distribution (CALC)'!$B$7:$B$213,0)-1,0)*$T34 -> 0 | P34: =OFFSET('Distribution (CALC)'!E35,MATCH('Microwave Shipments (CALC)'!$O$6,'Distribution (CALC)'!$B$7:$B$213,0)-1,0)*$T34 -> 0 | Q34: =OFFSET('Distribution (CALC)'!F35,MATCH('Microwave Shipments (CALC)'!$O$6,'Distribution (CALC)'!$B$7:$B$213,0)-1,0)*$T34 -> 16394529.43 | R34: =OFFSET('Distribution (CALC)'!G35,MATCH('Microwave Shipments (CALC)'!$O$6,'Distribution (CALC)'!$B$7:$B$213,0)-1,0)*$T34 -> 0 | S34: =OFFSET('Distribution (CALC)'!H35,MATCH('Microwave Shipments (CALC)'!$O$6,'Distribution (CALC)'!$B$7:$B$213,0)-1,0)*$T34 -> 0 | T34: 16394529.43 | U34: =OFFSET('Distribution (CALC)'!D35,MATCH('Microwave Shipments (CALC)'!$U$6,'Distribution (CALC)'!$B$7:$B$213,0)-1,0)*$Z34 -> 0 | V34: =OFFSET('Distribution (CALC)'!E35,MATCH('Microwave Shipments (CALC)'!$U$6,'Distribution (CALC)'!$B$7:$B$213,0)-1,0)*$Z34 -> 0 | W34: =OFFSET('Distribution (CALC)'!F35,MATCH('Microwave Shipments (CALC)'!$U$6,'Distribution (CALC)'!$B$7:$B$213,0)-1,0)*$Z34 -> 0 | X34: =OFFSET('Distribution (CALC)'!G35,MATCH('Microwave Shipments (CALC)'!$U$6,'Distribution (CALC)'!$B$7:$B$213,0)-1,0)*$Z34 -> 16369378.27 | Y34: =OFFSET('Distribution (CALC)'!H35,MATCH('Microwave Shipments (CALC)'!$U$6,'Distribution (CALC)'!$B$7:$B$213,0)-1,0)*$Z34 -> 0 | Z34: 16369378.27 | AA34: =OFFSET('Distribution (CALC)'!D35,MATCH('Microwave Shipments (CALC)'!$AA$6,'Distribution (CALC)'!$B$7:$B$213,0)-1,0)*$AF34 -> 0 | AB34: =OFFSET('Distribution (CALC)'!E35,MATCH('Microwave Shipments (CALC)'!$AA$6,'Distribution (CALC)'!$B$7:$B$213,0)-1,0)*$AF34 -> 0 | AC34: =OFFSET('Distribution (CALC)'!F35,MATCH('Microwave Shipments (CALC)'!$AA$6,'Distribution (CALC)'!$B$7:$B$213,0)-1,0)*$AF34 -> 0 | AD34: =OFFSET('Distribution (CALC)'!G35,MATCH('Microwave Shipments (CALC)'!$AA$6,'Distribution (CALC)'!$B$7:$B$213,0)-1,0)*$AF34 -> 0 | AE34: =OFFSET('Distribution (CALC)'!H35,MATCH('Microwave Shipments (CALC)'!$AA$6,'Distribution (CALC)'!$B$7:$B$213,0)-1,0)*$AF34 -> 16253689.73 | AF34: 16253689.73
B35: 2033 | C35: =OFFSET('Distribution (CALC)'!D36,MATCH('Microwave Shipments (CALC)'!$C$6,'Distribution (CALC)'!$B$7:$B$213,0)-1,0)*$H35 -> 7665823.105 | D35: =OFFSET('Distribution (CALC)'!E36,MATCH('Microwave Shipments (CALC)'!$C$6,'Distribution (CALC)'!$B$7:$B$213,0)-1,0)*$H35 -> 5741070.983 | E35: =OFFSET('Distribution (CALC)'!F36,MATCH('Microwave Shipments (CALC)'!$C$6,'Distribution (CALC)'!$B$7:$B$213,0)-1,0)*$H35 -> 3185796.615 | F35: =OFFSET('Distribution (CALC)'!G36,MATCH('Microwave Shipments (CALC)'!$C$6,'Distribution (CALC)'!$B$7:$B$213,0)-1,0)*$H35 -> 0 | G35: =OFFSET('Distribution (CALC)'!H36,MATCH('Microwave Shipments (CALC)'!$C$6,'Distribution (CALC)'!$B$7:$B$213,0)-1,0)*$H35 -> 0 | H35: 16592690.7 | I35: =OFFSET('Distribution (CALC)'!D36,MATCH('Microwave Shipments (CALC)'!$I$6,'Distribution (CALC)'!$B$7:$B$213,0)-1,0)*$N35 -> 0 | J35: =OFFSET('Distribution (CALC)'!E36,MATCH('Microwave Shipments (CALC)'!$I$6,'Distribution (CALC)'!$B$7:$B$213,0)-1,0)*$N35 -> 13403587.06 | K35: =OFFSET('Distribution (CALC)'!F36,MATCH('Microwave Shipments (CALC)'!$I$6,'Distribution (CALC)'!$B$7:$B$213,0)-1,0)*$N35 -> 3185010.786 | L35: =OFFSET('Distribution (CALC)'!G36,MATCH('Microwave Shipments (CALC)'!$I$6,'Distribution (CALC)'!$B$7:$B$213,0)-1,0)*$N35 -> 0 | M35: =OFFSET('Distribution (CALC)'!H36,MATCH('Microwave Shipments (CALC)'!$I$6,'Distribution (CALC)'!$B$7:$B$213,0)-1,0)*$N35 -> 0 | N35: 16588597.84 | O35: =OFFSET('Distribution (CALC)'!D36,MATCH('Microwave Shipments (CALC)'!$O$6,'Distribution (CALC)'!$B$7:$B$213,0)-1,0)*$T35 -> 0 | P35: =OFFSET('Distribution (CALC)'!E36,MATCH('Microwave Shipments (CALC)'!$O$6,'Distribution (CALC)'!$B$7:$B$213,0)-1,0)*$T35 -> 0 | Q35: =OFFSET('Distribution (CALC)'!F36,MATCH('Microwave Shipments (CALC)'!$O$6,'Distribution (CALC)'!$B$7:$B$213,0)-1,0)*$T35 -> 16578521.73 | R35: =OFFSET('Distribution (CALC)'!G36,MATCH('Microwave Shipments (CALC)'!$O$6,'Distribution (CALC)'!$B$7:$B$213,0)-1,0)*$T35 -> 0 | S35: =OFFSET('Distribution (CALC)'!H36,MATCH('Microwave Shipments (CALC)'!$O$6,'Distribution (CALC)'!$B$7:$B$213,0)-1,0)*$T35 -> 0 | T35: 16578521.73 | U35: =OFFSET('Distribution (CALC)'!D36,MATCH('Microwave Shipments (CALC)'!$U$6,'Distribution (CALC)'!$B$7:$B$213,0)-1,0)*$Z35 -> 0 | V35: =OFFSET('Distribution (CALC)'!E36,MATCH('Microwave Shipments (CALC)'!$U$6,'Distribution (CALC)'!$B$7:$B$213,0)-1,0)*$Z35 -> 0 | W35: =OFFSET('Distribution (CALC)'!F36,MATCH('Microwave Shipments (CALC)'!$U$6,'Distribution (CALC)'!$B$7:$B$213,0)-1,0)*$Z35 -> 0 | X35: =OFFSET('Distribution (CALC)'!G36,MATCH('Microwave Shipments (CALC)'!$U$6,'Distribution (CALC)'!$B$7:$B$213,0)-1,0)*$Z35 -> 16551119.27 | Y35: =OFFSET('Distribution (CALC)'!H36,MATCH('Microwave Shipments (CALC)'!$U$6,'Distribution (CALC)'!$B$7:$B$213,0)-1,0)*$Z35 -> 0 | Z35: 16551119.27 | AA35: =OFFSET('Distribution (CALC)'!D36,MATCH('Microwave Shipments (CALC)'!$AA$6,'Distribution (CALC)'!$B$7:$B$213,0)-1,0)*$AF35 -> 0 | AB35: =OFFSET('Distribution (CALC)'!E36,MATCH('Microwave Shipments (CALC)'!$AA$6,'Distribution (CALC)'!$B$7:$B$213,0)-1,0)*$AF35 -> 0 | AC35: =OFFSET('Distribution (CALC)'!F36,MATCH('Microwave Shipments (CALC)'!$AA$6,'Distribution (CALC)'!$B$7:$B$213,0)-1,0)*$AF35 -> 0 | AD35: =OFFSET('Distribution (CALC)'!G36,MATCH('Microwave Shipments (CALC)'!$AA$6,'Distribution (CALC)'!$B$7:$B$213,0)-1,0)*$AF35 -> 0 | AE35: =OFFSET('Distribution (CALC)'!H36,MATCH('Microwave Shipments (CALC)'!$AA$6,'Distribution (CALC)'!$B$7:$B$213,0)-1,0)*$AF35 -> 16425109.57 | AF35: 16425109.57
B36: 2034 | C36: =OFFSET('Distribution (CALC)'!D37,MATCH('Microwave Shipments (CALC)'!$C$6,'Distribution (CALC)'!$B$7:$B$213,0)-1,0)*$H36 -> 7677580.989 | D36: =OFFSET('Distribution (CALC)'!E37,MATCH('Microwave Shipments (CALC)'!$C$6,'Distribution (CALC)'!$B$7:$B$213,0)-1,0)*$H36 -> 5749876.671 | E36: =OFFSET('Distribution (CALC)'!F37,MATCH('Microwave Shipments (CALC)'!$C$6,'Distribution (CALC)'!$B$7:$B$213,0)-1,0)*$H36 -> 3190683.008 | F36: =OFFSET('Distribution (CALC)'!G37,MATCH('Microwave Shipments (CALC)'!$C$6,'Distribution (CALC)'!$B$7:$B$213,0)-1,0)*$H36 -> 0 | G36: =OFFSET('Distribution (CALC)'!H37,MATCH('Microwave Shipments (CALC)'!$C$6,'Distribution (CALC)'!$B$7:$B$213,0)-1,0)*$H36 -> 0 | H36: 16618140.67 | I36: =OFFSET('Distribution (CALC)'!D37,MATCH('Microwave Shipments (CALC)'!$I$6,'Distribution (CALC)'!$B$7:$B$213,0)-1,0)*$N36 -> 0 | J36: =OFFSET('Distribution (CALC)'!E37,MATCH('Microwave Shipments (CALC)'!$I$6,'Distribution (CALC)'!$B$7:$B$213,0)-1,0)*$N36 -> 13423924.5 | K36: =OFFSET('Distribution (CALC)'!F37,MATCH('Microwave Shipments (CALC)'!$I$6,'Distribution (CALC)'!$B$7:$B$213,0)-1,0)*$N36 -> 3189843.446 | L36: =OFFSET('Distribution (CALC)'!G37,MATCH('Microwave Shipments (CALC)'!$I$6,'Distribution (CALC)'!$B$7:$B$213,0)-1,0)*$N36 -> 0 | M36: =OFFSET('Distribution (CALC)'!H37,MATCH('Microwave Shipments (CALC)'!$I$6,'Distribution (CALC)'!$B$7:$B$213,0)-1,0)*$N36 -> 0 | N36: 16613767.95 | O36: =OFFSET('Distribution (CALC)'!D37,MATCH('Microwave Shipments (CALC)'!$O$6,'Distribution (CALC)'!$B$7:$B$213,0)-1,0)*$T36 -> 0 | P36: =OFFSET('Distribution (CALC)'!E37,MATCH('Microwave Shipments (CALC)'!$O$6,'Distribution (CALC)'!$B$7:$B$213,0)-1,0)*$T36 -> 0 | Q36: =OFFSET('Distribution (CALC)'!F37,MATCH('Microwave Shipments (CALC)'!$O$6,'Distribution (CALC)'!$B$7:$B$213,0)-1,0)*$T36 -> 16602998.07 | R36: =OFFSET('Distribution (CALC)'!G37,MATCH('Microwave Shipments (CALC)'!$O$6,'Distribution (CALC)'!$B$7:$B$213,0)-1,0)*$T36 -> 0 | S36: =OFFSET('Distribution (CALC)'!H37,MATCH('Microwave Shipments (CALC)'!$O$6,'Distribution (CALC)'!$B$7:$B$213,0)-1,0)*$T36 -> 0 | T36: 16602998.07 | U36: =OFFSET('Distribution (CALC)'!D37,MATCH('Microwave Shipments (CALC)'!$U$6,'Distribution (CALC)'!$B$7:$B$213,0)-1,0)*$Z36 -> 0 | V36: =OFFSET('Distribution (CALC)'!E37,MATCH('Microwave Shipments (CALC)'!$U$6,'Distribution (CALC)'!$B$7:$B$213,0)-1,0)*$Z36 -> 0 | W36: =OFFSET('Distribution (CALC)'!F37,MATCH('Microwave Shipments (CALC)'!$U$6,'Distribution (CALC)'!$B$7:$B$213,0)-1,0)*$Z36 -> 0 | X36: =OFFSET('Distribution (CALC)'!G37,MATCH('Microwave Shipments (CALC)'!$U$6,'Distribution (CALC)'!$B$7:$B$213,0)-1,0)*$Z36 -> 16573708.78 | Y36: =OFFSET('Distribution (CALC)'!H37,MATCH('Microwave Shipments (CALC)'!$U$6,'Distribution (CALC)'!$B$7:$B$213,0)-1,0)*$Z36 -> 0 | Z36: 16573708.78 | AA36: =OFFSET('Distribution (CALC)'!D37,MATCH('Microwave Shipments (CALC)'!$AA$6,'Distribution (CALC)'!$B$7:$B$213,0)-1,0)*$AF36 -> 0 | AB36: =OFFSET('Distribution (CALC)'!E37,MATCH('Microwave Shipments (CALC)'!$AA$6,'Distribution (CALC)'!$B$7:$B$213,0)-1,0)*$AF36 -> 0 | AC36: =OFFSET('Distribution (CALC)'!F37,MATCH('Microwave Shipments (CALC)'!$AA$6,'Distribution (CALC)'!$B$7:$B$213,0)-1,0)*$AF36 -> 0 | AD36: =OFFSET('Distribution (CALC)'!G37,MATCH('Microwave Shipments (CALC)'!$AA$6,'Distribution (CALC)'!$B$7:$B$213,0)-1,0)*$AF36 -> 0 | AE36: =OFFSET('Distribution (CALC)'!H37,MATCH('Microwave Shipments (CALC)'!$AA$6,'Distribution (CALC)'!$B$7:$B$213,0)-1,0)*$AF36 -> 16439047.32 | AF36: 16439047.32
B37: 2035 | C37: =OFFSET('Distribution (CALC)'!D38,MATCH('Microwave Shipments (CALC)'!$C$6,'Distribution (CALC)'!$B$7:$B$213,0)-1,0)*$H37 -> 7629194.751 | D37: =OFFSET('Distribution (CALC)'!E38,MATCH('Microwave Shipments (CALC)'!$C$6,'Distribution (CALC)'!$B$7:$B$213,0)-1,0)*$H37 -> 5713639.359 | E37: =OFFSET('Distribution (CALC)'!F38,MATCH('Microwave Shipments (CALC)'!$C$6,'Distribution (CALC)'!$B$7:$B$213,0)-1,0)*$H37 -> 3170574.442 | F37: =OFFSET('Distribution (CALC)'!G38,MATCH('Microwave Shipments (CALC)'!$C$6,'Distribution (CALC)'!$B$7:$B$213,0)-1,0)*$H37 -> 0 | G37: =OFFSET('Distribution (CALC)'!H38,MATCH('Microwave Shipments (CALC)'!$C$6,'Distribution (CALC)'!$B$7:$B$213,0)-1,0)*$H37 -> 0 | H37: 16513408.55 | I37: =OFFSET('Distribution (CALC)'!D38,MATCH('Microwave Shipments (CALC)'!$I$6,'Distribution (CALC)'!$B$7:$B$213,0)-1,0)*$N37 -> 0 | J37: =OFFSET('Distribution (CALC)'!E38,MATCH('Microwave Shipments (CALC)'!$I$6,'Distribution (CALC)'!$B$7:$B$213,0)-1,0)*$N37 -> 13339172.31 | K37: =OFFSET('Distribution (CALC)'!F38,MATCH('Microwave Shipments (CALC)'!$I$6,'Distribution (CALC)'!$B$7:$B$213,0)-1,0)*$N37 -> 3169704.31 | L37: =OFFSET('Distribution (CALC)'!G38,MATCH('Microwave Shipments (CALC)'!$I$6,'Distribution (CALC)'!$B$7:$B$213,0)-1,0)*$N37 -> 0 | M37: =OFFSET('Distribution (CALC)'!H38,MATCH('Microwave Shipments (CALC)'!$I$6,'Distribution (CALC)'!$B$7:$B$213,0)-1,0)*$N37 -> 0 | N37: 16508876.62 | O37: =OFFSET('Distribution (CALC)'!D38,MATCH('Microwave Shipments (CALC)'!$O$6,'Distribution (CALC)'!$B$7:$B$213,0)-1,0)*$T37 -> 0 | P37: =OFFSET('Distribution (CALC)'!E38,MATCH('Microwave Shipments (CALC)'!$O$6,'Distribution (CALC)'!$B$7:$B$213,0)-1,0)*$T37 -> 0 | Q37: =OFFSET('Distribution (CALC)'!F38,MATCH('Microwave Shipments (CALC)'!$O$6,'Distribution (CALC)'!$B$7:$B$213,0)-1,0)*$T37 -> 16497703.11 | R37: =OFFSET('Distribution (CALC)'!G38,MATCH('Microwave Shipments (CALC)'!$O$6,'Distribution (CALC)'!$B$7:$B$213,0)-1,0)*$T37 -> 0 | S37: =OFFSET('Distribution (CALC)'!H38,MATCH('Microwave Shipments (CALC)'!$O$6,'Distribution (CALC)'!$B$7:$B$213,0)-1,0)*$T37 -> 0 | T37: 16497703.11 | U37: =OFFSET('Distribution (CALC)'!D38,MATCH('Microwave Shipments (CALC)'!$U$6,'Distribution (CALC)'!$B$7:$B$213,0)-1,0)*$Z37 -> 0 | V37: =OFFSET('Distribution (CALC)'!E38,MATCH('Microwave Shipments (CALC)'!$U$6,'Distribution (CALC)'!$B$7:$B$213,0)-1,0)*$Z37 -> 0 | W37: =OFFSET('Distribution (CALC)'!F38,MATCH('Microwave Shipments (CALC)'!$U$6,'Distribution (CALC)'!$B$7:$B$213,0)-1,0)*$Z37 -> 0 | X37: =OFFSET('Distribution (CALC)'!G38,MATCH('Microwave Shipments (CALC)'!$U$6,'Distribution (CALC)'!$B$7:$B$213,0)-1,0)*$Z37 -> 16467313.39 | Y37: =OFFSET('Distribution (CALC)'!H38,MATCH('Microwave Shipments (CALC)'!$U$6,'Distribution (CALC)'!$B$7:$B$213,0)-1,0)*$Z37 -> 0 | Z37: 16467313.39 | AA37: =OFFSET('Distribution (CALC)'!D38,MATCH('Microwave Shipments (CALC)'!$AA$6,'Distribution (CALC)'!$B$7:$B$213,0)-1,0)*$AF37 -> 0 | AB37: =OFFSET('Distribution (CALC)'!E38,MATCH('Microwave Shipments (CALC)'!$AA$6,'Distribution (CALC)'!$B$7:$B$213,0)-1,0)*$AF37 -> 0 | AC37: =OFFSET('Distribution (CALC)'!F38,MATCH('Microwave Shipments (CALC)'!$AA$6,'Distribution (CALC)'!$B$7:$B$213,0)-1,0)*$AF37 -> 0 | AD37: =OFFSET('Distribution (CALC)'!G38,MATCH('Microwave Shipments (CALC)'!$AA$6,'Distribution (CALC)'!$B$7:$B$213,0)-1,0)*$AF37 -> 0 | AE37: =OFFSET('Distribution (CALC)'!H38,MATCH('Microwave Shipments (CALC)'!$AA$6,'Distribution (CALC)'!$B$7:$B$213,0)-1,0)*$AF37 -> 16327602.95 | AF37: 16327602.95
B38: 2036 | C38: =OFFSET('Distribution (CALC)'!D39,MATCH('Microwave Shipments (CALC)'!$C$6,'Distribution (CALC)'!$B$7:$B$213,0)-1,0)*$H38 -> 7570675.427 | D38: =OFFSET('Distribution (CALC)'!E39,MATCH('Microwave Shipments (CALC)'!$C$6,'Distribution (CALC)'!$B$7:$B$213,0)-1,0)*$H38 -> 5669813.198 | E38: =OFFSET('Distribution (CALC)'!F39,MATCH('Microwave Shipments (CALC)'!$C$6,'Distribution (CALC)'!$B$7:$B$213,0)-1,0)*$H38 -> 3146254.723 | F38: =OFFSET('Distribution (CALC)'!G39,MATCH('Microwave Shipments (CALC)'!$C$6,'Distribution (CALC)'!$B$7:$B$213,0)-1,0)*$H38 -> 0 | G38: =OFFSET('Distribution (CALC)'!H39,MATCH('Microwave Shipments (CALC)'!$C$6,'Distribution (CALC)'!$B$7:$B$213,0)-1,0)*$H38 -> 0 | H38: 16386743.35 | I38: =OFFSET('Distribution (CALC)'!D39,MATCH('Microwave Shipments (CALC)'!$I$6,'Distribution (CALC)'!$B$7:$B$213,0)-1,0)*$N38 -> 0 | J38: =OFFSET('Distribution (CALC)'!E39,MATCH('Microwave Shipments (CALC)'!$I$6,'Distribution (CALC)'!$B$7:$B$213,0)-1,0)*$N38 -> 13236803.22 | K38: =OFFSET('Distribution (CALC)'!F39,MATCH('Microwave Shipments (CALC)'!$I$6,'Distribution (CALC)'!$B$7:$B$213,0)-1,0)*$N38 -> 3145378.983 | L38: =OFFSET('Distribution (CALC)'!G39,MATCH('Microwave Shipments (CALC)'!$I$6,'Distribution (CALC)'!$B$7:$B$213,0)-1,0)*$N38 -> 0 | M38: =OFFSET('Distribution (CALC)'!H39,MATCH('Microwave Shipments (CALC)'!$I$6,'Distribution (CALC)'!$B$7:$B$213,0)-1,0)*$N38 -> 0 | N38: 16382182.21 | O38: =OFFSET('Distribution (CALC)'!D39,MATCH('Microwave Shipments (CALC)'!$O$6,'Distribution (CALC)'!$B$7:$B$213,0)-1,0)*$T38 -> 0 | P38: =OFFSET('Distribution (CALC)'!E39,MATCH('Microwave Shipments (CALC)'!$O$6,'Distribution (CALC)'!$B$7:$B$213,0)-1,0)*$T38 -> 0 | Q38: =OFFSET('Distribution (CALC)'!F39,MATCH('Microwave Shipments (CALC)'!$O$6,'Distribution (CALC)'!$B$7:$B$213,0)-1,0)*$T38 -> 16370916.74 | R38: =OFFSET('Distribution (CALC)'!G39,MATCH('Microwave Shipments (CALC)'!$O$6,'Distribution (CALC)'!$B$7:$B$213,0)-1,0)*$T38 -> 0 | S38: =OFFSET('Distribution (CALC)'!H39,MATCH('Microwave Shipments (CALC)'!$O$6,'Distribution (CALC)'!$B$7:$B$213,0)-1,0)*$T38 -> 0 | T38: 16370916.74 | U38: =OFFSET('Distribution (CALC)'!D39,MATCH('Microwave Shipments (CALC)'!$U$6,'Distribution (CALC)'!$B$7:$B$213,0)-1,0)*$Z38 -> 0 | V38: =OFFSET('Distribution (CALC)'!E39,MATCH('Microwave Shipments (CALC)'!$U$6,'Distribution (CALC)'!$B$7:$B$213,0)-1,0)*$Z38 -> 0 | W38: =OFFSET('Distribution (CALC)'!F39,MATCH('Microwave Shipments (CALC)'!$U$6,'Distribution (CALC)'!$B$7:$B$213,0)-1,0)*$Z38 -> 0 | X38: =OFFSET('Distribution (CALC)'!G39,MATCH('Microwave Shipments (CALC)'!$U$6,'Distribution (CALC)'!$B$7:$B$213,0)-1,0)*$Z38 -> 16340270.99 | Y38: =OFFSET('Distribution (CALC)'!H39,MATCH('Microwave Shipments (CALC)'!$U$6,'Distribution (CALC)'!$B$7:$B$213,0)-1,0)*$Z38 -> 0 | Z38: 16340270.99 | AA38: =OFFSET('Distribution (CALC)'!D39,MATCH('Microwave Shipments (CALC)'!$AA$6,'Distribution (CALC)'!$B$7:$B$213,0)-1,0)*$AF38 -> 0 | AB38: =OFFSET('Distribution (CALC)'!E39,MATCH('Microwave Shipments (CALC)'!$AA$6,'Distribution (CALC)'!$B$7:$B$213,0)-1,0)*$AF38 -> 0 | AC38: =OFFSET('Distribution (CALC)'!F39,MATCH('Microwave Shipments (CALC)'!$AA$6,'Distribution (CALC)'!$B$7:$B$213,0)-1,0)*$AF38 -> 0 | AD38: =OFFSET('Distribution (CALC)'!G39,MATCH('Microwave Shipments (CALC)'!$AA$6,'Distribution (CALC)'!$B$7:$B$213,0)-1,0)*$AF38 -> 0 | AE38: =OFFSET('Distribution (CALC)'!H39,MATCH('Microwave Shipments (CALC)'!$AA$6,'Distribution (CALC)'!$B$7:$B$213,0)-1,0)*$AF38 -> 16199378.68 | AF38: 16199378.68
B39: 2037 | C39: =OFFSET('Distribution (CALC)'!D40,MATCH('Microwave Shipments (CALC)'!$C$6,'Distribution (CALC)'!$B$7:$B$213,0)-1,0)*$H39 -> 7540630.294 | D39: =OFFSET('Distribution (CALC)'!E40,MATCH('Microwave Shipments (CALC)'!$C$6,'Distribution (CALC)'!$B$7:$B$213,0)-1,0)*$H39 -> 5647311.865 | E39: =OFFSET('Distribution (CALC)'!F40,MATCH('Microwave Shipments (CALC)'!$C$6,'Distribution (CALC)'!$B$7:$B$213,0)-1,0)*$H39 -> 3133768.434 | F39: =OFFSET('Distribution (CALC)'!G40,MATCH('Microwave Shipments (CALC)'!$C$6,'Distribution (CALC)'!$B$7:$B$213,0)-1,0)*$H39 -> 0 | G39: =OFFSET('Distribution (CALC)'!H40,MATCH('Microwave Shipments (CALC)'!$C$6,'Distribution (CALC)'!$B$7:$B$213,0)-1,0)*$H39 -> 0 | H39: 16321710.59 | I39: =OFFSET('Distribution (CALC)'!D40,MATCH('Microwave Shipments (CALC)'!$I$6,'Distribution (CALC)'!$B$7:$B$213,0)-1,0)*$N39 -> 0 | J39: =OFFSET('Distribution (CALC)'!E40,MATCH('Microwave Shipments (CALC)'!$I$6,'Distribution (CALC)'!$B$7:$B$213,0)-1,0)*$N39 -> 13184295.68 | K39: =OFFSET('Distribution (CALC)'!F40,MATCH('Microwave Shipments (CALC)'!$I$6,'Distribution (CALC)'!$B$7:$B$213,0)-1,0)*$N39 -> 3132901.943 | L39: =OFFSET('Distribution (CALC)'!G40,MATCH('Microwave Shipments (CALC)'!$I$6,'Distribution (CALC)'!$B$7:$B$213,0)-1,0)*$N39 -> 0 | M39: =OFFSET('Distribution (CALC)'!H40,MATCH('Microwave Shipments (CALC)'!$I$6,'Distribution (CALC)'!$B$7:$B$213,0)-1,0)*$N39 -> 0 | N39: 16317197.62 | O39: =OFFSET('Distribution (CALC)'!D40,MATCH('Microwave Shipments (CALC)'!$O$6,'Distribution (CALC)'!$B$7:$B$213,0)-1,0)*$T39 -> 0 | P39: =OFFSET('Distribution (CALC)'!E40,MATCH('Microwave Shipments (CALC)'!$O$6,'Distribution (CALC)'!$B$7:$B$213,0)-1,0)*$T39 -> 0 | Q39: =OFFSET('Distribution (CALC)'!F40,MATCH('Microwave Shipments (CALC)'!$O$6,'Distribution (CALC)'!$B$7:$B$213,0)-1,0)*$T39 -> 16306024.13 | R39: =OFFSET('Distribution (CALC)'!G40,MATCH('Microwave Shipments (CALC)'!$O$6,'Distribution (CALC)'!$B$7:$B$213,0)-1,0)*$T39 -> 0 | S39: =OFFSET('Distribution (CALC)'!H40,MATCH('Microwave Shipments (CALC)'!$O$6,'Distribution (CALC)'!$B$7:$B$213,0)-1,0)*$T39 -> 0 | T39: 16306024.13 | U39: =OFFSET('Distribution (CALC)'!D40,MATCH('Microwave Shipments (CALC)'!$U$6,'Distribution (CALC)'!$B$7:$B$213,0)-1,0)*$Z39 -> 0 | V39: =OFFSET('Distribution (CALC)'!E40,MATCH('Microwave Shipments (CALC)'!$U$6,'Distribution (CALC)'!$B$7:$B$213,0)-1,0)*$Z39 -> 0 | W39: =OFFSET('Distribution (CALC)'!F40,MATCH('Microwave Shipments (CALC)'!$U$6,'Distribution (CALC)'!$B$7:$B$213,0)-1,0)*$Z39 -> 0 | X39: =OFFSET('Distribution (CALC)'!G40,MATCH('Microwave Shipments (CALC)'!$U$6,'Distribution (CALC)'!$B$7:$B$213,0)-1,0)*$Z39 -> 16275620.21 | Y39: =OFFSET('Distribution (CALC)'!H40,MATCH('Microwave Shipments (CALC)'!$U$6,'Distribution (CALC)'!$B$7:$B$213,0)-1,0)*$Z39 -> 0 | Z39: 16275620.21 | AA39: =OFFSET('Distribution (CALC)'!D40,MATCH('Microwave Shipments (CALC)'!$AA$6,'Distribution (CALC)'!$B$7:$B$213,0)-1,0)*$AF39 -> 0 | AB39: =OFFSET('Distribution (CALC)'!E40,MATCH('Microwave Shipments (CALC)'!$AA$6,'Distribution (CALC)'!$B$7:$B$213,0)-1,0)*$AF39 -> 0 | AC39: =OFFSET('Distribution (CALC)'!F40,MATCH('Microwave Shipments (CALC)'!$AA$6,'Distribution (CALC)'!$B$7:$B$213,0)-1,0)*$AF39 -> 0 | AD39: =OFFSET('Distribution (CALC)'!G40,MATCH('Microwave Shipments (CALC)'!$AA$6,'Distribution (CALC)'!$B$7:$B$213,0)-1,0)*$AF39 -> 0 | AE39: =OFFSET('Distribution (CALC)'!H40,MATCH('Microwave Shipments (CALC)'!$AA$6,'Distribution (CALC)'!$B$7:$B$213,0)-1,0)*$AF39 -> 16135825.26 | AF39: 16135825.26
B40: 2038 | C40: =OFFSET('Distribution (CALC)'!D41,MATCH('Microwave Shipments (CALC)'!$C$6,'Distribution (CALC)'!$B$7:$B$213,0)-1,0)*$H40 -> 7561462.716 | D40: =OFFSET('Distribution (CALC)'!E41,MATCH('Microwave Shipments (CALC)'!$C$6,'Distribution (CALC)'!$B$7:$B$213,0)-1,0)*$H40 -> 5662913.636 | E40: =OFFSET('Distribution (CALC)'!F41,MATCH('Microwave Shipments (CALC)'!$C$6,'Distribution (CALC)'!$B$7:$B$213,0)-1,0)*$H40 -> 3142426.064 | F40: =OFFSET('Distribution (CALC)'!G41,MATCH('Microwave Shipments (CALC)'!$C$6,'Distribution (CALC)'!$B$7:$B$213,0)-1,0)*$H40 -> 0 | G40: =OFFSET('Distribution (CALC)'!H41,MATCH('Microwave Shipments (CALC)'!$C$6,'Distribution (CALC)'!$B$7:$B$213,0)-1,0)*$H40 -> 0 | H40: 16366802.42 | I40: =OFFSET('Distribution (CALC)'!D41,MATCH('Microwave Shipments (CALC)'!$I$6,'Distribution (CALC)'!$B$7:$B$213,0)-1,0)*$N40 -> 0 | J40: =OFFSET('Distribution (CALC)'!E41,MATCH('Microwave Shipments (CALC)'!$I$6,'Distribution (CALC)'!$B$7:$B$213,0)-1,0)*$N40 -> 13220760.29 | K40: =OFFSET('Distribution (CALC)'!F41,MATCH('Microwave Shipments (CALC)'!$I$6,'Distribution (CALC)'!$B$7:$B$213,0)-1,0)*$N40 -> 3141566.801 | L40: =OFFSET('Distribution (CALC)'!G41,MATCH('Microwave Shipments (CALC)'!$I$6,'Distribution (CALC)'!$B$7:$B$213,0)-1,0)*$N40 -> 0 | M40: =OFFSET('Distribution (CALC)'!H41,MATCH('Microwave Shipments (CALC)'!$I$6,'Distribution (CALC)'!$B$7:$B$213,0)-1,0)*$N40 -> 0 | N40: 16362327.09 | O40: =OFFSET('Distribution (CALC)'!D41,MATCH('Microwave Shipments (CALC)'!$O$6,'Distribution (CALC)'!$B$7:$B$213,0)-1,0)*$T40 -> 0 | P40: =OFFSET('Distribution (CALC)'!E41,MATCH('Microwave Shipments (CALC)'!$O$6,'Distribution (CALC)'!$B$7:$B$213,0)-1,0)*$T40 -> 0 | Q40: =OFFSET('Distribution (CALC)'!F41,MATCH('Microwave Shipments (CALC)'!$O$6,'Distribution (CALC)'!$B$7:$B$213,0)-1,0)*$T40 -> 16351217.33 | R40: =OFFSET('Distribution (CALC)'!G41,MATCH('Microwave Shipments (CALC)'!$O$6,'Distribution (CALC)'!$B$7:$B$213,0)-1,0)*$T40 -> 0 | S40: =OFFSET('Distribution (CALC)'!H41,MATCH('Microwave Shipments (CALC)'!$O$6,'Distribution (CALC)'!$B$7:$B$213,0)-1,0)*$T40 -> 0 | T40: 16351217.33 | U40: =OFFSET('Distribution (CALC)'!D41,MATCH('Microwave Shipments (CALC)'!$U$6,'Distribution (CALC)'!$B$7:$B$213,0)-1,0)*$Z40 -> 0 | V40: =OFFSET('Distribution (CALC)'!E41,MATCH('Microwave Shipments (CALC)'!$U$6,'Distribution (CALC)'!$B$7:$B$213,0)-1,0)*$Z40 -> 0 | W40: =OFFSET('Distribution (CALC)'!F41,MATCH('Microwave Shipments (CALC)'!$U$6,'Distribution (CALC)'!$B$7:$B$213,0)-1,0)*$Z40 -> 0 | X40: =OFFSET('Distribution (CALC)'!G41,MATCH('Microwave Shipments (CALC)'!$U$6,'Distribution (CALC)'!$B$7:$B$213,0)-1,0)*$Z40 -> 16320977.79 | Y40: =OFFSET('Distribution (CALC)'!H41,MATCH('Microwave Shipments (CALC)'!$U$6,'Distribution (CALC)'!$B$7:$B$213,0)-1,0)*$Z40 -> 0 | Z40: 16320977.79 | AA40: =OFFSET('Distribution (CALC)'!D41,MATCH('Microwave Shipments (CALC)'!$AA$6,'Distribution (CALC)'!$B$7:$B$213,0)-1,0)*$AF40 -> 0 | AB40: =OFFSET('Distribution (CALC)'!E41,MATCH('Microwave Shipments (CALC)'!$AA$6,'Distribution (CALC)'!$B$7:$B$213,0)-1,0)*$AF40 -> 0 | AC40: =OFFSET('Distribution (CALC)'!F41,MATCH('Microwave Shipments (CALC)'!$AA$6,'Distribution (CALC)'!$B$7:$B$213,0)-1,0)*$AF40 -> 0 | AD40: =OFFSET('Distribution (CALC)'!G41,MATCH('Microwave Shipments (CALC)'!$AA$6,'Distribution (CALC)'!$B$7:$B$213,0)-1,0)*$AF40 -> 0 | AE40: =OFFSET('Distribution (CALC)'!H41,MATCH('Microwave Shipments (CALC)'!$AA$6,'Distribution (CALC)'!$B$7:$B$213,0)-1,0)*$AF40 -> 16181924.74 | AF40: 16181924.74
B41: 2039 | C41: =OFFSET('Distribution (CALC)'!D42,MATCH('Microwave Shipments (CALC)'!$C$6,'Distribution (CALC)'!$B$7:$B$213,0)-1,0)*$H41 -> 7639019.976 | D41: =OFFSET('Distribution (CALC)'!E42,MATCH('Microwave Shipments (CALC)'!$C$6,'Distribution (CALC)'!$B$7:$B$213,0)-1,0)*$H41 -> 5720997.645 | E41: =OFFSET('Distribution (CALC)'!F42,MATCH('Microwave Shipments (CALC)'!$C$6,'Distribution (CALC)'!$B$7:$B$213,0)-1,0)*$H41 -> 3174657.652 | F41: =OFFSET('Distribution (CALC)'!G42,MATCH('Microwave Shipments (CALC)'!$C$6,'Distribution (CALC)'!$B$7:$B$213,0)-1,0)*$H41 -> 0 | G41: =OFFSET('Distribution (CALC)'!H42,MATCH('Microwave Shipments (CALC)'!$C$6,'Distribution (CALC)'!$B$7:$B$213,0)-1,0)*$H41 -> 0 | H41: 16534675.27 | I41: =OFFSET('Distribution (CALC)'!D42,MATCH('Microwave Shipments (CALC)'!$I$6,'Distribution (CALC)'!$B$7:$B$213,0)-1,0)*$N41 -> 0 | J41: =OFFSET('Distribution (CALC)'!E42,MATCH('Microwave Shipments (CALC)'!$I$6,'Distribution (CALC)'!$B$7:$B$213,0)-1,0)*$N41 -> 13356366.24 | K41: =OFFSET('Distribution (CALC)'!F42,MATCH('Microwave Shipments (CALC)'!$I$6,'Distribution (CALC)'!$B$7:$B$213,0)-1,0)*$N41 -> 3173789.999 | L41: =OFFSET('Distribution (CALC)'!G42,MATCH('Microwave Shipments (CALC)'!$I$6,'Distribution (CALC)'!$B$7:$B$213,0)-1,0)*$N41 -> 0 | M41: =OFFSET('Distribution (CALC)'!H42,MATCH('Microwave Shipments (CALC)'!$I$6,'Distribution (CALC)'!$B$7:$B$213,0)-1,0)*$N41 -> 0 | N41: 16530156.24 | O41: =OFFSET('Distribution (CALC)'!D42,MATCH('Microwave Shipments (CALC)'!$O$6,'Distribution (CALC)'!$B$7:$B$213,0)-1,0)*$T41 -> 0 | P41: =OFFSET('Distribution (CALC)'!E42,MATCH('Microwave Shipments (CALC)'!$O$6,'Distribution (CALC)'!$B$7:$B$213,0)-1,0)*$T41 -> 0 | Q41: =OFFSET('Distribution (CALC)'!F42,MATCH('Microwave Shipments (CALC)'!$O$6,'Distribution (CALC)'!$B$7:$B$213,0)-1,0)*$T41 -> 16518911.28 | R41: =OFFSET('Distribution (CALC)'!G42,MATCH('Microwave Shipments (CALC)'!$O$6,'Distribution (CALC)'!$B$7:$B$213,0)-1,0)*$T41 -> 0 | S41: =OFFSET('Distribution (CALC)'!H42,MATCH('Microwave Shipments (CALC)'!$O$6,'Distribution (CALC)'!$B$7:$B$213,0)-1,0)*$T41 -> 0 | T41: 16518911.28 | U41: =OFFSET('Distribution (CALC)'!D42,MATCH('Microwave Shipments (CALC)'!$U$6,'Distribution (CALC)'!$B$7:$B$213,0)-1,0)*$Z41 -> 0 | V41: =OFFSET('Distribution (CALC)'!E42,MATCH('Microwave Shipments (CALC)'!$U$6,'Distribution (CALC)'!$B$7:$B$213,0)-1,0)*$Z41 -> 0 | W41: =OFFSET('Distribution (CALC)'!F42,MATCH('Microwave Shipments (CALC)'!$U$6,'Distribution (CALC)'!$B$7:$B$213,0)-1,0)*$Z41 -> 0 | X41: =OFFSET('Distribution (CALC)'!G42,MATCH('Microwave Shipments (CALC)'!$U$6,'Distribution (CALC)'!$B$7:$B$213,0)-1,0)*$Z41 -> 16488296.03 | Y41: =OFFSET('Distribution (CALC)'!H42,MATCH('Microwave Shipments (CALC)'!$U$6,'Distribution (CALC)'!$B$7:$B$213,0)-1,0)*$Z41 -> 0 | Z41: 16488296.03 | AA41: =OFFSET('Distribution (CALC)'!D42,MATCH('Microwave Shipments (CALC)'!$AA$6,'Distribution (CALC)'!$B$7:$B$213,0)-1,0)*$AF41 -> 0 | AB41: =OFFSET('Distribution (CALC)'!E42,MATCH('Microwave Shipments (CALC)'!$AA$6,'Distribution (CALC)'!$B$7:$B$213,0)-1,0)*$AF41 -> 0 | AC41: =OFFSET('Distribution (CALC)'!F42,MATCH('Microwave Shipments (CALC)'!$AA$6,'Distribution (CALC)'!$B$7:$B$213,0)-1,0)*$AF41 -> 0 | AD41: =OFFSET('Distribution (CALC)'!G42,MATCH('Microwave Shipments (CALC)'!$AA$6,'Distribution (CALC)'!$B$7:$B$213,0)-1,0)*$AF41 -> 0 | AE41: =OFFSET('Distribution (CALC)'!H42,MATCH('Microwave Shipments (CALC)'!$AA$6,'Distribution (CALC)'!$B$7:$B$213,0)-1,0)*$AF41 -> 16347511.54 | AF41: 16347511.54
B42: 2040 | C42: =OFFSET('Distribution (CALC)'!D43,MATCH('Microwave Shipments (CALC)'!$C$6,'Distribution (CALC)'!$B$7:$B$213,0)-1,0)*$H42 -> 7755961.218 | D42: =OFFSET('Distribution (CALC)'!E43,MATCH('Microwave Shipments (CALC)'!$C$6,'Distribution (CALC)'!$B$7:$B$213,0)-1,0)*$H42 -> 5808577.016 | E42: =OFFSET('Distribution (CALC)'!F43,MATCH('Microwave Shipments (CALC)'!$C$6,'Distribution (CALC)'!$B$7:$B$213,0)-1,0)*$H42 -> 3223256.61 | F42: =OFFSET('Distribution (CALC)'!G43,MATCH('Microwave Shipments (CALC)'!$C$6,'Distribution (CALC)'!$B$7:$B$213,0)-1,0)*$H42 -> 0 | G42: =OFFSET('Distribution (CALC)'!H43,MATCH('Microwave Shipments (CALC)'!$C$6,'Distribution (CALC)'!$B$7:$B$213,0)-1,0)*$H42 -> 0 | H42: 16787794.84 | I42: =OFFSET('Distribution (CALC)'!D43,MATCH('Microwave Shipments (CALC)'!$I$6,'Distribution (CALC)'!$B$7:$B$213,0)-1,0)*$N42 -> 0 | J42: =OFFSET('Distribution (CALC)'!E43,MATCH('Microwave Shipments (CALC)'!$I$6,'Distribution (CALC)'!$B$7:$B$213,0)-1,0)*$N42 -> 13560768.06 | K42: =OFFSET('Distribution (CALC)'!F43,MATCH('Microwave Shipments (CALC)'!$I$6,'Distribution (CALC)'!$B$7:$B$213,0)-1,0)*$N42 -> 3222360.728 | L42: =OFFSET('Distribution (CALC)'!G43,MATCH('Microwave Shipments (CALC)'!$I$6,'Distribution (CALC)'!$B$7:$B$213,0)-1,0)*$N42 -> 0 | M42: =OFFSET('Distribution (CALC)'!H43,MATCH('Microwave Shipments (CALC)'!$I$6,'Distribution (CALC)'!$B$7:$B$213,0)-1,0)*$N42 -> 0 | N42: 16783128.79 | O42: =OFFSET('Distribution (CALC)'!D43,MATCH('Microwave Shipments (CALC)'!$O$6,'Distribution (CALC)'!$B$7:$B$213,0)-1,0)*$T42 -> 0 | P42: =OFFSET('Distribution (CALC)'!E43,MATCH('Microwave Shipments (CALC)'!$O$6,'Distribution (CALC)'!$B$7:$B$213,0)-1,0)*$T42 -> 0 | Q42: =OFFSET('Distribution (CALC)'!F43,MATCH('Microwave Shipments (CALC)'!$O$6,'Distribution (CALC)'!$B$7:$B$213,0)-1,0)*$T42 -> 16771497.36 | R42: =OFFSET('Distribution (CALC)'!G43,MATCH('Microwave Shipments (CALC)'!$O$6,'Distribution (CALC)'!$B$7:$B$213,0)-1,0)*$T42 -> 0 | S42: =OFFSET('Distribution (CALC)'!H43,MATCH('Microwave Shipments (CALC)'!$O$6,'Distribution (CALC)'!$B$7:$B$213,0)-1,0)*$T42 -> 0 | T42: 16771497.36 | U42: =OFFSET('Distribution (CALC)'!D43,MATCH('Microwave Shipments (CALC)'!$U$6,'Distribution (CALC)'!$B$7:$B$213,0)-1,0)*$Z42 -> 0 | V42: =OFFSET('Distribution (CALC)'!E43,MATCH('Microwave Shipments (CALC)'!$U$6,'Distribution (CALC)'!$B$7:$B$213,0)-1,0)*$Z42 -> 0 | W42: =OFFSET('Distribution (CALC)'!F43,MATCH('Microwave Shipments (CALC)'!$U$6,'Distribution (CALC)'!$B$7:$B$213,0)-1,0)*$Z42 -> 0 | X42: =OFFSET('Distribution (CALC)'!G43,MATCH('Microwave Shipments (CALC)'!$U$6,'Distribution (CALC)'!$B$7:$B$213,0)-1,0)*$Z42 -> 16739824.66 | Y42: =OFFSET('Distribution (CALC)'!H43,MATCH('Microwave Shipments (CALC)'!$U$6,'Distribution (CALC)'!$B$7:$B$213,0)-1,0)*$Z42 -> 0 | Z42: 16739824.66 | AA42: =OFFSET('Distribution (CALC)'!D43,MATCH('Microwave Shipments (CALC)'!$AA$6,'Distribution (CALC)'!$B$7:$B$213,0)-1,0)*$AF42 -> 0 | AB42: =OFFSET('Distribution (CALC)'!E43,MATCH('Microwave Shipments (CALC)'!$AA$6,'Distribution (CALC)'!$B$7:$B$213,0)-1,0)*$AF42 -> 0 | AC42: =OFFSET('Distribution (CALC)'!F43,MATCH('Microwave Shipments (CALC)'!$AA$6,'Distribution (CALC)'!$B$7:$B$213,0)-1,0)*$AF42 -> 0 | AD42: =OFFSET('Distribution (CALC)'!G43,MATCH('Microwave Shipments (CALC)'!$AA$6,'Distribution (CALC)'!$B$7:$B$213,0)-1,0)*$AF42 -> 0 | AE42: =OFFSET('Distribution (CALC)'!H43,MATCH('Microwave Shipments (CALC)'!$AA$6,'Distribution (CALC)'!$B$7:$B$213,0)-1,0)*$AF42 -> 16594188.28 | AF42: 16594188.28
B43: 2041 | C43: =OFFSET('Distribution (CALC)'!D44,MATCH('Microwave Shipments (CALC)'!$C$6,'Distribution (CALC)'!$B$7:$B$213,0)-1,0)*$H43 -> 7880070.112 | D43: =OFFSET('Distribution (CALC)'!E44,MATCH('Microwave Shipments (CALC)'!$C$6,'Distribution (CALC)'!$B$7:$B$213,0)-1,0)*$H43 -> 5901524.369 | E43: =OFFSET('Distribution (CALC)'!F44,MATCH('Microwave Shipments (CALC)'!$C$6,'Distribution (CALC)'!$B$7:$B$213,0)-1,0)*$H43 -> 3274834.332 | F43: =OFFSET('Distribution (CALC)'!G44,MATCH('Microwave Shipments (CALC)'!$C$6,'Distribution (CALC)'!$B$7:$B$213,0)-1,0)*$H43 -> 0 | G43: =OFFSET('Distribution (CALC)'!H44,MATCH('Microwave Shipments (CALC)'!$C$6,'Distribution (CALC)'!$B$7:$B$213,0)-1,0)*$H43 -> 0 | H43: 17056428.81 | I43: =OFFSET('Distribution (CALC)'!D44,MATCH('Microwave Shipments (CALC)'!$I$6,'Distribution (CALC)'!$B$7:$B$213,0)-1,0)*$N43 -> 0 | J43: =OFFSET('Distribution (CALC)'!E44,MATCH('Microwave Shipments (CALC)'!$I$6,'Distribution (CALC)'!$B$7:$B$213,0)-1,0)*$N43 -> 13777640.23 | K43: =OFFSET('Distribution (CALC)'!F44,MATCH('Microwave Shipments (CALC)'!$I$6,'Distribution (CALC)'!$B$7:$B$213,0)-1,0)*$N43 -> 3273894.708 | L43: =OFFSET('Distribution (CALC)'!G44,MATCH('Microwave Shipments (CALC)'!$I$6,'Distribution (CALC)'!$B$7:$B$213,0)-1,0)*$N43 -> 0 | M43: =OFFSET('Distribution (CALC)'!H44,MATCH('Microwave Shipments (CALC)'!$I$6,'Distribution (CALC)'!$B$7:$B$213,0)-1,0)*$N43 -> 0 | N43: 17051534.94 | O43: =OFFSET('Distribution (CALC)'!D44,MATCH('Microwave Shipments (CALC)'!$O$6,'Distribution (CALC)'!$B$7:$B$213,0)-1,0)*$T43 -> 0 | P43: =OFFSET('Distribution (CALC)'!E44,MATCH('Microwave Shipments (CALC)'!$O$6,'Distribution (CALC)'!$B$7:$B$213,0)-1,0)*$T43 -> 0 | Q43: =OFFSET('Distribution (CALC)'!F44,MATCH('Microwave Shipments (CALC)'!$O$6,'Distribution (CALC)'!$B$7:$B$213,0)-1,0)*$T43 -> 17039321.29 | R43: =OFFSET('Distribution (CALC)'!G44,MATCH('Microwave Shipments (CALC)'!$O$6,'Distribution (CALC)'!$B$7:$B$213,0)-1,0)*$T43 -> 0 | S43: =OFFSET('Distribution (CALC)'!H44,MATCH('Microwave Shipments (CALC)'!$O$6,'Distribution (CALC)'!$B$7:$B$213,0)-1,0)*$T43 -> 0 | T43: 17039321.29 | U43: =OFFSET('Distribution (CALC)'!D44,MATCH('Microwave Shipments (CALC)'!$U$6,'Distribution (CALC)'!$B$7:$B$213,0)-1,0)*$Z43 -> 0 | V43: =OFFSET('Distribution (CALC)'!E44,MATCH('Microwave Shipments (CALC)'!$U$6,'Distribution (CALC)'!$B$7:$B$213,0)-1,0)*$Z43 -> 0 | W43: =OFFSET('Distribution (CALC)'!F44,MATCH('Microwave Shipments (CALC)'!$U$6,'Distribution (CALC)'!$B$7:$B$213,0)-1,0)*$Z43 -> 0 | X43: =OFFSET('Distribution (CALC)'!G44,MATCH('Microwave Shipments (CALC)'!$U$6,'Distribution (CALC)'!$B$7:$B$213,0)-1,0)*$Z43 -> 17006060.37 | Y43: =OFFSET('Distribution (CALC)'!H44,MATCH('Microwave Shipments (CALC)'!$U$6,'Distribution (CALC)'!$B$7:$B$213,0)-1,0)*$Z43 -> 0 | Z43: 17006060.37 | AA43: =OFFSET('Distribution (CALC)'!D44,MATCH('Microwave Shipments (CALC)'!$AA$6,'Distribution (CALC)'!$B$7:$B$213,0)-1,0)*$AF43 -> 0 | AB43: =OFFSET('Distribution (CALC)'!E44,MATCH('Microwave Shipments (CALC)'!$AA$6,'Distribution (CALC)'!$B$7:$B$213,0)-1,0)*$AF43 -> 0 | AC43: =OFFSET('Distribution (CALC)'!F44,MATCH('Microwave Shipments (CALC)'!$AA$6,'Distribution (CALC)'!$B$7:$B$213,0)-1,0)*$AF43 -> 0 | AD43: =OFFSET('Distribution (CALC)'!G44,MATCH('Microwave Shipments (CALC)'!$AA$6,'Distribution (CALC)'!$B$7:$B$213,0)-1,0)*$AF43 -> 0 | AE43: =OFFSET('Distribution (CALC)'!H44,MATCH('Microwave Shipments (CALC)'!$AA$6,'Distribution (CALC)'!$B$7:$B$213,0)-1,0)*$AF43 -> 16853144.57 | AF43: 16853144.57
B44: 2042 | C44: =OFFSET('Distribution (CALC)'!D45,MATCH('Microwave Shipments (CALC)'!$C$6,'Distribution (CALC)'!$B$7:$B$213,0)-1,0)*$H44 -> 7980687.89 | D44: =OFFSET('Distribution (CALC)'!E45,MATCH('Microwave Shipments (CALC)'!$C$6,'Distribution (CALC)'!$B$7:$B$213,0)-1,0)*$H44 -> 5976878.809 | E44: =OFFSET('Distribution (CALC)'!F45,MATCH('Microwave Shipments (CALC)'!$C$6,'Distribution (CALC)'!$B$7:$B$213,0)-1,0)*$H44 -> 3316649.513 | F44: =OFFSET('Distribution (CALC)'!G45,MATCH('Microwave Shipments (CALC)'!$C$6,'Distribution (CALC)'!$B$7:$B$213,0)-1,0)*$H44 -> 0 | G44: =OFFSET('Distribution (CALC)'!H45,MATCH('Microwave Shipments (CALC)'!$C$6,'Distribution (CALC)'!$B$7:$B$213,0)-1,0)*$H44 -> 0 | H44: 17274216.21 | I44: =OFFSET('Distribution (CALC)'!D45,MATCH('Microwave Shipments (CALC)'!$I$6,'Distribution (CALC)'!$B$7:$B$213,0)-1,0)*$N44 -> 0 | J44: =OFFSET('Distribution (CALC)'!E45,MATCH('Microwave Shipments (CALC)'!$I$6,'Distribution (CALC)'!$B$7:$B$213,0)-1,0)*$N44 -> 13953399.61 | K44: =OFFSET('Distribution (CALC)'!F45,MATCH('Microwave Shipments (CALC)'!$I$6,'Distribution (CALC)'!$B$7:$B$213,0)-1,0)*$N44 -> 3315659.313 | L44: =OFFSET('Distribution (CALC)'!G45,MATCH('Microwave Shipments (CALC)'!$I$6,'Distribution (CALC)'!$B$7:$B$213,0)-1,0)*$N44 -> 0 | M44: =OFFSET('Distribution (CALC)'!H45,MATCH('Microwave Shipments (CALC)'!$I$6,'Distribution (CALC)'!$B$7:$B$213,0)-1,0)*$N44 -> 0 | N44: 17269058.92 | O44: =OFFSET('Distribution (CALC)'!D45,MATCH('Microwave Shipments (CALC)'!$O$6,'Distribution (CALC)'!$B$7:$B$213,0)-1,0)*$T44 -> 0 | P44: =OFFSET('Distribution (CALC)'!E45,MATCH('Microwave Shipments (CALC)'!$O$6,'Distribution (CALC)'!$B$7:$B$213,0)-1,0)*$T44 -> 0 | Q44: =OFFSET('Distribution (CALC)'!F45,MATCH('Microwave Shipments (CALC)'!$O$6,'Distribution (CALC)'!$B$7:$B$213,0)-1,0)*$T44 -> 17256177.53 | R44: =OFFSET('Distribution (CALC)'!G45,MATCH('Microwave Shipments (CALC)'!$O$6,'Distribution (CALC)'!$B$7:$B$213,0)-1,0)*$T44 -> 0 | S44: =OFFSET('Distribution (CALC)'!H45,MATCH('Microwave Shipments (CALC)'!$O$6,'Distribution (CALC)'!$B$7:$B$213,0)-1,0)*$T44 -> 0 | T44: 17256177.53 | U44: =OFFSET('Distribution (CALC)'!D45,MATCH('Microwave Shipments (CALC)'!$U$6,'Distribution (CALC)'!$B$7:$B$213,0)-1,0)*$Z44 -> 0 | V44: =OFFSET('Distribution (CALC)'!E45,MATCH('Microwave Shipments (CALC)'!$U$6,'Distribution (CALC)'!$B$7:$B$213,0)-1,0)*$Z44 -> 0 | W44: =OFFSET('Distribution (CALC)'!F45,MATCH('Microwave Shipments (CALC)'!$U$6,'Distribution (CALC)'!$B$7:$B$213,0)-1,0)*$Z44 -> 0 | X44: =OFFSET('Distribution (CALC)'!G45,MATCH('Microwave Shipments (CALC)'!$U$6,'Distribution (CALC)'!$B$7:$B$213,0)-1,0)*$Z44 -> 17221096.81 | Y44: =OFFSET('Distribution (CALC)'!H45,MATCH('Microwave Shipments (CALC)'!$U$6,'Distribution (CALC)'!$B$7:$B$213,0)-1,0)*$Z44 -> 0 | Z44: 17221096.81 | AA44: =OFFSET('Distribution (CALC)'!D45,MATCH('Microwave Shipments (CALC)'!$AA$6,'Distribution (CALC)'!$B$7:$B$213,0)-1,0)*$AF44 -> 0 | AB44: =OFFSET('Distribution (CALC)'!E45,MATCH('Microwave Shipments (CALC)'!$AA$6,'Distribution (CALC)'!$B$7:$B$213,0)-1,0)*$AF44 -> 0 | AC44: =OFFSET('Distribution (CALC)'!F45,MATCH('Microwave Shipments (CALC)'!$AA$6,'Distribution (CALC)'!$B$7:$B$213,0)-1,0)*$AF44 -> 0 | AD44: =OFFSET('Distribution (CALC)'!G45,MATCH('Microwave Shipments (CALC)'!$AA$6,'Distribution (CALC)'!$B$7:$B$213,0)-1,0)*$AF44 -> 0 | AE44: =OFFSET('Distribution (CALC)'!H45,MATCH('Microwave Shipments (CALC)'!$AA$6,'Distribution (CALC)'!$B$7:$B$213,0)-1,0)*$AF44 -> 17059844.57 | AF44: 17059844.57
B45: 2043 | C45: =OFFSET('Distribution (CALC)'!D46,MATCH('Microwave Shipments (CALC)'!$C$6,'Distribution (CALC)'!$B$7:$B$213,0)-1,0)*$H45 -> 8041475.534 | D45: =OFFSET('Distribution (CALC)'!E46,MATCH('Microwave Shipments (CALC)'!$C$6,'Distribution (CALC)'!$B$7:$B$213,0)-1,0)*$H45 -> 6022403.755 | E45: =OFFSET('Distribution (CALC)'!F46,MATCH('Microwave Shipments (CALC)'!$C$6,'Distribution (CALC)'!$B$7:$B$213,0)-1,0)*$H45 -> 3341911.91 | F45: =OFFSET('Distribution (CALC)'!G46,MATCH('Microwave Shipments (CALC)'!$C$6,'Distribution (CALC)'!$B$7:$B$213,0)-1,0)*$H45 -> 0 | G45: =OFFSET('Distribution (CALC)'!H46,MATCH('Microwave Shipments (CALC)'!$C$6,'Distribution (CALC)'!$B$7:$B$213,0)-1,0)*$H45 -> 0 | H45: 17405791.2 | I45: =OFFSET('Distribution (CALC)'!D46,MATCH('Microwave Shipments (CALC)'!$I$6,'Distribution (CALC)'!$B$7:$B$213,0)-1,0)*$N45 -> 0 | J45: =OFFSET('Distribution (CALC)'!E46,MATCH('Microwave Shipments (CALC)'!$I$6,'Distribution (CALC)'!$B$7:$B$213,0)-1,0)*$N45 -> 14059509.75 | K45: =OFFSET('Distribution (CALC)'!F46,MATCH('Microwave Shipments (CALC)'!$I$6,'Distribution (CALC)'!$B$7:$B$213,0)-1,0)*$N45 -> 3340873.603 | L45: =OFFSET('Distribution (CALC)'!G46,MATCH('Microwave Shipments (CALC)'!$I$6,'Distribution (CALC)'!$B$7:$B$213,0)-1,0)*$N45 -> 0 | M45: =OFFSET('Distribution (CALC)'!H46,MATCH('Microwave Shipments (CALC)'!$I$6,'Distribution (CALC)'!$B$7:$B$213,0)-1,0)*$N45 -> 0 | N45: 17400383.35 | O45: =OFFSET('Distribution (CALC)'!D46,MATCH('Microwave Shipments (CALC)'!$O$6,'Distribution (CALC)'!$B$7:$B$213,0)-1,0)*$T45 -> 0 | P45: =OFFSET('Distribution (CALC)'!E46,MATCH('Microwave Shipments (CALC)'!$O$6,'Distribution (CALC)'!$B$7:$B$213,0)-1,0)*$T45 -> 0 | Q45: =OFFSET('Distribution (CALC)'!F46,MATCH('Microwave Shipments (CALC)'!$O$6,'Distribution (CALC)'!$B$7:$B$213,0)-1,0)*$T45 -> 17386866.04 | R45: =OFFSET('Distribution (CALC)'!G46,MATCH('Microwave Shipments (CALC)'!$O$6,'Distribution (CALC)'!$B$7:$B$213,0)-1,0)*$T45 -> 0 | S45: =OFFSET('Distribution (CALC)'!H46,MATCH('Microwave Shipments (CALC)'!$O$6,'Distribution (CALC)'!$B$7:$B$213,0)-1,0)*$T45 -> 0 | T45: 17386866.04 | U45: =OFFSET('Distribution (CALC)'!D46,MATCH('Microwave Shipments (CALC)'!$U$6,'Distribution (CALC)'!$B$7:$B$213,0)-1,0)*$Z45 -> 0 | V45: =OFFSET('Distribution (CALC)'!E46,MATCH('Microwave Shipments (CALC)'!$U$6,'Distribution (CALC)'!$B$7:$B$213,0)-1,0)*$Z45 -> 0 | W45: =OFFSET('Distribution (CALC)'!F46,MATCH('Microwave Shipments (CALC)'!$U$6,'Distribution (CALC)'!$B$7:$B$213,0)-1,0)*$Z45 -> 0 | X45: =OFFSET('Distribution (CALC)'!G46,MATCH('Microwave Shipments (CALC)'!$U$6,'Distribution (CALC)'!$B$7:$B$213,0)-1,0)*$Z45 -> 17350052.11 | Y45: =OFFSET('Distribution (CALC)'!H46,MATCH('Microwave Shipments (CALC)'!$U$6,'Distribution (CALC)'!$B$7:$B$213,0)-1,0)*$Z45 -> 0 | Z45: 17350052.11 | AA45: =OFFSET('Distribution (CALC)'!D46,MATCH('Microwave Shipments (CALC)'!$AA$6,'Distribution (CALC)'!$B$7:$B$213,0)-1,0)*$AF45 -> 0 | AB45: =OFFSET('Distribution (CALC)'!E46,MATCH('Microwave Shipments (CALC)'!$AA$6,'Distribution (CALC)'!$B$7:$B$213,0)-1,0)*$AF45 -> 0 | AC45: =OFFSET('Distribution (CALC)'!F46,MATCH('Microwave Shipments (CALC)'!$AA$6,'Distribution (CALC)'!$B$7:$B$213,0)-1,0)*$AF45 -> 0 | AD45: =OFFSET('Distribution (CALC)'!G46,MATCH('Microwave Shipments (CALC)'!$AA$6,'Distribution (CALC)'!$B$7:$B$213,0)-1,0)*$AF45 -> 0 | AE45: =OFFSET('Distribution (CALC)'!H46,MATCH('Microwave Shipments (CALC)'!$AA$6,'Distribution (CALC)'!$B$7:$B$213,0)-1,0)*$AF45 -> 17180862.02 | AF45: 17180862.02
A49: PC 2
C51: =CO_EL_Baseline -> 4.5 | I51: =CO_EL_EL1 -> 3.7 | O51: =CO_EL_EL2 -> 2.7 | U51: =CO_EL_EL3 -> 2.2 | AA51: =CO_EL_EL4 -> 0.04
C52: Annual Shipments by EL (units) | I52: Annual Shipments by EL (units) | O52: Annual Shipments by EL (units) | U52: Annual Shipments by EL (units) | AA52: Annual Shipments by EL (units)
B53: Year | C53: =CO_EL_Baseline -> 4.5 | D53: =CO_EL_EL1 -> 3.7 | E53: =CO_EL_EL2 -> 2.7 | F53: =CO_EL_EL3 -> 2.2 | G53: =CO_EL_EL4 -> 0.04 | H53: Total | I53: =CO_EL_Baseline -> 4.5 | J53: =CO_EL_EL1 -> 3.7 | K53: =CO_EL_EL2 -> 2.7 | L53: =CO_EL_EL3 -> 2.2 | M53: =CO_EL_EL4 -> 0.04 | N53: Total | O53: =CO_EL_Baseline -> 4.5 | P53: =CO_EL_EL1 -> 3.7 | Q53: =CO_EL_EL2 -> 2.7 | R53: =CO_EL_EL3 -> 2.2 | S53: =CO_EL_EL4 -> 0.04 | T53: Total | U53: =CO_EL_Baseline -> 4.5 | V53: =CO_EL_EL1 -> 3.7 | W53: =CO_EL_EL2 -> 2.7 | X53: =CO_EL_EL3 -> 2.2 | Y53: =CO_EL_EL4 -> 0.04 | Z53: Total | AA53: =CO_EL_Baseline -> 4.5 | AB53: =CO_EL_EL1 -> 3.7 | AC53: =CO_EL_EL2 -> 2.7 | AD53: =CO_EL_EL3 -> 2.2 | AE53: =CO_EL_EL4 -> 0.04 | AF53: Total
B54: 2007 | C54: =OFFSET('Distribution (CALC)'!O10,MATCH('Microwave Shipments (CALC)'!$C$51,'Distribution (CALC)'!$M$7:$M$213,0)-1,0)*$H54 -> 118510 | D54: =OFFSET('Distribution (CALC)'!P10,MATCH('Microwave Shipments (CALC)'!$C$51,'Distribution (CALC)'!$M$7:$M$213,0)-1,0)*$H54 -> 0 | E54: =OFFSET('Distribution (CALC)'!Q10,MATCH('Microwave Shipments (CALC)'!$C$51,'Distribution (CALC)'!$M$7:$M$213,0)-1,0)*$H54 -> 0 | F54: =OFFSET('Distribution (CALC)'!R10,MATCH('Microwave Shipments (CALC)'!$C$51,'Distribution (CALC)'!$M$7:$M$213,0)-1,0)*$H54 -> 0 | G54: =OFFSET('Distribution (CALC)'!S10,MATCH('Microwave Shipments (CALC)'!$C$51,'Distribution (CALC)'!$M$7:$M$213,0)-1,0)*$H54 -> 0 | H54: =IF(Economic_Scenario="reference",VLOOKUP($B54,CO_Shipments_ReferenceCase,2),IF(Economic_Scenario="high",VLOOKUP($B54,CO_Shipments_ReferenceCase,3),VLOOKUP($B54,CO_Shipments_ReferenceCase,4))) -> 118510 | I54: =OFFSET('Distribution (CALC)'!O10,MATCH('Microwave Shipments (CALC)'!$I$51,'Distribution (CALC)'!$M$7:$M$213,0)-1,0)*$N54 -> 118510 | J54: =OFFSET('Distribution (CALC)'!P10,MATCH('Microwave Shipments (CALC)'!$I$51,'Distribution (CALC)'!$M$7:$M$213,0)-1,0)*$N54 -> 0 | K54: =OFFSET('Distribution (CALC)'!Q10,MATCH('Microwave Shipments (CALC)'!$I$51,'Distribution (CALC)'!$M$7:$M$213,0)-1,0)*$N54 -> 0 | L54: =OFFSET('Distribution (CALC)'!R10,MATCH('Microwave Shipments (CALC)'!$I$51,'Distribution (CALC)'!$M$7:$M$213,0)-1,0)*$N54 -> 0 | M54: =OFFSET('Distribution (CALC)'!S10,MATCH('Microwave Shipments (CALC)'!$I$51,'Distribution (CALC)'!$M$7:$M$213,0)-1,0)*$N54 -> 0 | N54: =IF(ShipmentElasticity_Scenario="none",H54,IF(Economic_Scenario="reference",VLOOKUP($B54,CO_Shipments_ReferenceCase,5),IF(Economic_Scenario="high",VLOOKUP($B54,CO_Shipments_ReferenceCase,6),VLOOKUP($B54,CO_Shipments_ReferenceCase,7)))) -> 118510 | O54: =OFFSET('Distribution (CALC)'!O10,MATCH('Microwave Shipments (CALC)'!$O$51,'Distribution (CALC)'!$M$7:$M$213,0)-1,0)*$T54 -> 118510 | P54: =OFFSET('Distribution (CALC)'!P10,MATCH('Microwave Shipments (CALC)'!$O$51,'Distribution (CALC)'!$M$7:$M$213,0)-1,0)*$T54 -> 0 | Q54: =OFFSET('Distribution (CALC)'!Q10,MATCH('Microwave Shipments (CALC)'!$O$51,'Distribution (CALC)'!$M$7:$M$213,0)-1,0)*$T54 -> 0 | R54: =OFFSET('Distribution (CALC)'!R10,MATCH('Microwave Shipments (CALC)'!$O$51,'Distribution (CALC)'!$M$7:$M$213,0)-1,0)*$T54 -> 0 | S54: =OFFSET('Distribution (CALC)'!S10,MATCH('Microwave Shipments (CALC)'!$O$51,'Distribution (CALC)'!$M$7:$M$213,0)-1,0)*$T54 -> 0 | T54: =IF(ShipmentElasticity_Scenario="none",H54,IF(Economic_Scenario="reference",VLOOKUP($B54,CO_Shipments_ReferenceCase,8),IF(Economic_Scenario="high",VLOOKUP($B54,CO_Shipments_ReferenceCase,9),VLOOKUP($B54,CO_Shipments_ReferenceCase,10)))) -> 118510 | U54: =OFFSET('Distribution (CALC)'!O10,MATCH('Microwave Shipments (CALC)'!$U$51,'Distribution (CALC)'!$M$7:$M$213,0)-1,0)*$Z54 -> 118510 | V54: =OFFSET('Distribution (CALC)'!P10,MATCH('Microwave Shipments (CALC)'!$U$51,'Distribution (CALC)'!$M$7:$M$213,0)-1,0)*$Z54 -> 0 | W54: =OFFSET('Distribution (CALC)'!Q10,MATCH('Microwave Shipments (CALC)'!$U$51,'Distribution (CALC)'!$M$7:$M$213,0)-1,0)*$Z54 -> 0 | X54: =OFFSET('Distribution (CALC)'!R10,MATCH('Microwave Shipments (CALC)'!$U$51,'Distribution (CALC)'!$M$7:$M$213,0)-1,0)*$Z54 -> 0 | Y54: =OFFSET('Distribution (CALC)'!S10,MATCH('Microwave Shipments (CALC)'!$U$51,'Distribution (CALC)'!$M$7:$M$213,0)-1,0)*$Z54 -> 0 | Z54: =IF(ShipmentElasticity_Scenario="none",H54,IF(Economic_Scenario="reference",VLOOKUP($B54,CO_Shipments_ReferenceCase,11),IF(Economic_Scenario="high",VLOOKUP($B54,CO_Shipments_ReferenceCase,12),VLOOKUP($B54,CO_Shipments_ReferenceCase,13)))) -> 118510 | AA54: =OFFSET('Distribution (CALC)'!O10,MATCH('Microwave Shipments (CALC)'!$AA$51,'Distribution (CALC)'!$M$7:$M$213,0)-1,0)*$AF54 -> 118510 | AB54: =OFFSET('Distribution (CALC)'!P10,MATCH('Microwave Shipments (CALC)'!$AA$51,'Distribution (CALC)'!$M$7:$M$213,0)-1,0)*$AF54 -> 0 | AC54: =OFFSET('Distribution (CALC)'!Q10,MATCH('Microwave Shipments (CALC)'!$AA$51,'Distribution (CALC)'!$M$7:$M$213,0)-1,0)*$AF54 -> 0 | AD54: =OFFSET('Distribution (CALC)'!R10,MATCH('Microwave Shipments (CALC)'!$AA$51,'Distribution (CALC)'!$M$7:$M$213,0)-1,0)*$AF54 -> 0 | AE54: =OFFSET('Distribution (CALC)'!S10,MATCH('Microwave Shipments (CALC)'!$AA$51,'Distribution (CALC)'!$M$7:$M$213,0)-1,0)*$AF54 -> 0 | AF54: =IF(ShipmentElasticity_Scenario="none",H54,IF(Economic_Scenario="reference",VLOOKUP($B54,CO_Shipments_ReferenceCase,14),IF(Economic_Scenario="high",VLOOKUP($B54,CO_Shipments_ReferenceCase,15),VLOOKUP($B54,CO_Shipments_ReferenceCase,16)))) -> 118510
B55: =B54+1 -> 2008 | C55: =OFFSET('Distribution (CALC)'!O11,MATCH('Microwave Shipments (CALC)'!$C$51,'Distribution (CALC)'!$M$7:$M$213,0)-1,0)*$H55 -> 113400 | D55: =OFFSET('Distribution (CALC)'!P11,MATCH('Microwave Shipments (CALC)'!$C$51,'Distribution (CALC)'!$M$7:$M$213,0)-1,0)*$H55 -> 0 | E55: =OFFSET('Distribution (CALC)'!Q11,MATCH('Microwave Shipments (CALC)'!$C$51,'Distribution (CALC)'!$M$7:$M$213,0)-1,0)*$H55 -> 0 | F55: =OFFSET('Distribution (CALC)'!R11,MATCH('Microwave Shipments (CALC)'!$C$51,'Distribution (CALC)'!$M$7:$M$213,0)-1,0)*$H55 -> 0 | G55: =OFFSET('Distribution (CALC)'!S11,MATCH('Microwave Shipments (CALC)'!$C$51,'Distribution (CALC)'!$M$7:$M$213,0)-1,0)*$H55 -> 0 | H55: 113400 | I55: =OFFSET('Distribution (CALC)'!O11,MATCH('Microwave Shipments (CALC)'!$I$51,'Distribution (CALC)'!$M$7:$M$213,0)-1,0)*$N55 -> 113400 | J55: =OFFSET('Distribution (CALC)'!P11,MATCH('Microwave Shipments (CALC)'!$I$51,'Distribution (CALC)'!$M$7:$M$213,0)-1,0)*$N55 -> 0 | K55: =OFFSET('Distribution (CALC)'!Q11,MATCH('Microwave Shipments (CALC)'!$I$51,'Distribution (CALC)'!$M$7:$M$213,0)-1,0)*$N55 -> 0 | L55: =OFFSET('Distribution (CALC)'!R11,MATCH('Microwave Shipments (CALC)'!$I$51,'Distribution (CALC)'!$M$7:$M$213,0)-1,0)*$N55 -> 0 | M55: =OFFSET('Distribution (CALC)'!S11,MATCH('Microwave Shipments (CALC)'!$I$51,'Distribution (CALC)'!$M$7:$M$213,0)-1,0)*$N55 -> 0 | N55: 113400 | O55: =OFFSET('Distribution (CALC)'!O11,MATCH('Microwave Shipments (CALC)'!$O$51,'Distribution (CALC)'!$M$7:$M$213,0)-1,0)*$T55 -> 113400 | P55: =OFFSET('Distribution (CALC)'!P11,MATCH('Microwave Shipments (CALC)'!$O$51,'Distribution (CALC)'!$M$7:$M$213,0)-1,0)*$T55 -> 0 | Q55: =OFFSET('Distribution (CALC)'!Q11,MATCH('Microwave Shipments (CALC)'!$O$51,'Distribution (CALC)'!$M$7:$M$213,0)-1,0)*$T55 -> 0 | R55: =OFFSET('Distribution (CALC)'!R11,MATCH('Microwave Shipments (CALC)'!$O$51,'Distribution (CALC)'!$M$7:$M$213,0)-1,0)*$T55 -> 0 | S55: =OFFSET('Distribution (CALC)'!S11,MATCH('Microwave Shipments (CALC)'!$O$51,'Distribution (CALC)'!$M$7:$M$213,0)-1,0)*$T55 -> 0 | T55: 113400 | U55: =OFFSET('Distribution (CALC)'!O11,MATCH('Microwave Shipments (CALC)'!$U$51,'Distribution (CALC)'!$M$7:$M$213,0)-1,0)*$Z55 -> 113400 | V55: =OFFSET('Distribution (CALC)'!P11,MATCH('Microwave Shipments (CALC)'!$U$51,'Distribution (CALC)'!$M$7:$M$213,0)-1,0)*$Z55 -> 0 | W55: =OFFSET('Distribution (CALC)'!Q11,MATCH('Microwave Shipments (CALC)'!$U$51,'Distribution (CALC)'!$M$7:$M$213,0)-1,0)*$Z55 -> 0 | X55: =OFFSET('Distribution (CALC)'!R11,MATCH('Microwave Shipments (CALC)'!$U$51,'Distribution (CALC)'!$M$7:$M$213,0)-1,0)*$Z55 -> 0 | Y55: =OFFSET('Distribution (CALC)'!S11,MATCH('Microwave Shipments (CALC)'!$U$51,'Distribution (CALC)'!$M$7:$M$213,0)-1,0)*$Z55 -> 0 | Z55: 113400 | AA55: =OFFSET('Distribution (CALC)'!O11,MATCH('Microwave Shipments (CALC)'!$AA$51,'Distribution (CALC)'!$M$7:$M$213,0)-1,0)*$AF55 -> 113400 | AB55: =OFFSET('Distribution (CALC)'!P11,MATCH('Microwave Shipments (CALC)'!$AA$51,'Distribution (CALC)'!$M$7:$M$213,0)-1,0)*$AF55 -> 0 | AC55: =OFFSET('Distribution (CALC)'!Q11,MATCH('Microwave Shipments (CALC)'!$AA$51,'Distribution (CALC)'!$M$7:$M$213,0)-1,0)*$AF55 -> 0 | AD55: =OFFSET('Distribution (CALC)'!R11,MATCH('Microwave Shipments (CALC)'!$AA$51,'Distribution (CALC)'!$M$7:$M$213,0)-1,0)*$AF55 -> 0 | AE55: =OFFSET('Distribution (CALC)'!S11,MATCH('Microwave Shipments (CALC)'!$AA$51,'Distribution (CALC)'!$M$7:$M$213,0)-1,0)*$AF55 -> 0 | AF55: 113400
B56: =B55+1 -> 2009 | C56: =OFFSET('Distribution (CALC)'!O12,MATCH('Microwave Shipments (CALC)'!$C$51,'Distribution (CALC)'!$M$7:$M$213,0)-1,0)*$H56 -> 96260 | D56: =OFFSET('Distribution (CALC)'!P12,MATCH('Microwave Shipments (CALC)'!$C$51,'Distribution (CALC)'!$M$7:$M$213,0)-1,0)*$H56 -> 0 | E56: =OFFSET('Distribution (CALC)'!Q12,MATCH('Microwave Shipments (CALC)'!$C$51,'Distribution (CALC)'!$M$7:$M$213,0)-1,0)*$H56 -> 0 | F56: =OFFSET('Distribution (CALC)'!R12,MATCH('Microwave Shipments (CALC)'!$C$51,'Distribution (CALC)'!$M$7:$M$213,0)-1,0)*$H56 -> 0 | G56: =OFFSET('Distribution (CALC)'!S12,MATCH('Microwave Shipments (CALC)'!$C$51,'Distribution (CALC)'!$M$7:$M$213,0)-1,0)*$H56 -> 0 | H56: 96260 | I56: =OFFSET('Distribution (CALC)'!O12,MATCH('Microwave Shipments (CALC)'!$I$51,'Distribution (CALC)'!$M$7:$M$213,0)-1,0)*$N56 -> 96260 | J56: =OFFSET('Distribution (CALC)'!P12,MATCH('Microwave Shipments (CALC)'!$I$51,'Distribution (CALC)'!$M$7:$M$213,0)-1,0)*$N56 -> 0 | K56: =OFFSET('Distribution (CALC)'!Q12,MATCH('Microwave Shipments (CALC)'!$I$51,'Distribution (CALC)'!$M$7:$M$213,0)-1,0)*$N56 -> 0 | L56: =OFFSET('Distribution (CALC)'!R12,MATCH('Microwave Shipments (CALC)'!$I$51,'Distribution (CALC)'!$M$7:$M$213,0)-1,0)*$N56 -> 0 | M56: =OFFSET('Distribution (CALC)'!S12,MATCH('Microwave Shipments (CALC)'!$I$51,'Distribution (CALC)'!$M$7:$M$213,0)-1,0)*$N56 -> 0 | N56: 96260 | O56: =OFFSET('Distribution (CALC)'!O12,MATCH('Microwave Shipments (CALC)'!$O$51,'Distribution (CALC)'!$M$7:$M$213,0)-1,0)*$T56 -> 96260 | P56: =OFFSET('Distribution (CALC)'!P12,MATCH('Microwave Shipments (CALC)'!$O$51,'Distribution (CALC)'!$M$7:$M$213,0)-1,0)*$T56 -> 0 | Q56: =OFFSET('Distribution (CALC)'!Q12,MATCH('Microwave Shipments (CALC)'!$O$51,'Distribution (CALC)'!$M$7:$M$213,0)-1,0)*$T56 -> 0 | R56: =OFFSET('Distribution (CALC)'!R12,MATCH('Microwave Shipments (CALC)'!$O$51,'Distribution (CALC)'!$M$7:$M$213,0)-1,0)*$T56 -> 0 | S56: =OFFSET('Distribution (CALC)'!S12,MATCH('Microwave Shipments (CALC)'!$O$51,'Distribution (CALC)'!$M$7:$M$213,0)-1,0)*$T56 -> 0 | T56: 96260 | U56: =OFFSET('Distribution (CALC)'!O12,MATCH('Microwave Shipments (CALC)'!$U$51,'Distribution (CALC)'!$M$7:$M$213,0)-1,0)*$Z56 -> 96260 | V56: =OFFSET('Distribution (CALC)'!P12,MATCH('Microwave Shipments (CALC)'!$U$51,'Distribution (CALC)'!$M$7:$M$213,0)-1,0)*$Z56 -> 0 | W56: =OFFSET('Distribution (CALC)'!Q12,MATCH('Microwave Shipments (CALC)'!$U$51,'Distribution (CALC)'!$M$7:$M$213,0)-1,0)*$Z56 -> 0 | X56: =OFFSET('Distribution (CALC)'!R12,MATCH('Microwave Shipments (CALC)'!$U$51,'Distribution (CALC)'!$M$7:$M$213,0)-1,0)*$Z56 -> 0 | Y56: =OFFSET('Distribution (CALC)'!S12,MATCH('Microwave Shipments (CALC)'!$U$51,'Distribution (CALC)'!$M$7:$M$213,0)-1,0)*$Z56 -> 0 | Z56: 96260 | AA56: =OFFSET('Distribution (CALC)'!O12,MATCH('Microwave Shipments (CALC)'!$AA$51,'Distribution (CALC)'!$M$7:$M$213,0)-1,0)*$AF56 -> 96260 | AB56: =OFFSET('Distribution (CALC)'!P12,MATCH('Microwave Shipments (CALC)'!$AA$51,'Distribution (CALC)'!$M$7:$M$213,0)-1,0)*$AF56 -> 0 | AC56: =OFFSET('Distribution (CALC)'!Q12,MATCH('Microwave Shipments (CALC)'!$AA$51,'Distribution (CALC)'!$M$7:$M$213,0)-1,0)*$AF56 -> 0 | AD56: =OFFSET('Distribution (CALC)'!R12,MATCH('Microwave Shipments (CALC)'!$AA$51,'Distribution (CALC)'!$M$7:$M$213,0)-1,0)*$AF56 -> 0 | AE56: =OFFSET('Distribution (CALC)'!S12,MATCH('Microwave Shipments (CALC)'!$AA$51,'Distribution (CALC)'!$M$7:$M$213,0)-1,0)*$AF56 -> 0 | AF56: 96260
B57: 2010 | C57: =OFFSET('Distribution (CALC)'!O13,MATCH('Microwave Shipments (CALC)'!$C$51,'Distribution (CALC)'!$M$7:$M$213,0)-1,0)*$H57 -> 140281.3166 | D57: =OFFSET('Distribution (CALC)'!P13,MATCH('Microwave Shipments (CALC)'!$C$51,'Distribution (CALC)'!$M$7:$M$213,0)-1,0)*$H57 -> 0 | E57: =OFFSET('Distribution (CALC)'!Q13,MATCH('Microwave Shipments (CALC)'!$C$51,'Distribution (CALC)'!$M$7:$M$213,0)-1,0)*$H57 -> 0 | F57: =OFFSET('Distribution (CALC)'!R13,MATCH('Microwave Shipments (CALC)'!$C$51,'Distribution (CALC)'!$M$7:$M$213,0)-1,0)*$H57 -> 0 | G57: =OFFSET('Distribution (CALC)'!S13,MATCH('Microwave Shipments (CALC)'!$C$51,'Distribution (CALC)'!$M$7:$M$213,0)-1,0)*$H57 -> 0 | H57: 140281.3166 | I57: =OFFSET('Distribution (CALC)'!O13,MATCH('Microwave Shipments (CALC)'!$I$51,'Distribution (CALC)'!$M$7:$M$213,0)-1,0)*$N57 -> 140281.3166 | J57: =OFFSET('Distribution (CALC)'!P13,MATCH('Microwave Shipments (CALC)'!$I$51,'Distribution (CALC)'!$M$7:$M$213,0)-1,0)*$N57 -> 0 | K57: =OFFSET('Distribution (CALC)'!Q13,MATCH('Microwave Shipments (CALC)'!$I$51,'Distribution (CALC)'!$M$7:$M$213,0)-1,0)*$N57 -> 0 | L57: =OFFSET('Distribution (CALC)'!R13,MATCH('Microwave Shipments (CALC)'!$I$51,'Distribution (CALC)'!$M$7:$M$213,0)-1,0)*$N57 -> 0 | M57: =OFFSET('Distribution (CALC)'!S13,MATCH('Microwave Shipments (CALC)'!$I$51,'Distribution (CALC)'!$M$7:$M$213,0)-1,0)*$N57 -> 0 | N57: 140281.3166 | O57: =OFFSET('Distribution (CALC)'!O13,MATCH('Microwave Shipments (CALC)'!$O$51,'Distribution (CALC)'!$M$7:$M$213,0)-1,0)*$T57 -> 140281.3166 | P57: =OFFSET('Distribution (CALC)'!P13,MATCH('Microwave Shipments (CALC)'!$O$51,'Distribution (CALC)'!$M$7:$M$213,0)-1,0)*$T57 -> 0 | Q57: =OFFSET('Distribution (CALC)'!Q13,MATCH('Microwave Shipments (CALC)'!$O$51,'Distribution (CALC)'!$M$7:$M$213,0)-1,0)*$T57 -> 0 | R57: =OFFSET('Distribution (CALC)'!R13,MATCH('Microwave Shipments (CALC)'!$O$51,'Distribution (CALC)'!$M$7:$M$213,0)-1,0)*$T57 -> 0 | S57: =OFFSET('Distribution (CALC)'!S13,MATCH('Microwave Shipments (CALC)'!$O$51,'Distribution (CALC)'!$M$7:$M$213,0)-1,0)*$T57 -> 0 | T57: 140281.3166 | U57: =OFFSET('Distribution (CALC)'!O13,MATCH('Microwave Shipments (CALC)'!$U$51,'Distribution (CALC)'!$M$7:$M$213,0)-1,0)*$Z57 -> 140281.3166 | V57: =OFFSET('Distribution (CALC)'!P13,MATCH('Microwave Shipments (CALC)'!$U$51,'Distribution (CALC)'!$M$7:$M$213,0)-1,0)*$Z57 -> 0 | W57: =OFFSET('Distribution (CALC)'!Q13,MATCH('Microwave Shipments (CALC)'!$U$51,'Distribution (CALC)'!$M$7:$M$213,0)-1,0)*$Z57 -> 0 | X57: =OFFSET('Distribution (CALC)'!R13,MATCH('Microwave Shipments (CALC)'!$U$51,'Distribution (CALC)'!$M$7:$M$213,0)-1,0)*$Z57 -> 0 | Y57: =OFFSET('Distribution (CALC)'!S13,MATCH('Microwave Shipments (CALC)'!$U$51,'Distribution (CALC)'!$M$7:$M$213,0)-1,0)*$Z57 -> 0 | Z57: 140281.3166 | AA57: =OFFSET('Distribution (CALC)'!O13,MATCH('Microwave Shipments (CALC)'!$AA$51,'Distribution (CALC)'!$M$7:$M$213,0)-1,0)*$AF57 -> 140281.3166 | AB57: =OFFSET('Distribution (CALC)'!P13,MATCH('Microwave Shipments (CALC)'!$AA$51,'Distribution (CALC)'!$M$7:$M$213,0)-1,0)*$AF57 -> 0 | AC57: =OFFSET('Distribution (CALC)'!Q13,MATCH('Microwave Shipments (CALC)'!$AA$51,'Distribution (CALC)'!$M$7:$M$213,0)-1,0)*$AF57 -> 0 | AD57: =OFFSET('Distribution (CALC)'!R13,MATCH('Microwave Shipments (CALC)'!$AA$51,'Distribution (CALC)'!$M$7:$M$213,0)-1,0)*$AF57 -> 0 | AE57: =OFFSET('Distribution (CALC)'!S13,MATCH('Microwave Shipments (CALC)'!$AA$51,'Distribution (CALC)'!$M$7:$M$213,0)-1,0)*$AF57 -> 0 | AF57: 140281.3166
B58: 2011 | C58: =OFFSET('Distribution (CALC)'!O14,MATCH('Microwave Shipments (CALC)'!$C$51,'Distribution (CALC)'!$M$7:$M$213,0)-1,0)*$H58 -> 146684.7687 | D58: =OFFSET('Distribution (CALC)'!P14,MATCH('Microwave Shipments (CALC)'!$C$51,'Distribution (CALC)'!$M$7:$M$213,0)-1,0)*$H58 -> 0 | E58: =OFFSET('Distribution (CALC)'!Q14,MATCH('Microwave Shipments (CALC)'!$C$51,'Distribution (CALC)'!$M$7:$M$213,0)-1,0)*$H58 -> 0 | F58: =OFFSET('Distribution (CALC)'!R14,MATCH('Microwave Shipments (CALC)'!$C$51,'Distribution (CALC)'!$M$7:$M$213,0)-1,0)*$H58 -> 0 | G58: =OFFSET('Distribution (CALC)'!S14,MATCH('Microwave Shipments (CALC)'!$C$51,'Distribution (CALC)'!$M$7:$M$213,0)-1,0)*$H58 -> 0 | H58: 146684.7687 | I58: =OFFSET('Distribution (CALC)'!O14,MATCH('Microwave Shipments (CALC)'!$I$51,'Distribution (CALC)'!$M$7:$M$213,0)-1,0)*$N58 -> 146684.7687 | J58: =OFFSET('Distribution (CALC)'!P14,MATCH('Microwave Shipments (CALC)'!$I$51,'Distribution (CALC)'!$M$7:$M$213,0)-1,0)*$N58 -> 0 | K58: =OFFSET('Distribution (CALC)'!Q14,MATCH('Microwave Shipments (CALC)'!$I$51,'Distribution (CALC)'!$M$7:$M$213,0)-1,0)*$N58 -> 0 | L58: =OFFSET('Distribution (CALC)'!R14,MATCH('Microwave Shipments (CALC)'!$I$51,'Distribution (CALC)'!$M$7:$M$213,0)-1,0)*$N58 -> 0 | M58: =OFFSET('Distribution (CALC)'!S14,MATCH('Microwave Shipments (CALC)'!$I$51,'Distribution (CALC)'!$M$7:$M$213,0)-1,0)*$N58 -> 0 | N58: 146684.7687 | O58: =OFFSET('Distribution (CALC)'!O14,MATCH('Microwave Shipments (CALC)'!$O$51,'Distribution (CALC)'!$M$7:$M$213,0)-1,0)*$T58 -> 146684.7687 | P58: =OFFSET('Distribution (CALC)'!P14,MATCH('Microwave Shipments (CALC)'!$O$51,'Distribution (CALC)'!$M$7:$M$213,0)-1,0)*$T58 -> 0 | Q58: =OFFSET('Distribution (CALC)'!Q14,MATCH('Microwave Shipments (CALC)'!$O$51,'Distribution (CALC)'!$M$7:$M$213,0)-1,0)*$T58 -> 0 | R58: =OFFSET('Distribution (CALC)'!R14,MATCH('Microwave Shipments (CALC)'!$O$51,'Distribution (CALC)'!$M$7:$M$213,0)-1,0)*$T58 -> 0 | S58: =OFFSET('Distribution (CALC)'!S14,MATCH('Microwave Shipments (CALC)'!$O$51,'Distribution (CALC)'!$M$7:$M$213,0)-1,0)*$T58 -> 0 | T58: 146684.7687 | U58: =OFFSET('Distribution (CALC)'!O14,MATCH('Microwave Shipments (CALC)'!$U$51,'Distribution (CALC)'!$M$7:$M$213,0)-1,0)*$Z58 -> 146684.7687 | V58: =OFFSET('Distribution (CALC)'!P14,MATCH('Microwave Shipments (CALC)'!$U$51,'Distribution (CALC)'!$M$7:$M$213,0)-1,0)*$Z58 -> 0 | W58: =OFFSET('Distribution (CALC)'!Q14,MATCH('Microwave Shipments (CALC)'!$U$51,'Distribution (CALC)'!$M$7:$M$213,0)-1,0)*$Z58 -> 0 | X58: =OFFSET('Distribution (CALC)'!R14,MATCH('Microwave Shipments (CALC)'!$U$51,'Distribution (CALC)'!$M$7:$M$213,0)-1,0)*$Z58 -> 0 | Y58: =OFFSET('Distribution (CALC)'!S14,MATCH('Microwave Shipments (CALC)'!$U$51,'Distribution (CALC)'!$M$7:$M$213,0)-1,0)*$Z58 -> 0 | Z58: 146684.7687 | AA58: =OFFSET('Distribution (CALC)'!O14,MATCH('Microwave Shipments (CALC)'!$AA$51,'Distribution (CALC)'!$M$7:$M$213,0)-1,0)*$AF58 -> 146684.7687 | AB58: =OFFSET('Distribution (CALC)'!P14,MATCH('Microwave Shipments (CALC)'!$AA$51,'Distribution (CALC)'!$M$7:$M$213,0)-1,0)*$AF58 -> 0 | AC58: =OFFSET('Distribution (CALC)'!Q14,MATCH('Microwave Shipments (CALC)'!$AA$51,'Distribution (CALC)'!$M$7:$M$213,0)-1,0)*$AF58 -> 0 | AD58: =OFFSET('Distribution (CALC)'!R14,MATCH('Microwave Shipments (CALC)'!$AA$51,'Distribution (CALC)'!$M$7:$M$213,0)-1,0)*$AF58 -> 0 | AE58: =OFFSET('Distribution (CALC)'!S14,MATCH('Microwave Shipments (CALC)'!$AA$51,'Distribution (CALC)'!$M$7:$M$213,0)-1,0)*$AF58 -> 0 | AF58: 146684.7687
B59: 2012 | C59: =OFFSET('Distribution (CALC)'!O15,MATCH('Microwave Shipments (CALC)'!$C$51,'Distribution (CALC)'!$M$7:$M$213,0)-1,0)*$H59 -> 150597.8309 | D59: =OFFSET('Distribution (CALC)'!P15,MATCH('Microwave Shipments (CALC)'!$C$51,'Distribution (CALC)'!$M$7:$M$213,0)-1,0)*$H59 -> 0 | E59: =OFFSET('Distribution (CALC)'!Q15,MATCH('Microwave Shipments (CALC)'!$C$51,'Distribution (CALC)'!$M$7:$M$213,0)-1,0)*$H59 -> 0 | F59: =OFFSET('Distribution (CALC)'!R15,MATCH('Microwave Shipments (CALC)'!$C$51,'Distribution (CALC)'!$M$7:$M$213,0)-1,0)*$H59 -> 0 | G59: =OFFSET('Distribution (CALC)'!S15,MATCH('Microwave Shipments (CALC)'!$C$51,'Distribution (CALC)'!$M$7:$M$213,0)-1,0)*$H59 -> 0 | H59: 150597.8309 | I59: =OFFSET('Distribution (CALC)'!O15,MATCH('Microwave Shipments (CALC)'!$I$51,'Distribution (CALC)'!$M$7:$M$213,0)-1,0)*$N59 -> 150597.8309 | J59: =OFFSET('Distribution (CALC)'!P15,MATCH('Microwave Shipments (CALC)'!$I$51,'Distribution (CALC)'!$M$7:$M$213,0)-1,0)*$N59 -> 0 | K59: =OFFSET('Distribution (CALC)'!Q15,MATCH('Microwave Shipments (CALC)'!$I$51,'Distribution (CALC)'!$M$7:$M$213,0)-1,0)*$N59 -> 0 | L59: =OFFSET('Distribution (CALC)'!R15,MATCH('Microwave Shipments (CALC)'!$I$51,'Distribution (CALC)'!$M$7:$M$213,0)-1,0)*$N59 -> 0 | M59: =OFFSET('Distribution (CALC)'!S15,MATCH('Microwave Shipments (CALC)'!$I$51,'Distribution (CALC)'!$M$7:$M$213,0)-1,0)*$N59 -> 0 | N59: 150597.8309 | O59: =OFFSET('Distribution (CALC)'!O15,MATCH('Microwave Shipments (CALC)'!$O$51,'Distribution (CALC)'!$M$7:$M$213,0)-1,0)*$T59 -> 150597.8309 | P59: =OFFSET('Distribution (CALC)'!P15,MATCH('Microwave Shipments (CALC)'!$O$51,'Distribution (CALC)'!$M$7:$M$213,0)-1,0)*$T59 -> 0 | Q59: =OFFSET('Distribution (CALC)'!Q15,MATCH('Microwave Shipments (CALC)'!$O$51,'Distribution (CALC)'!$M$7:$M$213,0)-1,0)*$T59 -> 0 | R59: =OFFSET('Distribution (CALC)'!R15,MATCH('Microwave Shipments (CALC)'!$O$51,'Distribution (CALC)'!$M$7:$M$213,0)-1,0)*$T59 -> 0 | S59: =OFFSET('Distribution (CALC)'!S15,MATCH('Microwave Shipments (CALC)'!$O$51,'Distribution (CALC)'!$M$7:$M$213,0)-1,0)*$T59 -> 0 | T59: 150597.8309 | U59: =OFFSET('Distribution (CALC)'!O15,MATCH('Microwave Shipments (CALC)'!$U$51,'Distribution (CALC)'!$M$7:$M$213,0)-1,0)*$Z59 -> 150597.8309 | V59: =OFFSET('Distribution (CALC)'!P15,MATCH('Microwave Shipments (CALC)'!$U$51,'Distribution (CALC)'!$M$7:$M$213,0)-1,0)*$Z59 -> 0 | W59: =OFFSET('Distribution (CALC)'!Q15,MATCH('Microwave Shipments (CALC)'!$U$51,'Distribution (CALC)'!$M$7:$M$213,0)-1,0)*$Z59 -> 0 | X59: =OFFSET('Distribution (CALC)'!R15,MATCH('Microwave Shipments (CALC)'!$U$51,'Distribution (CALC)'!$M$7:$M$213,0)-1,0)*$Z59 -> 0 | Y59: =OFFSET('Distribution (CALC)'!S15,MATCH('Microwave Shipments (CALC)'!$U$51,'Distribution (CALC)'!$M$7:$M$213,0)-1,0)*$Z59 -> 0 | Z59: 150597.8309 | AA59: =OFFSET('Distribution (CALC)'!O15,MATCH('Microwave Shipments (CALC)'!$AA$51,'Distribution (CALC)'!$M$7:$M$213,0)-1,0)*$AF59 -> 150597.8309 | AB59: =OFFSET('Distribution (CALC)'!P15,MATCH('Microwave Shipments (CALC)'!$AA$51,'Distribution (CALC)'!$M$7:$M$213,0)-1,0)*$AF59 -> 0 | AC59: =OFFSET('Distribution (CALC)'!Q15,MATCH('Microwave Shipments (CALC)'!$AA$51,'Distribution (CALC)'!$M$7:$M$213,0)-1,0)*$AF59 -> 0 | AD59: =OFFSET('Distribution (CALC)'!R15,MATCH('Microwave Shipments (CALC)'!$AA$51,'Distribution (CALC)'!$M$7:$M$213,0)-1,0)*$AF59 -> 0 | AE59: =OFFSET('Distribution (CALC)'!S15,MATCH('Microwave Shipments (CALC)'!$AA$51,'Distribution (CALC)'!$M$7:$M$213,0)-1,0)*$AF59 -> 0 | AF59: 150597.8309
B60: 2013 | C60: =OFFSET('Distribution (CALC)'!O16,MATCH('Microwave Shipments (CALC)'!$C$51,'Distribution (CALC)'!$M$7:$M$213,0)-1,0)*$H60 -> 152056.0899 | D60: =OFFSET('Distribution (CALC)'!P16,MATCH('Microwave Shipments (CALC)'!$C$51,'Distribution (CALC)'!$M$7:$M$213,0)-1,0)*$H60 -> 0 | E60: =OFFSET('Distribution (CALC)'!Q16,MATCH('Microwave Shipments (CALC)'!$C$51,'Distribution (CALC)'!$M$7:$M$213,0)-1,0)*$H60 -> 0 | F60: =OFFSET('Distribution (CALC)'!R16,MATCH('Microwave Shipments (CALC)'!$C$51,'Distribution (CALC)'!$M$7:$M$213,0)-1,0)*$H60 -> 0 | G60: =OFFSET('Distribution (CALC)'!S16,MATCH('Microwave Shipments (CALC)'!$C$51,'Distribution (CALC)'!$M$7:$M$213,0)-1,0)*$H60 -> 0 | H60: 152056.0899 | I60: =OFFSET('Distribution (CALC)'!O16,MATCH('Microwave Shipments (CALC)'!$I$51,'Distribution (CALC)'!$M$7:$M$213,0)-1,0)*$N60 -> 152056.0899 | J60: =OFFSET('Distribution (CALC)'!P16,MATCH('Microwave Shipments (CALC)'!$I$51,'Distribution (CALC)'!$M$7:$M$213,0)-1,0)*$N60 -> 0 | K60: =OFFSET('Distribution (CALC)'!Q16,MATCH('Microwave Shipments (CALC)'!$I$51,'Distribution (CALC)'!$M$7:$M$213,0)-1,0)*$N60 -> 0 | L60: =OFFSET('Distribution (CALC)'!R16,MATCH('Microwave Shipments (CALC)'!$I$51,'Distribution (CALC)'!$M$7:$M$213,0)-1,0)*$N60 -> 0 | M60: =OFFSET('Distribution (CALC)'!S16,MATCH('Microwave Shipments (CALC)'!$I$51,'Distribution (CALC)'!$M$7:$M$213,0)-1,0)*$N60 -> 0 | N60: 152056.0899 | O60: =OFFSET('Distribution (CALC)'!O16,MATCH('Microwave Shipments (CALC)'!$O$51,'Distribution (CALC)'!$M$7:$M$213,0)-1,0)*$T60 -> 152056.0899 | P60: =OFFSET('Distribution (CALC)'!P16,MATCH('Microwave Shipments (CALC)'!$O$51,'Distribution (CALC)'!$M$7:$M$213,0)-1,0)*$T60 -> 0 | Q60: =OFFSET('Distribution (CALC)'!Q16,MATCH('Microwave Shipments (CALC)'!$O$51,'Distribution (CALC)'!$M$7:$M$213,0)-1,0)*$T60 -> 0 | R60: =OFFSET('Distribution (CALC)'!R16,MATCH('Microwave Shipments (CALC)'!$O$51,'Distribution (CALC)'!$M$7:$M$213,0)-1,0)*$T60 -> 0 | S60: =OFFSET('Distribution (CALC)'!S16,MATCH('Microwave Shipments (CALC)'!$O$51,'Distribution (CALC)'!$M$7:$M$213,0)-1,0)*$T60 -> 0 | T60: 152056.0899 | U60: =OFFSET('Distribution (CALC)'!O16,MATCH('Microwave Shipments (CALC)'!$U$51,'Distribution (CALC)'!$M$7:$M$213,0)-1,0)*$Z60 -> 152056.0899 | V60: =OFFSET('Distribution (CALC)'!P16,MATCH('Microwave Shipments (CALC)'!$U$51,'Distribution (CALC)'!$M$7:$M$213,0)-1,0)*$Z60 -> 0 | W60: =OFFSET('Distribution (CALC)'!Q16,MATCH('Microwave Shipments (CALC)'!$U$51,'Distribution (CALC)'!$M$7:$M$213,0)-1,0)*$Z60 -> 0 | X60: =OFFSET('Distribution (CALC)'!R16,MATCH('Microwave Shipments (CALC)'!$U$51,'Distribution (CALC)'!$M$7:$M$213,0)-1,0)*$Z60 -> 0 | Y60: =OFFSET('Distribution (CALC)'!S16,MATCH('Microwave Shipments (CALC)'!$U$51,'Distribution (CALC)'!$M$7:$M$213,0)-1,0)*$Z60 -> 0 | Z60: 152056.0899 | AA60: =OFFSET('Distribution (CALC)'!O16,MATCH('Microwave Shipments (CALC)'!$AA$51,'Distribution (CALC)'!$M$7:$M$213,0)-1,0)*$AF60 -> 152056.0899 | AB60: =OFFSET('Distribution (CALC)'!P16,MATCH('Microwave Shipments (CALC)'!$AA$51,'Distribution (CALC)'!$M$7:$M$213,0)-1,0)*$AF60 -> 0 | AC60: =OFFSET('Distribution (CALC)'!Q16,MATCH('Microwave Shipments (CALC)'!$AA$51,'Distribution (CALC)'!$M$7:$M$213,0)-1,0)*$AF60 -> 0 | AD60: =OFFSET('Distribution (CALC)'!R16,MATCH('Microwave Shipments (CALC)'!$AA$51,'Distribution (CALC)'!$M$7:$M$213,0)-1,0)*$AF60 -> 0 | AE60: =OFFSET('Distribution (CALC)'!S16,MATCH('Microwave Shipments (CALC)'!$AA$51,'Distribution (CALC)'!$M$7:$M$213,0)-1,0)*$AF60 -> 0 | AF60: 152056.0899
B61: 2014 | C61: =OFFSET('Distribution (CALC)'!O17,MATCH('Microwave Shipments (CALC)'!$C$51,'Distribution (CALC)'!$M$7:$M$213,0)-1,0)*$H61 -> 151555.1107 | D61: =OFFSET('Distribution (CALC)'!P17,MATCH('Microwave Shipments (CALC)'!$C$51,'Distribution (CALC)'!$M$7:$M$213,0)-1,0)*$H61 -> 0 | E61: =OFFSET('Distribution (CALC)'!Q17,MATCH('Microwave Shipments (CALC)'!$C$51,'Distribution (CALC)'!$M$7:$M$213,0)-1,0)*$H61 -> 0 | F61: =OFFSET('Distribution (CALC)'!R17,MATCH('Microwave Shipments (CALC)'!$C$51,'Distribution (CALC)'!$M$7:$M$213,0)-1,0)*$H61 -> 0 | G61: =OFFSET('Distribution (CALC)'!S17,MATCH('Microwave Shipments (CALC)'!$C$51,'Distribution (CALC)'!$M$7:$M$213,0)-1,0)*$H61 -> 0 | H61: 151555.1107 | I61: =OFFSET('Distribution (CALC)'!O17,MATCH('Microwave Shipments (CALC)'!$I$51,'Distribution (CALC)'!$M$7:$M$213,0)-1,0)*$N61 -> 0 | J61: =OFFSET('Distribution (CALC)'!P17,MATCH('Microwave Shipments (CALC)'!$I$51,'Distribution (CALC)'!$M$7:$M$213,0)-1,0)*$N61 -> 151557.2956 | K61: =OFFSET('Distribution (CALC)'!Q17,MATCH('Microwave Shipments (CALC)'!$I$51,'Distribution (CALC)'!$M$7:$M$213,0)-1,0)*$N61 -> 0 | L61: =OFFSET('Distribution (CALC)'!R17,MATCH('Microwave Shipments (CALC)'!$I$51,'Distribution (CALC)'!$M$7:$M$213,0)-1,0)*$N61 -> 0 | M61: =OFFSET('Distribution (CALC)'!S17,MATCH('Microwave Shipments (CALC)'!$I$51,'Distribution (CALC)'!$M$7:$M$213,0)-1,0)*$N61 -> 0 | N61: 151557.2956 | O61: =OFFSET('Distribution (CALC)'!O17,MATCH('Microwave Shipments (CALC)'!$O$51,'Distribution (CALC)'!$M$7:$M$213,0)-1,0)*$T61 -> 0 | P61: =OFFSET('Distribution (CALC)'!P17,MATCH('Microwave Shipments (CALC)'!$O$51,'Distribution (CALC)'!$M$7:$M$213,0)-1,0)*$T61 -> 0 | Q61: =OFFSET('Distribution (CALC)'!Q17,MATCH('Microwave Shipments (CALC)'!$O$51,'Distribution (CALC)'!$M$7:$M$213,0)-1,0)*$T61 -> 151187.8181 | R61: =OFFSET('Distribution (CALC)'!R17,MATCH('Microwave Shipments (CALC)'!$O$51,'Distribution (CALC)'!$M$7:$M$213,0)-1,0)*$T61 -> 0 | S61: =OFFSET('Distribution (CALC)'!S17,MATCH('Microwave Shipments (CALC)'!$O$51,'Distribution (CALC)'!$M$7:$M$213,0)-1,0)*$T61 -> 0 | T61: 151187.8181 | U61: =OFFSET('Distribution (CALC)'!O17,MATCH('Microwave Shipments (CALC)'!$U$51,'Distribution (CALC)'!$M$7:$M$213,0)-1,0)*$Z61 -> 0 | V61: =OFFSET('Distribution (CALC)'!P17,MATCH('Microwave Shipments (CALC)'!$U$51,'Distribution (CALC)'!$M$7:$M$213,0)-1,0)*$Z61 -> 0 | W61: =OFFSET('Distribution (CALC)'!Q17,MATCH('Microwave Shipments (CALC)'!$U$51,'Distribution (CALC)'!$M$7:$M$213,0)-1,0)*$Z61 -> 0 | X61: =OFFSET('Distribution (CALC)'!R17,MATCH('Microwave Shipments (CALC)'!$U$51,'Distribution (CALC)'!$M$7:$M$213,0)-1,0)*$Z61 -> 150028.1642 | Y61: =OFFSET('Distribution (CALC)'!S17,MATCH('Microwave Shipments (CALC)'!$U$51,'Distribution (CALC)'!$M$7:$M$213,0)-1,0)*$Z61 -> 0 | Z61: 150028.1642 | AA61: =OFFSET('Distribution (CALC)'!O17,MATCH('Microwave Shipments (CALC)'!$AA$51,'Distribution (CALC)'!$M$7:$M$213,0)-1,0)*$AF61 -> 0 | AB61: =OFFSET('Distribution (CALC)'!P17,MATCH('Microwave Shipments (CALC)'!$AA$51,'Distribution (CALC)'!$M$7:$M$213,0)-1,0)*$AF61 -> 0 | AC61: =OFFSET('Distribution (CALC)'!Q17,MATCH('Microwave Shipments (CALC)'!$AA$51,'Distribution (CALC)'!$M$7:$M$213,0)-1,0)*$AF61 -> 0 | AD61: =OFFSET('Distribution (CALC)'!R17,MATCH('Microwave Shipments (CALC)'!$AA$51,'Distribution (CALC)'!$M$7:$M$213,0)-1,0)*$AF61 -> 0 | AE61: =OFFSET('Distribution (CALC)'!S17,MATCH('Microwave Shipments (CALC)'!$AA$51,'Distribution (CALC)'!$M$7:$M$213,0)-1,0)*$AF61 -> 150725.0873 | AF61: 150725.0873
B62: 2015 | C62: =OFFSET('Distribution (CALC)'!O18,MATCH('Microwave Shipments (CALC)'!$C$51,'Distribution (CALC)'!$M$7:$M$213,0)-1,0)*$H62 -> 149117.2914 | D62: =OFFSET('Distribution (CALC)'!P18,MATCH('Microwave Shipments (CALC)'!$C$51,'Distribution (CALC)'!$M$7:$M$213,0)-1,0)*$H62 -> 0 | E62: =OFFSET('Distribution (CALC)'!Q18,MATCH('Microwave Shipments (CALC)'!$C$51,'Distribution (CALC)'!$M$7:$M$213,0)-1,0)*$H62 -> 0 | F62: =OFFSET('Distribution (CALC)'!R18,MATCH('Microwave Shipments (CALC)'!$C$51,'Distribution (CALC)'!$M$7:$M$213,0)-1,0)*$H62 -> 0 | G62: =OFFSET('Distribution (CALC)'!S18,MATCH('Microwave Shipments (CALC)'!$C$51,'Distribution (CALC)'!$M$7:$M$213,0)-1,0)*$H62 -> 0 | H62: 149117.2914 | I62: =OFFSET('Distribution (CALC)'!O18,MATCH('Microwave Shipments (CALC)'!$I$51,'Distribution (CALC)'!$M$7:$M$213,0)-1,0)*$N62 -> 0 | J62: =OFFSET('Distribution (CALC)'!P18,MATCH('Microwave Shipments (CALC)'!$I$51,'Distribution (CALC)'!$M$7:$M$213,0)-1,0)*$N62 -> 149118.978 | K62: =OFFSET('Distribution (CALC)'!Q18,MATCH('Microwave Shipments (CALC)'!$I$51,'Distribution (CALC)'!$M$7:$M$213,0)-1,0)*$N62 -> 0 | L62: =OFFSET('Distribution (CALC)'!R18,MATCH('Microwave Shipments (CALC)'!$I$51,'Distribution (CALC)'!$M$7:$M$213,0)-1,0)*$N62 -> 0 | M62: =OFFSET('Distribution (CALC)'!S18,MATCH('Microwave Shipments (CALC)'!$I$51,'Distribution (CALC)'!$M$7:$M$213,0)-1,0)*$N62 -> 0 | N62: 149118.978 | O62: =OFFSET('Distribution (CALC)'!O18,MATCH('Microwave Shipments (CALC)'!$O$51,'Distribution (CALC)'!$M$7:$M$213,0)-1,0)*$T62 -> 0 | P62: =OFFSET('Distribution (CALC)'!P18,MATCH('Microwave Shipments (CALC)'!$O$51,'Distribution (CALC)'!$M$7:$M$213,0)-1,0)*$T62 -> 0 | Q62: =OFFSET('Distribution (CALC)'!Q18,MATCH('Microwave Shipments (CALC)'!$O$51,'Distribution (CALC)'!$M$7:$M$213,0)-1,0)*$T62 -> 148838.0099 | R62: =OFFSET('Distribution (CALC)'!R18,MATCH('Microwave Shipments (CALC)'!$O$51,'Distribution (CALC)'!$M$7:$M$213,0)-1,0)*$T62 -> 0 | S62: =OFFSET('Distribution (CALC)'!S18,MATCH('Microwave Shipments (CALC)'!$O$51,'Distribution (CALC)'!$M$7:$M$213,0)-1,0)*$T62 -> 0 | T62: 148838.0099 | U62: =OFFSET('Distribution (CALC)'!O18,MATCH('Microwave Shipments (CALC)'!$U$51,'Distribution (CALC)'!$M$7:$M$213,0)-1,0)*$Z62 -> 0 | V62: =OFFSET('Distribution (CALC)'!P18,MATCH('Microwave Shipments (CALC)'!$U$51,'Distribution (CALC)'!$M$7:$M$213,0)-1,0)*$Z62 -> 0 | W62: =OFFSET('Distribution (CALC)'!Q18,MATCH('Microwave Shipments (CALC)'!$U$51,'Distribution (CALC)'!$M$7:$M$213,0)-1,0)*$Z62 -> 0 | X62: =OFFSET('Distribution (CALC)'!R18,MATCH('Microwave Shipments (CALC)'!$U$51,'Distribution (CALC)'!$M$7:$M$213,0)-1,0)*$Z62 -> 147956.0724 | Y62: =OFFSET('Distribution (CALC)'!S18,MATCH('Microwave Shipments (CALC)'!$U$51,'Distribution (CALC)'!$M$7:$M$213,0)-1,0)*$Z62 -> 0 | Z62: 147956.0724 | AA62: =OFFSET('Distribution (CALC)'!O18,MATCH('Microwave Shipments (CALC)'!$AA$51,'Distribution (CALC)'!$M$7:$M$213,0)-1,0)*$AF62 -> 0 | AB62: =OFFSET('Distribution (CALC)'!P18,MATCH('Microwave Shipments (CALC)'!$AA$51,'Distribution (CALC)'!$M$7:$M$213,0)-1,0)*$AF62 -> 0 | AC62: =OFFSET('Distribution (CALC)'!Q18,MATCH('Microwave Shipments (CALC)'!$AA$51,'Distribution (CALC)'!$M$7:$M$213,0)-1,0)*$AF62 -> 0 | AD62: =OFFSET('Distribution (CALC)'!R18,MATCH('Microwave Shipments (CALC)'!$AA$51,'Distribution (CALC)'!$M$7:$M$213,0)-1,0)*$AF62 -> 0 | AE62: =OFFSET('Distribution (CALC)'!S18,MATCH('Microwave Shipments (CALC)'!$AA$51,'Distribution (CALC)'!$M$7:$M$213,0)-1,0)*$AF62 -> 148486.1716 | AF62: 148486.1716
B63: 2016 | C63: =OFFSET('Distribution (CALC)'!O19,MATCH('Microwave Shipments (CALC)'!$C$51,'Distribution (CALC)'!$M$7:$M$213,0)-1,0)*$H63 -> 143717.4438 | D63: =OFFSET('Distribution (CALC)'!P19,MATCH('Microwave Shipments (CALC)'!$C$51,'Distribution (CALC)'!$M$7:$M$213,0)-1,0)*$H63 -> 0 | E63: =OFFSET('Distribution (CALC)'!Q19,MATCH('Microwave Shipments (CALC)'!$C$51,'Distribution (CALC)'!$M$7:$M$213,0)-1,0)*$H63 -> 0 | F63: =OFFSET('Distribution (CALC)'!R19,MATCH('Microwave Shipments (CALC)'!$C$51,'Distribution (CALC)'!$M$7:$M$213,0)-1,0)*$H63 -> 0 | G63: =OFFSET('Distribution (CALC)'!S19,MATCH('Microwave Shipments (CALC)'!$C$51,'Distribution (CALC)'!$M$7:$M$213,0)-1,0)*$H63 -> 0 | H63: 143717.4438 | I63: =OFFSET('Distribution (CALC)'!O19,MATCH('Microwave Shipments (CALC)'!$I$51,'Distribution (CALC)'!$M$7:$M$213,0)-1,0)*$N63 -> 0 | J63: =OFFSET('Distribution (CALC)'!P19,MATCH('Microwave Shipments (CALC)'!$I$51,'Distribution (CALC)'!$M$7:$M$213,0)-1,0)*$N63 -> 143718.7871 | K63: =OFFSET('Distribution (CALC)'!Q19,MATCH('Microwave Shipments (CALC)'!$I$51,'Distribution (CALC)'!$M$7:$M$213,0)-1,0)*$N63 -> 0 | L63: =OFFSET('Distribution (CALC)'!R19,MATCH('Microwave Shipments (CALC)'!$I$51,'Distribution (CALC)'!$M$7:$M$213,0)-1,0)*$N63 -> 0 | M63: =OFFSET('Distribution (CALC)'!S19,MATCH('Microwave Shipments (CALC)'!$I$51,'Distribution (CALC)'!$M$7:$M$213,0)-1,0)*$N63 -> 0 | N63: 143718.7871 | O63: =OFFSET('Distribution (CALC)'!O19,MATCH('Microwave Shipments (CALC)'!$O$51,'Distribution (CALC)'!$M$7:$M$213,0)-1,0)*$T63 -> 0 | P63: =OFFSET('Distribution (CALC)'!P19,MATCH('Microwave Shipments (CALC)'!$O$51,'Distribution (CALC)'!$M$7:$M$213,0)-1,0)*$T63 -> 0 | Q63: =OFFSET('Distribution (CALC)'!Q19,MATCH('Microwave Shipments (CALC)'!$O$51,'Distribution (CALC)'!$M$7:$M$213,0)-1,0)*$T63 -> 143500.1301 | R63: =OFFSET('Distribution (CALC)'!R19,MATCH('Microwave Shipments (CALC)'!$O$51,'Distribution (CALC)'!$M$7:$M$213,0)-1,0)*$T63 -> 0 | S63: =OFFSET('Distribution (CALC)'!S19,MATCH('Microwave Shipments (CALC)'!$O$51,'Distribution (CALC)'!$M$7:$M$213,0)-1,0)*$T63 -> 0 | T63: 143500.1301 | U63: =OFFSET('Distribution (CALC)'!O19,MATCH('Microwave Shipments (CALC)'!$U$51,'Distribution (CALC)'!$M$7:$M$213,0)-1,0)*$Z63 -> 0 | V63: =OFFSET('Distribution (CALC)'!P19,MATCH('Microwave Shipments (CALC)'!$U$51,'Distribution (CALC)'!$M$7:$M$213,0)-1,0)*$Z63 -> 0 | W63: =OFFSET('Distribution (CALC)'!Q19,MATCH('Microwave Shipments (CALC)'!$U$51,'Distribution (CALC)'!$M$7:$M$213,0)-1,0)*$Z63 -> 0 | X63: =OFFSET('Distribution (CALC)'!R19,MATCH('Microwave Shipments (CALC)'!$U$51,'Distribution (CALC)'!$M$7:$M$213,0)-1,0)*$Z63 -> 142813.6822 | Y63: =OFFSET('Distribution (CALC)'!S19,MATCH('Microwave Shipments (CALC)'!$U$51,'Distribution (CALC)'!$M$7:$M$213,0)-1,0)*$Z63 -> 0 | Z63: 142813.6822 | AA63: =OFFSET('Distribution (CALC)'!O19,MATCH('Microwave Shipments (CALC)'!$AA$51,'Distribution (CALC)'!$M$7:$M$213,0)-1,0)*$AF63 -> 0 | AB63: =OFFSET('Distribution (CALC)'!P19,MATCH('Microwave Shipments (CALC)'!$AA$51,'Distribution (CALC)'!$M$7:$M$213,0)-1,0)*$AF63 -> 0 | AC63: =OFFSET('Distribution (CALC)'!Q19,MATCH('Microwave Shipments (CALC)'!$AA$51,'Distribution (CALC)'!$M$7:$M$213,0)-1,0)*$AF63 -> 0 | AD63: =OFFSET('Distribution (CALC)'!R19,MATCH('Microwave Shipments (CALC)'!$AA$51,'Distribution (CALC)'!$M$7:$M$213,0)-1,0)*$AF63 -> 0 | AE63: =OFFSET('Distribution (CALC)'!S19,MATCH('Microwave Shipments (CALC)'!$AA$51,'Distribution (CALC)'!$M$7:$M$213,0)-1,0)*$AF63 -> 143226.3735 | AF63: 143226.3735
B64: 2017 | C64: =OFFSET('Distribution (CALC)'!O20,MATCH('Microwave Shipments (CALC)'!$C$51,'Distribution (CALC)'!$M$7:$M$213,0)-1,0)*$H64 -> 137723.897 | D64: =OFFSET('Distribution (CALC)'!P20,MATCH('Microwave Shipments (CALC)'!$C$51,'Distribution (CALC)'!$M$7:$M$213,0)-1,0)*$H64 -> 0 | E64: =OFFSET('Distribution (CALC)'!Q20,MATCH('Microwave Shipments (CALC)'!$C$51,'Distribution (CALC)'!$M$7:$M$213,0)-1,0)*$H64 -> 0 | F64: =OFFSET('Distribution (CALC)'!R20,MATCH('Microwave Shipments (CALC)'!$C$51,'Distribution (CALC)'!$M$7:$M$213,0)-1,0)*$H64 -> 0 | G64: =OFFSET('Distribution (CALC)'!S20,MATCH('Microwave Shipments (CALC)'!$C$51,'Distribution (CALC)'!$M$7:$M$213,0)-1,0)*$H64 -> 0 | H64: 137723.897 | I64: =OFFSET('Distribution (CALC)'!O20,MATCH('Microwave Shipments (CALC)'!$I$51,'Distribution (CALC)'!$M$7:$M$213,0)-1,0)*$N64 -> 0 | J64: =OFFSET('Distribution (CALC)'!P20,MATCH('Microwave Shipments (CALC)'!$I$51,'Distribution (CALC)'!$M$7:$M$213,0)-1,0)*$N64 -> 137725.042 | K64: =OFFSET('Distribution (CALC)'!Q20,MATCH('Microwave Shipments (CALC)'!$I$51,'Distribution (CALC)'!$M$7:$M$213,0)-1,0)*$N64 -> 0 | L64: =OFFSET('Distribution (CALC)'!R20,MATCH('Microwave Shipments (CALC)'!$I$51,'Distribution (CALC)'!$M$7:$M$213,0)-1,0)*$N64 -> 0 | M64: =OFFSET('Distribution (CALC)'!S20,MATCH('Microwave Shipments (CALC)'!$I$51,'Distribution (CALC)'!$M$7:$M$213,0)-1,0)*$N64 -> 0 | N64: 137725.042 | O64: =OFFSET('Distribution (CALC)'!O20,MATCH('Microwave Shipments (CALC)'!$O$51,'Distribution (CALC)'!$M$7:$M$213,0)-1,0)*$T64 -> 0 | P64: =OFFSET('Distribution (CALC)'!P20,MATCH('Microwave Shipments (CALC)'!$O$51,'Distribution (CALC)'!$M$7:$M$213,0)-1,0)*$T64 -> 0 | Q64: =OFFSET('Distribution (CALC)'!Q20,MATCH('Microwave Shipments (CALC)'!$O$51,'Distribution (CALC)'!$M$7:$M$213,0)-1,0)*$T64 -> 137542.3801 | R64: =OFFSET('Distribution (CALC)'!R20,MATCH('Microwave Shipments (CALC)'!$O$51,'Distribution (CALC)'!$M$7:$M$213,0)-1,0)*$T64 -> 0 | S64: =OFFSET('Distribution (CALC)'!S20,MATCH('Microwave Shipments (CALC)'!$O$51,'Distribution (CALC)'!$M$7:$M$213,0)-1,0)*$T64 -> 0 | T64: 137542.3801 | U64: =OFFSET('Distribution (CALC)'!O20,MATCH('Microwave Shipments (CALC)'!$U$51,'Distribution (CALC)'!$M$7:$M$213,0)-1,0)*$Z64 -> 0 | V64: =OFFSET('Distribution (CALC)'!P20,MATCH('Microwave Shipments (CALC)'!$U$51,'Distribution (CALC)'!$M$7:$M$213,0)-1,0)*$Z64 -> 0 | W64: =OFFSET('Distribution (CALC)'!Q20,MATCH('Microwave Shipments (CALC)'!$U$51,'Distribution (CALC)'!$M$7:$M$213,0)-1,0)*$Z64 -> 0 | X64: =OFFSET('Distribution (CALC)'!R20,MATCH('Microwave Shipments (CALC)'!$U$51,'Distribution (CALC)'!$M$7:$M$213,0)-1,0)*$Z64 -> 136968.8618 | Y64: =OFFSET('Distribution (CALC)'!S20,MATCH('Microwave Shipments (CALC)'!$U$51,'Distribution (CALC)'!$M$7:$M$213,0)-1,0)*$Z64 -> 0 | Z64: 136968.8618 | AA64: =OFFSET('Distribution (CALC)'!O20,MATCH('Microwave Shipments (CALC)'!$AA$51,'Distribution (CALC)'!$M$7:$M$213,0)-1,0)*$AF64 -> 0 | AB64: =OFFSET('Distribution (CALC)'!P20,MATCH('Microwave Shipments (CALC)'!$AA$51,'Distribution (CALC)'!$M$7:$M$213,0)-1,0)*$AF64 -> 0 | AC64: =OFFSET('Distribution (CALC)'!Q20,MATCH('Microwave Shipments (CALC)'!$AA$51,'Distribution (CALC)'!$M$7:$M$213,0)-1,0)*$AF64 -> 0 | AD64: =OFFSET('Distribution (CALC)'!R20,MATCH('Microwave Shipments (CALC)'!$AA$51,'Distribution (CALC)'!$M$7:$M$213,0)-1,0)*$AF64 -> 0 | AE64: =OFFSET('Distribution (CALC)'!S20,MATCH('Microwave Shipments (CALC)'!$AA$51,'Distribution (CALC)'!$M$7:$M$213,0)-1,0)*$AF64 -> 137313.7294 | AF64: 137313.7294
B65: 2018 | C65: =OFFSET('Distribution (CALC)'!O21,MATCH('Microwave Shipments (CALC)'!$C$51,'Distribution (CALC)'!$M$7:$M$213,0)-1,0)*$H65 -> 135658.2452 | D65: =OFFSET('Distribution (CALC)'!P21,MATCH('Microwave Shipments (CALC)'!$C$51,'Distribution (CALC)'!$M$7:$M$213,0)-1,0)*$H65 -> 0 | E65: =OFFSET('Distribution (CALC)'!Q21,MATCH('Microwave Shipments (CALC)'!$C$51,'Distribution (CALC)'!$M$7:$M$213,0)-1,0)*$H65 -> 0 | F65: =OFFSET('Distribution (CALC)'!R21,MATCH('Microwave Shipments (CALC)'!$C$51,'Distribution (CALC)'!$M$7:$M$213,0)-1,0)*$H65 -> 0 | G65: =OFFSET('Distribution (CALC)'!S21,MATCH('Microwave Shipments (CALC)'!$C$51,'Distribution (CALC)'!$M$7:$M$213,0)-1,0)*$H65 -> 0 | H65: 135658.2452 | I65: =OFFSET('Distribution (CALC)'!O21,MATCH('Microwave Shipments (CALC)'!$I$51,'Distribution (CALC)'!$M$7:$M$213,0)-1,0)*$N65 -> 0 | J65: =OFFSET('Distribution (CALC)'!P21,MATCH('Microwave Shipments (CALC)'!$I$51,'Distribution (CALC)'!$M$7:$M$213,0)-1,0)*$N65 -> 135659.2199 | K65: =OFFSET('Distribution (CALC)'!Q21,MATCH('Microwave Shipments (CALC)'!$I$51,'Distribution (CALC)'!$M$7:$M$213,0)-1,0)*$N65 -> 0 | L65: =OFFSET('Distribution (CALC)'!R21,MATCH('Microwave Shipments (CALC)'!$I$51,'Distribution (CALC)'!$M$7:$M$213,0)-1,0)*$N65 -> 0 | M65: =OFFSET('Distribution (CALC)'!S21,MATCH('Microwave Shipments (CALC)'!$I$51,'Distribution (CALC)'!$M$7:$M$213,0)-1,0)*$N65 -> 0 | N65: 135659.2199 | O65: =OFFSET('Distribution (CALC)'!O21,MATCH('Microwave Shipments (CALC)'!$O$51,'Distribution (CALC)'!$M$7:$M$213,0)-1,0)*$T65 -> 0 | P65: =OFFSET('Distribution (CALC)'!P21,MATCH('Microwave Shipments (CALC)'!$O$51,'Distribution (CALC)'!$M$7:$M$213,0)-1,0)*$T65 -> 0 | Q65: =OFFSET('Distribution (CALC)'!Q21,MATCH('Microwave Shipments (CALC)'!$O$51,'Distribution (CALC)'!$M$7:$M$213,0)-1,0)*$T65 -> 135505.8239 | R65: =OFFSET('Distribution (CALC)'!R21,MATCH('Microwave Shipments (CALC)'!$O$51,'Distribution (CALC)'!$M$7:$M$213,0)-1,0)*$T65 -> 0 | S65: =OFFSET('Distribution (CALC)'!S21,MATCH('Microwave Shipments (CALC)'!$O$51,'Distribution (CALC)'!$M$7:$M$213,0)-1,0)*$T65 -> 0 | T65: 135505.8239 | U65: =OFFSET('Distribution (CALC)'!O21,MATCH('Microwave Shipments (CALC)'!$U$51,'Distribution (CALC)'!$M$7:$M$213,0)-1,0)*$Z65 -> 0 | V65: =OFFSET('Distribution (CALC)'!P21,MATCH('Microwave Shipments (CALC)'!$U$51,'Distribution (CALC)'!$M$7:$M$213,0)-1,0)*$Z65 -> 0 | W65: =OFFSET('Distribution (CALC)'!Q21,MATCH('Microwave Shipments (CALC)'!$U$51,'Distribution (CALC)'!$M$7:$M$213,0)-1,0)*$Z65 -> 0 | X65: =OFFSET('Distribution (CALC)'!R21,MATCH('Microwave Shipments (CALC)'!$U$51,'Distribution (CALC)'!$M$7:$M$213,0)-1,0)*$Z65 -> 135024.1658 | Y65: =OFFSET('Distribution (CALC)'!S21,MATCH('Microwave Shipments (CALC)'!$U$51,'Distribution (CALC)'!$M$7:$M$213,0)-1,0)*$Z65 -> 0 | Z65: 135024.1658 | AA65: =OFFSET('Distribution (CALC)'!O21,MATCH('Microwave Shipments (CALC)'!$AA$51,'Distribution (CALC)'!$M$7:$M$213,0)-1,0)*$AF65 -> 0 | AB65: =OFFSET('Distribution (CALC)'!P21,MATCH('Microwave Shipments (CALC)'!$AA$51,'Distribution (CALC)'!$M$7:$M$213,0)-1,0)*$AF65 -> 0 | AC65: =OFFSET('Distribution (CALC)'!Q21,MATCH('Microwave Shipments (CALC)'!$AA$51,'Distribution (CALC)'!$M$7:$M$213,0)-1,0)*$AF65 -> 0 | AD65: =OFFSET('Distribution (CALC)'!R21,MATCH('Microwave Shipments (CALC)'!$AA$51,'Distribution (CALC)'!$M$7:$M$213,0)-1,0)*$AF65 -> 0 | AE65: =OFFSET('Distribution (CALC)'!S21,MATCH('Microwave Shipments (CALC)'!$AA$51,'Distribution (CALC)'!$M$7:$M$213,0)-1,0)*$AF65 -> 135313.8337 | AF65: 135313.8337
B66: 2019 | C66: =OFFSET('Distribution (CALC)'!O22,MATCH('Microwave Shipments (CALC)'!$C$51,'Distribution (CALC)'!$M$7:$M$213,0)-1,0)*$H66 -> 138905.513 | D66: =OFFSET('Distribution (CALC)'!P22,MATCH('Microwave Shipments (CALC)'!$C$51,'Distribution (CALC)'!$M$7:$M$213,0)-1,0)*$H66 -> 0 | E66: =OFFSET('Distribution (CALC)'!Q22,MATCH('Microwave Shipments (CALC)'!$C$51,'Distribution (CALC)'!$M$7:$M$213,0)-1,0)*$H66 -> 0 | F66: =OFFSET('Distribution (CALC)'!R22,MATCH('Microwave Shipments (CALC)'!$C$51,'Distribution (CALC)'!$M$7:$M$213,0)-1,0)*$H66 -> 0 | G66: =OFFSET('Distribution (CALC)'!S22,MATCH('Microwave Shipments (CALC)'!$C$51,'Distribution (CALC)'!$M$7:$M$213,0)-1,0)*$H66 -> 0 | H66: 138905.513 | I66: =OFFSET('Distribution (CALC)'!O22,MATCH('Microwave Shipments (CALC)'!$I$51,'Distribution (CALC)'!$M$7:$M$213,0)-1,0)*$N66 -> 0 | J66: =OFFSET('Distribution (CALC)'!P22,MATCH('Microwave Shipments (CALC)'!$I$51,'Distribution (CALC)'!$M$7:$M$213,0)-1,0)*$N66 -> 138906.497 | K66: =OFFSET('Distribution (CALC)'!Q22,MATCH('Microwave Shipments (CALC)'!$I$51,'Distribution (CALC)'!$M$7:$M$213,0)-1,0)*$N66 -> 0 | L66: =OFFSET('Distribution (CALC)'!R22,MATCH('Microwave Shipments (CALC)'!$I$51,'Distribution (CALC)'!$M$7:$M$213,0)-1,0)*$N66 -> 0 | M66: =OFFSET('Distribution (CALC)'!S22,MATCH('Microwave Shipments (CALC)'!$I$51,'Distribution (CALC)'!$M$7:$M$213,0)-1,0)*$N66 -> 0 | N66: 138906.497 | O66: =OFFSET('Distribution (CALC)'!O22,MATCH('Microwave Shipments (CALC)'!$O$51,'Distribution (CALC)'!$M$7:$M$213,0)-1,0)*$T66 -> 0 | P66: =OFFSET('Distribution (CALC)'!P22,MATCH('Microwave Shipments (CALC)'!$O$51,'Distribution (CALC)'!$M$7:$M$213,0)-1,0)*$T66 -> 0 | Q66: =OFFSET('Distribution (CALC)'!Q22,MATCH('Microwave Shipments (CALC)'!$O$51,'Distribution (CALC)'!$M$7:$M$213,0)-1,0)*$T66 -> 138753.113 | R66: =OFFSET('Distribution (CALC)'!R22,MATCH('Microwave Shipments (CALC)'!$O$51,'Distribution (CALC)'!$M$7:$M$213,0)-1,0)*$T66 -> 0 | S66: =OFFSET('Distribution (CALC)'!S22,MATCH('Microwave Shipments (CALC)'!$O$51,'Distribution (CALC)'!$M$7:$M$213,0)-1,0)*$T66 -> 0 | T66: 138753.113 | U66: =OFFSET('Distribution (CALC)'!O22,MATCH('Microwave Shipments (CALC)'!$U$51,'Distribution (CALC)'!$M$7:$M$213,0)-1,0)*$Z66 -> 0 | V66: =OFFSET('Distribution (CALC)'!P22,MATCH('Microwave Shipments (CALC)'!$U$51,'Distribution (CALC)'!$M$7:$M$213,0)-1,0)*$Z66 -> 0 | W66: =OFFSET('Distribution (CALC)'!Q22,MATCH('Microwave Shipments (CALC)'!$U$51,'Distribution (CALC)'!$M$7:$M$213,0)-1,0)*$Z66 -> 0 | X66: =OFFSET('Distribution (CALC)'!R22,MATCH('Microwave Shipments (CALC)'!$U$51,'Distribution (CALC)'!$M$7:$M$213,0)-1,0)*$Z66 -> 138271.513 | Y66: =OFFSET('Distribution (CALC)'!S22,MATCH('Microwave Shipments (CALC)'!$U$51,'Distribution (CALC)'!$M$7:$M$213,0)-1,0)*$Z66 -> 0 | Z66: 138271.513 | AA66: =OFFSET('Distribution (CALC)'!O22,MATCH('Microwave Shipments (CALC)'!$AA$51,'Distribution (CALC)'!$M$7:$M$213,0)-1,0)*$AF66 -> 0 | AB66: =OFFSET('Distribution (CALC)'!P22,MATCH('Microwave Shipments (CALC)'!$AA$51,'Distribution (CALC)'!$M$7:$M$213,0)-1,0)*$AF66 -> 0 | AC66: =OFFSET('Distribution (CALC)'!Q22,MATCH('Microwave Shipments (CALC)'!$AA$51,'Distribution (CALC)'!$M$7:$M$213,0)-1,0)*$AF66 -> 0 | AD66: =OFFSET('Distribution (CALC)'!R22,MATCH('Microwave Shipments (CALC)'!$AA$51,'Distribution (CALC)'!$M$7:$M$213,0)-1,0)*$AF66 -> 0 | AE66: =OFFSET('Distribution (CALC)'!S22,MATCH('Microwave Shipments (CALC)'!$AA$51,'Distribution (CALC)'!$M$7:$M$213,0)-1,0)*$AF66 -> 138561.1651 | AF66: 138561.1651
B67: 2020 | C67: =OFFSET('Distribution (CALC)'!O23,MATCH('Microwave Shipments (CALC)'!$C$51,'Distribution (CALC)'!$M$7:$M$213,0)-1,0)*$H67 -> 146092.3401 | D67: =OFFSET('Distribution (CALC)'!P23,MATCH('Microwave Shipments (CALC)'!$C$51,'Distribution (CALC)'!$M$7:$M$213,0)-1,0)*$H67 -> 0 | E67: =OFFSET('Distribution (CALC)'!Q23,MATCH('Microwave Shipments (CALC)'!$C$51,'Distribution (CALC)'!$M$7:$M$213,0)-1,0)*$H67 -> 0 | F67: =OFFSET('Distribution (CALC)'!R23,MATCH('Microwave Shipments (CALC)'!$C$51,'Distribution (CALC)'!$M$7:$M$213,0)-1,0)*$H67 -> 0 | G67: =OFFSET('Distribution (CALC)'!S23,MATCH('Microwave Shipments (CALC)'!$C$51,'Distribution (CALC)'!$M$7:$M$213,0)-1,0)*$H67 -> 0 | H67: 146092.3401 | I67: =OFFSET('Distribution (CALC)'!O23,MATCH('Microwave Shipments (CALC)'!$I$51,'Distribution (CALC)'!$M$7:$M$213,0)-1,0)*$N67 -> 0 | J67: =OFFSET('Distribution (CALC)'!P23,MATCH('Microwave Shipments (CALC)'!$I$51,'Distribution (CALC)'!$M$7:$M$213,0)-1,0)*$N67 -> 146093.4058 | K67: =OFFSET('Distribution (CALC)'!Q23,MATCH('Microwave Shipments (CALC)'!$I$51,'Distribution (CALC)'!$M$7:$M$213,0)-1,0)*$N67 -> 0 | L67: =OFFSET('Distribution (CALC)'!R23,MATCH('Microwave Shipments (CALC)'!$I$51,'Distribution (CALC)'!$M$7:$M$213,0)-1,0)*$N67 -> 0 | M67: =OFFSET('Distribution (CALC)'!S23,MATCH('Microwave Shipments (CALC)'!$I$51,'Distribution (CALC)'!$M$7:$M$213,0)-1,0)*$N67 -> 0 | N67: 146093.4058 | O67: =OFFSET('Distribution (CALC)'!O23,MATCH('Microwave Shipments (CALC)'!$O$51,'Distribution (CALC)'!$M$7:$M$213,0)-1,0)*$T67 -> 0 | P67: =OFFSET('Distribution (CALC)'!P23,MATCH('Microwave Shipments (CALC)'!$O$51,'Distribution (CALC)'!$M$7:$M$213,0)-1,0)*$T67 -> 0 | Q67: =OFFSET('Distribution (CALC)'!Q23,MATCH('Microwave Shipments (CALC)'!$O$51,'Distribution (CALC)'!$M$7:$M$213,0)-1,0)*$T67 -> 145929.534 | R67: =OFFSET('Distribution (CALC)'!R23,MATCH('Microwave Shipments (CALC)'!$O$51,'Distribution (CALC)'!$M$7:$M$213,0)-1,0)*$T67 -> 0 | S67: =OFFSET('Distribution (CALC)'!S23,MATCH('Microwave Shipments (CALC)'!$O$51,'Distribution (CALC)'!$M$7:$M$213,0)-1,0)*$T67 -> 0 | T67: 145929.534 | U67: =OFFSET('Distribution (CALC)'!O23,MATCH('Microwave Shipments (CALC)'!$U$51,'Distribution (CALC)'!$M$7:$M$213,0)-1,0)*$Z67 -> 0 | V67: =OFFSET('Distribution (CALC)'!P23,MATCH('Microwave Shipments (CALC)'!$U$51,'Distribution (CALC)'!$M$7:$M$213,0)-1,0)*$Z67 -> 0 | W67: =OFFSET('Distribution (CALC)'!Q23,MATCH('Microwave Shipments (CALC)'!$U$51,'Distribution (CALC)'!$M$7:$M$213,0)-1,0)*$Z67 -> 0 | X67: =OFFSET('Distribution (CALC)'!R23,MATCH('Microwave Shipments (CALC)'!$U$51,'Distribution (CALC)'!$M$7:$M$213,0)-1,0)*$Z67 -> 145415.0818 | Y67: =OFFSET('Distribution (CALC)'!S23,MATCH('Microwave Shipments (CALC)'!$U$51,'Distribution (CALC)'!$M$7:$M$213,0)-1,0)*$Z67 -> 0 | Z67: 145415.0818 | AA67: =OFFSET('Distribution (CALC)'!O23,MATCH('Microwave Shipments (CALC)'!$AA$51,'Distribution (CALC)'!$M$7:$M$213,0)-1,0)*$AF67 -> 0 | AB67: =OFFSET('Distribution (CALC)'!P23,MATCH('Microwave Shipments (CALC)'!$AA$51,'Distribution (CALC)'!$M$7:$M$213,0)-1,0)*$AF67 -> 0 | AC67: =OFFSET('Distribution (CALC)'!Q23,MATCH('Microwave Shipments (CALC)'!$AA$51,'Distribution (CALC)'!$M$7:$M$213,0)-1,0)*$AF67 -> 0 | AD67: =OFFSET('Distribution (CALC)'!R23,MATCH('Microwave Shipments (CALC)'!$AA$51,'Distribution (CALC)'!$M$7:$M$213,0)-1,0)*$AF67 -> 0 | AE67: =OFFSET('Distribution (CALC)'!S23,MATCH('Microwave Shipments (CALC)'!$AA$51,'Distribution (CALC)'!$M$7:$M$213,0)-1,0)*$AF67 -> 145724.5137 | AF67: 145724.5137
B68: 2021 | C68: =OFFSET('Distribution (CALC)'!O24,MATCH('Microwave Shipments (CALC)'!$C$51,'Distribution (CALC)'!$M$7:$M$213,0)-1,0)*$H68 -> 153400.3776 | D68: =OFFSET('Distribution (CALC)'!P24,MATCH('Microwave Shipments (CALC)'!$C$51,'Distribution (CALC)'!$M$7:$M$213,0)-1,0)*$H68 -> 0 | E68: =OFFSET('Distribution (CALC)'!Q24,MATCH('Microwave Shipments (CALC)'!$C$51,'Distribution (CALC)'!$M$7:$M$213,0)-1,0)*$H68 -> 0 | F68: =OFFSET('Distribution (CALC)'!R24,MATCH('Microwave Shipments (CALC)'!$C$51,'Distribution (CALC)'!$M$7:$M$213,0)-1,0)*$H68 -> 0 | G68: =OFFSET('Distribution (CALC)'!S24,MATCH('Microwave Shipments (CALC)'!$C$51,'Distribution (CALC)'!$M$7:$M$213,0)-1,0)*$H68 -> 0 | H68: 153400.3776 | I68: =OFFSET('Distribution (CALC)'!O24,MATCH('Microwave Shipments (CALC)'!$I$51,'Distribution (CALC)'!$M$7:$M$213,0)-1,0)*$N68 -> 0 | J68: =OFFSET('Distribution (CALC)'!P24,MATCH('Microwave Shipments (CALC)'!$I$51,'Distribution (CALC)'!$M$7:$M$213,0)-1,0)*$N68 -> 153401.5961 | K68: =OFFSET('Distribution (CALC)'!Q24,MATCH('Microwave Shipments (CALC)'!$I$51,'Distribution (CALC)'!$M$7:$M$213,0)-1,0)*$N68 -> 0 | L68: =OFFSET('Distribution (CALC)'!R24,MATCH('Microwave Shipments (CALC)'!$I$51,'Distribution (CALC)'!$M$7:$M$213,0)-1,0)*$N68 -> 0 | M68: =OFFSET('Distribution (CALC)'!S24,MATCH('Microwave Shipments (CALC)'!$I$51,'Distribution (CALC)'!$M$7:$M$213,0)-1,0)*$N68 -> 0 | N68: 153401.5961 | O68: =OFFSET('Distribution (CALC)'!O24,MATCH('Microwave Shipments (CALC)'!$O$51,'Distribution (CALC)'!$M$7:$M$213,0)-1,0)*$T68 -> 0 | P68: =OFFSET('Distribution (CALC)'!P24,MATCH('Microwave Shipments (CALC)'!$O$51,'Distribution (CALC)'!$M$7:$M$213,0)-1,0)*$T68 -> 0 | Q68: =OFFSET('Distribution (CALC)'!Q24,MATCH('Microwave Shipments (CALC)'!$O$51,'Distribution (CALC)'!$M$7:$M$213,0)-1,0)*$T68 -> 153215.4019 | R68: =OFFSET('Distribution (CALC)'!R24,MATCH('Microwave Shipments (CALC)'!$O$51,'Distribution (CALC)'!$M$7:$M$213,0)-1,0)*$T68 -> 0 | S68: =OFFSET('Distribution (CALC)'!S24,MATCH('Microwave Shipments (CALC)'!$O$51,'Distribution (CALC)'!$M$7:$M$213,0)-1,0)*$T68 -> 0 | T68: 153215.4019 | U68: =OFFSET('Distribution (CALC)'!O24,MATCH('Microwave Shipments (CALC)'!$U$51,'Distribution (CALC)'!$M$7:$M$213,0)-1,0)*$Z68 -> 0 | V68: =OFFSET('Distribution (CALC)'!P24,MATCH('Microwave Shipments (CALC)'!$U$51,'Distribution (CALC)'!$M$7:$M$213,0)-1,0)*$Z68 -> 0 | W68: =OFFSET('Distribution (CALC)'!Q24,MATCH('Microwave Shipments (CALC)'!$U$51,'Distribution (CALC)'!$M$7:$M$213,0)-1,0)*$Z68 -> 0 | X68: =OFFSET('Distribution (CALC)'!R24,MATCH('Microwave Shipments (CALC)'!$U$51,'Distribution (CALC)'!$M$7:$M$213,0)-1,0)*$Z68 -> 152631.0833 | Y68: =OFFSET('Distribution (CALC)'!S24,MATCH('Microwave Shipments (CALC)'!$U$51,'Distribution (CALC)'!$M$7:$M$213,0)-1,0)*$Z68 -> 0 | Z68: 152631.0833 | AA68: =OFFSET('Distribution (CALC)'!O24,MATCH('Microwave Shipments (CALC)'!$AA$51,'Distribution (CALC)'!$M$7:$M$213,0)-1,0)*$AF68 -> 0 | AB68: =OFFSET('Distribution (CALC)'!P24,MATCH('Microwave Shipments (CALC)'!$AA$51,'Distribution (CALC)'!$M$7:$M$213,0)-1,0)*$AF68 -> 0 | AC68: =OFFSET('Distribution (CALC)'!Q24,MATCH('Microwave Shipments (CALC)'!$AA$51,'Distribution (CALC)'!$M$7:$M$213,0)-1,0)*$AF68 -> 0 | AD68: =OFFSET('Distribution (CALC)'!R24,MATCH('Microwave Shipments (CALC)'!$AA$51,'Distribution (CALC)'!$M$7:$M$213,0)-1,0)*$AF68 -> 0 | AE68: =OFFSET('Distribution (CALC)'!S24,MATCH('Microwave Shipments (CALC)'!$AA$51,'Distribution (CALC)'!$M$7:$M$213,0)-1,0)*$AF68 -> 152982.5182 | AF68: 152982.5182
B69: 2022 | C69: =OFFSET('Distribution (CALC)'!O25,MATCH('Microwave Shipments (CALC)'!$C$51,'Distribution (CALC)'!$M$7:$M$213,0)-1,0)*$H69 -> 158855.8834 | D69: =OFFSET('Distribution (CALC)'!P25,MATCH('Microwave Shipments (CALC)'!$C$51,'Distribution (CALC)'!$M$7:$M$213,0)-1,0)*$H69 -> 0 | E69: =OFFSET('Distribution (CALC)'!Q25,MATCH('Microwave Shipments (CALC)'!$C$51,'Distribution (CALC)'!$M$7:$M$213,0)-1,0)*$H69 -> 0 | F69: =OFFSET('Distribution (CALC)'!R25,MATCH('Microwave Shipments (CALC)'!$C$51,'Distribution (CALC)'!$M$7:$M$213,0)-1,0)*$H69 -> 0 | G69: =OFFSET('Distribution (CALC)'!S25,MATCH('Microwave Shipments (CALC)'!$C$51,'Distribution (CALC)'!$M$7:$M$213,0)-1,0)*$H69 -> 0 | H69: 158855.8834 | I69: =OFFSET('Distribution (CALC)'!O25,MATCH('Microwave Shipments (CALC)'!$I$51,'Distribution (CALC)'!$M$7:$M$213,0)-1,0)*$N69 -> 0 | J69: =OFFSET('Distribution (CALC)'!P25,MATCH('Microwave Shipments (CALC)'!$I$51,'Distribution (CALC)'!$M$7:$M$213,0)-1,0)*$N69 -> 158857.3335 | K69: =OFFSET('Distribution (CALC)'!Q25,MATCH('Microwave Shipments (CALC)'!$I$51,'Distribution (CALC)'!$M$7:$M$213,0)-1,0)*$N69 -> 0 | L69: =OFFSET('Distribution (CALC)'!R25,MATCH('Microwave Shipments (CALC)'!$I$51,'Distribution (CALC)'!$M$7:$M$213,0)-1,0)*$N69 -> 0 | M69: =OFFSET('Distribution (CALC)'!S25,MATCH('Microwave Shipments (CALC)'!$I$51,'Distribution (CALC)'!$M$7:$M$213,0)-1,0)*$N69 -> 0 | N69: 158857.3335 | O69: =OFFSET('Distribution (CALC)'!O25,MATCH('Microwave Shipments (CALC)'!$O$51,'Distribution (CALC)'!$M$7:$M$213,0)-1,0)*$T69 -> 0 | P69: =OFFSET('Distribution (CALC)'!P25,MATCH('Microwave Shipments (CALC)'!$O$51,'Distribution (CALC)'!$M$7:$M$213,0)-1,0)*$T69 -> 0 | Q69: =OFFSET('Distribution (CALC)'!Q25,MATCH('Microwave Shipments (CALC)'!$O$51,'Distribution (CALC)'!$M$7:$M$213,0)-1,0)*$T69 -> 158634.8518 | R69: =OFFSET('Distribution (CALC)'!R25,MATCH('Microwave Shipments (CALC)'!$O$51,'Distribution (CALC)'!$M$7:$M$213,0)-1,0)*$T69 -> 0 | S69: =OFFSET('Distribution (CALC)'!S25,MATCH('Microwave Shipments (CALC)'!$O$51,'Distribution (CALC)'!$M$7:$M$213,0)-1,0)*$T69 -> 0 | T69: 158634.8518 | U69: =OFFSET('Distribution (CALC)'!O25,MATCH('Microwave Shipments (CALC)'!$U$51,'Distribution (CALC)'!$M$7:$M$213,0)-1,0)*$Z69 -> 0 | V69: =OFFSET('Distribution (CALC)'!P25,MATCH('Microwave Shipments (CALC)'!$U$51,'Distribution (CALC)'!$M$7:$M$213,0)-1,0)*$Z69 -> 0 | W69: =OFFSET('Distribution (CALC)'!Q25,MATCH('Microwave Shipments (CALC)'!$U$51,'Distribution (CALC)'!$M$7:$M$213,0)-1,0)*$Z69 -> 0 | X69: =OFFSET('Distribution (CALC)'!R25,MATCH('Microwave Shipments (CALC)'!$U$51,'Distribution (CALC)'!$M$7:$M$213,0)-1,0)*$Z69 -> 157937.0132 | Y69: =OFFSET('Distribution (CALC)'!S25,MATCH('Microwave Shipments (CALC)'!$U$51,'Distribution (CALC)'!$M$7:$M$213,0)-1,0)*$Z69 -> 0 | Z69: 157937.0132 | AA69: =OFFSET('Distribution (CALC)'!O25,MATCH('Microwave Shipments (CALC)'!$AA$51,'Distribution (CALC)'!$M$7:$M$213,0)-1,0)*$AF69 -> 0 | AB69: =OFFSET('Distribution (CALC)'!P25,MATCH('Microwave Shipments (CALC)'!$AA$51,'Distribution (CALC)'!$M$7:$M$213,0)-1,0)*$AF69 -> 0 | AC69: =OFFSET('Distribution (CALC)'!Q25,MATCH('Microwave Shipments (CALC)'!$AA$51,'Distribution (CALC)'!$M$7:$M$213,0)-1,0)*$AF69 -> 0 | AD69: =OFFSET('Distribution (CALC)'!R25,MATCH('Microwave Shipments (CALC)'!$AA$51,'Distribution (CALC)'!$M$7:$M$213,0)-1,0)*$AF69 -> 0 | AE69: =OFFSET('Distribution (CALC)'!S25,MATCH('Microwave Shipments (CALC)'!$AA$51,'Distribution (CALC)'!$M$7:$M$213,0)-1,0)*$AF69 -> 158356.6441 | AF69: 158356.6441
B70: 2023 | C70: =OFFSET('Distribution (CALC)'!O26,MATCH('Microwave Shipments (CALC)'!$C$51,'Distribution (CALC)'!$M$7:$M$213,0)-1,0)*$H70 -> 160744.31 | D70: =OFFSET('Distribution (CALC)'!P26,MATCH('Microwave Shipments (CALC)'!$C$51,'Distribution (CALC)'!$M$7:$M$213,0)-1,0)*$H70 -> 0 | E70: =OFFSET('Distribution (CALC)'!Q26,MATCH('Microwave Shipments (CALC)'!$C$51,'Distribution (CALC)'!$M$7:$M$213,0)-1,0)*$H70 -> 0 | F70: =OFFSET('Distribution (CALC)'!R26,MATCH('Microwave Shipments (CALC)'!$C$51,'Distribution (CALC)'!$M$7:$M$213,0)-1,0)*$H70 -> 0 | G70: =OFFSET('Distribution (CALC)'!S26,MATCH('Microwave Shipments (CALC)'!$C$51,'Distribution (CALC)'!$M$7:$M$213,0)-1,0)*$H70 -> 0 | H70: 160744.31 | I70: =OFFSET('Distribution (CALC)'!O26,MATCH('Microwave Shipments (CALC)'!$I$51,'Distribution (CALC)'!$M$7:$M$213,0)-1,0)*$N70 -> 0 | J70: =OFFSET('Distribution (CALC)'!P26,MATCH('Microwave Shipments (CALC)'!$I$51,'Distribution (CALC)'!$M$7:$M$213,0)-1,0)*$N70 -> 160746.0616 | K70: =OFFSET('Distribution (CALC)'!Q26,MATCH('Microwave Shipments (CALC)'!$I$51,'Distribution (CALC)'!$M$7:$M$213,0)-1,0)*$N70 -> 0 | L70: =OFFSET('Distribution (CALC)'!R26,MATCH('Microwave Shipments (CALC)'!$I$51,'Distribution (CALC)'!$M$7:$M$213,0)-1,0)*$N70 -> 0 | M70: =OFFSET('Distribution (CALC)'!S26,MATCH('Microwave Shipments (CALC)'!$I$51,'Distribution (CALC)'!$M$7:$M$213,0)-1,0)*$N70 -> 0 | N70: 160746.0616 | O70: =OFFSET('Distribution (CALC)'!O26,MATCH('Microwave Shipments (CALC)'!$O$51,'Distribution (CALC)'!$M$7:$M$213,0)-1,0)*$T70 -> 0 | P70: =OFFSET('Distribution (CALC)'!P26,MATCH('Microwave Shipments (CALC)'!$O$51,'Distribution (CALC)'!$M$7:$M$213,0)-1,0)*$T70 -> 0 | Q70: =OFFSET('Distribution (CALC)'!Q26,MATCH('Microwave Shipments (CALC)'!$O$51,'Distribution (CALC)'!$M$7:$M$213,0)-1,0)*$T70 -> 160475.4316 | R70: =OFFSET('Distribution (CALC)'!R26,MATCH('Microwave Shipments (CALC)'!$O$51,'Distribution (CALC)'!$M$7:$M$213,0)-1,0)*$T70 -> 0 | S70: =OFFSET('Distribution (CALC)'!S26,MATCH('Microwave Shipments (CALC)'!$O$51,'Distribution (CALC)'!$M$7:$M$213,0)-1,0)*$T70 -> 0 | T70: 160475.4316 | U70: =OFFSET('Distribution (CALC)'!O26,MATCH('Microwave Shipments (CALC)'!$U$51,'Distribution (CALC)'!$M$7:$M$213,0)-1,0)*$Z70 -> 0 | V70: =OFFSET('Distribution (CALC)'!P26,MATCH('Microwave Shipments (CALC)'!$U$51,'Distribution (CALC)'!$M$7:$M$213,0)-1,0)*$Z70 -> 0 | W70: =OFFSET('Distribution (CALC)'!Q26,MATCH('Microwave Shipments (CALC)'!$U$51,'Distribution (CALC)'!$M$7:$M$213,0)-1,0)*$Z70 -> 0 | X70: =OFFSET('Distribution (CALC)'!R26,MATCH('Microwave Shipments (CALC)'!$U$51,'Distribution (CALC)'!$M$7:$M$213,0)-1,0)*$Z70 -> 159626.9598 | Y70: =OFFSET('Distribution (CALC)'!S26,MATCH('Microwave Shipments (CALC)'!$U$51,'Distribution (CALC)'!$M$7:$M$213,0)-1,0)*$Z70 -> 0 | Z70: 159626.9598 | AA70: =OFFSET('Distribution (CALC)'!O26,MATCH('Microwave Shipments (CALC)'!$AA$51,'Distribution (CALC)'!$M$7:$M$213,0)-1,0)*$AF70 -> 0 | AB70: =OFFSET('Distribution (CALC)'!P26,MATCH('Microwave Shipments (CALC)'!$AA$51,'Distribution (CALC)'!$M$7:$M$213,0)-1,0)*$AF70 -> 0 | AC70: =OFFSET('Distribution (CALC)'!Q26,MATCH('Microwave Shipments (CALC)'!$AA$51,'Distribution (CALC)'!$M$7:$M$213,0)-1,0)*$AF70 -> 0 | AD70: =OFFSET('Distribution (CALC)'!R26,MATCH('Microwave Shipments (CALC)'!$AA$51,'Distribution (CALC)'!$M$7:$M$213,0)-1,0)*$AF70 -> 0 | AE70: =OFFSET('Distribution (CALC)'!S26,MATCH('Microwave Shipments (CALC)'!$AA$51,'Distribution (CALC)'!$M$7:$M$213,0)-1,0)*$AF70 -> 160137.0692 | AF70: 160137.0692
B71: 2024 | C71: =OFFSET('Distribution (CALC)'!O27,MATCH('Microwave Shipments (CALC)'!$C$51,'Distribution (CALC)'!$M$7:$M$213,0)-1,0)*$H71 -> 160095.9906 | D71: =OFFSET('Distribution (CALC)'!P27,MATCH('Microwave Shipments (CALC)'!$C$51,'Distribution (CALC)'!$M$7:$M$213,0)-1,0)*$H71 -> 0 | E71: =OFFSET('Distribution (CALC)'!Q27,MATCH('Microwave Shipments (CALC)'!$C$51,'Distribution (CALC)'!$M$7:$M$213,0)-1,0)*$H71 -> 0 | F71: =OFFSET('Distribution (CALC)'!R27,MATCH('Microwave Shipments (CALC)'!$C$51,'Distribution (CALC)'!$M$7:$M$213,0)-1,0)*$H71 -> 0 | G71: =OFFSET('Distribution (CALC)'!S27,MATCH('Microwave Shipments (CALC)'!$C$51,'Distribution (CALC)'!$M$7:$M$213,0)-1,0)*$H71 -> 0 | H71: 160095.9906 | I71: =OFFSET('Distribution (CALC)'!O27,MATCH('Microwave Shipments (CALC)'!$I$51,'Distribution (CALC)'!$M$7:$M$213,0)-1,0)*$N71 -> 0 | J71: =OFFSET('Distribution (CALC)'!P27,MATCH('Microwave Shipments (CALC)'!$I$51,'Distribution (CALC)'!$M$7:$M$213,0)-1,0)*$N71 -> 160098.0863 | K71: =OFFSET('Distribution (CALC)'!Q27,MATCH('Microwave Shipments (CALC)'!$I$51,'Distribution (CALC)'!$M$7:$M$213,0)-1,0)*$N71 -> 0 | L71: =OFFSET('Distribution (CALC)'!R27,MATCH('Microwave Shipments (CALC)'!$I$51,'Distribution (CALC)'!$M$7:$M$213,0)-1,0)*$N71 -> 0 | M71: =OFFSET('Distribution (CALC)'!S27,MATCH('Microwave Shipments (CALC)'!$I$51,'Distribution (CALC)'!$M$7:$M$213,0)-1,0)*$N71 -> 0 | N71: 160098.0863 | O71: =OFFSET('Distribution (CALC)'!O27,MATCH('Microwave Shipments (CALC)'!$O$51,'Distribution (CALC)'!$M$7:$M$213,0)-1,0)*$T71 -> 0 | P71: =OFFSET('Distribution (CALC)'!P27,MATCH('Microwave Shipments (CALC)'!$O$51,'Distribution (CALC)'!$M$7:$M$213,0)-1,0)*$T71 -> 0 | Q71: =OFFSET('Distribution (CALC)'!Q27,MATCH('Microwave Shipments (CALC)'!$O$51,'Distribution (CALC)'!$M$7:$M$213,0)-1,0)*$T71 -> 159773.3892 | R71: =OFFSET('Distribution (CALC)'!R27,MATCH('Microwave Shipments (CALC)'!$O$51,'Distribution (CALC)'!$M$7:$M$213,0)-1,0)*$T71 -> 0 | S71: =OFFSET('Distribution (CALC)'!S27,MATCH('Microwave Shipments (CALC)'!$O$51,'Distribution (CALC)'!$M$7:$M$213,0)-1,0)*$T71 -> 0 | T71: 159773.3892 | U71: =OFFSET('Distribution (CALC)'!O27,MATCH('Microwave Shipments (CALC)'!$U$51,'Distribution (CALC)'!$M$7:$M$213,0)-1,0)*$Z71 -> 0 | V71: =OFFSET('Distribution (CALC)'!P27,MATCH('Microwave Shipments (CALC)'!$U$51,'Distribution (CALC)'!$M$7:$M$213,0)-1,0)*$Z71 -> 0 | W71: =OFFSET('Distribution (CALC)'!Q27,MATCH('Microwave Shipments (CALC)'!$U$51,'Distribution (CALC)'!$M$7:$M$213,0)-1,0)*$Z71 -> 0 | X71: =OFFSET('Distribution (CALC)'!R27,MATCH('Microwave Shipments (CALC)'!$U$51,'Distribution (CALC)'!$M$7:$M$213,0)-1,0)*$Z71 -> 158755.7278 | Y71: =OFFSET('Distribution (CALC)'!S27,MATCH('Microwave Shipments (CALC)'!$U$51,'Distribution (CALC)'!$M$7:$M$213,0)-1,0)*$Z71 -> 0 | Z71: 158755.7278 | AA71: =OFFSET('Distribution (CALC)'!O27,MATCH('Microwave Shipments (CALC)'!$AA$51,'Distribution (CALC)'!$M$7:$M$213,0)-1,0)*$AF71 -> 0 | AB71: =OFFSET('Distribution (CALC)'!P27,MATCH('Microwave Shipments (CALC)'!$AA$51,'Distribution (CALC)'!$M$7:$M$213,0)-1,0)*$AF71 -> 0 | AC71: =OFFSET('Distribution (CALC)'!Q27,MATCH('Microwave Shipments (CALC)'!$AA$51,'Distribution (CALC)'!$M$7:$M$213,0)-1,0)*$AF71 -> 0 | AD71: =OFFSET('Distribution (CALC)'!R27,MATCH('Microwave Shipments (CALC)'!$AA$51,'Distribution (CALC)'!$M$7:$M$213,0)-1,0)*$AF71 -> 0 | AE71: =OFFSET('Distribution (CALC)'!S27,MATCH('Microwave Shipments (CALC)'!$AA$51,'Distribution (CALC)'!$M$7:$M$213,0)-1,0)*$AF71 -> 159367.4824 | AF71: 159367.4824
B72: 2025 | C72: =OFFSET('Distribution (CALC)'!O28,MATCH('Microwave Shipments (CALC)'!$C$51,'Distribution (CALC)'!$M$7:$M$213,0)-1,0)*$H72 -> 158218.6084 | D72: =OFFSET('Distribution (CALC)'!P28,MATCH('Microwave Shipments (CALC)'!$C$51,'Distribution (CALC)'!$M$7:$M$213,0)-1,0)*$H72 -> 0 | E72: =OFFSET('Distribution (CALC)'!Q28,MATCH('Microwave Shipments (CALC)'!$C$51,'Distribution (CALC)'!$M$7:$M$213,0)-1,0)*$H72 -> 0 | F72: =OFFSET('Distribution (CALC)'!R28,MATCH('Microwave Shipments (CALC)'!$C$51,'Distribution (CALC)'!$M$7:$M$213,0)-1,0)*$H72 -> 0 | G72: =OFFSET('Distribution (CALC)'!S28,MATCH('Microwave Shipments (CALC)'!$C$51,'Distribution (CALC)'!$M$7:$M$213,0)-1,0)*$H72 -> 0 | H72: 158218.6084 | I72: =OFFSET('Distribution (CALC)'!O28,MATCH('Microwave Shipments (CALC)'!$I$51,'Distribution (CALC)'!$M$7:$M$213,0)-1,0)*$N72 -> 0 | J72: =OFFSET('Distribution (CALC)'!P28,MATCH('Microwave Shipments (CALC)'!$I$51,'Distribution (CALC)'!$M$7:$M$213,0)-1,0)*$N72 -> 158220.8976 | K72: =OFFSET('Distribution (CALC)'!Q28,MATCH('Microwave Shipments (CALC)'!$I$51,'Distribution (CALC)'!$M$7:$M$213,0)-1,0)*$N72 -> 0 | L72: =OFFSET('Distribution (CALC)'!R28,MATCH('Microwave Shipments (CALC)'!$I$51,'Distribution (CALC)'!$M$7:$M$213,0)-1,0)*$N72 -> 0 | M72: =OFFSET('Distribution (CALC)'!S28,MATCH('Microwave Shipments (CALC)'!$I$51,'Distribution (CALC)'!$M$7:$M$213,0)-1,0)*$N72 -> 0 | N72: 158220.8976 | O72: =OFFSET('Distribution (CALC)'!O28,MATCH('Microwave Shipments (CALC)'!$O$51,'Distribution (CALC)'!$M$7:$M$213,0)-1,0)*$T72 -> 0 | P72: =OFFSET('Distribution (CALC)'!P28,MATCH('Microwave Shipments (CALC)'!$O$51,'Distribution (CALC)'!$M$7:$M$213,0)-1,0)*$T72 -> 0 | Q72: =OFFSET('Distribution (CALC)'!Q28,MATCH('Microwave Shipments (CALC)'!$O$51,'Distribution (CALC)'!$M$7:$M$213,0)-1,0)*$T72 -> 157867.3762 | R72: =OFFSET('Distribution (CALC)'!R28,MATCH('Microwave Shipments (CALC)'!$O$51,'Distribution (CALC)'!$M$7:$M$213,0)-1,0)*$T72 -> 0 | S72: =OFFSET('Distribution (CALC)'!S28,MATCH('Microwave Shipments (CALC)'!$O$51,'Distribution (CALC)'!$M$7:$M$213,0)-1,0)*$T72 -> 0 | T72: 157867.3762 | U72: =OFFSET('Distribution (CALC)'!O28,MATCH('Microwave Shipments (CALC)'!$U$51,'Distribution (CALC)'!$M$7:$M$213,0)-1,0)*$Z72 -> 0 | V72: =OFFSET('Distribution (CALC)'!P28,MATCH('Microwave Shipments (CALC)'!$U$51,'Distribution (CALC)'!$M$7:$M$213,0)-1,0)*$Z72 -> 0 | W72: =OFFSET('Distribution (CALC)'!Q28,MATCH('Microwave Shipments (CALC)'!$U$51,'Distribution (CALC)'!$M$7:$M$213,0)-1,0)*$Z72 -> 0 | X72: =OFFSET('Distribution (CALC)'!R28,MATCH('Microwave Shipments (CALC)'!$U$51,'Distribution (CALC)'!$M$7:$M$213,0)-1,0)*$Z72 -> 156759.4979 | Y72: =OFFSET('Distribution (CALC)'!S28,MATCH('Microwave Shipments (CALC)'!$U$51,'Distribution (CALC)'!$M$7:$M$213,0)-1,0)*$Z72 -> 0 | Z72: 156759.4979 | AA72: =OFFSET('Distribution (CALC)'!O28,MATCH('Microwave Shipments (CALC)'!$AA$51,'Distribution (CALC)'!$M$7:$M$213,0)-1,0)*$AF72 -> 0 | AB72: =OFFSET('Distribution (CALC)'!P28,MATCH('Microwave Shipments (CALC)'!$AA$51,'Distribution (CALC)'!$M$7:$M$213,0)-1,0)*$AF72 -> 0 | AC72: =OFFSET('Distribution (CALC)'!Q28,MATCH('Microwave Shipments (CALC)'!$AA$51,'Distribution (CALC)'!$M$7:$M$213,0)-1,0)*$AF72 -> 0 | AD72: =OFFSET('Distribution (CALC)'!R28,MATCH('Microwave Shipments (CALC)'!$AA$51,'Distribution (CALC)'!$M$7:$M$213,0)-1,0)*$AF72 -> 0 | AE72: =OFFSET('Distribution (CALC)'!S28,MATCH('Microwave Shipments (CALC)'!$AA$51,'Distribution (CALC)'!$M$7:$M$213,0)-1,0)*$AF72 -> 157425.4809 | AF72: 157425.4809
B73: 2026 | C73: =OFFSET('Distribution (CALC)'!O29,MATCH('Microwave Shipments (CALC)'!$C$51,'Distribution (CALC)'!$M$7:$M$213,0)-1,0)*$H73 -> 155317.5933 | D73: =OFFSET('Distribution (CALC)'!P29,MATCH('Microwave Shipments (CALC)'!$C$51,'Distribution (CALC)'!$M$7:$M$213,0)-1,0)*$H73 -> 0 | E73: =OFFSET('Distribution (CALC)'!Q29,MATCH('Microwave Shipments (CALC)'!$C$51,'Distribution (CALC)'!$M$7:$M$213,0)-1,0)*$H73 -> 0 | F73: =OFFSET('Distribution (CALC)'!R29,MATCH('Microwave Shipments (CALC)'!$C$51,'Distribution (CALC)'!$M$7:$M$213,0)-1,0)*$H73 -> 0 | G73: =OFFSET('Distribution (CALC)'!S29,MATCH('Microwave Shipments (CALC)'!$C$51,'Distribution (CALC)'!$M$7:$M$213,0)-1,0)*$H73 -> 0 | H73: 155317.5933 | I73: =OFFSET('Distribution (CALC)'!O29,MATCH('Microwave Shipments (CALC)'!$I$51,'Distribution (CALC)'!$M$7:$M$213,0)-1,0)*$N73 -> 0 | J73: =OFFSET('Distribution (CALC)'!P29,MATCH('Microwave Shipments (CALC)'!$I$51,'Distribution (CALC)'!$M$7:$M$213,0)-1,0)*$N73 -> 155319.8715 | K73: =OFFSET('Distribution (CALC)'!Q29,MATCH('Microwave Shipments (CALC)'!$I$51,'Distribution (CALC)'!$M$7:$M$213,0)-1,0)*$N73 -> 0 | L73: =OFFSET('Distribution (CALC)'!R29,MATCH('Microwave Shipments (CALC)'!$I$51,'Distribution (CALC)'!$M$7:$M$213,0)-1,0)*$N73 -> 0 | M73: =OFFSET('Distribution (CALC)'!S29,MATCH('Microwave Shipments (CALC)'!$I$51,'Distribution (CALC)'!$M$7:$M$213,0)-1,0)*$N73 -> 0 | N73: 155319.8715 | O73: =OFFSET('Distribution (CALC)'!O29,MATCH('Microwave Shipments (CALC)'!$O$51,'Distribution (CALC)'!$M$7:$M$213,0)-1,0)*$T73 -> 0 | P73: =OFFSET('Distribution (CALC)'!P29,MATCH('Microwave Shipments (CALC)'!$O$51,'Distribution (CALC)'!$M$7:$M$213,0)-1,0)*$T73 -> 0 | Q73: =OFFSET('Distribution (CALC)'!Q29,MATCH('Microwave Shipments (CALC)'!$O$51,'Distribution (CALC)'!$M$7:$M$213,0)-1,0)*$T73 -> 154973.0175 | R73: =OFFSET('Distribution (CALC)'!R29,MATCH('Microwave Shipments (CALC)'!$O$51,'Distribution (CALC)'!$M$7:$M$213,0)-1,0)*$T73 -> 0 | S73: =OFFSET('Distribution (CALC)'!S29,MATCH('Microwave Shipments (CALC)'!$O$51,'Distribution (CALC)'!$M$7:$M$213,0)-1,0)*$T73 -> 0 | T73: 154973.0175 | U73: =OFFSET('Distribution (CALC)'!O29,MATCH('Microwave Shipments (CALC)'!$U$51,'Distribution (CALC)'!$M$7:$M$213,0)-1,0)*$Z73 -> 0 | V73: =OFFSET('Distribution (CALC)'!P29,MATCH('Microwave Shipments (CALC)'!$U$51,'Distribution (CALC)'!$M$7:$M$213,0)-1,0)*$Z73 -> 0 | W73: =OFFSET('Distribution (CALC)'!Q29,MATCH('Microwave Shipments (CALC)'!$U$51,'Distribution (CALC)'!$M$7:$M$213,0)-1,0)*$Z73 -> 0 | X73: =OFFSET('Distribution (CALC)'!R29,MATCH('Microwave Shipments (CALC)'!$U$51,'Distribution (CALC)'!$M$7:$M$213,0)-1,0)*$Z73 -> 153885.9358 | Y73: =OFFSET('Distribution (CALC)'!S29,MATCH('Microwave Shipments (CALC)'!$U$51,'Distribution (CALC)'!$M$7:$M$213,0)-1,0)*$Z73 -> 0 | Z73: 153885.9358 | AA73: =OFFSET('Distribution (CALC)'!O29,MATCH('Microwave Shipments (CALC)'!$AA$51,'Distribution (CALC)'!$M$7:$M$213,0)-1,0)*$AF73 -> 0 | AB73: =OFFSET('Distribution (CALC)'!P29,MATCH('Microwave Shipments (CALC)'!$AA$51,'Distribution (CALC)'!$M$7:$M$213,0)-1,0)*$AF73 -> 0 | AC73: =OFFSET('Distribution (CALC)'!Q29,MATCH('Microwave Shipments (CALC)'!$AA$51,'Distribution (CALC)'!$M$7:$M$213,0)-1,0)*$AF73 -> 0 | AD73: =OFFSET('Distribution (CALC)'!R29,MATCH('Microwave Shipments (CALC)'!$AA$51,'Distribution (CALC)'!$M$7:$M$213,0)-1,0)*$AF73 -> 0 | AE73: =OFFSET('Distribution (CALC)'!S29,MATCH('Microwave Shipments (CALC)'!$AA$51,'Distribution (CALC)'!$M$7:$M$213,0)-1,0)*$AF73 -> 154539.5137 | AF73: 154539.5137
B74: 2027 | C74: =OFFSET('Distribution (CALC)'!O30,MATCH('Microwave Shipments (CALC)'!$C$51,'Distribution (CALC)'!$M$7:$M$213,0)-1,0)*$H74 -> 152916.0221 | D74: =OFFSET('Distribution (CALC)'!P30,MATCH('Microwave Shipments (CALC)'!$C$51,'Distribution (CALC)'!$M$7:$M$213,0)-1,0)*$H74 -> 0 | E74: =OFFSET('Distribution (CALC)'!Q30,MATCH('Microwave Shipments (CALC)'!$C$51,'Distribution (CALC)'!$M$7:$M$213,0)-1,0)*$H74 -> 0 | F74: =OFFSET('Distribution (CALC)'!R30,MATCH('Microwave Shipments (CALC)'!$C$51,'Distribution (CALC)'!$M$7:$M$213,0)-1,0)*$H74 -> 0 | G74: =OFFSET('Distribution (CALC)'!S30,MATCH('Microwave Shipments (CALC)'!$C$51,'Distribution (CALC)'!$M$7:$M$213,0)-1,0)*$H74 -> 0 | H74: 152916.0221 | I74: =OFFSET('Distribution (CALC)'!O30,MATCH('Microwave Shipments (CALC)'!$I$51,'Distribution (CALC)'!$M$7:$M$213,0)-1,0)*$N74 -> 0 | J74: =OFFSET('Distribution (CALC)'!P30,MATCH('Microwave Shipments (CALC)'!$I$51,'Distribution (CALC)'!$M$7:$M$213,0)-1,0)*$N74 -> 152918.1861 | K74: =OFFSET('Distribution (CALC)'!Q30,MATCH('Microwave Shipments (CALC)'!$I$51,'Distribution (CALC)'!$M$7:$M$213,0)-1,0)*$N74 -> 0 | L74: =OFFSET('Distribution (CALC)'!R30,MATCH('Microwave Shipments (CALC)'!$I$51,'Distribution (CALC)'!$M$7:$M$213,0)-1,0)*$N74 -> 0 | M74: =OFFSET('Distribution (CALC)'!S30,MATCH('Microwave Shipments (CALC)'!$I$51,'Distribution (CALC)'!$M$7:$M$213,0)-1,0)*$N74 -> 0 | N74: 152918.1861 | O74: =OFFSET('Distribution (CALC)'!O30,MATCH('Microwave Shipments (CALC)'!$O$51,'Distribution (CALC)'!$M$7:$M$213,0)-1,0)*$T74 -> 0 | P74: =OFFSET('Distribution (CALC)'!P30,MATCH('Microwave Shipments (CALC)'!$O$51,'Distribution (CALC)'!$M$7:$M$213,0)-1,0)*$T74 -> 0 | Q74: =OFFSET('Distribution (CALC)'!Q30,MATCH('Microwave Shipments (CALC)'!$O$51,'Distribution (CALC)'!$M$7:$M$213,0)-1,0)*$T74 -> 152595.4508 | R74: =OFFSET('Distribution (CALC)'!R30,MATCH('Microwave Shipments (CALC)'!$O$51,'Distribution (CALC)'!$M$7:$M$213,0)-1,0)*$T74 -> 0 | S74: =OFFSET('Distribution (CALC)'!S30,MATCH('Microwave Shipments (CALC)'!$O$51,'Distribution (CALC)'!$M$7:$M$213,0)-1,0)*$T74 -> 0 | T74: 152595.4508 | U74: =OFFSET('Distribution (CALC)'!O30,MATCH('Microwave Shipments (CALC)'!$U$51,'Distribution (CALC)'!$M$7:$M$213,0)-1,0)*$Z74 -> 0 | V74: =OFFSET('Distribution (CALC)'!P30,MATCH('Microwave Shipments (CALC)'!$U$51,'Distribution (CALC)'!$M$7:$M$213,0)-1,0)*$Z74 -> 0 | W74: =OFFSET('Distribution (CALC)'!Q30,MATCH('Microwave Shipments (CALC)'!$U$51,'Distribution (CALC)'!$M$7:$M$213,0)-1,0)*$Z74 -> 0 | X74: =OFFSET('Distribution (CALC)'!R30,MATCH('Microwave Shipments (CALC)'!$U$51,'Distribution (CALC)'!$M$7:$M$213,0)-1,0)*$Z74 -> 151583.7691 | Y74: =OFFSET('Distribution (CALC)'!S30,MATCH('Microwave Shipments (CALC)'!$U$51,'Distribution (CALC)'!$M$7:$M$213,0)-1,0)*$Z74 -> 0 | Z74: 151583.7691 | AA74: =OFFSET('Distribution (CALC)'!O30,MATCH('Microwave Shipments (CALC)'!$AA$51,'Distribution (CALC)'!$M$7:$M$213,0)-1,0)*$AF74 -> 0 | AB74: =OFFSET('Distribution (CALC)'!P30,MATCH('Microwave Shipments (CALC)'!$AA$51,'Distribution (CALC)'!$M$7:$M$213,0)-1,0)*$AF74 -> 0 | AC74: =OFFSET('Distribution (CALC)'!Q30,MATCH('Microwave Shipments (CALC)'!$AA$51,'Distribution (CALC)'!$M$7:$M$213,0)-1,0)*$AF74 -> 0 | AD74: =OFFSET('Distribution (CALC)'!R30,MATCH('Microwave Shipments (CALC)'!$AA$51,'Distribution (CALC)'!$M$7:$M$213,0)-1,0)*$AF74 -> 0 | AE74: =OFFSET('Distribution (CALC)'!S30,MATCH('Microwave Shipments (CALC)'!$AA$51,'Distribution (CALC)'!$M$7:$M$213,0)-1,0)*$AF74 -> 152192.1581 | AF74: 152192.1581
B75: 2028 | C75: =OFFSET('Distribution (CALC)'!O31,MATCH('Microwave Shipments (CALC)'!$C$51,'Distribution (CALC)'!$M$7:$M$213,0)-1,0)*$H75 -> 152311.5913 | D75: =OFFSET('Distribution (CALC)'!P31,MATCH('Microwave Shipments (CALC)'!$C$51,'Distribution (CALC)'!$M$7:$M$213,0)-1,0)*$H75 -> 0 | E75: =OFFSET('Distribution (CALC)'!Q31,MATCH('Microwave Shipments (CALC)'!$C$51,'Distribution (CALC)'!$M$7:$M$213,0)-1,0)*$H75 -> 0 | F75: =OFFSET('Distribution (CALC)'!R31,MATCH('Microwave Shipments (CALC)'!$C$51,'Distribution (CALC)'!$M$7:$M$213,0)-1,0)*$H75 -> 0 | G75: =OFFSET('Distribution (CALC)'!S31,MATCH('Microwave Shipments (CALC)'!$C$51,'Distribution (CALC)'!$M$7:$M$213,0)-1,0)*$H75 -> 0 | H75: 152311.5913 | I75: =OFFSET('Distribution (CALC)'!O31,MATCH('Microwave Shipments (CALC)'!$I$51,'Distribution (CALC)'!$M$7:$M$213,0)-1,0)*$N75 -> 0 | J75: =OFFSET('Distribution (CALC)'!P31,MATCH('Microwave Shipments (CALC)'!$I$51,'Distribution (CALC)'!$M$7:$M$213,0)-1,0)*$N75 -> 152313.6824 | K75: =OFFSET('Distribution (CALC)'!Q31,MATCH('Microwave Shipments (CALC)'!$I$51,'Distribution (CALC)'!$M$7:$M$213,0)-1,0)*$N75 -> 0 | L75: =OFFSET('Distribution (CALC)'!R31,MATCH('Microwave Shipments (CALC)'!$I$51,'Distribution (CALC)'!$M$7:$M$213,0)-1,0)*$N75 -> 0 | M75: =OFFSET('Distribution (CALC)'!S31,MATCH('Microwave Shipments (CALC)'!$I$51,'Distribution (CALC)'!$M$7:$M$213,0)-1,0)*$N75 -> 0 | N75: 152313.6824 | O75: =OFFSET('Distribution (CALC)'!O31,MATCH('Microwave Shipments (CALC)'!$O$51,'Distribution (CALC)'!$M$7:$M$213,0)-1,0)*$T75 -> 0 | P75: =OFFSET('Distribution (CALC)'!P31,MATCH('Microwave Shipments (CALC)'!$O$51,'Distribution (CALC)'!$M$7:$M$213,0)-1,0)*$T75 -> 0 | Q75: =OFFSET('Distribution (CALC)'!Q31,MATCH('Microwave Shipments (CALC)'!$O$51,'Distribution (CALC)'!$M$7:$M$213,0)-1,0)*$T75 -> 152008.0911 | R75: =OFFSET('Distribution (CALC)'!R31,MATCH('Microwave Shipments (CALC)'!$O$51,'Distribution (CALC)'!$M$7:$M$213,0)-1,0)*$T75 -> 0 | S75: =OFFSET('Distribution (CALC)'!S31,MATCH('Microwave Shipments (CALC)'!$O$51,'Distribution (CALC)'!$M$7:$M$213,0)-1,0)*$T75 -> 0 | T75: 152008.0911 | U75: =OFFSET('Distribution (CALC)'!O31,MATCH('Microwave Shipments (CALC)'!$U$51,'Distribution (CALC)'!$M$7:$M$213,0)-1,0)*$Z75 -> 0 | V75: =OFFSET('Distribution (CALC)'!P31,MATCH('Microwave Shipments (CALC)'!$U$51,'Distribution (CALC)'!$M$7:$M$213,0)-1,0)*$Z75 -> 0 | W75: =OFFSET('Distribution (CALC)'!Q31,MATCH('Microwave Shipments (CALC)'!$U$51,'Distribution (CALC)'!$M$7:$M$213,0)-1,0)*$Z75 -> 0 | X75: =OFFSET('Distribution (CALC)'!R31,MATCH('Microwave Shipments (CALC)'!$U$51,'Distribution (CALC)'!$M$7:$M$213,0)-1,0)*$Z75 -> 151050.0165 | Y75: =OFFSET('Distribution (CALC)'!S31,MATCH('Microwave Shipments (CALC)'!$U$51,'Distribution (CALC)'!$M$7:$M$213,0)-1,0)*$Z75 -> 0 | Z75: 151050.0165 | AA75: =OFFSET('Distribution (CALC)'!O31,MATCH('Microwave Shipments (CALC)'!$AA$51,'Distribution (CALC)'!$M$7:$M$213,0)-1,0)*$AF75 -> 0 | AB75: =OFFSET('Distribution (CALC)'!P31,MATCH('Microwave Shipments (CALC)'!$AA$51,'Distribution (CALC)'!$M$7:$M$213,0)-1,0)*$AF75 -> 0 | AC75: =OFFSET('Distribution (CALC)'!Q31,MATCH('Microwave Shipments (CALC)'!$AA$51,'Distribution (CALC)'!$M$7:$M$213,0)-1,0)*$AF75 -> 0 | AD75: =OFFSET('Distribution (CALC)'!R31,MATCH('Microwave Shipments (CALC)'!$AA$51,'Distribution (CALC)'!$M$7:$M$213,0)-1,0)*$AF75 -> 0 | AE75: =OFFSET('Distribution (CALC)'!S31,MATCH('Microwave Shipments (CALC)'!$AA$51,'Distribution (CALC)'!$M$7:$M$213,0)-1,0)*$AF75 -> 151626.2957 | AF75: 151626.2957
B76: 2029 | C76: =OFFSET('Distribution (CALC)'!O32,MATCH('Microwave Shipments (CALC)'!$C$51,'Distribution (CALC)'!$M$7:$M$213,0)-1,0)*$H76 -> 154534.6081 | D76: =OFFSET('Distribution (CALC)'!P32,MATCH('Microwave Shipments (CALC)'!$C$51,'Distribution (CALC)'!$M$7:$M$213,0)-1,0)*$H76 -> 0 | E76: =OFFSET('Distribution (CALC)'!Q32,MATCH('Microwave Shipments (CALC)'!$C$51,'Distribution (CALC)'!$M$7:$M$213,0)-1,0)*$H76 -> 0 | F76: =OFFSET('Distribution (CALC)'!R32,MATCH('Microwave Shipments (CALC)'!$C$51,'Distribution (CALC)'!$M$7:$M$213,0)-1,0)*$H76 -> 0 | G76: =OFFSET('Distribution (CALC)'!S32,MATCH('Microwave Shipments (CALC)'!$C$51,'Distribution (CALC)'!$M$7:$M$213,0)-1,0)*$H76 -> 0 | H76: 154534.6081 | I76: =OFFSET('Distribution (CALC)'!O32,MATCH('Microwave Shipments (CALC)'!$I$51,'Distribution (CALC)'!$M$7:$M$213,0)-1,0)*$N76 -> 0 | J76: =OFFSET('Distribution (CALC)'!P32,MATCH('Microwave Shipments (CALC)'!$I$51,'Distribution (CALC)'!$M$7:$M$213,0)-1,0)*$N76 -> 154536.7353 | K76: =OFFSET('Distribution (CALC)'!Q32,MATCH('Microwave Shipments (CALC)'!$I$51,'Distribution (CALC)'!$M$7:$M$213,0)-1,0)*$N76 -> 0 | L76: =OFFSET('Distribution (CALC)'!R32,MATCH('Microwave Shipments (CALC)'!$I$51,'Distribution (CALC)'!$M$7:$M$213,0)-1,0)*$N76 -> 0 | M76: =OFFSET('Distribution (CALC)'!S32,MATCH('Microwave Shipments (CALC)'!$I$51,'Distribution (CALC)'!$M$7:$M$213,0)-1,0)*$N76 -> 0 | N76: 154536.7353 | O76: =OFFSET('Distribution (CALC)'!O32,MATCH('Microwave Shipments (CALC)'!$O$51,'Distribution (CALC)'!$M$7:$M$213,0)-1,0)*$T76 -> 0 | P76: =OFFSET('Distribution (CALC)'!P32,MATCH('Microwave Shipments (CALC)'!$O$51,'Distribution (CALC)'!$M$7:$M$213,0)-1,0)*$T76 -> 0 | Q76: =OFFSET('Distribution (CALC)'!Q32,MATCH('Microwave Shipments (CALC)'!$O$51,'Distribution (CALC)'!$M$7:$M$213,0)-1,0)*$T76 -> 154231.7043 | R76: =OFFSET('Distribution (CALC)'!R32,MATCH('Microwave Shipments (CALC)'!$O$51,'Distribution (CALC)'!$M$7:$M$213,0)-1,0)*$T76 -> 0 | S76: =OFFSET('Distribution (CALC)'!S32,MATCH('Microwave Shipments (CALC)'!$O$51,'Distribution (CALC)'!$M$7:$M$213,0)-1,0)*$T76 -> 0 | T76: 154231.7043 | U76: =OFFSET('Distribution (CALC)'!O32,MATCH('Microwave Shipments (CALC)'!$U$51,'Distribution (CALC)'!$M$7:$M$213,0)-1,0)*$Z76 -> 0 | V76: =OFFSET('Distribution (CALC)'!P32,MATCH('Microwave Shipments (CALC)'!$U$51,'Distribution (CALC)'!$M$7:$M$213,0)-1,0)*$Z76 -> 0 | W76: =OFFSET('Distribution (CALC)'!Q32,MATCH('Microwave Shipments (CALC)'!$U$51,'Distribution (CALC)'!$M$7:$M$213,0)-1,0)*$Z76 -> 0 | X76: =OFFSET('Distribution (CALC)'!R32,MATCH('Microwave Shipments (CALC)'!$U$51,'Distribution (CALC)'!$M$7:$M$213,0)-1,0)*$Z76 -> 153275.3632 | Y76: =OFFSET('Distribution (CALC)'!S32,MATCH('Microwave Shipments (CALC)'!$U$51,'Distribution (CALC)'!$M$7:$M$213,0)-1,0)*$Z76 -> 0 | Z76: 153275.3632 | AA76: =OFFSET('Distribution (CALC)'!O32,MATCH('Microwave Shipments (CALC)'!$AA$51,'Distribution (CALC)'!$M$7:$M$213,0)-1,0)*$AF76 -> 0 | AB76: =OFFSET('Distribution (CALC)'!P32,MATCH('Microwave Shipments (CALC)'!$AA$51,'Distribution (CALC)'!$M$7:$M$213,0)-1,0)*$AF76 -> 0 | AC76: =OFFSET('Distribution (CALC)'!Q32,MATCH('Microwave Shipments (CALC)'!$AA$51,'Distribution (CALC)'!$M$7:$M$213,0)-1,0)*$AF76 -> 0 | AD76: =OFFSET('Distribution (CALC)'!R32,MATCH('Microwave Shipments (CALC)'!$AA$51,'Distribution (CALC)'!$M$7:$M$213,0)-1,0)*$AF76 -> 0 | AE76: =OFFSET('Distribution (CALC)'!S32,MATCH('Microwave Shipments (CALC)'!$AA$51,'Distribution (CALC)'!$M$7:$M$213,0)-1,0)*$AF76 -> 153850.7017 | AF76: 153850.7017
B77: 2030 | C77: =OFFSET('Distribution (CALC)'!O33,MATCH('Microwave Shipments (CALC)'!$C$51,'Distribution (CALC)'!$M$7:$M$213,0)-1,0)*$H77 -> 158883.2657 | D77: =OFFSET('Distribution (CALC)'!P33,MATCH('Microwave Shipments (CALC)'!$C$51,'Distribution (CALC)'!$M$7:$M$213,0)-1,0)*$H77 -> 0 | E77: =OFFSET('Distribution (CALC)'!Q33,MATCH('Microwave Shipments (CALC)'!$C$51,'Distribution (CALC)'!$M$7:$M$213,0)-1,0)*$H77 -> 0 | F77: =OFFSET('Distribution (CALC)'!R33,MATCH('Microwave Shipments (CALC)'!$C$51,'Distribution (CALC)'!$M$7:$M$213,0)-1,0)*$H77 -> 0 | G77: =OFFSET('Distribution (CALC)'!S33,MATCH('Microwave Shipments (CALC)'!$C$51,'Distribution (CALC)'!$M$7:$M$213,0)-1,0)*$H77 -> 0 | H77: 158883.2657 | I77: =OFFSET('Distribution (CALC)'!O33,MATCH('Microwave Shipments (CALC)'!$I$51,'Distribution (CALC)'!$M$7:$M$213,0)-1,0)*$N77 -> 0 | J77: =OFFSET('Distribution (CALC)'!P33,MATCH('Microwave Shipments (CALC)'!$I$51,'Distribution (CALC)'!$M$7:$M$213,0)-1,0)*$N77 -> 158885.5261 | K77: =OFFSET('Distribution (CALC)'!Q33,MATCH('Microwave Shipments (CALC)'!$I$51,'Distribution (CALC)'!$M$7:$M$213,0)-1,0)*$N77 -> 0 | L77: =OFFSET('Distribution (CALC)'!R33,MATCH('Microwave Shipments (CALC)'!$I$51,'Distribution (CALC)'!$M$7:$M$213,0)-1,0)*$N77 -> 0 | M77: =OFFSET('Distribution (CALC)'!S33,MATCH('Microwave Shipments (CALC)'!$I$51,'Distribution (CALC)'!$M$7:$M$213,0)-1,0)*$N77 -> 0 | N77: 158885.5261 | O77: =OFFSET('Distribution (CALC)'!O33,MATCH('Microwave Shipments (CALC)'!$O$51,'Distribution (CALC)'!$M$7:$M$213,0)-1,0)*$T77 -> 0 | P77: =OFFSET('Distribution (CALC)'!P33,MATCH('Microwave Shipments (CALC)'!$O$51,'Distribution (CALC)'!$M$7:$M$213,0)-1,0)*$T77 -> 0 | Q77: =OFFSET('Distribution (CALC)'!Q33,MATCH('Microwave Shipments (CALC)'!$O$51,'Distribution (CALC)'!$M$7:$M$213,0)-1,0)*$T77 -> 158565.2363 | R77: =OFFSET('Distribution (CALC)'!R33,MATCH('Microwave Shipments (CALC)'!$O$51,'Distribution (CALC)'!$M$7:$M$213,0)-1,0)*$T77 -> 0 | S77: =OFFSET('Distribution (CALC)'!S33,MATCH('Microwave Shipments (CALC)'!$O$51,'Distribution (CALC)'!$M$7:$M$213,0)-1,0)*$T77 -> 0 | T77: 158565.2363 | U77: =OFFSET('Distribution (CALC)'!O33,MATCH('Microwave Shipments (CALC)'!$U$51,'Distribution (CALC)'!$M$7:$M$213,0)-1,0)*$Z77 -> 0 | V77: =OFFSET('Distribution (CALC)'!P33,MATCH('Microwave Shipments (CALC)'!$U$51,'Distribution (CALC)'!$M$7:$M$213,0)-1,0)*$Z77 -> 0 | W77: =OFFSET('Distribution (CALC)'!Q33,MATCH('Microwave Shipments (CALC)'!$U$51,'Distribution (CALC)'!$M$7:$M$213,0)-1,0)*$Z77 -> 0 | X77: =OFFSET('Distribution (CALC)'!R33,MATCH('Microwave Shipments (CALC)'!$U$51,'Distribution (CALC)'!$M$7:$M$213,0)-1,0)*$Z77 -> 157561.1938 | Y77: =OFFSET('Distribution (CALC)'!S33,MATCH('Microwave Shipments (CALC)'!$U$51,'Distribution (CALC)'!$M$7:$M$213,0)-1,0)*$Z77 -> 0 | Z77: 157561.1938 | AA77: =OFFSET('Distribution (CALC)'!O33,MATCH('Microwave Shipments (CALC)'!$AA$51,'Distribution (CALC)'!$M$7:$M$213,0)-1,0)*$AF77 -> 0 | AB77: =OFFSET('Distribution (CALC)'!P33,MATCH('Microwave Shipments (CALC)'!$AA$51,'Distribution (CALC)'!$M$7:$M$213,0)-1,0)*$AF77 -> 0 | AC77: =OFFSET('Distribution (CALC)'!Q33,MATCH('Microwave Shipments (CALC)'!$AA$51,'Distribution (CALC)'!$M$7:$M$213,0)-1,0)*$AF77 -> 0 | AD77: =OFFSET('Distribution (CALC)'!R33,MATCH('Microwave Shipments (CALC)'!$AA$51,'Distribution (CALC)'!$M$7:$M$213,0)-1,0)*$AF77 -> 0 | AE77: =OFFSET('Distribution (CALC)'!S33,MATCH('Microwave Shipments (CALC)'!$AA$51,'Distribution (CALC)'!$M$7:$M$213,0)-1,0)*$AF77 -> 158165.2697 | AF77: 158165.2697
